Workbook

Sheet Instructions
A1: Financial Template
A2: Instructions
A3: I. Sheet Definitions
B4: A. Input Data - (1) Instructions and definitions are in Input Data Instructions.
B5: B. Results - Summary Overview of Financial Results
B6: C. Financials - Statement of Cash Flows, Income Statement and Balance Sheet
B7: D. Capex - Capital Expenditures per asset Check Input Data Instructions for more details
B8: E. Depreciation (1) Book - depreciation usually has a different life than tax and has its own schedule sheet (2) Tax - separate from book depreciation
B9: F. Other Expenses (1) O&M - Operations & Maintenaince of an asset once it is service (2) Property Tax - Schedule for Property Tax set in Input Data Instructions
B10: G. Revenue Requirement - Calculates the amount of revenue we must recover from customers (1) Rate Case - Choose Rate Case Year(s) that can be turned on in Input Data tab.
B11: H. LFCR - Levelized Fixed Charge Rate (1) Shows how much the levelized charge rate is.
B12: I. Residential Bill Impact - Shows revenue requirement/rate effect based off 1000 KWh bill.
A13: II. GENERAL INSTRUCTIONS
B14: A. Fields to Complete - All fields with a light yellow background are areas where data can be entered (which should read in a blue font color.) Please do not type anywhere that does not have a yellow background.
B15: B. Tabs to Complete - Please fill out the 'Input Data' Tab. Please provide any supplementary information in the 'Additional Data' Tab.
B16: C. Drop-down Menus - Many of the inputs are formatted as a drop down menu (with light grey background). Please make a selection from the menu and do not attempt to re-format these cells.
B17: D. Number Values - All dollar values should be entered as whole numbers.
B18: E. Miscellaneous - Towards the bottom of the input data tab is a section (highlighted in a light red backround) that shows the IRR and average ROE based on your current assumptions. You can use this to help adjust the revenue or expense inputs when targeting a hurdle rate.
A19: III. INPUT DATA INSTRUCTIONS
B20: A. General Information - (1) Enter a general description for the project name [user input] (2) Enter your opportunity team name/number [user input] (3) Enter a contact person or persons [user input]
B21: B. Entity - Select the entity from the drop-down menu. [drop down menu]
B22: C. Project Start Year - Select the start year for the project. [user input]
B23: D. 1st Year of Earnings - Select the year for the 1st year that revenue and expenses (besides capital expenditures) will be incurred. [user input]
B24: E. Total Years to Model - select the number of years to model. Entry can not be greater than 25. [user input]
B25: F. Years Modeled - Based on Project Start Year (item C) and Term/Years Modeled (item E). (do not attempt to change cell)
B26: G. Capital Structure - Management controlled entry (do not attempt to change cell). Based on entity selected in Input Item B.
B27: H. Cost of Equity - Management controlled entry (do not attempt to change cell). Based on entity selected in Input Item B.
B28: I. Interest Rate on Debt - Management controlled entry (do not attempt to change cell). Based on entity selected in Input Item B. (1) Use Average Debt Rate - Averages debt rate based on entity selected in Input Item B. [user input] (2) Number of Years from Project Start Year - Choose what year interest starts accruing. [user input]
B29: J. Property Tax - (1) Ad Valorem Tax - Management controlled entry (do not attempt to change cell). Based on entity selected in Input Item B and Subject to Property Tax cell. [user input] (2) % of NBV subject to Property Tax Rate - Management controlled entry (do not attempt to change cell). Based on selection in Solar Property Tax Exemption. [user input] (3) Subject to Property Tax - Turn on if project being modeled is subject to property tax. [user input] (4) Solar Property Tax Exemption - Turn on only for solar projects. [user input]
B30: L. Bonus Depreciation - Management controlled entry (do not attempt to change cell).
B31: M. Investment Tax Credit - (1) ITC Rate - Management controlled entry (do not attempt to change cell). (2) Reduction in Tax Basis - Management controlled entry (do not attempt to change cell).
B32: N. AFUDC (1) Input either 1 (turn on) or 0 (turn off) AFUDC calculations. [user input] (2) If pre-calculated AFUDC numbers are available, input in "CAPEX" sheet (rows 60-69). [user input]
B33: O. Tax Rate - Management controlled entry (do not attempt to change cell).
B34: P. Financial Drivers - Revenue (1) Check the 1st box (LFCR) if revenue stream should be based on a levelized fixed charge rate. By checking this box, you will override any revenue amounts manually entered in the section below (item (4)). [check the box entry] (2) Check the 2nd box (ROE) if revenue stream should be based on earning at the allowed ROE each year. By checking this box, you will override any revenue amounts derived by checking the LFCR box or manually entered in the section below (item (4)) [check the box entry] (3) Check the 3rd box (Rate Base Recovery) if there are rate cases in your project year. By checking this box, you will override any revenue amounts derived by checking the LFCR box or manually entered in the section below (item (4)) (4) Enter the revenue amounts expected in 1st year of earnings. [user input] (5) Enter an annual escalator (if applicable) in the second column. [user input] (6) Enter in the third column the year the annual escalator entered in the second column would begin. [user input] (7) Use additional columns to add an incremental lump sum increase or decrease over the prior year amount (if applicable) by putting in a dollar amount for the increase / (decrease) in the calendar year the increase / (decrease) would start. [user input ]
B35: Q. Fuel Expenses - Expense (1) Enter the expense amounts expected in 1st year of earnings. [user input] (2) Enter an annual escalator (if applicable) in the second column. [user input] (3) Enter in the third column the year the annual escalator entered in the second column would begin. [user input] (4) Use additional columns to add an incremental lump sum increase or decrease over the prior year amount (if applicable) by putting in a dollar amount for the increase / (decrease) and a calendar year from the drop down menu for when this increase / (decrease) would start. [user input]
B36: R. MWh Assumptions for Solar (1) Enter the MW-AC (if applicable). [user input] (2) Enter the capacity factor. [user input] (3) Enter the degradation (if applicable) [user input]
A37: IV. Capital Expenditures
B38: (1) Enter a description for the asset. [user input] (2) Select a year the capital dollar is being spent and enter the capital expenditure amount by year for each asset type. Note: make sure that year(s) are at least equal or greater than the year selected in Item C above (Project Start Year). [user input] (3) Select the In-service year from the drop-down menu. Note that the In-service year must be equal to or greater than the year selected in Input Item D above(1st Year of Earnings). [user input] (4) Enter the amount of months asset is in service during first year (if applicable) [user input] (5) Enter book life of the asset. [user input] (6) Enter tax life of the asset. [user input] (7) Project Qualifies for ITC [NOTE: Please contact the Core Team before enabling ITC] - select either "Y" if project qualifies for ITC or "N" if it doesn't from the drop down menu. [user input] (8) AFUDC By Year - Enter AFUDC amount by year [user input]
A39: IV. O&M
B40: (1) Enter a description for the asset incurring O&M. [user input]
B41: (2) Enter growth rate of O&M. [user input]
B42: (3) Select what the year O&M starts. [user input]

Sheet Input Data
A1: Financial Template | C1: =IF(Financials!D175=0,"All checks OK","Press D&E Macro") -> All checks OK
A2: =+C9&" - Input Data" -> Project Tampa - Midtown (Updated Costs Sept 2022) - Input Data
D4: light yellow background = manual input / check box | H4: light grey background = drop down menu
A5: Click button once all data/inputs are entered
A6: Note: button can also be found in Financials tab (cell B1/B2) | D6: blue = management controlled input | H6: black = calculated
A9: A. | B9: General Information | C9: Project Tampa - Midtown (Updated Costs Sept 2022)
C10: Project Tampa
C11: Juan Villa
A13: B. | B13: Entity | C13: TEC
A15: C. | B15: Project Start Year | C15: 2022
A17: D. | B17: 1st Year of Earnings | C17: 2022
A19: E. | B19: Additional Years Modeled after Start Year | C19: =+G19-1 -> 29 | E19: Total Years to Model | G19: 30
A21: F. | B21: Years Modeled | C21: =C15&" - "&C15+C19 -> 2022 - 2051
A23: G. | B23: Capital Structure
B24: Equity | C24: =D106*D87+E106*E87+F106*F87 -> 0.54
B25: Debt | C25: =1-C24 -> 0.46
A27: H. | B27: Cost of Equity | C27: =+D104*D87+E104*E87+F104*F87 -> 0.102
A29: I. | B29: Interest Rate on Debt | C29: =IF(G29="y",AVERAGEIF($H$90:$H$100,">0",D90:D100)*D87+AVERAGEIF($H$90:$H$100,">0",E90:E100)*E87+AVERAGEIF($H$90:$H$100,">0",F90:F100)*F87,(SUMIF($C$90:$C$100,$C$15,$D$90:$D$100)*D87+SUMIF($C$90:$C$100,$C$15,$E$90:$E$100)*E87+SUMIF($C$90:$C$100,$C$15,$F$90:$F$100)*F87)) -> 0.04685 | E29: Use Average Debt Rate | G29: Y | I29: Number of Years from Project Start Year | L29: 5
A31: J. | B31: Property Tax
B32: Ad Valorem Tax - % of capital investment | C32: =IF(G32="N",0,0.017) -> 0.017 | E32: Subject to Property Tax | G32: Y
B33: % of NBV subject to Property Tax Rate | C33: =IF(G33="y",0.2,D108*D87+E108*E87+F108*F87) -> 0.6 | E33: Solar Property Tax Exemption | G33: N
A35: K. | B35: Capital Expenditures | C35: See "CAPEX" tab for data input
A37: L. | B37: Bonus Depreciation | C37: =+C15 -> 2022 | D37: =+C37+1 -> 2023 | E37: =+D37+1 -> 2024 | F37: 2025 | G37: 2026 | H37: 2027 | I37: 2028 | J37: 2029 | K37: 2030 | L37: 2031 | M37: 2032
B38: Bonus Deprciation Rate | C38: 0 | D38: =+C38 -> 0 | E38: =+D38 -> 0 | F38: 0 | G38: 0 | H38: 0 | I38: 0 | J38: 0 | K38: 0 | L38: 0 | M38: 0
A40: M. | B40: Investment Tax Credit (ITC) | C40: =+C15 -> 2022 | D40: =+C40+1 -> 2023 | E40: 2024 | F40: 2025 | G40: 2026 | H40: 2027 | I40: 2028 | J40: =+I40+1 -> 2029 | K40: =+J40+1 -> 2030 | L40: =+K40+1 -> 2031 | M40: =+L40+1 -> 2032
B41: ITC Rate | C41: =IF(C40<2020,0.3,IF(C40=2020,0.26,IF(C40=2021,0.22,0.1))) -> 0.1 | D41: =IF(D40<2020,0.3,IF(D40=2020,0.26,IF(D40=2021,0.22,0.1))) -> 0.1 | E41: 0.1 | F41: =IF(F40<2020,0.3,IF(F40=2020,0.26,IF(F40=2021,0.22,0.1))) -> 0.1 | G41: 0.1 | H41: 0.1 | I41: 0.1 | J41: 0.1 | K41: 0.1 | L41: 0.1 | M41: 0.1
B42: Reduction in Tax Basis | C42: =+C41/2 -> 0.05 | D42: =+D41/2 -> 0.05 | E42: 0.05 | F42: 0.05 | G42: 0.05 | H42: 0.05 | I42: 0.05 | J42: =+J41/2 -> 0.05 | K42: 0.05 | L42: 0.05 | M42: 0.05
B44: Cash Utilization of ITC | C44: 2027
A46: N. | B46: AFUDC
B47: Eligibility | C47: 1
B48: AFUDC Rate | C48: 0.0609 | O48: Effective Tax Rate with Changes in Federal and Stat Rates
O49: Pre-2019 | P49: 2019-2021 | Q49: 2022-Forward
A50: O. | B50: Tax Rate | C50: =IF(C40<2018,0.38575,IF(C40<2022,$P$50,$Q$50)) -> 0.25345 | D50: 0.25345 | E50: 0.25345 | F50: 0.25345 | G50: 0.25345 | H50: 0.25345 | I50: 0.25345 | J50: 0.25345 | K50: 0.25345 | L50: 0.25345 | M50: 0.25345 | O50: =0.35+(0.055*(1-0.35)) -> 0.38575 | P50: =0.21+(0.04458*(1-0.21)) -> 0.2452182 | Q50: =0.21+(0.055*(1-0.21)) -> 0.25345
B51: Tax Rate on AFUDC | C51: 0.08
A53: P. | B53: Revenue (Incremental):
B54: Year 1 Mid-Year Earnings | C54: FALSE
B55: LFCR - Revenue Based on Levelized Fixed Charge Rate | C55: FALSE | D55: Note: checking the box overrides the revenue inputs below in the model | I55: Levelized Rev. Requirement | J55: 1 | K55: Levelized Rate
B56: ROE - Revenue Based on Allowed ROE Each Year | C56: FALSE | D56: Note: checking here overrides LFCR above and revenue inputs below in the model
B57: Base Rate Recovery (i.e., Rate Case recovery) | C57: TRUE
B58: Assumed Rate Case Years | C58: 2025 | D58: 2026 | E58: 2027 | F58: 2030 | H58: Note: 2020 Strat Plan estimated "Rate Case(s)" in 2022-2025
B59: Years between Future Rate Cases | C59: 5
B60: Customer Growth (Base Revenue) | C60: 0.015
F62: Additional Incremental Revenue Increase (Decrease)
C63: Annual Escalator | D63: Year to Start Escalator | E63: =+C17 -> 2022 | F63: =+C17+1 -> 2023 | G63: =+F63+1 -> 2024 | H63: 2025 | I63: 2026 | J63: 2027 | K63: 2028 | L63: 2029 | M63: 2030 | N63: 2031 | O63: 2032
B64: Base Revenue (Reduction)
A66: Q. | B66: Fuel Expenses (Incremental):
F67: Additional Incremental ExpenseIncrease (Decrease)
C68: Annual Escalator | D68: Year to Start Escalator | E68: =+E63 -> 2022 | F68: =+F63 -> 2023 | G68: 2024 | H68: 2025 | I68: 2026 | J68: 2027 | K68: 2028 | L68: 2029 | M68: 2030 | N68: 2031 | O68: 2032
B69: Fuel Expense (Savings)
A71: R. | B71: MWh Assumptions for Solar:
B72: MW-AC (if applicable) | C72: 0
B73: Capacity Factor | C73: 0
B74: Degradation (if applicable) | C74: 0
B75: Avalable Capacity | C75: 1
A76: S. | B76: Use IRR or MIRR | C76: 0
B77: Current Results (Unlevered) | C77: IRR | D77: =+Results!B20 -> 0.08508894802 | E77: Average ROE | F77: =+Results!G26 -> 0.108861274
B78: Current Results (Levered) | C78: IRR | D78: =+Financials!C56 -> 0.1213627761 | E78: =IF(C13="Other",IF(D78<0.12,"Project doesn't meet IRR Threshold",""),"") -> 
B79: Do Not Erase - used to populate above assumptions
B81: Entities
B82: TEC
B83: PGS
B84: Other
D87: =IFERROR(MATCH(D88,$C$13,0),0) -> 1 | E87: =IFERROR(MATCH(E88,$C$13,0),0) -> 0 | F87: =IFERROR(MATCH(F88,$C$13,0),0) -> 0
D88: =+B82 -> TEC | E88: =+B83 -> PGS | F88: =+B84 -> Other | K88: TEC/PGS | L88: 2021 | M88: =+L88+1 -> 2022 | N88: =+M88+1 -> 2023 | O88: 2024 | P88: 2025
H89: =+C15+L29-1 -> 2026 | I89: <--- Last Year to Average | K89: 10 Year Rate | L89: 0.019 | M89: 0.044 | N89: 0.04225 | O89: 0.041 | P89: 0.041
B90: Interest Rate | C90: 2020 | D90: 0.027 | E90: =+D90 -> 0.027 | F90: 0.031 | H90: =IF(C90>=$C$15,IF(C90<=$H$89,IF(C90=$C$15,1,H89+1),0),0) -> 0 | K90: 30 Year Rate | L90: 0.029 | M90: 0.049 | N90: 0.04725 | O90: 0.046 | P90: 0.046
C91: =+C90+1 -> 2021 | D91: =SUMIF($L$88:$P$88,C91,$L$90:$P$90) -> 0.029 | E91: =+D91 -> 0.029 | F91: =+D91+0.005 -> 0.034 | H91: 0
C92: =+C91+1 -> 2022 | D92: =SUMIF($L$88:$P$88,C92,$L$90:$P$90) -> 0.049 | E92: =+D92 -> 0.049 | F92: =+D92+0.005 -> 0.054 | H92: 1 | K92: Note to interest rates:
C93: =+C92+1 -> 2023 | D93: 0.04725 | E93: =+D93 -> 0.04725 | F93: 0.05225 | H93: 2 | K93: (1) Rates for TEC/PGS provided by Emera Treasury (Susan Joudrey 8/12/2022)
C94: =+C93+1 -> 2024 | D94: 0.046 | E94: =+D94 -> 0.046 | F94: 0.051 | H94: 3 | K94: (2) For "Other" (i.e., non-reg) - added 50bps to TEC rates.
C95: 2025 | D95: 0.046 | E95: 0.046 | F95: 0.051 | H95: 4
C96: 2026 | D96: =+D95 -> 0.046 | E96: 0.046 | F96: =+F95 -> 0.051 | H96: 5
C97: 2027 | D97: 0.046 | E97: 0.046 | F97: 0.051 | H97: 0
C98: 2028 | D98: 0.046 | E98: 0.046 | F98: 0.051 | H98: 0
C99: 2029 | D99: 0.046 | E99: 0.046 | F99: 0.051 | H99: 0
C100: 2030 | D100: 0.046 | E100: 0.046 | F100: 0.051 | H100: 0
B104: Allowed ROE | D104: 0.102 | E104: 0.1075 | F104: 0.12 | G104: <--- For Unreg. Projects, levered IRR needs to be 12% or greater
B106: Equity % | D106: 0.54 | E106: 0.55 | F106: 0.4 | G106: <--- For Unreg. Projects, cap structure per Emera Commercial Investment
B108: % of NBV subject to Property Tax Rate | D108: 0.6 | E108: 0.88 | F108: 1
B110: Rate Cases
B111: =IF(C$58=0,IF($C$59=0,"",$C$15+$C$59),C$58) -> 2025 | C111: =IF(B111>0,1) -> 1
B112: =IF(D$58=0,IF($C$59=0,"",B111+$C$59),D$58) -> 2026 | C112: =IF(B112>0,1) -> 1
B113: =IF(E$58=0,IF($C$59=0,"",B112+$C$59),E$58) -> 2027 | C113: 1
B114: =IF(F$58=0,IF($C$59=0,"",B113+$C$59),F$58) -> 2030 | C114: 1
B115: =IF(G$58=0,IF($C$59=0,"",B114+$C$59),G$58) -> 2035 | C115: 1
B116: =IF(G$58=0,IF($C$59=0,"",B115+$C$59),G$58) -> 2040 | C116: 1
B117: 2045 | C117: 1
B118: 2050 | C118: 1
B119: 2055 | C119: 1
B120: 2060 | C120: 1
B121: 2065 | C121: 1
B122: 2070 | C122: 1

Sheet Results
A1: Financial Template | J1: =IF(Financials!D175=0,"All checks OK","Press D&E Macro") -> All checks OK
A2: =+'Input Data'!C9&" - Results" -> Project Tampa - Midtown (Updated Costs Sept 2022) - Results
A3: Project Team: | B3: =+'Input Data'!C10 -> Project Tampa
A5: Entity | B5: =+'Input Data'!C13 -> TEC
A6: Total Capital Spend ($ M) | B6: =Capex!AK16/1000000 -> 256.415636
A7: Term of Analysis | B7: =+'Input Data'!G19 -> 30
A8: Project Start Year | B8: =+'Input Data'!C15 -> 2022
A9: Earnings Start Year | B9: =+'Input Data'!C17 -> 2022
A10: Tax Rate | B10: =+'Input Data'!E50 -> 0.25345
A12: Weighted Average Cost of Capital | E12: Weighted
D13: Pre-tax | E13: Pre-tax | F13: Post Tax
A14: Equity | B14: =+'Input Data'!C24 -> 0.54 | C14: =+'Input Data'!C27 -> 0.102 | D14: =C14/(1-B10) -> 0.1366284911 | E14: =B14*D14 -> 0.07377938517 | F14: =C14*B14 -> 0.05508
A15: Debt | B15: =+'Input Data'!C25 -> 0.46 | C15: =+'Input Data'!C29 -> 0.04685 | D15: =C15 -> 0.04685 | E15: =D15*B15 -> 0.021551 | F15: =E15*(1-B10) -> 0.01608889905
A16: WACC | E16: =SUM(E14:E15) -> 0.09533038517 | F16: =SUM(F14:F15) -> 0.07116889905
A18: Project IRR / NPV
A19: IRR w/o T.V. | B19: =+Financials!C33 -> 0.07132986945 | C19: NPV w/o T.V. ($M) | E19: =+Financials!C32/1000000 -> 0.2922687974
A20: IRR w/ T.V. | B20: =+Financials!C40 -> 0.08508894802 | C20: NPV w/ T.V. ($M) | E20: =+Financials!C39/1000000 -> 32.71141266
A22: Financial Impacts:
A23: Earning Year | B23: =SUMIF(Financials!$C$4:$AG$4,B24,Financials!$C$3:$AG$3) -> 1 | C23: =SUMIF(Financials!$C$4:$AG$4,C24,Financials!$C$3:$AG$3) -> 5 | D23: =SUMIF(Financials!$C$4:$AG$4,D24,Financials!$C$3:$AG$3) -> 10 | E23: =SUMIF(Financials!$C$4:$AG$4,E24,Financials!$C$3:$AG$3) -> 15 | F23: =SUMIF(Financials!$C$4:$AG$4,F24,Financials!$C$3:$AG$3) -> 20 | G23: Average
A24: Calendar Year | B24: =+'Input Data'!C17 -> 2022 | C24: =+B24+4 -> 2026 | D24: =+C24+5 -> 2031 | E24: =+D24+5 -> 2036 | F24: =+E24+5 -> 2041 | G24: Over Term
A26: Average Return on Equity - Regulated | B26: =SUMIF(Financials!$C$4:$AG$4,B$24,Financials!$C$64:$AG$64) -> 0 | C26: =SUMIF(Financials!$C$4:$AG$4,C$24,Financials!$C$64:$AG$64) -> 0.102 | D26: =SUMIF(Financials!$C$4:$AG$4,D$24,Financials!$C$64:$AG$64) -> 0.1109312711 | E26: =SUMIF(Financials!$C$4:$AG$4,E$24,Financials!$C$64:$AG$64) -> 0.1077541982 | F26: =SUMIF(Financials!$C$4:$AG$4,F$24,Financials!$C$64:$AG$64) -> 0.108149198 | G26: =IFERROR(AVERAGE(Financials!C64:AG64),0) -> 0.108861274
A27: Average Return on Equity - Market | B27: =SUMIF(Financials!$C$4:$AG$4,B$24,Financials!$C$62:$AG$62) -> -0.01532631944 | C27: =SUMIF(Financials!$C$4:$AG$4,C$24,Financials!$C$62:$AG$62) -> 0.102 | D27: =SUMIF(Financials!$C$4:$AG$4,D$24,Financials!$C$62:$AG$62) -> 0.1109312711 | E27: =SUMIF(Financials!$C$4:$AG$4,E$24,Financials!$C$62:$AG$62) -> 0.1077541982 | F27: =SUMIF(Financials!$C$4:$AG$4,F$24,Financials!$C$62:$AG$62) -> 0.108149198 | G27: =IFERROR(AVERAGE(Financials!C62:AG62),0) -> 0.1089388041
A28: Revenue Requirement ($ M) | B28: =SUMIF(Financials!$C$4:$AG$4,B$24,Financials!$C$68:$AG$68)/1000000 -> 0 | C28: =SUMIF(Financials!$C$4:$AG$4,C$24,Financials!$C$68:$AG$68)/1000000 -> 38.76458123 | D28: =SUMIF(Financials!$C$4:$AG$4,D$24,Financials!$C$68:$AG$68)/1000000 -> 34.31356796 | E28: =SUMIF(Financials!$C$4:$AG$4,E$24,Financials!$C$68:$AG$68)/1000000 -> 27.13365441 | F28: =SUMIF(Financials!$C$4:$AG$4,F$24,Financials!$C$68:$AG$68)/1000000 -> 25.31055559 | G28: =IFERROR(AVERAGEIF(Financials!C68:AA68,"<>0")/1000000,0) -> 27.03511461
A30: Non-Fuel Revenue Requirement ($M) | B30: =SUMIF(Financials!$C$4:$AG$4,B$24,Financials!$C$71:$AG$71)/1000000 -> 0 | C30: =SUMIF(Financials!$C$4:$AG$4,C$24,Financials!$C$71:$AG$71)/1000000 -> 38.76458123 | D30: =SUMIF(Financials!$C$4:$AG$4,D$24,Financials!$C$71:$AG$71)/1000000 -> 34.31356796 | E30: =SUMIF(Financials!$C$4:$AG$4,E$24,Financials!$C$71:$AG$71)/1000000 -> 27.13365441 | F30: =SUMIF(Financials!$C$4:$AG$4,F$24,Financials!$C$71:$AG$71)/1000000 -> 25.31055559 | G30: =IFERROR(AVERAGEIF(Financials!C71:AA71,"<>0")/1000000,0) -> 27.03511461
A32: Incremental Fuel Impact ($ M) | B32: =SUMIF(Financials!$C$4:$AG$4,B$24,Financials!$C$15:$AG$15)/1000000 -> 0 | C32: =SUMIF(Financials!$C$4:$AG$4,C$24,Financials!$C$15:$AG$15)/1000000 -> 0 | D32: =SUMIF(Financials!$C$4:$AG$4,D$24,Financials!$C$15:$AG$15)/1000000 -> 0 | E32: =SUMIF(Financials!$C$4:$AG$4,E$24,Financials!$C$15:$AG$15)/1000000 -> 0 | F32: =SUMIF(Financials!$C$4:$AG$4,F$24,Financials!$C$15:$AG$15)/1000000 -> 0 | G32: =IFERROR(AVERAGEIF(Financials!C15:AA15,"<>0")/1000000,0) -> 0
A34: Net Income ($ M) | B34: =SUMIF(Financials!$C$4:$AG$4,B$24,Financials!$C$59:$AG$59)/1000000 -> -0.2456939111 | C34: =SUMIF(Financials!$C$4:$AG$4,C$24,Financials!$C$59:$AG$59)/1000000 -> 14.24257243 | D34: =SUMIF(Financials!$C$4:$AG$4,D$24,Financials!$C$59:$AG$59)/1000000 -> 12.82461405 | E34: =SUMIF(Financials!$C$4:$AG$4,E$24,Financials!$C$59:$AG$59)/1000000 -> 10.97897526 | F34: =SUMIF(Financials!$C$4:$AG$4,F$24,Financials!$C$59:$AG$59)/1000000 -> 9.797407589 | G34: =IFERROR(AVERAGEIF(Financials!C59:AA59,"<>0")/1000000,0) -> 11.12756107
A35: Net Income - excluding AFUDC ($ M) | B35: =SUMIF(Financials!$C$4:$AG$4,B$24,Financials!$C$60:$AG$60)/1000000 -> -0.4776272401 | C35: =SUMIF(Financials!$C$4:$AG$4,C$24,Financials!$C$60:$AG$60)/1000000 -> 14.24257243 | D35: =SUMIF(Financials!$C$4:$AG$4,D$24,Financials!$C$60:$AG$60)/1000000 -> 12.82461405 | E35: =SUMIF(Financials!$C$4:$AG$4,E$24,Financials!$C$60:$AG$60)/1000000 -> 10.97897526 | F35: =SUMIF(Financials!$C$4:$AG$4,F$24,Financials!$C$60:$AG$60)/1000000 -> 9.797407589 | G35: =IFERROR(AVERAGEIF(Financials!C60:AA60,"<>0")/1000000,0) -> 10.53775131
A37: Residential Rate Impact:
A38: Earning Year | B38: =SUMIF(Financials!$C$4:$AG$4,B39,Financials!$C$3:$AG$3) -> 1 | C38: =SUMIF(Financials!$C$4:$AG$4,C39,Financials!$C$3:$AG$3) -> 2 | D38: =SUMIF(Financials!$C$4:$AG$4,D39,Financials!$C$3:$AG$3) -> 3 | E38: =SUMIF(Financials!$C$4:$AG$4,E39,Financials!$C$3:$AG$3) -> 4 | F38: =SUMIF(Financials!$C$4:$AG$4,F39,Financials!$C$3:$AG$3) -> 5 | G38: Average
A39: Calendar Year | B39: =+'Input Data'!C17 -> 2022 | C39: =+B39+1 -> 2023 | D39: =+C39+1 -> 2024 | E39: =+D39+1 -> 2025 | F39: =+E39+1 -> 2026 | G39: Over 5 Years
A41: Current Rate Forecast | B41: =SUMIF('Residential Bill Impact'!$D$5:$N$5,B39,'Residential Bill Impact'!$D$36:$N$36) -> 145.58 | C41: =SUMIF('Residential Bill Impact'!$D$5:$N$5,C39,'Residential Bill Impact'!$D$36:$N$36) -> 133.87 | D41: =SUMIF('Residential Bill Impact'!$D$5:$N$5,D39,'Residential Bill Impact'!$D$36:$N$36) -> 133.95 | E41: =SUMIF('Residential Bill Impact'!$D$5:$N$5,E39,'Residential Bill Impact'!$D$36:$N$36) -> 133.28 | F41: =SUMIF('Residential Bill Impact'!$D$5:$N$5,F39,'Residential Bill Impact'!$D$36:$N$36) -> 134.06 | G41: =AVERAGE(B41:F41) -> 136.148
A42: Estimated Rate with Project | B42: =SUMIF('Residential Bill Impact'!$D$5:$N$5,B39,'Residential Bill Impact'!$D$54:$N$54) -> 145.58 | C42: =SUMIF('Residential Bill Impact'!$D$5:$N$5,C39,'Residential Bill Impact'!$D$54:$N$54) -> 133.87 | D42: =SUMIF('Residential Bill Impact'!$D$5:$N$5,D39,'Residential Bill Impact'!$D$54:$N$54) -> 133.95 | E42: =SUMIF('Residential Bill Impact'!$D$5:$N$5,E39,'Residential Bill Impact'!$D$54:$N$54) -> 134.63 | F42: =SUMIF('Residential Bill Impact'!$D$5:$N$5,F39,'Residential Bill Impact'!$D$54:$N$54) -> 135.82 | G42: =AVERAGE(B42:F42) -> 136.77
A43: Rate Impact | B43: =+B42-B41 -> 0 | C43: 0 | D43: 0 | E43: 1.35 | F43: 1.76 | G43: 0.622
A45: Earning Year | B45: =SUMIF(Financials!$C$4:$AG$4,B46,Financials!$C$3:$AG$3) -> 6 | C45: =SUMIF(Financials!$C$4:$AG$4,C46,Financials!$C$3:$AG$3) -> 7 | D45: =SUMIF(Financials!$C$4:$AG$4,D46,Financials!$C$3:$AG$3) -> 8 | E45: =SUMIF(Financials!$C$4:$AG$4,E46,Financials!$C$3:$AG$3) -> 9 | F45: =SUMIF(Financials!$C$4:$AG$4,F46,Financials!$C$3:$AG$3) -> 10 | G45: Average
A46: Calendar Year | B46: =+F39+1 -> 2027 | C46: =+B46+1 -> 2028 | D46: =+C46+1 -> 2029 | E46: =+D46+1 -> 2030 | F46: =+E46+1 -> 2031 | G46: Over 10 Years
A48: Current Rate Forecast | B48: =SUMIF('Residential Bill Impact'!$D$5:$N$5,B46,'Residential Bill Impact'!$D$36:$N$36) -> 134.98 | C48: =SUMIF('Residential Bill Impact'!$D$5:$N$5,C46,'Residential Bill Impact'!$D$36:$N$36) -> 134.98 | D48: =SUMIF('Residential Bill Impact'!$D$5:$N$5,D46,'Residential Bill Impact'!$D$36:$N$36) -> 134.67 | E48: =SUMIF('Residential Bill Impact'!$D$5:$N$5,E46,'Residential Bill Impact'!$D$36:$N$36) -> 115.65 | F48: =SUMIF('Residential Bill Impact'!$D$5:$N$5,F46,'Residential Bill Impact'!$D$36:$N$36) -> 118.83 | G48: =AVERAGE(B48:F48,B41:F41) -> 131.985
A49: Estimated Rate with Project | B49: =SUMIF('Residential Bill Impact'!$D$5:$N$5,B46,'Residential Bill Impact'!$D$54:$N$54) -> 136.7 | C49: =SUMIF('Residential Bill Impact'!$D$5:$N$5,C46,'Residential Bill Impact'!$D$54:$N$54) -> 136.7 | D49: =SUMIF('Residential Bill Impact'!$D$5:$N$5,D46,'Residential Bill Impact'!$D$54:$N$54) -> 136.38 | E49: =SUMIF('Residential Bill Impact'!$D$5:$N$5,E46,'Residential Bill Impact'!$D$54:$N$54) -> 117.24 | F49: =SUMIF('Residential Bill Impact'!$D$5:$N$5,F46,'Residential Bill Impact'!$D$54:$N$54) -> 120.42 | G49: =AVERAGE(B49:F49,B42:F42) -> 133.129
A50: Rate Impact | B50: =+B49-B48 -> 1.72 | C50: 1.72 | D50: 1.71 | E50: 1.59 | F50: 1.59 | G50: 1.144
A54: Assumptions:
A56: =+'Input Data'!B29 -> Interest Rate on Debt | B56: =+'Input Data'!C29 -> 0.04685
A57: =+'Input Data'!E29 -> Use Average Debt Rate | B57: =+'Input Data'!G29 -> Y
A58: =+'Input Data'!I29 -> Number of Years from Project Start Year | B58: =+'Input Data'!L29 -> 5
A59: =+'Input Data'!B58 -> Assumed Rate Case Years | B59: =+'Input Data'!C58 -> 2025 | C59: =+'Input Data'!D58 -> 2026 | D59: =+'Input Data'!E58 -> 2027
A60: =+'Input Data'!B31 -> Property Tax
A61: =+'Input Data'!B33 -> % of NBV subject to Property Tax Rate | B61: =+'Input Data'!C33 -> 0.6
A63: =+'Input Data'!B41 -> ITC Rate | B63: =+'Input Data'!C40 -> 2022 | C63: =+'Input Data'!D40 -> 2023 | D63: =+'Input Data'!E40 -> 2024 | E63: =+'Input Data'!F40 -> 2025 | F63: =+'Input Data'!G40 -> 2026 | G63: =+'Input Data'!H40 -> 2027
B64: =+'Input Data'!C41 -> 0.1 | C64: =+'Input Data'!D41 -> 0.1 | D64: =+'Input Data'!E41 -> 0.1 | E64: =+'Input Data'!F41 -> 0.1 | F64: =+'Input Data'!G41 -> 0.1 | G64: =+'Input Data'!H41 -> 0.1

Sheet Financials
A1: =+'Input Data'!A1&" - "&'Input Data'!C9 -> Financial Template - Project Tampa - Midtown (Updated Costs Sept 2022) | C1: =IF(Financials!D175=0,"All checks OK","Press D&E Macro") -> All checks OK
A2: Projected Financial Summary by Year | C2: =IF('Rev Req'!C48=1,"Rate Case","") ->  | D2: =IF('Rev Req'!D48=1,"Rate Case","") ->  | E2: =IF('Rev Req'!E48=1,"Rate Case","") ->  | F2: =IF('Rev Req'!F48=1,"Rate Case","") -> Rate Case | G2: =IF('Rev Req'!G48=1,"Rate Case","") -> Rate Case | H2: =IF('Rev Req'!H48=1,"Rate Case","") -> Rate Case | I2: =IF('Rev Req'!I48=1,"Rate Case","") ->  | J2: =IF('Rev Req'!J48=1,"Rate Case","") ->  | K2: =IF('Rev Req'!K48=1,"Rate Case","") -> Rate Case | L2: =IF('Rev Req'!L48=1,"Rate Case","") ->  | M2: =IF('Rev Req'!M48=1,"Rate Case","") ->  | N2: =IF('Rev Req'!N48=1,"Rate Case","") ->  | O2: =IF('Rev Req'!O48=1,"Rate Case","") ->  | P2: =IF('Rev Req'!P48=1,"Rate Case","") -> Rate Case | Q2: =IF('Rev Req'!Q48=1,"Rate Case","") ->  | R2: =IF('Rev Req'!R48=1,"Rate Case","") ->  | S2: =IF('Rev Req'!S48=1,"Rate Case","") ->  | T2: =IF('Rev Req'!T48=1,"Rate Case","") ->  | U2: =IF('Rev Req'!U48=1,"Rate Case","") -> Rate Case | V2: =IF('Rev Req'!V48=1,"Rate Case","") ->  | W2: =IF('Rev Req'!W48=1,"Rate Case","") ->  | X2: =IF('Rev Req'!X48=1,"Rate Case","") ->  | Y2: =IF('Rev Req'!Y48=1,"Rate Case","") ->  | Z2: =IF('Rev Req'!Z48=1,"Rate Case","") -> Rate Case | AA2: =IF('Rev Req'!AA48=1,"Rate Case","") ->  | AB2: =IF('Rev Req'!AB48=1,"Rate Case","") ->  | AC2: =IF('Rev Req'!AC48=1,"Rate Case","") ->  | AD2: =IF('Rev Req'!AD48=1,"Rate Case","") ->  | AE2: =IF('Rev Req'!AE48=1,"Rate Case","") -> Rate Case | AF2: =IF('Rev Req'!AF48=1,"Rate Case","") -> 
C3: =1 -> 1 | D3: =C3+1 -> 2 | E3: =D3+1 -> 3 | F3: 4 | G3: 5 | H3: 6 | I3: 7 | J3: 8 | K3: 9 | L3: 10 | M3: 11 | N3: 12 | O3: 13 | P3: 14 | Q3: 15 | R3: 16 | S3: 17 | T3: 18 | U3: 19 | V3: 20 | W3: 21 | X3: =W3+1 -> 22 | Y3: =X3+1 -> 23 | Z3: =Y3+1 -> 24 | AA3: =Z3+1 -> 25 | AB3: =AA3+1 -> 26 | AC3: 27 | AD3: 28 | AE3: 29 | AF3: 30
A4: Term: | B4: =+'Input Data'!C19 -> 29 | C4: =+'Input Data'!C15 -> 2022 | D4: =+C4+1 -> 2023 | E4: =+D4+1 -> 2024 | F4: 2025 | G4: 2026 | H4: 2027 | I4: 2028 | J4: 2029 | K4: 2030 | L4: 2031 | M4: 2032 | N4: 2033 | O4: 2034 | P4: 2035 | Q4: 2036 | R4: 2037 | S4: 2038 | T4: 2039 | U4: 2040 | V4: 2041 | W4: 2042 | X4: 2043 | Y4: 2044 | Z4: 2045 | AA4: 2046 | AB4: =+AA4+1 -> 2047 | AC4: =+AB4+1 -> 2048 | AD4: =+AC4+1 -> 2049 | AE4: =+AD4+1 -> 2050 | AF4: =+AE4+1 -> 2051 | AG4: Total
A5: UNLEVERED FREE CASH FLOW AND IRR
A6: Revenue:
A7: Base Revenue | C7: ='Rev Req'!C$51 -> 0 | D7: ='Rev Req'!D$51 -> 0 | E7: ='Rev Req'!E$51 -> 0 | F7: ='Rev Req'!F$51 -> 29676195.57 | G7: ='Rev Req'!G$51 -> 38764581.23 | H7: ='Rev Req'!H$51 -> 37807525.87 | I7: ='Rev Req'!I$51 -> 38374638.76 | J7: ='Rev Req'!J$51 -> 38950258.34 | K7: ='Rev Req'!K$51 -> 35169103.09 | L7: ='Rev Req'!L$51 -> 35696639.64 | M7: ='Rev Req'!M$51 -> 36232089.23 | N7: ='Rev Req'!N$51 -> 36775570.57 | O7: ='Rev Req'!O$51 -> 37327204.13 | P7: ='Rev Req'!P$51 -> 27506390.96 | Q7: ='Rev Req'!Q$51 -> 27918986.82 | R7: ='Rev Req'!R$51 -> 28337771.63 | S7: ='Rev Req'!S$51 -> 28762838.2 | T7: ='Rev Req'!T$51 -> 29194280.77 | U7: ='Rev Req'!U$51 -> 25671667.19 | V7: ='Rev Req'!V$51 -> 26056742.2 | W7: ='Rev Req'!W$51 -> 26447593.33 | X7: ='Rev Req'!X$51 -> 26844307.23 | Y7: ='Rev Req'!Y$51 -> 27246971.84 | Z7: ='Rev Req'!Z$51 -> 23882365.26 | AA7: ='Rev Req'!AA$51 -> 24240600.74 | AB7: ='Rev Req'!AB$51 -> 24604209.75 | AC7: ='Rev Req'!AC$51 -> 24973272.9 | AD7: ='Rev Req'!AD$51 -> 25347871.99 | AE7: ='Rev Req'!AE$51 -> 22136315.95 | AF7: ='Rev Req'!AF$51 -> 22468360.69 | AG7: =SUM(C7:AF7) -> 806414353.9
A8: Fuel Revenue | C8: =+C15 -> 0 | D8: =+D15 -> 0 | E8: 0 | F8: 0 | G8: 0 | H8: 0 | I8: 0 | J8: 0 | K8: 0 | L8: 0 | M8: 0 | N8: 0 | O8: 0 | P8: 0 | Q8: 0 | R8: 0 | S8: 0 | T8: 0 | U8: 0 | V8: 0 | W8: 0 | X8: 0 | Y8: 0 | Z8: 0 | AA8: 0 | AB8: =+AB15 -> 0 | AC8: 0 | AD8: 0 | AE8: 0 | AF8: 0
A9: Project Revenue | C9: =IF(C$4>'Input Data'!$C$15+'Input Data'!$C$19,0,(SUMIF('Input Data'!$E$63:$O$63,C$4,'Input Data'!$E$64:$O$64)+B9)*(IF('Input Data'!$D$64<=C$4,(1+'Input Data'!$C$64),1))) -> 0 | D9: =IF(D$4>'Input Data'!$C$15+'Input Data'!$C$19,0,(SUMIF('Input Data'!$E$63:$O$63,D$4,'Input Data'!$E$64:$O$64)+C9)*(IF('Input Data'!$D$64<=D$4,(1+'Input Data'!$C$64),1))) -> 0 | E9: =IF(E$4>'Input Data'!$C$15+'Input Data'!$C$19,0,(SUMIF('Input Data'!$E$63:$O$63,E$4,'Input Data'!$E$64:$O$64)+D9)*(IF('Input Data'!$D$64<=E$4,(1+'Input Data'!$C$64),1))) -> 0 | F9: =IF(F$4>'Input Data'!$C$15+'Input Data'!$C$19,0,(SUMIF('Input Data'!$E$63:$O$63,F$4,'Input Data'!$E$64:$O$64)+E9)*(IF('Input Data'!$D$64<=F$4,(1+'Input Data'!$C$64),1))) -> 0 | G9: =IF(G$4>'Input Data'!$C$15+'Input Data'!$C$19,0,(SUMIF('Input Data'!$E$63:$O$63,G$4,'Input Data'!$E$64:$O$64)+F9)*(IF('Input Data'!$D$64<=G$4,(1+'Input Data'!$C$64),1))) -> 0 | H9: =IF(H$4>'Input Data'!$C$15+'Input Data'!$C$19,0,(SUMIF('Input Data'!$E$63:$O$63,H$4,'Input Data'!$E$64:$O$64)+G9)*(IF('Input Data'!$D$64<=H$4,(1+'Input Data'!$C$64),1))) -> 0 | I9: =IF(I$4>'Input Data'!$C$15+'Input Data'!$C$19,0,(SUMIF('Input Data'!$E$63:$O$63,I$4,'Input Data'!$E$64:$O$64)+H9)*(IF('Input Data'!$D$64<=I$4,(1+'Input Data'!$C$64),1))) -> 0 | J9: =IF(J$4>'Input Data'!$C$15+'Input Data'!$C$19,0,(SUMIF('Input Data'!$E$63:$O$63,J$4,'Input Data'!$E$64:$O$64)+I9)*(IF('Input Data'!$D$64<=J$4,(1+'Input Data'!$C$64),1))) -> 0 | K9: =IF(K$4>'Input Data'!$C$15+'Input Data'!$C$19,0,(SUMIF('Input Data'!$E$63:$O$63,K$4,'Input Data'!$E$64:$O$64)+J9)*(IF('Input Data'!$D$64<=K$4,(1+'Input Data'!$C$64),1))) -> 0 | L9: =IF(L$4>'Input Data'!$C$15+'Input Data'!$C$19,0,(SUMIF('Input Data'!$E$63:$O$63,L$4,'Input Data'!$E$64:$O$64)+K9)*(IF('Input Data'!$D$64<=L$4,(1+'Input Data'!$C$64),1))) -> 0 | M9: =IF(M$4>'Input Data'!$C$15+'Input Data'!$C$19,0,(SUMIF('Input Data'!$E$63:$O$63,M$4,'Input Data'!$E$64:$O$64)+L9)*(IF('Input Data'!$D$64<=M$4,(1+'Input Data'!$C$64),1))) -> 0 | N9: =IF(N$4>'Input Data'!$C$15+'Input Data'!$C$19,0,(SUMIF('Input Data'!$E$63:$O$63,N$4,'Input Data'!$E$64:$O$64)+M9)*(IF('Input Data'!$D$64<=N$4,(1+'Input Data'!$C$64),1))) -> 0 | O9: =IF(O$4>'Input Data'!$C$15+'Input Data'!$C$19,0,(SUMIF('Input Data'!$E$63:$O$63,O$4,'Input Data'!$E$64:$O$64)+N9)*(IF('Input Data'!$D$64<=O$4,(1+'Input Data'!$C$64),1))) -> 0 | P9: =IF(P$4>'Input Data'!$C$15+'Input Data'!$C$19,0,(SUMIF('Input Data'!$E$63:$O$63,P$4,'Input Data'!$E$64:$O$64)+O9)*(IF('Input Data'!$D$64<=P$4,(1+'Input Data'!$C$64),1))) -> 0 | Q9: =IF(Q$4>'Input Data'!$C$15+'Input Data'!$C$19,0,(SUMIF('Input Data'!$E$63:$O$63,Q$4,'Input Data'!$E$64:$O$64)+P9)*(IF('Input Data'!$D$64<=Q$4,(1+'Input Data'!$C$64),1))) -> 0 | R9: =IF(R$4>'Input Data'!$C$15+'Input Data'!$C$19,0,(SUMIF('Input Data'!$E$63:$O$63,R$4,'Input Data'!$E$64:$O$64)+Q9)*(IF('Input Data'!$D$64<=R$4,(1+'Input Data'!$C$64),1))) -> 0 | S9: =IF(S$4>'Input Data'!$C$15+'Input Data'!$C$19,0,(SUMIF('Input Data'!$E$63:$O$63,S$4,'Input Data'!$E$64:$O$64)+R9)*(IF('Input Data'!$D$64<=S$4,(1+'Input Data'!$C$64),1))) -> 0 | T9: =IF(T$4>'Input Data'!$C$15+'Input Data'!$C$19,0,(SUMIF('Input Data'!$E$63:$O$63,T$4,'Input Data'!$E$64:$O$64)+S9)*(IF('Input Data'!$D$64<=T$4,(1+'Input Data'!$C$64),1))) -> 0 | U9: =IF(U$4>'Input Data'!$C$15+'Input Data'!$C$19,0,(SUMIF('Input Data'!$E$63:$O$63,U$4,'Input Data'!$E$64:$O$64)+T9)*(IF('Input Data'!$D$64<=U$4,(1+'Input Data'!$C$64),1))) -> 0 | V9: =IF(V$4>'Input Data'!$C$15+'Input Data'!$C$19,0,(SUMIF('Input Data'!$E$63:$O$63,V$4,'Input Data'!$E$64:$O$64)+U9)*(IF('Input Data'!$D$64<=V$4,(1+'Input Data'!$C$64),1))) -> 0 | W9: =IF(W$4>'Input Data'!$C$15+'Input Data'!$C$19,0,(SUMIF('Input Data'!$E$63:$O$63,W$4,'Input Data'!$E$64:$O$64)+V9)*(IF('Input Data'!$D$64<=W$4,(1+'Input Data'!$C$64),1))) -> 0 | X9: =IF(X$4>'Input Data'!$C$15+'Input Data'!$C$19,0,(SUMIF('Input Data'!$E$63:$O$63,X$4,'Input Data'!$E$64:$O$64)+W9)*(IF('Input Data'!$D$64<=X$4,(1+'Input Data'!$C$64),1))) -> 0 | Y9: =IF(Y$4>'Input Data'!$C$15+'Input Data'!$C$19,0,(SUMIF('Input Data'!$E$63:$O$63,Y$4,'Input Data'!$E$64:$O$64)+X9)*(IF('Input Data'!$D$64<=Y$4,(1+'Input Data'!$C$64),1))) -> 0 | Z9: =IF(Z$4>'Input Data'!$C$15+'Input Data'!$C$19,0,(SUMIF('Input Data'!$E$63:$O$63,Z$4,'Input Data'!$E$64:$O$64)+Y9)*(IF('Input Data'!$D$64<=Z$4,(1+'Input Data'!$C$64),1))) -> 0 | AA9: =IF(AA$4>'Input Data'!$C$15+'Input Data'!$C$19,0,(SUMIF('Input Data'!$E$63:$O$63,AA$4,'Input Data'!$E$64:$O$64)+Z9)*(IF('Input Data'!$D$64<=AA$4,(1+'Input Data'!$C$64),1))) -> 0 | AB9: =IF(AB$4>'Input Data'!$C$15+'Input Data'!$C$19,0,(SUMIF('Input Data'!$E$63:$O$63,AB$4,'Input Data'!$E$64:$O$64)+AA9)*(IF('Input Data'!$D$64<=AB$4,(1+'Input Data'!$C$64),1))) -> 0 | AC9: =IF(AC$4>'Input Data'!$C$15+'Input Data'!$C$19,0,(SUMIF('Input Data'!$E$63:$O$63,AC$4,'Input Data'!$E$64:$O$64)+AB9)*(IF('Input Data'!$D$64<=AC$4,(1+'Input Data'!$C$64),1))) -> 0 | AD9: =IF(AD$4>'Input Data'!$C$15+'Input Data'!$C$19,0,(SUMIF('Input Data'!$E$63:$O$63,AD$4,'Input Data'!$E$64:$O$64)+AC9)*(IF('Input Data'!$D$64<=AD$4,(1+'Input Data'!$C$64),1))) -> 0 | AE9: =IF(AE$4>'Input Data'!$C$15+'Input Data'!$C$19,0,(SUMIF('Input Data'!$E$63:$O$63,AE$4,'Input Data'!$E$64:$O$64)+AD9)*(IF('Input Data'!$D$64<=AE$4,(1+'Input Data'!$C$64),1))) -> 0 | AF9: =IF(AF$4>'Input Data'!$C$15+'Input Data'!$C$19,0,(SUMIF('Input Data'!$E$63:$O$63,AF$4,'Input Data'!$E$64:$O$64)+AE9)*(IF('Input Data'!$D$64<=AF$4,(1+'Input Data'!$C$64),1))) -> 0 | AG9: =SUM(C9:AF9) -> 0
A10: Revenue - LFCR | B10: =IF('Input Data'!C55=TRUE,1,0) -> 0 | C10: =IF(C$4>'Input Data'!$C$15+'Input Data'!$C$19,0,((SUMIF(LFCR!$A$13:$A$42,C3,LFCR!$T$13:$T$42)*1000000)-C7-C9)*$B$10)*IF(C4='Input Data'!$C$17,IF('Input Data'!$C$54=TRUE,0.5,1),1)*IF('Input Data'!$J$55=1,1,0)+IF(C$4>'Input Data'!$C$15+'Input Data'!$C$19,0,((SUMIF(LFCR!$A$13:$A$42,C3,LFCR!$AA$13:$AA$42)*1000000)-C7-C9)*$B$10)*IF(C4='Input Data'!$C$17,IF('Input Data'!$C$54=TRUE,0.5,1),1)*IF('Input Data'!$J$55=2,1,0) -> 0 | D10: =IF(D$4>'Input Data'!$C$15+'Input Data'!$C$19,0,((SUMIF(LFCR!$A$13:$A$42,D3,LFCR!$T$13:$T$42)*1000000)-D7-D9)*$B$10)*IF(D4='Input Data'!$C$17,IF('Input Data'!$C$54=TRUE,0.5,1),1)*IF('Input Data'!$J$55=1,1,0)+IF(D$4>'Input Data'!$C$15+'Input Data'!$C$19,0,((SUMIF(LFCR!$A$13:$A$42,D3,LFCR!$AA$13:$AA$42)*1000000)-D7-D9)*$B$10)*IF(D4='Input Data'!$C$17,IF('Input Data'!$C$54=TRUE,0.5,1),1)*IF('Input Data'!$J$55=2,1,0) -> 0 | E10: =IF(E$4>'Input Data'!$C$15+'Input Data'!$C$19,0,((SUMIF(LFCR!$A$13:$A$42,E3,LFCR!$T$13:$T$42)*1000000)-E7-E9)*$B$10)*IF(E4='Input Data'!$C$17,IF('Input Data'!$C$54=TRUE,0.5,1),1)*IF('Input Data'!$J$55=1,1,0)+IF(E$4>'Input Data'!$C$15+'Input Data'!$C$19,0,((SUMIF(LFCR!$A$13:$A$42,E3,LFCR!$AA$13:$AA$42)*1000000)-E7-E9)*$B$10)*IF(E4='Input Data'!$C$17,IF('Input Data'!$C$54=TRUE,0.5,1),1)*IF('Input Data'!$J$55=2,1,0) -> 0 | F10: =IF(F$4>'Input Data'!$C$15+'Input Data'!$C$19,0,((SUMIF(LFCR!$A$13:$A$42,F3,LFCR!$T$13:$T$42)*1000000)-F7-F9)*$B$10)*IF(F4='Input Data'!$C$17,IF('Input Data'!$C$54=TRUE,0.5,1),1)*IF('Input Data'!$J$55=1,1,0)+IF(F$4>'Input Data'!$C$15+'Input Data'!$C$19,0,((SUMIF(LFCR!$A$13:$A$42,F3,LFCR!$AA$13:$AA$42)*1000000)-F7-F9)*$B$10)*IF(F4='Input Data'!$C$17,IF('Input Data'!$C$54=TRUE,0.5,1),1)*IF('Input Data'!$J$55=2,1,0) -> 0 | G10: =IF(G$4>'Input Data'!$C$15+'Input Data'!$C$19,0,((SUMIF(LFCR!$A$13:$A$42,G3,LFCR!$T$13:$T$42)*1000000)-G7-G9)*$B$10)*IF(G4='Input Data'!$C$17,IF('Input Data'!$C$54=TRUE,0.5,1),1)*IF('Input Data'!$J$55=1,1,0)+IF(G$4>'Input Data'!$C$15+'Input Data'!$C$19,0,((SUMIF(LFCR!$A$13:$A$42,G3,LFCR!$AA$13:$AA$42)*1000000)-G7-G9)*$B$10)*IF(G4='Input Data'!$C$17,IF('Input Data'!$C$54=TRUE,0.5,1),1)*IF('Input Data'!$J$55=2,1,0) -> 0 | H10: =IF(H$4>'Input Data'!$C$15+'Input Data'!$C$19,0,((SUMIF(LFCR!$A$13:$A$42,H3,LFCR!$T$13:$T$42)*1000000)-H7-H9)*$B$10)*IF(H4='Input Data'!$C$17,IF('Input Data'!$C$54=TRUE,0.5,1),1)*IF('Input Data'!$J$55=1,1,0)+IF(H$4>'Input Data'!$C$15+'Input Data'!$C$19,0,((SUMIF(LFCR!$A$13:$A$42,H3,LFCR!$AA$13:$AA$42)*1000000)-H7-H9)*$B$10)*IF(H4='Input Data'!$C$17,IF('Input Data'!$C$54=TRUE,0.5,1),1)*IF('Input Data'!$J$55=2,1,0) -> 0 | I10: =IF(I$4>'Input Data'!$C$15+'Input Data'!$C$19,0,((SUMIF(LFCR!$A$13:$A$42,I3,LFCR!$T$13:$T$42)*1000000)-I7-I9)*$B$10)*IF(I4='Input Data'!$C$17,IF('Input Data'!$C$54=TRUE,0.5,1),1)*IF('Input Data'!$J$55=1,1,0)+IF(I$4>'Input Data'!$C$15+'Input Data'!$C$19,0,((SUMIF(LFCR!$A$13:$A$42,I3,LFCR!$AA$13:$AA$42)*1000000)-I7-I9)*$B$10)*IF(I4='Input Data'!$C$17,IF('Input Data'!$C$54=TRUE,0.5,1),1)*IF('Input Data'!$J$55=2,1,0) -> 0 | J10: =IF(J$4>'Input Data'!$C$15+'Input Data'!$C$19,0,((SUMIF(LFCR!$A$13:$A$42,J3,LFCR!$T$13:$T$42)*1000000)-J7-J9)*$B$10)*IF(J4='Input Data'!$C$17,IF('Input Data'!$C$54=TRUE,0.5,1),1)*IF('Input Data'!$J$55=1,1,0)+IF(J$4>'Input Data'!$C$15+'Input Data'!$C$19,0,((SUMIF(LFCR!$A$13:$A$42,J3,LFCR!$AA$13:$AA$42)*1000000)-J7-J9)*$B$10)*IF(J4='Input Data'!$C$17,IF('Input Data'!$C$54=TRUE,0.5,1),1)*IF('Input Data'!$J$55=2,1,0) -> 0 | K10: =IF(K$4>'Input Data'!$C$15+'Input Data'!$C$19,0,((SUMIF(LFCR!$A$13:$A$42,K3,LFCR!$T$13:$T$42)*1000000)-K7-K9)*$B$10)*IF(K4='Input Data'!$C$17,IF('Input Data'!$C$54=TRUE,0.5,1),1)*IF('Input Data'!$J$55=1,1,0)+IF(K$4>'Input Data'!$C$15+'Input Data'!$C$19,0,((SUMIF(LFCR!$A$13:$A$42,K3,LFCR!$AA$13:$AA$42)*1000000)-K7-K9)*$B$10)*IF(K4='Input Data'!$C$17,IF('Input Data'!$C$54=TRUE,0.5,1),1)*IF('Input Data'!$J$55=2,1,0) -> 0 | L10: =IF(L$4>'Input Data'!$C$15+'Input Data'!$C$19,0,((SUMIF(LFCR!$A$13:$A$42,L3,LFCR!$T$13:$T$42)*1000000)-L7-L9)*$B$10)*IF(L4='Input Data'!$C$17,IF('Input Data'!$C$54=TRUE,0.5,1),1)*IF('Input Data'!$J$55=1,1,0)+IF(L$4>'Input Data'!$C$15+'Input Data'!$C$19,0,((SUMIF(LFCR!$A$13:$A$42,L3,LFCR!$AA$13:$AA$42)*1000000)-L7-L9)*$B$10)*IF(L4='Input Data'!$C$17,IF('Input Data'!$C$54=TRUE,0.5,1),1)*IF('Input Data'!$J$55=2,1,0) -> 0 | M10: =IF(M$4>'Input Data'!$C$15+'Input Data'!$C$19,0,((SUMIF(LFCR!$A$13:$A$42,M3,LFCR!$T$13:$T$42)*1000000)-M7-M9)*$B$10)*IF(M4='Input Data'!$C$17,IF('Input Data'!$C$54=TRUE,0.5,1),1)*IF('Input Data'!$J$55=1,1,0)+IF(M$4>'Input Data'!$C$15+'Input Data'!$C$19,0,((SUMIF(LFCR!$A$13:$A$42,M3,LFCR!$AA$13:$AA$42)*1000000)-M7-M9)*$B$10)*IF(M4='Input Data'!$C$17,IF('Input Data'!$C$54=TRUE,0.5,1),1)*IF('Input Data'!$J$55=2,1,0) -> 0 | N10: =IF(N$4>'Input Data'!$C$15+'Input Data'!$C$19,0,((SUMIF(LFCR!$A$13:$A$42,N3,LFCR!$T$13:$T$42)*1000000)-N7-N9)*$B$10)*IF(N4='Input Data'!$C$17,IF('Input Data'!$C$54=TRUE,0.5,1),1)*IF('Input Data'!$J$55=1,1,0)+IF(N$4>'Input Data'!$C$15+'Input Data'!$C$19,0,((SUMIF(LFCR!$A$13:$A$42,N3,LFCR!$AA$13:$AA$42)*1000000)-N7-N9)*$B$10)*IF(N4='Input Data'!$C$17,IF('Input Data'!$C$54=TRUE,0.5,1),1)*IF('Input Data'!$J$55=2,1,0) -> 0 | O10: =IF(O$4>'Input Data'!$C$15+'Input Data'!$C$19,0,((SUMIF(LFCR!$A$13:$A$42,O3,LFCR!$T$13:$T$42)*1000000)-O7-O9)*$B$10)*IF(O4='Input Data'!$C$17,IF('Input Data'!$C$54=TRUE,0.5,1),1)*IF('Input Data'!$J$55=1,1,0)+IF(O$4>'Input Data'!$C$15+'Input Data'!$C$19,0,((SUMIF(LFCR!$A$13:$A$42,O3,LFCR!$AA$13:$AA$42)*1000000)-O7-O9)*$B$10)*IF(O4='Input Data'!$C$17,IF('Input Data'!$C$54=TRUE,0.5,1),1)*IF('Input Data'!$J$55=2,1,0) -> 0 | P10: =IF(P$4>'Input Data'!$C$15+'Input Data'!$C$19,0,((SUMIF(LFCR!$A$13:$A$42,P3,LFCR!$T$13:$T$42)*1000000)-P7-P9)*$B$10)*IF(P4='Input Data'!$C$17,IF('Input Data'!$C$54=TRUE,0.5,1),1)*IF('Input Data'!$J$55=1,1,0)+IF(P$4>'Input Data'!$C$15+'Input Data'!$C$19,0,((SUMIF(LFCR!$A$13:$A$42,P3,LFCR!$AA$13:$AA$42)*1000000)-P7-P9)*$B$10)*IF(P4='Input Data'!$C$17,IF('Input Data'!$C$54=TRUE,0.5,1),1)*IF('Input Data'!$J$55=2,1,0) -> 0 | Q10: =IF(Q$4>'Input Data'!$C$15+'Input Data'!$C$19,0,((SUMIF(LFCR!$A$13:$A$42,Q3,LFCR!$T$13:$T$42)*1000000)-Q7-Q9)*$B$10)*IF(Q4='Input Data'!$C$17,IF('Input Data'!$C$54=TRUE,0.5,1),1)*IF('Input Data'!$J$55=1,1,0)+IF(Q$4>'Input Data'!$C$15+'Input Data'!$C$19,0,((SUMIF(LFCR!$A$13:$A$42,Q3,LFCR!$AA$13:$AA$42)*1000000)-Q7-Q9)*$B$10)*IF(Q4='Input Data'!$C$17,IF('Input Data'!$C$54=TRUE,0.5,1),1)*IF('Input Data'!$J$55=2,1,0) -> 0 | R10: =IF(R$4>'Input Data'!$C$15+'Input Data'!$C$19,0,((SUMIF(LFCR!$A$13:$A$42,R3,LFCR!$T$13:$T$42)*1000000)-R7-R9)*$B$10)*IF(R4='Input Data'!$C$17,IF('Input Data'!$C$54=TRUE,0.5,1),1)*IF('Input Data'!$J$55=1,1,0)+IF(R$4>'Input Data'!$C$15+'Input Data'!$C$19,0,((SUMIF(LFCR!$A$13:$A$42,R3,LFCR!$AA$13:$AA$42)*1000000)-R7-R9)*$B$10)*IF(R4='Input Data'!$C$17,IF('Input Data'!$C$54=TRUE,0.5,1),1)*IF('Input Data'!$J$55=2,1,0) -> 0 | S10: =IF(S$4>'Input Data'!$C$15+'Input Data'!$C$19,0,((SUMIF(LFCR!$A$13:$A$42,S3,LFCR!$T$13:$T$42)*1000000)-S7-S9)*$B$10)*IF(S4='Input Data'!$C$17,IF('Input Data'!$C$54=TRUE,0.5,1),1)*IF('Input Data'!$J$55=1,1,0)+IF(S$4>'Input Data'!$C$15+'Input Data'!$C$19,0,((SUMIF(LFCR!$A$13:$A$42,S3,LFCR!$AA$13:$AA$42)*1000000)-S7-S9)*$B$10)*IF(S4='Input Data'!$C$17,IF('Input Data'!$C$54=TRUE,0.5,1),1)*IF('Input Data'!$J$55=2,1,0) -> 0 | T10: =IF(T$4>'Input Data'!$C$15+'Input Data'!$C$19,0,((SUMIF(LFCR!$A$13:$A$42,T3,LFCR!$T$13:$T$42)*1000000)-T7-T9)*$B$10)*IF(T4='Input Data'!$C$17,IF('Input Data'!$C$54=TRUE,0.5,1),1)*IF('Input Data'!$J$55=1,1,0)+IF(T$4>'Input Data'!$C$15+'Input Data'!$C$19,0,((SUMIF(LFCR!$A$13:$A$42,T3,LFCR!$AA$13:$AA$42)*1000000)-T7-T9)*$B$10)*IF(T4='Input Data'!$C$17,IF('Input Data'!$C$54=TRUE,0.5,1),1)*IF('Input Data'!$J$55=2,1,0) -> 0 | U10: =IF(U$4>'Input Data'!$C$15+'Input Data'!$C$19,0,((SUMIF(LFCR!$A$13:$A$42,U3,LFCR!$T$13:$T$42)*1000000)-U7-U9)*$B$10)*IF(U4='Input Data'!$C$17,IF('Input Data'!$C$54=TRUE,0.5,1),1)*IF('Input Data'!$J$55=1,1,0)+IF(U$4>'Input Data'!$C$15+'Input Data'!$C$19,0,((SUMIF(LFCR!$A$13:$A$42,U3,LFCR!$AA$13:$AA$42)*1000000)-U7-U9)*$B$10)*IF(U4='Input Data'!$C$17,IF('Input Data'!$C$54=TRUE,0.5,1),1)*IF('Input Data'!$J$55=2,1,0) -> 0 | V10: =IF(V$4>'Input Data'!$C$15+'Input Data'!$C$19,0,((SUMIF(LFCR!$A$13:$A$42,V3,LFCR!$T$13:$T$42)*1000000)-V7-V9)*$B$10)*IF(V4='Input Data'!$C$17,IF('Input Data'!$C$54=TRUE,0.5,1),1)*IF('Input Data'!$J$55=1,1,0)+IF(V$4>'Input Data'!$C$15+'Input Data'!$C$19,0,((SUMIF(LFCR!$A$13:$A$42,V3,LFCR!$AA$13:$AA$42)*1000000)-V7-V9)*$B$10)*IF(V4='Input Data'!$C$17,IF('Input Data'!$C$54=TRUE,0.5,1),1)*IF('Input Data'!$J$55=2,1,0) -> 0 | W10: =IF(W$4>'Input Data'!$C$15+'Input Data'!$C$19,0,((SUMIF(LFCR!$A$13:$A$42,W3,LFCR!$T$13:$T$42)*1000000)-W7-W9)*$B$10)*IF(W4='Input Data'!$C$17,IF('Input Data'!$C$54=TRUE,0.5,1),1)*IF('Input Data'!$J$55=1,1,0)+IF(W$4>'Input Data'!$C$15+'Input Data'!$C$19,0,((SUMIF(LFCR!$A$13:$A$42,W3,LFCR!$AA$13:$AA$42)*1000000)-W7-W9)*$B$10)*IF(W4='Input Data'!$C$17,IF('Input Data'!$C$54=TRUE,0.5,1),1)*IF('Input Data'!$J$55=2,1,0) -> 0 | X10: =IF(X$4>'Input Data'!$C$15+'Input Data'!$C$19,0,((SUMIF(LFCR!$A$13:$A$42,X3,LFCR!$T$13:$T$42)*1000000)-X7-X9)*$B$10)*IF(X4='Input Data'!$C$17,IF('Input Data'!$C$54=TRUE,0.5,1),1)*IF('Input Data'!$J$55=1,1,0)+IF(X$4>'Input Data'!$C$15+'Input Data'!$C$19,0,((SUMIF(LFCR!$A$13:$A$42,X3,LFCR!$AA$13:$AA$42)*1000000)-X7-X9)*$B$10)*IF(X4='Input Data'!$C$17,IF('Input Data'!$C$54=TRUE,0.5,1),1)*IF('Input Data'!$J$55=2,1,0) -> 0 | Y10: =IF(Y$4>'Input Data'!$C$15+'Input Data'!$C$19,0,((SUMIF(LFCR!$A$13:$A$42,Y3,LFCR!$T$13:$T$42)*1000000)-Y7-Y9)*$B$10)*IF(Y4='Input Data'!$C$17,IF('Input Data'!$C$54=TRUE,0.5,1),1)*IF('Input Data'!$J$55=1,1,0)+IF(Y$4>'Input Data'!$C$15+'Input Data'!$C$19,0,((SUMIF(LFCR!$A$13:$A$42,Y3,LFCR!$AA$13:$AA$42)*1000000)-Y7-Y9)*$B$10)*IF(Y4='Input Data'!$C$17,IF('Input Data'!$C$54=TRUE,0.5,1),1)*IF('Input Data'!$J$55=2,1,0) -> 0 | Z10: =IF(Z$4>'Input Data'!$C$15+'Input Data'!$C$19,0,((SUMIF(LFCR!$A$13:$A$42,Z3,LFCR!$T$13:$T$42)*1000000)-Z7-Z9)*$B$10)*IF(Z4='Input Data'!$C$17,IF('Input Data'!$C$54=TRUE,0.5,1),1)*IF('Input Data'!$J$55=1,1,0)+IF(Z$4>'Input Data'!$C$15+'Input Data'!$C$19,0,((SUMIF(LFCR!$A$13:$A$42,Z3,LFCR!$AA$13:$AA$42)*1000000)-Z7-Z9)*$B$10)*IF(Z4='Input Data'!$C$17,IF('Input Data'!$C$54=TRUE,0.5,1),1)*IF('Input Data'!$J$55=2,1,0) -> 0 | AA10: =IF(AA$4>'Input Data'!$C$15+'Input Data'!$C$19,0,((SUMIF(LFCR!$A$13:$A$42,AA3,LFCR!$T$13:$T$42)*1000000)-AA7-AA9)*$B$10)*IF(AA4='Input Data'!$C$17,IF('Input Data'!$C$54=TRUE,0.5,1),1)*IF('Input Data'!$J$55=1,1,0)+IF(AA$4>'Input Data'!$C$15+'Input Data'!$C$19,0,((SUMIF(LFCR!$A$13:$A$42,AA3,LFCR!$AA$13:$AA$42)*1000000)-AA7-AA9)*$B$10)*IF(AA4='Input Data'!$C$17,IF('Input Data'!$C$54=TRUE,0.5,1),1)*IF('Input Data'!$J$55=2,1,0) -> 0 | AB10: =IF(AB$4>'Input Data'!$C$15+'Input Data'!$C$19,0,((SUMIF(LFCR!$A$13:$A$42,AB3,LFCR!$T$13:$T$42)*1000000)-AB7-AB9)*$B$10)*IF(AB4='Input Data'!$C$17,IF('Input Data'!$C$54=TRUE,0.5,1),1)*IF('Input Data'!$J$55=1,1,0)+IF(AB$4>'Input Data'!$C$15+'Input Data'!$C$19,0,((SUMIF(LFCR!$A$13:$A$42,AB3,LFCR!$AA$13:$AA$42)*1000000)-AB7-AB9)*$B$10)*IF(AB4='Input Data'!$C$17,IF('Input Data'!$C$54=TRUE,0.5,1),1)*IF('Input Data'!$J$55=2,1,0) -> 0 | AC10: =IF(AC$4>'Input Data'!$C$15+'Input Data'!$C$19,0,((SUMIF(LFCR!$A$13:$A$42,AC3,LFCR!$T$13:$T$42)*1000000)-AC7-AC9)*$B$10)*IF(AC4='Input Data'!$C$17,IF('Input Data'!$C$54=TRUE,0.5,1),1)*IF('Input Data'!$J$55=1,1,0)+IF(AC$4>'Input Data'!$C$15+'Input Data'!$C$19,0,((SUMIF(LFCR!$A$13:$A$42,AC3,LFCR!$AA$13:$AA$42)*1000000)-AC7-AC9)*$B$10)*IF(AC4='Input Data'!$C$17,IF('Input Data'!$C$54=TRUE,0.5,1),1)*IF('Input Data'!$J$55=2,1,0) -> 0 | AD10: =IF(AD$4>'Input Data'!$C$15+'Input Data'!$C$19,0,((SUMIF(LFCR!$A$13:$A$42,AD3,LFCR!$T$13:$T$42)*1000000)-AD7-AD9)*$B$10)*IF(AD4='Input Data'!$C$17,IF('Input Data'!$C$54=TRUE,0.5,1),1)*IF('Input Data'!$J$55=1,1,0)+IF(AD$4>'Input Data'!$C$15+'Input Data'!$C$19,0,((SUMIF(LFCR!$A$13:$A$42,AD3,LFCR!$AA$13:$AA$42)*1000000)-AD7-AD9)*$B$10)*IF(AD4='Input Data'!$C$17,IF('Input Data'!$C$54=TRUE,0.5,1),1)*IF('Input Data'!$J$55=2,1,0) -> 0 | AE10: =IF(AE$4>'Input Data'!$C$15+'Input Data'!$C$19,0,((SUMIF(LFCR!$A$13:$A$42,AE3,LFCR!$T$13:$T$42)*1000000)-AE7-AE9)*$B$10)*IF(AE4='Input Data'!$C$17,IF('Input Data'!$C$54=TRUE,0.5,1),1)*IF('Input Data'!$J$55=1,1,0)+IF(AE$4>'Input Data'!$C$15+'Input Data'!$C$19,0,((SUMIF(LFCR!$A$13:$A$42,AE3,LFCR!$AA$13:$AA$42)*1000000)-AE7-AE9)*$B$10)*IF(AE4='Input Data'!$C$17,IF('Input Data'!$C$54=TRUE,0.5,1),1)*IF('Input Data'!$J$55=2,1,0) -> 0 | AF10: =IF(AF$4>'Input Data'!$C$15+'Input Data'!$C$19,0,((SUMIF(LFCR!$A$13:$A$42,AF3,LFCR!$T$13:$T$42)*1000000)-AF7-AF9)*$B$10)*IF(AF4='Input Data'!$C$17,IF('Input Data'!$C$54=TRUE,0.5,1),1)*IF('Input Data'!$J$55=1,1,0)+IF(AF$4>'Input Data'!$C$15+'Input Data'!$C$19,0,((SUMIF(LFCR!$A$13:$A$42,AF3,LFCR!$AA$13:$AA$42)*1000000)-AF7-AF9)*$B$10)*IF(AF4='Input Data'!$C$17,IF('Input Data'!$C$54=TRUE,0.5,1),1)*IF('Input Data'!$J$55=2,1,0) -> 0 | AG10: =SUM(C10:AF10) -> 0
A11: Revenue - ROE Based | B11: =IF('Input Data'!C56=TRUE,1,0) -> 0 | C11: =IF(C$4>'Input Data'!$C$15+'Input Data'!$C$19,0,(+'Rev Req'!C15-C7-C8-C9-C10)*$B$11) -> 0 | D11: =IF(D$4>'Input Data'!$C$15+'Input Data'!$C$19,0,(+'Rev Req'!D15-D7-D8-D9-D10)*$B$11) -> 0 | E11: =IF(E$4>'Input Data'!$C$15+'Input Data'!$C$19,0,(+'Rev Req'!E15-E7-E8-E9-E10)*$B$11) -> 0 | F11: =IF(F$4>'Input Data'!$C$15+'Input Data'!$C$19,0,(+'Rev Req'!F15-F7-F8-F9-F10)*$B$11) -> 0 | G11: =IF(G$4>'Input Data'!$C$15+'Input Data'!$C$19,0,(+'Rev Req'!G15-G7-G8-G9-G10)*$B$11) -> 0 | H11: =IF(H$4>'Input Data'!$C$15+'Input Data'!$C$19,0,(+'Rev Req'!H15-H7-H8-H9-H10)*$B$11) -> 0 | I11: =IF(I$4>'Input Data'!$C$15+'Input Data'!$C$19,0,(+'Rev Req'!I15-I7-I8-I9-I10)*$B$11) -> 0 | J11: =IF(J$4>'Input Data'!$C$15+'Input Data'!$C$19,0,(+'Rev Req'!J15-J7-J8-J9-J10)*$B$11) -> 0 | K11: =IF(K$4>'Input Data'!$C$15+'Input Data'!$C$19,0,(+'Rev Req'!K15-K7-K8-K9-K10)*$B$11) -> 0 | L11: =IF(L$4>'Input Data'!$C$15+'Input Data'!$C$19,0,(+'Rev Req'!L15-L7-L8-L9-L10)*$B$11) -> 0 | M11: =IF(M$4>'Input Data'!$C$15+'Input Data'!$C$19,0,(+'Rev Req'!M15-M7-M8-M9-M10)*$B$11) -> 0 | N11: =IF(N$4>'Input Data'!$C$15+'Input Data'!$C$19,0,(+'Rev Req'!N15-N7-N8-N9-N10)*$B$11) -> 0 | O11: =IF(O$4>'Input Data'!$C$15+'Input Data'!$C$19,0,(+'Rev Req'!O15-O7-O8-O9-O10)*$B$11) -> 0 | P11: =IF(P$4>'Input Data'!$C$15+'Input Data'!$C$19,0,(+'Rev Req'!P15-P7-P8-P9-P10)*$B$11) -> 0 | Q11: =IF(Q$4>'Input Data'!$C$15+'Input Data'!$C$19,0,(+'Rev Req'!Q15-Q7-Q8-Q9-Q10)*$B$11) -> 0 | R11: =IF(R$4>'Input Data'!$C$15+'Input Data'!$C$19,0,(+'Rev Req'!R15-R7-R8-R9-R10)*$B$11) -> 0 | S11: =IF(S$4>'Input Data'!$C$15+'Input Data'!$C$19,0,(+'Rev Req'!S15-S7-S8-S9-S10)*$B$11) -> 0 | T11: =IF(T$4>'Input Data'!$C$15+'Input Data'!$C$19,0,(+'Rev Req'!T15-T7-T8-T9-T10)*$B$11) -> 0 | U11: =IF(U$4>'Input Data'!$C$15+'Input Data'!$C$19,0,(+'Rev Req'!U15-U7-U8-U9-U10)*$B$11) -> 0 | V11: =IF(V$4>'Input Data'!$C$15+'Input Data'!$C$19,0,(+'Rev Req'!V15-V7-V8-V9-V10)*$B$11) -> 0 | W11: =IF(W$4>'Input Data'!$C$15+'Input Data'!$C$19,0,(+'Rev Req'!W15-W7-W8-W9-W10)*$B$11) -> 0 | X11: =IF(X$4>'Input Data'!$C$15+'Input Data'!$C$19,0,(+'Rev Req'!X15-X7-X8-X9-X10)*$B$11) -> 0 | Y11: =IF(Y$4>'Input Data'!$C$15+'Input Data'!$C$19,0,(+'Rev Req'!Y15-Y7-Y8-Y9-Y10)*$B$11) -> 0 | Z11: =IF(Z$4>'Input Data'!$C$15+'Input Data'!$C$19,0,(+'Rev Req'!Z15-Z7-Z8-Z9-Z10)*$B$11) -> 0 | AA11: =IF(AA$4>'Input Data'!$C$15+'Input Data'!$C$19,0,(+'Rev Req'!AA15-AA7-AA8-AA9-AA10)*$B$11) -> 0 | AB11: =IF(AB$4>'Input Data'!$C$15+'Input Data'!$C$19,0,(+'Rev Req'!AB15-AB7-AB8-AB9-AB10)*$B$11) -> 0 | AC11: =IF(AC$4>'Input Data'!$C$15+'Input Data'!$C$19,0,(+'Rev Req'!AC15-AC7-AC8-AC9-AC10)*$B$11) -> 0 | AD11: =IF(AD$4>'Input Data'!$C$15+'Input Data'!$C$19,0,(+'Rev Req'!AD15-AD7-AD8-AD9-AD10)*$B$11) -> 0 | AE11: =IF(AE$4>'Input Data'!$C$15+'Input Data'!$C$19,0,(+'Rev Req'!AE15-AE7-AE8-AE9-AE10)*$B$11) -> 0 | AF11: =IF(AF$4>'Input Data'!$C$15+'Input Data'!$C$19,0,(+'Rev Req'!AF15-AF7-AF8-AF9-AF10)*$B$11) -> 0 | AG11: =SUM(C11:AF11) -> 0
A12: Total Revenue | C12: =SUM(C7:C11) -> 0 | D12: 0 | E12: 0 | F12: 29676195.57 | G12: 38764581.23 | H12: 37807525.87 | I12: 38374638.76 | J12: 38950258.34 | K12: 35169103.09 | L12: 35696639.64 | M12: 36232089.23 | N12: 36775570.57 | O12: 37327204.13 | P12: 27506390.96 | Q12: 27918986.82 | R12: 28337771.63 | S12: 28762838.2 | T12: 29194280.77 | U12: 25671667.19 | V12: 26056742.2 | W12: 26447593.33 | X12: 26844307.23 | Y12: 27246971.84 | Z12: 23882365.26 | AA12: 24240600.74 | AB12: =SUM(AB7:AB11) -> 24604209.75 | AC12: 24973272.9 | AD12: 25347871.99 | AE12: 22136315.95 | AF12: 22468360.69 | AG12: 806414353.9
A14: Expenses:
A15: Fuel | C15: =IF(C$4>'Input Data'!$C$15+'Input Data'!$C$19,0,IF(C$4='Input Data'!$C$17,'Input Data'!$E$69,0)) -> 0 | D15: =IF(D$4>'Input Data'!$C$15+'Input Data'!$C$19,0,IF(D$4='Input Data'!$C$17,'Input Data'!$E$69,IF('Input Data'!$D$69=0,C15,IF(D$4>='Input Data'!$D$69,C15*(1+'Input Data'!$C$69),C15))))+IF(D$3<=$B$4+1,SUMIF('Input Data'!$F$63:$O$63,D$4,'Input Data'!$F$69:$O$69)) -> 0 | E15: =IF(E$4>'Input Data'!$C$15+'Input Data'!$C$19,0,IF(E$4='Input Data'!$C$17,'Input Data'!$E$69,IF('Input Data'!$D$69=0,D15,IF(E$4>='Input Data'!$D$69,D15*(1+'Input Data'!$C$69),D15))))+IF(E$3<=$B$4+1,SUMIF('Input Data'!$F$63:$O$63,E$4,'Input Data'!$F$69:$O$69)) -> 0 | F15: =IF(F$4>'Input Data'!$C$15+'Input Data'!$C$19,0,IF(F$4='Input Data'!$C$17,'Input Data'!$E$69,IF('Input Data'!$D$69=0,E15,IF(F$4>='Input Data'!$D$69,E15*(1+'Input Data'!$C$69),E15))))+IF(F$3<=$B$4+1,SUMIF('Input Data'!$F$63:$O$63,F$4,'Input Data'!$F$69:$O$69)) -> 0 | G15: =IF(G$4>'Input Data'!$C$15+'Input Data'!$C$19,0,IF(G$4='Input Data'!$C$17,'Input Data'!$E$69,IF('Input Data'!$D$69=0,F15,IF(G$4>='Input Data'!$D$69,F15*(1+'Input Data'!$C$69),F15))))+IF(G$3<=$B$4+1,SUMIF('Input Data'!$F$63:$O$63,G$4,'Input Data'!$F$69:$O$69)) -> 0 | H15: =IF(H$4>'Input Data'!$C$15+'Input Data'!$C$19,0,IF(H$4='Input Data'!$C$17,'Input Data'!$E$69,IF('Input Data'!$D$69=0,G15,IF(H$4>='Input Data'!$D$69,G15*(1+'Input Data'!$C$69),G15))))+IF(H$3<=$B$4+1,SUMIF('Input Data'!$F$63:$O$63,H$4,'Input Data'!$F$69:$O$69)) -> 0 | I15: =IF(I$4>'Input Data'!$C$15+'Input Data'!$C$19,0,IF(I$4='Input Data'!$C$17,'Input Data'!$E$69,IF('Input Data'!$D$69=0,H15,IF(I$4>='Input Data'!$D$69,H15*(1+'Input Data'!$C$69),H15))))+IF(I$3<=$B$4+1,SUMIF('Input Data'!$F$63:$O$63,I$4,'Input Data'!$F$69:$O$69)) -> 0 | J15: =IF(J$4>'Input Data'!$C$15+'Input Data'!$C$19,0,IF(J$4='Input Data'!$C$17,'Input Data'!$E$69,IF('Input Data'!$D$69=0,I15,IF(J$4>='Input Data'!$D$69,I15*(1+'Input Data'!$C$69),I15))))+IF(J$3<=$B$4+1,SUMIF('Input Data'!$F$63:$O$63,J$4,'Input Data'!$F$69:$O$69)) -> 0 | K15: =IF(K$4>'Input Data'!$C$15+'Input Data'!$C$19,0,IF(K$4='Input Data'!$C$17,'Input Data'!$E$69,IF('Input Data'!$D$69=0,J15,IF(K$4>='Input Data'!$D$69,J15*(1+'Input Data'!$C$69),J15))))+IF(K$3<=$B$4+1,SUMIF('Input Data'!$F$63:$O$63,K$4,'Input Data'!$F$69:$O$69)) -> 0 | L15: =IF(L$4>'Input Data'!$C$15+'Input Data'!$C$19,0,IF(L$4='Input Data'!$C$17,'Input Data'!$E$69,IF('Input Data'!$D$69=0,K15,IF(L$4>='Input Data'!$D$69,K15*(1+'Input Data'!$C$69),K15))))+IF(L$3<=$B$4+1,SUMIF('Input Data'!$F$63:$O$63,L$4,'Input Data'!$F$69:$O$69)) -> 0 | M15: =IF(M$4>'Input Data'!$C$15+'Input Data'!$C$19,0,IF(M$4='Input Data'!$C$17,'Input Data'!$E$69,IF('Input Data'!$D$69=0,L15,IF(M$4>='Input Data'!$D$69,L15*(1+'Input Data'!$C$69),L15))))+IF(M$3<=$B$4+1,SUMIF('Input Data'!$F$63:$O$63,M$4,'Input Data'!$F$69:$O$69)) -> 0 | N15: =IF(N$4>'Input Data'!$C$15+'Input Data'!$C$19,0,IF(N$4='Input Data'!$C$17,'Input Data'!$E$69,IF('Input Data'!$D$69=0,M15,IF(N$4>='Input Data'!$D$69,M15*(1+'Input Data'!$C$69),M15))))+IF(N$3<=$B$4+1,SUMIF('Input Data'!$F$63:$O$63,N$4,'Input Data'!$F$69:$O$69)) -> 0 | O15: =IF(O$4>'Input Data'!$C$15+'Input Data'!$C$19,0,IF(O$4='Input Data'!$C$17,'Input Data'!$E$69,IF('Input Data'!$D$69=0,N15,IF(O$4>='Input Data'!$D$69,N15*(1+'Input Data'!$C$69),N15))))+IF(O$3<=$B$4+1,SUMIF('Input Data'!$F$63:$O$63,O$4,'Input Data'!$F$69:$O$69)) -> 0 | P15: =IF(P$4>'Input Data'!$C$15+'Input Data'!$C$19,0,IF(P$4='Input Data'!$C$17,'Input Data'!$E$69,IF('Input Data'!$D$69=0,O15,IF(P$4>='Input Data'!$D$69,O15*(1+'Input Data'!$C$69),O15))))+IF(P$3<=$B$4+1,SUMIF('Input Data'!$F$63:$O$63,P$4,'Input Data'!$F$69:$O$69)) -> 0 | Q15: =IF(Q$4>'Input Data'!$C$15+'Input Data'!$C$19,0,IF(Q$4='Input Data'!$C$17,'Input Data'!$E$69,IF('Input Data'!$D$69=0,P15,IF(Q$4>='Input Data'!$D$69,P15*(1+'Input Data'!$C$69),P15))))+IF(Q$3<=$B$4+1,SUMIF('Input Data'!$F$63:$O$63,Q$4,'Input Data'!$F$69:$O$69)) -> 0 | R15: =IF(R$4>'Input Data'!$C$15+'Input Data'!$C$19,0,IF(R$4='Input Data'!$C$17,'Input Data'!$E$69,IF('Input Data'!$D$69=0,Q15,IF(R$4>='Input Data'!$D$69,Q15*(1+'Input Data'!$C$69),Q15))))+IF(R$3<=$B$4+1,SUMIF('Input Data'!$F$63:$O$63,R$4,'Input Data'!$F$69:$O$69)) -> 0 | S15: =IF(S$4>'Input Data'!$C$15+'Input Data'!$C$19,0,IF(S$4='Input Data'!$C$17,'Input Data'!$E$69,IF('Input Data'!$D$69=0,R15,IF(S$4>='Input Data'!$D$69,R15*(1+'Input Data'!$C$69),R15))))+IF(S$3<=$B$4+1,SUMIF('Input Data'!$F$63:$O$63,S$4,'Input Data'!$F$69:$O$69)) -> 0 | T15: =IF(T$4>'Input Data'!$C$15+'Input Data'!$C$19,0,IF(T$4='Input Data'!$C$17,'Input Data'!$E$69,IF('Input Data'!$D$69=0,S15,IF(T$4>='Input Data'!$D$69,S15*(1+'Input Data'!$C$69),S15))))+IF(T$3<=$B$4+1,SUMIF('Input Data'!$F$63:$O$63,T$4,'Input Data'!$F$69:$O$69)) -> 0 | U15: =IF(U$4>'Input Data'!$C$15+'Input Data'!$C$19,0,IF(U$4='Input Data'!$C$17,'Input Data'!$E$69,IF('Input Data'!$D$69=0,T15,IF(U$4>='Input Data'!$D$69,T15*(1+'Input Data'!$C$69),T15))))+IF(U$3<=$B$4+1,SUMIF('Input Data'!$F$63:$O$63,U$4,'Input Data'!$F$69:$O$69)) -> 0 | V15: =IF(V$4>'Input Data'!$C$15+'Input Data'!$C$19,0,IF(V$4='Input Data'!$C$17,'Input Data'!$E$69,IF('Input Data'!$D$69=0,U15,IF(V$4>='Input Data'!$D$69,U15*(1+'Input Data'!$C$69),U15))))+IF(V$3<=$B$4+1,SUMIF('Input Data'!$F$63:$O$63,V$4,'Input Data'!$F$69:$O$69)) -> 0 | W15: =IF(W$4>'Input Data'!$C$15+'Input Data'!$C$19,0,IF(W$4='Input Data'!$C$17,'Input Data'!$E$69,IF('Input Data'!$D$69=0,V15,IF(W$4>='Input Data'!$D$69,V15*(1+'Input Data'!$C$69),V15))))+IF(W$3<=$B$4+1,SUMIF('Input Data'!$F$63:$O$63,W$4,'Input Data'!$F$69:$O$69)) -> 0 | X15: =IF(X$4>'Input Data'!$C$15+'Input Data'!$C$19,0,IF(X$4='Input Data'!$C$17,'Input Data'!$E$69,IF('Input Data'!$D$69=0,W15,IF(X$4>='Input Data'!$D$69,W15*(1+'Input Data'!$C$69),W15))))+IF(X$3<=$B$4+1,SUMIF('Input Data'!$F$63:$O$63,X$4,'Input Data'!$F$69:$O$69)) -> 0 | Y15: =IF(Y$4>'Input Data'!$C$15+'Input Data'!$C$19,0,IF(Y$4='Input Data'!$C$17,'Input Data'!$E$69,IF('Input Data'!$D$69=0,X15,IF(Y$4>='Input Data'!$D$69,X15*(1+'Input Data'!$C$69),X15))))+IF(Y$3<=$B$4+1,SUMIF('Input Data'!$F$63:$O$63,Y$4,'Input Data'!$F$69:$O$69)) -> 0 | Z15: =IF(Z$4>'Input Data'!$C$15+'Input Data'!$C$19,0,IF(Z$4='Input Data'!$C$17,'Input Data'!$E$69,IF('Input Data'!$D$69=0,Y15,IF(Z$4>='Input Data'!$D$69,Y15*(1+'Input Data'!$C$69),Y15))))+IF(Z$3<=$B$4+1,SUMIF('Input Data'!$F$63:$O$63,Z$4,'Input Data'!$F$69:$O$69)) -> 0 | AA15: =IF(AA$4>'Input Data'!$C$15+'Input Data'!$C$19,0,IF(AA$4='Input Data'!$C$17,'Input Data'!$E$69,IF('Input Data'!$D$69=0,Z15,IF(AA$4>='Input Data'!$D$69,Z15*(1+'Input Data'!$C$69),Z15))))+IF(AA$3<=$B$4+1,SUMIF('Input Data'!$F$63:$O$63,AA$4,'Input Data'!$F$69:$O$69)) -> 0 | AB15: =IF(AB$4>'Input Data'!$C$15+'Input Data'!$C$19,0,IF(AB$4='Input Data'!$C$17,'Input Data'!$E$69,IF('Input Data'!$D$69=0,AA15,IF(AB$4>='Input Data'!$D$69,AA15*(1+'Input Data'!$C$69),AA15))))+IF(AB$3<=$B$4+1,SUMIF('Input Data'!$F$63:$O$63,AB$4,'Input Data'!$F$69:$O$69)) -> 0 | AC15: =IF(AC$4>'Input Data'!$C$15+'Input Data'!$C$19,0,IF(AC$4='Input Data'!$C$17,'Input Data'!$E$69,IF('Input Data'!$D$69=0,AB15,IF(AC$4>='Input Data'!$D$69,AB15*(1+'Input Data'!$C$69),AB15))))+IF(AC$3<=$B$4+1,SUMIF('Input Data'!$F$63:$O$63,AC$4,'Input Data'!$F$69:$O$69)) -> 0 | AD15: =IF(AD$4>'Input Data'!$C$15+'Input Data'!$C$19,0,IF(AD$4='Input Data'!$C$17,'Input Data'!$E$69,IF('Input Data'!$D$69=0,AC15,IF(AD$4>='Input Data'!$D$69,AC15*(1+'Input Data'!$C$69),AC15))))+IF(AD$3<=$B$4+1,SUMIF('Input Data'!$F$63:$O$63,AD$4,'Input Data'!$F$69:$O$69)) -> 0 | AE15: =IF(AE$4>'Input Data'!$C$15+'Input Data'!$C$19,0,IF(AE$4='Input Data'!$C$17,'Input Data'!$E$69,IF('Input Data'!$D$69=0,AD15,IF(AE$4>='Input Data'!$D$69,AD15*(1+'Input Data'!$C$69),AD15))))+IF(AE$3<=$B$4+1,SUMIF('Input Data'!$F$63:$O$63,AE$4,'Input Data'!$F$69:$O$69)) -> 0 | AF15: =IF(AF$4>'Input Data'!$C$15+'Input Data'!$C$19,0,IF(AF$4='Input Data'!$C$17,'Input Data'!$E$69,IF('Input Data'!$D$69=0,AE15,IF(AF$4>='Input Data'!$D$69,AE15*(1+'Input Data'!$C$69),AE15))))+IF(AF$3<=$B$4+1,SUMIF('Input Data'!$F$63:$O$63,AF$4,'Input Data'!$F$69:$O$69)) -> 0 | AG15: =SUM(C15:AF15) -> 0
A16: O&M Expense | C16: =SUMIF('O&M'!$D$4:$AG$4,C$4,'O&M'!$D$12:$AG$12) -> 0 | D16: =SUMIF('O&M'!$D$4:$AG$4,D$4,'O&M'!$D$12:$AG$12) -> 0 | E16: =SUMIF('O&M'!$D$4:$AG$4,E$4,'O&M'!$D$12:$AG$12) -> 0 | F16: =SUMIF('O&M'!$D$4:$AG$4,F$4,'O&M'!$D$12:$AG$12) -> 3453821 | G16: =SUMIF('O&M'!$D$4:$AG$4,G$4,'O&M'!$D$12:$AG$12) -> 2896628 | H16: =SUMIF('O&M'!$D$4:$AG$4,H$4,'O&M'!$D$12:$AG$12) -> 2940078 | I16: =SUMIF('O&M'!$D$4:$AG$4,I$4,'O&M'!$D$12:$AG$12) -> 2984180 | J16: =SUMIF('O&M'!$D$4:$AG$4,J$4,'O&M'!$D$12:$AG$12) -> 3028942 | K16: =SUMIF('O&M'!$D$4:$AG$4,K$4,'O&M'!$D$12:$AG$12) -> 3074376 | L16: =SUMIF('O&M'!$D$4:$AG$4,L$4,'O&M'!$D$12:$AG$12) -> 3120492 | M16: =SUMIF('O&M'!$D$4:$AG$4,M$4,'O&M'!$D$12:$AG$12) -> 3167300 | N16: =SUMIF('O&M'!$D$4:$AG$4,N$4,'O&M'!$D$12:$AG$12) -> 3214809 | O16: =SUMIF('O&M'!$D$4:$AG$4,O$4,'O&M'!$D$12:$AG$12) -> 3263031 | P16: =SUMIF('O&M'!$D$4:$AG$4,P$4,'O&M'!$D$12:$AG$12) -> 3328291 | Q16: =SUMIF('O&M'!$D$4:$AG$4,Q$4,'O&M'!$D$12:$AG$12) -> 3394856 | R16: =SUMIF('O&M'!$D$4:$AG$4,R$4,'O&M'!$D$12:$AG$12) -> 3462753 | S16: =SUMIF('O&M'!$D$4:$AG$4,S$4,'O&M'!$D$12:$AG$12) -> 3532008 | T16: =SUMIF('O&M'!$D$4:$AG$4,T$4,'O&M'!$D$12:$AG$12) -> 3602648 | U16: =SUMIF('O&M'!$D$4:$AG$4,U$4,'O&M'!$D$12:$AG$12) -> 3674701 | V16: =SUMIF('O&M'!$D$4:$AG$4,V$4,'O&M'!$D$12:$AG$12) -> 3748195 | W16: =SUMIF('O&M'!$D$4:$AG$4,W$4,'O&M'!$D$12:$AG$12) -> 3823159 | X16: =SUMIF('O&M'!$D$4:$AG$4,X$4,'O&M'!$D$12:$AG$12) -> 3899623 | Y16: =SUMIF('O&M'!$D$4:$AG$4,Y$4,'O&M'!$D$12:$AG$12) -> 3977615 | Z16: =SUMIF('O&M'!$D$4:$AG$4,Z$4,'O&M'!$D$12:$AG$12) -> 4057167 | AA16: =SUMIF('O&M'!$D$4:$AG$4,AA$4,'O&M'!$D$12:$AG$12) -> 4138310 | AB16: =SUMIF('O&M'!$D$4:$AG$4,AB$4,'O&M'!$D$12:$AG$12) -> 4221076 | AC16: =SUMIF('O&M'!$D$4:$AG$4,AC$4,'O&M'!$D$12:$AG$12) -> 4305497 | AD16: =SUMIF('O&M'!$D$4:$AG$4,AD$4,'O&M'!$D$12:$AG$12) -> 4391607 | AE16: =SUMIF('O&M'!$D$4:$AG$4,AE$4,'O&M'!$D$12:$AG$12) -> 4479439 | AF16: =SUMIF('O&M'!$D$4:$AG$4,AF$4,'O&M'!$D$12:$AG$12) -> 4569028 | AG16: =SUM(C16:AF16) -> 97749630
A17: Depreciation, Book | C17: =+C98 -> 0 | D17: =+D98 -> 0 | E17: 0 | F17: 5344643.899 | G17: 8507481.923 | H17: 8507481.923 | I17: 8507481.923 | J17: 8507481.923 | K17: 8507481.923 | L17: 8507702.757 | M17: 6121884.889 | N17: 3736082.561 | O17: 3736562.398 | P17: 3737056.63 | Q17: 3737565.688 | R17: 3738380.989 | S17: 3739511.719 | T17: 3740676.371 | U17: 3741875.963 | V17: 3743111.542 | W17: 3744384.189 | X17: 3745695.015 | Y17: 3747045.166 | Z17: 3748435.822 | AA17: 3749868.197 | AB17: =+AB98 -> 3751343.543 | AC17: 3752863.15 | AD17: 3754428.345 | AE17: 3756040.496 | AF17: 3757701.011 | AG17: =SUM(C17:AF17) -> 133670270 | AH17: =AVERAGE(C17:AF17) -> 4455675.665
A18: Property Taxes | C18: =IF(C4>'Input Data'!$C$15+'Input Data'!$C$19,0,'Property Tax'!C9) -> 0 | D18: =IF(D4>'Input Data'!$C$15+'Input Data'!$C$19,0,'Property Tax'!D9) -> 0 | E18: =IF(E4>'Input Data'!$C$15+'Input Data'!$C$19,0,'Property Tax'!E9) -> 0 | F18: =IF(F4>'Input Data'!$C$15+'Input Data'!$C$19,0,'Property Tax'!F9) -> 1473197.107 | G18: =IF(G4>'Input Data'!$C$15+'Input Data'!$C$19,0,'Property Tax'!G9) -> 2709964.511 | H18: =IF(H4>'Input Data'!$C$15+'Input Data'!$C$19,0,'Property Tax'!H9) -> 2623188.195 | I18: =IF(I4>'Input Data'!$C$15+'Input Data'!$C$19,0,'Property Tax'!I9) -> 2536411.879 | J18: =IF(J4>'Input Data'!$C$15+'Input Data'!$C$19,0,'Property Tax'!J9) -> 2449635.564 | K18: =IF(K4>'Input Data'!$C$15+'Input Data'!$C$19,0,'Property Tax'!K9) -> 2362859.248 | L18: =IF(L4>'Input Data'!$C$15+'Input Data'!$C$19,0,'Property Tax'!L9) -> 2276082.932 | M18: =IF(M4>'Input Data'!$C$15+'Input Data'!$C$19,0,'Property Tax'!M9) -> 2189574.664 | N18: =IF(N4>'Input Data'!$C$15+'Input Data'!$C$19,0,'Property Tax'!N9) -> 2127409.847 | O18: =IF(O4>'Input Data'!$C$15+'Input Data'!$C$19,0,'Property Tax'!O9) -> 2089591.125 | P18: =IF(P4>'Input Data'!$C$15+'Input Data'!$C$19,0,'Property Tax'!P9) -> 2051776.189 | Q18: =IF(Q4>'Input Data'!$C$15+'Input Data'!$C$19,0,'Property Tax'!Q9) -> 2013965.151 | R18: =IF(R4>'Input Data'!$C$15+'Input Data'!$C$19,0,'Property Tax'!R9) -> 1976158.129 | S18: =IF(S4>'Input Data'!$C$15+'Input Data'!$C$19,0,'Property Tax'!S9) -> 1938708.423 | T18: =IF(T4>'Input Data'!$C$15+'Input Data'!$C$19,0,'Property Tax'!T9) -> 1901267.637 | U18: =IF(U4>'Input Data'!$C$15+'Input Data'!$C$19,0,'Property Tax'!U9) -> 1863836.039 | V18: =IF(V4>'Input Data'!$C$15+'Input Data'!$C$19,0,'Property Tax'!V9) -> 1826413.904 | W18: =IF(W4>'Input Data'!$C$15+'Input Data'!$C$19,0,'Property Tax'!W9) -> 1789001.515 | X18: =IF(X4>'Input Data'!$C$15+'Input Data'!$C$19,0,'Property Tax'!X9) -> 1751599.167 | Y18: =IF(Y4>'Input Data'!$C$15+'Input Data'!$C$19,0,'Property Tax'!Y9) -> 1714207.159 | Z18: =IF(Z4>'Input Data'!$C$15+'Input Data'!$C$19,0,'Property Tax'!Z9) -> 1676825.802 | AA18: =IF(AA4>'Input Data'!$C$15+'Input Data'!$C$19,0,'Property Tax'!AA9) -> 1639455.415 | AB18: =IF(AB4>'Input Data'!$C$15+'Input Data'!$C$19,0,'Property Tax'!AB9) -> 1602096.328 | AC18: =IF(AC4>'Input Data'!$C$15+'Input Data'!$C$19,0,'Property Tax'!AC9) -> 1564748.879 | AD18: =IF(AD4>'Input Data'!$C$15+'Input Data'!$C$19,0,'Property Tax'!AD9) -> 1527413.418 | AE18: =IF(AE4>'Input Data'!$C$15+'Input Data'!$C$19,0,'Property Tax'!AE9) -> 1490090.305 | AF18: =IF(AF4>'Input Data'!$C$15+'Input Data'!$C$19,0,'Property Tax'!AF9) -> 1452779.909 | AG18: =SUM(C18:AF18) -> 52618258.44
A19: Total Expenses | C19: =SUM(C15:C18) -> 0 | D19: 0 | E19: 0 | F19: 10271662.01 | G19: 14114074.43 | H19: 14070748.12 | I19: 14028073.8 | J19: 13986059.49 | K19: 13944717.17 | L19: 13904277.69 | M19: 11478759.55 | N19: 9078301.409 | O19: 9089184.523 | P19: 9117123.818 | Q19: 9146386.839 | R19: 9177292.118 | S19: 9210228.142 | T19: 9244592.008 | U19: 9280413.002 | V19: 9317720.446 | W19: 9356544.704 | X19: 9396917.182 | Y19: 9438867.325 | Z19: 9482428.623 | AA19: 9527633.612 | AB19: =SUM(AB15:AB18) -> 9574515.871 | AC19: 9623109.029 | AD19: 9673448.763 | AE19: 9725569.8 | AF19: 9779508.92 | AG19: 284038158.4
A21: Operating Income b/f income tax | C21: =C12-C19 -> 0 | D21: 0 | E21: 0 | F21: 19404533.56 | G21: 24650506.8 | H21: 23736777.75 | I21: 24346564.96 | J21: 24964198.85 | K21: 21224385.92 | L21: 21792361.95 | M21: 24753329.68 | N21: 27697269.16 | O21: 28238019.61 | P21: 18389267.14 | Q21: 18772599.98 | R21: 19160479.51 | S21: 19552610.06 | T21: 19949688.76 | U21: 16391254.19 | V21: 16739021.75 | W21: 17091048.63 | X21: 17447390.05 | Y21: 17808104.51 | Z21: 14399936.64 | AA21: 14712967.13 | AB21: =AB12-AB19 -> 15029693.88 | AC21: 15350163.87 | AD21: 15674423.23 | AE21: 12410746.15 | AF21: 12688851.77 | AG21: 522376195.5
A22: Income Tax Current | C22: =(C21-C102)*C$95 -> 0 | D22: 0 | E22: -850736.4595 | F22: 3606374.79 | G22: 4873934.806 | H22: 5235053.354 | I22: 5812963.331 | J22: 6270934.543 | K22: 5323925.674 | L22: 5466916.234 | M22: 5990993.897 | N22: 6509906.019 | O22: 6646890.97 | P22: 4150654.36 | Q22: 4247737.663 | R22: 4345817.984 | S22: 4445042.642 | T22: 4545516.585 | U22: 3643460.717 | V22: 3731426.663 | W22: 3820466.859 | X22: 3910595.147 | Y22: 4001826.188 | Z22: 3137828.24 | AA22: 3216962.083 | AB22: 3297026.632 | AC22: 3378033.608 | AD22: 3459994.517 | AE22: 2632586.255 | AF22: 2702835.94 | AG22: =SUM(C22:AF22) -> 117554969.2
A23: Income Tax Deferred | C23: =C103 -> 0 | D23: 0 | E23: 850736.4595 | F23: 1311704.242 | G23: 1373736.142 | H23: 781032.9671 | I23: 357673.5565 | J23: 56241.6561 | K23: 55394.93728 | L23: 56357.90192 | M23: 282737.5098 | N23: 509966.8499 | O23: 510035.0998 | P23: 510105.397 | Q23: 510177.8032 | R23: 510405.5473 | S23: 510566.3773 | T23: 510732.0321 | U23: 510902.6566 | V23: 511078.3999 | W23: 511259.4154 | X23: 511445.8614 | Y23: 511637.9008 | Z23: 511835.7014 | AA23: 512039.4359 | AB23: =AB103 -> 512249.2825 | AC23: 512465.4245 | AD23: 512688.0508 | AE23: 512917.3559 | AF23: 513153.5401 | AG23: =SUM(C23:AF23) -> 14841277.5
A24: Operating Income After Tax | C24: =C21-C22-C23 -> 0 | D24: 0 | E24: 0 | F24: 14486454.53 | G24: 18402835.85 | H24: 17720691.43 | I24: 18175928.07 | J24: 18637022.65 | K24: 15845065.31 | L24: 16269087.81 | M24: 18479598.27 | N24: 20677396.29 | O24: 21081093.54 | P24: 13728507.38 | Q24: 14014684.52 | R24: 14304255.98 | S24: 14597001.04 | T24: 14893440.15 | U24: 12236890.81 | V24: 12496516.69 | W24: 12759322.35 | X24: =X21-X22-X23 -> 13025349.04 | Y24: =Y21-Y22-Y23 -> 13294640.43 | Z24: =Z21-Z22-Z23 -> 10750272.7 | AA24: =AA21-AA22-AA23 -> 10983965.61 | AB24: =AB21-AB22-AB23 -> 11220417.97 | AC24: 11459664.84 | AD24: 11701740.66 | AE24: 9265242.536 | AF24: 9472862.287 | AG24: =AG21-AG22-AG23 -> 389979948.7
A25: Add: Depreciation, Book | C25: =+C17 -> 0 | D25: 0 | E25: 0 | F25: 5344643.899 | G25: 8507481.923 | H25: 8507481.923 | I25: 8507481.923 | J25: 8507481.923 | K25: 8507481.923 | L25: 8507702.757 | M25: 6121884.889 | N25: 3736082.561 | O25: 3736562.398 | P25: 3737056.63 | Q25: 3737565.688 | R25: 3738380.989 | S25: 3739511.719 | T25: 3740676.371 | U25: 3741875.963 | V25: 3743111.542 | W25: 3744384.189 | X25: 3745695.015 | Y25: 3747045.166 | Z25: 3748435.822 | AA25: 3749868.197 | AB25: =+AB17 -> 3751343.543 | AC25: 3752863.15 | AD25: 3754428.345 | AE25: 3756040.496 | AF25: 3757701.011 | AG25: =SUM(C25:AF25) -> 133670270
A26: Add: Deferred Taxes | C26: =C23 -> 0 | D26: =D23 -> 0 | E26: 850736.4595 | F26: 1311704.242 | G26: 1373736.142 | H26: 781032.9671 | I26: 357673.5565 | J26: 56241.6561 | K26: 55394.93728 | L26: 56357.90192 | M26: 282737.5098 | N26: 509966.8499 | O26: 510035.0998 | P26: 510105.397 | Q26: 510177.8032 | R26: 510405.5473 | S26: 510566.3773 | T26: 510732.0321 | U26: 510902.6566 | V26: 511078.3999 | W26: 511259.4154 | X26: 511445.8614 | Y26: 511637.9008 | Z26: 511835.7014 | AA26: 512039.4359 | AB26: =AB23 -> 512249.2825 | AC26: 512465.4245 | AD26: 512688.0508 | AE26: 512917.3559 | AF26: 513153.5401 | AG26: =SUM(C26:AF26) -> 14841277.5
A27: Add: Investment Tax Credit - Generated | C27: =IF('Input Data'!$C$44=0,+C137,IF(Financials!C$4='Input Data'!$C$44,SUM(Financials!$C$137:C137,IF(C$4>'Input Data'!$C$44,C137,0),0),0)) -> 0 | D27: =IF('Input Data'!$C$44=0,+D137,IF(Financials!D$4='Input Data'!$C$44,SUM(Financials!$C$137:D137,IF(D$4>'Input Data'!$C$44,D137,0),0),0)) -> 0 | E27: =IF('Input Data'!$C$44=0,+E137,IF(Financials!E$4='Input Data'!$C$44,SUM(Financials!$C$137:E137,IF(E$4>'Input Data'!$C$44,E137,0),0),0)) -> 0 | F27: =IF('Input Data'!$C$44=0,+F137,IF(Financials!F$4='Input Data'!$C$44,SUM(Financials!$C$137:F137,IF(F$4>'Input Data'!$C$44,F137,0),0),0)) -> 0 | G27: =IF('Input Data'!$C$44=0,+G137,IF(Financials!G$4='Input Data'!$C$44,SUM(Financials!$C$137:G137,IF(G$4>'Input Data'!$C$44,G137,0),0),0)) -> 0 | H27: =IF('Input Data'!$C$44=0,+H137,IF(Financials!H$4='Input Data'!$C$44,SUM(Financials!$C$137:H137,IF(H$4>'Input Data'!$C$44,H137,0),0),0)) -> 0 | I27: =IF('Input Data'!$C$44=0,+I137,IF(Financials!I$4='Input Data'!$C$44,SUM(Financials!$C$137:I137,IF(I$4>'Input Data'!$C$44,I137,0),0),0)) -> 0 | J27: =IF('Input Data'!$C$44=0,+J137,IF(Financials!J$4='Input Data'!$C$44,SUM(Financials!$C$137:J137,IF(J$4>'Input Data'!$C$44,J137,0),0),0)) -> 0 | K27: =IF('Input Data'!$C$44=0,+K137,IF(Financials!K$4='Input Data'!$C$44,SUM(Financials!$C$137:K137,IF(K$4>'Input Data'!$C$44,K137,0),0),0)) -> 0 | L27: =IF('Input Data'!$C$44=0,+L137,IF(Financials!L$4='Input Data'!$C$44,SUM(Financials!$C$137:L137,IF(L$4>'Input Data'!$C$44,L137,0),0),0)) -> 0 | M27: =IF('Input Data'!$C$44=0,+M137,IF(Financials!M$4='Input Data'!$C$44,SUM(Financials!$C$137:M137,IF(M$4>'Input Data'!$C$44,M137,0),0),0)) -> 0 | N27: =IF('Input Data'!$C$44=0,+N137,IF(Financials!N$4='Input Data'!$C$44,SUM(Financials!$C$137:N137,IF(N$4>'Input Data'!$C$44,N137,0),0),0)) -> 0 | O27: =IF('Input Data'!$C$44=0,+O137,IF(Financials!O$4='Input Data'!$C$44,SUM(Financials!$C$137:O137,IF(O$4>'Input Data'!$C$44,O137,0),0),0)) -> 0 | P27: =IF('Input Data'!$C$44=0,+P137,IF(Financials!P$4='Input Data'!$C$44,SUM(Financials!$C$137:P137,IF(P$4>'Input Data'!$C$44,P137,0),0),0)) -> 0 | Q27: =IF('Input Data'!$C$44=0,+Q137,IF(Financials!Q$4='Input Data'!$C$44,SUM(Financials!$C$137:Q137,IF(Q$4>'Input Data'!$C$44,Q137,0),0),0)) -> 0 | R27: =IF('Input Data'!$C$44=0,+R137,IF(Financials!R$4='Input Data'!$C$44,SUM(Financials!$C$137:R137,IF(R$4>'Input Data'!$C$44,R137,0),0),0)) -> 0 | S27: =IF('Input Data'!$C$44=0,+S137,IF(Financials!S$4='Input Data'!$C$44,SUM(Financials!$C$137:S137,IF(S$4>'Input Data'!$C$44,S137,0),0),0)) -> 0 | T27: =IF('Input Data'!$C$44=0,+T137,IF(Financials!T$4='Input Data'!$C$44,SUM(Financials!$C$137:T137,IF(T$4>'Input Data'!$C$44,T137,0),0),0)) -> 0 | U27: =IF('Input Data'!$C$44=0,+U137,IF(Financials!U$4='Input Data'!$C$44,SUM(Financials!$C$137:U137,IF(U$4>'Input Data'!$C$44,U137,0),0),0)) -> 0 | V27: =IF('Input Data'!$C$44=0,+V137,IF(Financials!V$4='Input Data'!$C$44,SUM(Financials!$C$137:V137,IF(V$4>'Input Data'!$C$44,V137,0),0),0)) -> 0 | W27: =IF('Input Data'!$C$44=0,+W137,IF(Financials!W$4='Input Data'!$C$44,SUM(Financials!$C$137:W137,IF(W$4>'Input Data'!$C$44,W137,0),0),0)) -> 0 | X27: =IF('Input Data'!$C$44=0,+X137,IF(Financials!X$4='Input Data'!$C$44,SUM(Financials!$C$137:X137,IF(X$4>'Input Data'!$C$44,X137,0),0),0)) -> 0 | Y27: =IF('Input Data'!$C$44=0,+Y137,IF(Financials!Y$4='Input Data'!$C$44,SUM(Financials!$C$137:Y137,IF(Y$4>'Input Data'!$C$44,Y137,0),0),0)) -> 0 | Z27: =IF('Input Data'!$C$44=0,+Z137,IF(Financials!Z$4='Input Data'!$C$44,SUM(Financials!$C$137:Z137,IF(Z$4>'Input Data'!$C$44,Z137,0),0),0)) -> 0 | AA27: =IF('Input Data'!$C$44=0,+AA137,IF(Financials!AA$4='Input Data'!$C$44,SUM(Financials!$C$137:AA137,IF(AA$4>'Input Data'!$C$44,AA137,0),0),0)) -> 0 | AB27: =IF('Input Data'!$C$44=0,+AB137,IF(Financials!AB$4='Input Data'!$C$44,SUM(Financials!$C$137:AB137,IF(AB$4>'Input Data'!$C$44,AB137,0),0),0)) -> 0 | AC27: =IF('Input Data'!$C$44=0,+AC137,IF(Financials!AC$4='Input Data'!$C$44,SUM(Financials!$C$137:AC137,IF(AC$4>'Input Data'!$C$44,AC137,0),0),0)) -> 0 | AD27: =IF('Input Data'!$C$44=0,+AD137,IF(Financials!AD$4='Input Data'!$C$44,SUM(Financials!$C$137:AD137,IF(AD$4>'Input Data'!$C$44,AD137,0),0),0)) -> 0 | AE27: =IF('Input Data'!$C$44=0,+AE137,IF(Financials!AE$4='Input Data'!$C$44,SUM(Financials!$C$137:AE137,IF(AE$4>'Input Data'!$C$44,AE137,0),0),0)) -> 0 | AF27: =IF('Input Data'!$C$44=0,+AF137,IF(Financials!AF$4='Input Data'!$C$44,SUM(Financials!$C$137:AF137,IF(AF$4>'Input Data'!$C$44,AF137,0),0),0)) -> 0 | AG27: =SUM(C27:AF27) -> 0
A28: Less: Gross Capital Investment | C28: =-SUMIF(Capex!$G$4:$AJ$4,C$4,Capex!$G$16:$AJ$16) -> -29434655.78 | D28: =-SUMIF(Capex!$G$4:$AJ$4,D$4,Capex!$G$16:$AJ$16) -> -71156811.26 | E28: =-SUMIF(Capex!$G$4:$AJ$4,E$4,Capex!$G$16:$AJ$16) -> -110534012.8 | F28: =-SUMIF(Capex!$G$4:$AJ$4,F$4,Capex!$G$16:$AJ$16) -> -43874520.13 | G28: =-SUMIF(Capex!$G$4:$AJ$4,G$4,Capex!$G$16:$AJ$16) -> 0 | H28: =-SUMIF(Capex!$G$4:$AJ$4,H$4,Capex!$G$16:$AJ$16) -> 0 | I28: =-SUMIF(Capex!$G$4:$AJ$4,I$4,Capex!$G$16:$AJ$16) -> 0 | J28: =-SUMIF(Capex!$G$4:$AJ$4,J$4,Capex!$G$16:$AJ$16) -> 0 | K28: =-SUMIF(Capex!$G$4:$AJ$4,K$4,Capex!$G$16:$AJ$16) -> 0 | L28: =-SUMIF(Capex!$G$4:$AJ$4,L$4,Capex!$G$16:$AJ$16) -> -26500 | M28: =-SUMIF(Capex!$G$4:$AJ$4,M$4,Capex!$G$16:$AJ$16) -> -27295 | N28: =-SUMIF(Capex!$G$4:$AJ$4,N$4,Capex!$G$16:$AJ$16) -> -28364.72309 | O28: =-SUMIF(Capex!$G$4:$AJ$4,O$4,Capex!$G$16:$AJ$16) -> -29215.67182 | P28: =-SUMIF(Capex!$G$4:$AJ$4,P$4,Capex!$G$16:$AJ$16) -> -30092.13764 | Q28: =-SUMIF(Capex!$G$4:$AJ$4,Q$4,Capex!$G$16:$AJ$16) -> -30994.90109 | R28: =-SUMIF(Capex!$G$4:$AJ$4,R$4,Capex!$G$16:$AJ$16) -> -66841.19091 | S28: =-SUMIF(Capex!$G$4:$AJ$4,S$4,Capex!$G$16:$AJ$16) -> -68846.43145 | T28: =-SUMIF(Capex!$G$4:$AJ$4,T$4,Capex!$G$16:$AJ$16) -> -70911.82218 | U28: =-SUMIF(Capex!$G$4:$AJ$4,U$4,Capex!$G$16:$AJ$16) -> -73039.17473 | V28: =-SUMIF(Capex!$G$4:$AJ$4,V$4,Capex!$G$16:$AJ$16) -> -75230.34891 | W28: =-SUMIF(Capex!$G$4:$AJ$4,W$4,Capex!$G$16:$AJ$16) -> -77487.26236 | X28: =-SUMIF(Capex!$G$4:$AJ$4,X$4,Capex!$G$16:$AJ$16) -> -79811.88091 | Y28: =-SUMIF(Capex!$G$4:$AJ$4,Y$4,Capex!$G$16:$AJ$16) -> -82206.23782 | Z28: =-SUMIF(Capex!$G$4:$AJ$4,Z$4,Capex!$G$16:$AJ$16) -> -84672.42418 | AA28: =-SUMIF(Capex!$G$4:$AJ$4,AA$4,Capex!$G$16:$AJ$16) -> -87212.58891 | AB28: =-SUMIF(Capex!$G$4:$AJ$4,AB$4,Capex!$G$16:$AJ$16) -> -89828.96764 | AC28: =-SUMIF(Capex!$G$4:$AJ$4,AC$4,Capex!$G$16:$AJ$16) -> -92523.84418 | AD28: =-SUMIF(Capex!$G$4:$AJ$4,AD$4,Capex!$G$16:$AJ$16) -> -95299.56018 | AE28: =-SUMIF(Capex!$G$4:$AJ$4,AE$4,Capex!$G$16:$AJ$16) -> -98158.544 | AF28: =-SUMIF(Capex!$G$4:$AJ$4,AF$4,Capex!$G$16:$AJ$16) -> -101103.3011 | AG28: =SUM(C28:AF28) -> -256415636
A29: After-tax Net Cash Flow | C29: =SUM(C24:C28) -> -29434655.78 | D29: -71156811.26 | E29: -109683276.4 | F29: -22731717.46 | G29: 28284053.92 | H29: 27009206.32 | I29: 27041083.55 | J29: 27200746.23 | K29: 24407942.17 | L29: 24806648.47 | M29: 24856925.67 | N29: 24895080.98 | O29: 25298475.36 | P29: 17945577.27 | Q29: 18231433.11 | R29: 18486201.32 | S29: 18778232.7 | T29: 19073936.73 | U29: 16416630.26 | V29: 16675476.28 | W29: 16937478.69 | X29: 17202678.04 | Y29: 17471117.25 | Z29: 14925871.8 | AA29: 15158660.65 | AB29: =SUM(AB24:AB28) -> 15394181.83 | AC29: 15632469.57 | AD29: 15873557.5 | AE29: 13436041.84 | AF29: 13642613.54 | AG29: 282075860.2
A30: Cumulative | C30: =SUM($C$29:C29) -> -29434655.78 | D30: =SUM($C$29:D29) -> -100591467 | E30: =SUM($C$29:E29) -> -210274743.4 | F30: =SUM($C$29:F29) -> -233006460.9 | G30: =SUM($C$29:G29) -> -204722407 | H30: =SUM($C$29:H29) -> -177713200.6 | I30: =SUM($C$29:I29) -> -150672117.1 | J30: =SUM($C$29:J29) -> -123471370.9 | K30: =SUM($C$29:K29) -> -99063428.68 | L30: =SUM($C$29:L29) -> -74256780.21 | M30: =SUM($C$29:M29) -> -49399854.54 | N30: =SUM($C$29:N29) -> -24504773.56 | O30: =SUM($C$29:O29) -> 793701.8037 | P30: =SUM($C$29:P29) -> 18739279.08 | Q30: =SUM($C$29:Q29) -> 36970712.18 | R30: =SUM($C$29:R29) -> 55456913.51 | S30: =SUM($C$29:S29) -> 74235146.21 | T30: =SUM($C$29:T29) -> 93309082.94 | U30: =SUM($C$29:U29) -> 109725713.2 | V30: =SUM($C$29:V29) -> 126401189.5 | W30: =SUM($C$29:W29) -> 143338668.2 | X30: =SUM($C$29:X29) -> 160541346.2 | Y30: =SUM($C$29:Y29) -> 178012463.5 | Z30: =SUM($C$29:Z29) -> 192938335.3 | AA30: =SUM($C$29:AA29) -> 208096995.9 | AB30: =SUM($C$29:AB29) -> 223491177.7 | AC30: =SUM($C$29:AC29) -> 239123647.3 | AD30: =SUM($C$29:AD29) -> 254997204.8 | AE30: =SUM($C$29:AE29) -> 268433246.6 | AF30: =SUM($C$29:AF29) -> 282075860.2
A31: Payback (Years) | C31: =IF(INDEX(C3:AG3,,MATCH(0,C30:AG30,1)+1)=0,"N/A",INDEX(C3:AG3,,MATCH(0,C30:AG30,1)+1)) -> 13
A32: Net Present Value | C32: =NPV(C$74,C29:AF29) -> 292268.7974
A33: Internal Rate of Return | C33: =IFERROR(IRR($C29:$AF$29,0.1)*(1-'Input Data'!$C$76)+MIRR($C29:$AF$29,$C$74,$C$74)*'Input Data'!$C$76,"N/A") -> 0.07132986945
A35: Asset's terminal value (TV) | C35: =IF(C4='Input Data'!$C$15+'Input Data'!$C$19,C119-C133,0) -> 0 | D35: =IF(D4='Input Data'!$C$15+'Input Data'!$C$19,D119-D133,0) -> 0 | E35: =IF(E4='Input Data'!$C$15+'Input Data'!$C$19,E119-E133,0) -> 0 | F35: =IF(F4='Input Data'!$C$15+'Input Data'!$C$19,F119-F133,0) -> 0 | G35: =IF(G4='Input Data'!$C$15+'Input Data'!$C$19,G119-G133,0) -> 0 | H35: =IF(H4='Input Data'!$C$15+'Input Data'!$C$19,H119-H133,0) -> 0 | I35: =IF(I4='Input Data'!$C$15+'Input Data'!$C$19,I119-I133,0) -> 0 | J35: =IF(J4='Input Data'!$C$15+'Input Data'!$C$19,J119-J133,0) -> 0 | K35: =IF(K4='Input Data'!$C$15+'Input Data'!$C$19,K119-K133,0) -> 0 | L35: =IF(L4='Input Data'!$C$15+'Input Data'!$C$19,L119-L133,0) -> 0 | M35: =IF(M4='Input Data'!$C$15+'Input Data'!$C$19,M119-M133,0) -> 0 | N35: =IF(N4='Input Data'!$C$15+'Input Data'!$C$19,N119-N133,0) -> 0 | O35: =IF(O4='Input Data'!$C$15+'Input Data'!$C$19,O119-O133,0) -> 0 | P35: =IF(P4='Input Data'!$C$15+'Input Data'!$C$19,P119-P133,0) -> 0 | Q35: =IF(Q4='Input Data'!$C$15+'Input Data'!$C$19,Q119-Q133,0) -> 0 | R35: =IF(R4='Input Data'!$C$15+'Input Data'!$C$19,R119-R133,0) -> 0 | S35: =IF(S4='Input Data'!$C$15+'Input Data'!$C$19,S119-S133,0) -> 0 | T35: =IF(T4='Input Data'!$C$15+'Input Data'!$C$19,T119-T133,0) -> 0 | U35: =IF(U4='Input Data'!$C$15+'Input Data'!$C$19,U119-U133,0) -> 0 | V35: =IF(V4='Input Data'!$C$15+'Input Data'!$C$19,V119-V133,0) -> 0 | W35: =IF(W4='Input Data'!$C$15+'Input Data'!$C$19,W119-W133,0) -> 0 | X35: =IF(X4='Input Data'!$C$15+'Input Data'!$C$19,X119-X133,0) -> 0 | Y35: =IF(Y4='Input Data'!$C$15+'Input Data'!$C$19,Y119-Y133,0) -> 0 | Z35: =IF(Z4='Input Data'!$C$15+'Input Data'!$C$19,Z119-Z133,0) -> 0 | AA35: =IF(AA4='Input Data'!$C$15+'Input Data'!$C$19,AA119-AA133,0) -> 0 | AB35: =IF(AB4='Input Data'!$C$15+'Input Data'!$C$19,AB119-AB133,0) -> 0 | AC35: =IF(AC4='Input Data'!$C$15+'Input Data'!$C$19,AC119-AC133,0) -> 0 | AD35: =IF(AD4='Input Data'!$C$15+'Input Data'!$C$19,AD119-AD133,0) -> 0 | AE35: =IF(AE4='Input Data'!$C$15+'Input Data'!$C$19,AE119-AE133,0) -> 0 | AF35: =IF(AF4='Input Data'!$C$15+'Input Data'!$C$19,AF119-AF133,0)*0+Capex!AK16-Capex!AK14 -> 255000000 | AG35: =SUM(C35:AF35) -> 255000000
A36: Net Cash Flow with (TV) | C36: =C29+C35 -> -29434655.78 | D36: =D29+D35 -> -71156811.26 | E36: -109683276.4 | F36: -22731717.46 | G36: 28284053.92 | H36: 27009206.32 | I36: 27041083.55 | J36: 27200746.23 | K36: 24407942.17 | L36: 24806648.47 | M36: 24856925.67 | N36: 24895080.98 | O36: 25298475.36 | P36: 17945577.27 | Q36: 18231433.11 | R36: 18486201.32 | S36: 18778232.7 | T36: 19073936.73 | U36: 16416630.26 | V36: 16675476.28 | W36: 16937478.69 | X36: 17202678.04 | Y36: 17471117.25 | Z36: 14925871.8 | AA36: 15158660.65 | AB36: =AB29+AB35 -> 15394181.83 | AC36: 15632469.57 | AD36: 15873557.5 | AE36: 13436041.84 | AF36: 268642613.5 | AG36: 537075860.2
A37: Cumulative | C37: =SUM($C$36:C36) -> -29434655.78 | D37: =D36+C37 -> -100591467 | E37: -210274743.4 | F37: -233006460.9 | G37: -204722407 | H37: -177713200.6 | I37: -150672117.1 | J37: -123471370.9 | K37: -99063428.68 | L37: -74256780.21 | M37: -49399854.54 | N37: -24504773.56 | O37: 793701.8037 | P37: 18739279.08 | Q37: 36970712.18 | R37: 55456913.51 | S37: 74235146.21 | T37: 93309082.94 | U37: 109725713.2 | V37: 126401189.5 | W37: 143338668.2 | X37: =X36+W37 -> 160541346.2 | Y37: =Y36+X37 -> 178012463.5 | Z37: =Z36+Y37 -> 192938335.3 | AA37: =AA36+Z37 -> 208096995.9 | AB37: =AB36+AA37 -> 223491177.7 | AC37: 239123647.3 | AD37: 254997204.8 | AE37: 268433246.6 | AF37: 537075860.2
A38: Payback (Years) | C38: =IF(INDEX(C3:AG3,,MATCH(0,C37:AG37,1)+1)=0,"N/A",INDEX(C3:AG3,,MATCH(0,C37:AG37,1)+1)) -> 13
A39: Net Present Value (TV) | C39: =NPV(C$74,C36:AF36) -> 32711412.66
A40: Internal Rate of Return (TV) | C40: =IFERROR(IRR($C36:$AF$36,0.1)*(1-'Input Data'!$C$76)+MIRR($C36:$AF$36,$C$74,$C$74)*'Input Data'!$C$76,"N/A") -> 0.08508894802
A42: LEVERED FREE CASH FLOW AND IRR
A43: Unlevered Free Cash Flow | C43: =+C29 -> -29434655.78 | D43: -71156811.26 | E43: -109683276.4 | F43: -22731717.46 | G43: 28284053.92 | H43: 27009206.32 | I43: 27041083.55 | J43: 27200746.23 | K43: 24407942.17 | L43: 24806648.47 | M43: 24856925.67 | N43: 24895080.98 | O43: 25298475.36 | P43: 17945577.27 | Q43: 18231433.11 | R43: 18486201.32 | S43: 18778232.7 | T43: 19073936.73 | U43: 16416630.26 | V43: 16675476.28 | W43: 16937478.69 | X43: 17202678.04 | Y43: 17471117.25 | Z43: 14925871.8 | AA43: 15158660.65 | AB43: 15394181.83 | AC43: 15632469.57 | AD43: 15873557.5 | AE43: 13436041.84 | AF43: 13642613.54
A44: Debt Financing | C44: =+C128 -> 13655908.32 | D44: =+D128-SUM($C$44:C44) -> 34564225.99 | E44: =+E128-SUM($C$44:D44) -> 54445939.27 | F44: =+F128-SUM($C$44:E44) -> 18553289.46 | G44: =+G128-SUM($C$44:F44) -> -4545360.31 | H44: =+H128-SUM($C$44:G44) -> -4272716.85 | I44: =+I128-SUM($C$44:H44) -> -4077971.521 | J44: =+J128-SUM($C$44:I44) -> -3939312.847 | K44: =+K128-SUM($C$44:J44) -> -3938923.356 | L44: =+L128-SUM($C$44:K44) -> -3927277.903 | M44: =+M128-SUM($C$44:L44) -> -2933570.604 | N44: =+N128-SUM($C$44:M44) -> -1940134.957 | O44: =+O128-SUM($C$44:N44) -> -1939995.64 | P44: =+P128-SUM($C$44:O44) -> -1939852.149 | Q44: =+Q128-SUM($C$44:P44) -> -1939704.352 | R44: =+R128-SUM($C$44:Q44) -> -1923694.859 | S44: =+S128-SUM($C$44:R44) -> -1923366.566 | T44: =+T128-SUM($C$44:S44) -> -1923028.427 | U44: =+U128-SUM($C$44:T44) -> -1922680.145 | V44: =+V128-SUM($C$44:U44) -> -1922321.413 | W44: =+W128-SUM($C$44:V44) -> -1921951.917 | X44: =+X128-SUM($C$44:W44) -> -1921571.338 | Y44: =+Y128-SUM($C$44:X44) -> -1921179.341 | Z44: =+Z128-SUM($C$44:Y44) -> -1920775.586 | AA44: =+AA128-SUM($C$44:Z44) -> -1920359.72 | AB44: =+AB128-SUM($C$44:AA44) -> -1919931.375 | AC44: =+AC128-SUM($C$44:AB44) -> -1919490.176 | AD44: =+AD128-SUM($C$44:AC44) -> -1919035.744 | AE44: =+AE128-SUM($C$44:AD44) -> -1918567.682 | AF44: =+AF128-SUM($C$44:AE44) -> -1918085.575
A45: Interest Expense | C45: =-C85 -> -639779.3049 | D45: -1449446.284 | E45: -3534509.422 | F45: -5244516.338 | G45: -5572652.099 | H45: -5366088.621 | I45: -5170473.755 | J45: -4982668.877 | K45: -4798121.199 | L45: -4613855.417 | M45: -4453140.053 | N45: -4338973.49 | O45: -4248081.444 | P45: -4157196.005 | Q45: -4066317.406 | R45: -3975817.261 | S45: -3885699.833 | T45: -3795598.054 | U45: -3705512.344 | V45: -3615443.172 | W45: -3525391.054 | X45: -3435356.551 | Y45: -3345340.085 | Z45: -3255342.313 | AA45: -3165363.702 | AB45: -3075404.909 | AC45: -2985466.448 | AD45: -2895548.977 | AE45: -2805653.103 | AF45: -2715779.483
A46: Addback Unlevered Taxes | C46: =SUM(C22:C23) -> 0 | D46: 0 | E46: 0 | F46: 4918079.031 | G46: 6247670.948 | H46: 6016086.321 | I46: 6170636.888 | J46: 6327176.199 | K46: 5379320.612 | L46: 5523274.136 | M46: 6273731.407 | N46: 7019872.869 | O46: 7156926.069 | P46: 4660759.757 | Q46: 4757915.466 | R46: 4856223.531 | S46: 4955609.019 | T46: 5056248.617 | U46: 4154363.374 | V46: 4242505.063 | W46: 4331726.274 | X46: 4422041.008 | Y46: 4513464.089 | Z46: 3649663.941 | AA46: 3729001.519 | AB46: 3809275.914 | AC46: 3890499.033 | AD46: 3972682.567 | AE46: 3145503.611 | AF46: 3215989.48
A47: Effective Taxes | C47: =-SUM(C89:C91) -> 141983.9493 | D47: 48737.32485 | E47: 201624.5188 | F47: -3838061.644 | G47: -4835282.274 | H47: -4656051.16 | I47: -4860180.315 | J47: -5064318.772 | K47: -4163236.794 | L47: -4353892.481 | M47: -5145083.061 | N47: -5920160.038 | O47: -6080249.827 | P47: -3607118.429 | Q47: -3727307.319 | R47: -3848552.646 | S47: -3970778.396 | T47: -4094254.291 | U47: -3215201.27 | V47: -3326170.991 | W47: -3438215.912 | X47: -3551349.89 | Y47: -3665587.645 | Z47: -2824597.432 | AA47: -2926740.089 | AB47: -3029814.54 | AC47: -3133832.561 | AD47: -3238805.679 | AE47: -2434410.832 | AF47: -2527675.17
A48: Levered Free Cash Flow | C48: =SUM(C43:C47) -> -16276542.81 | D48: =SUM(D43:D47) -> -37993294.23 | E48: -58570222 | F48: -8342926.945 | G48: 19578430.18 | H48: 18730436.01 | I48: 19103094.84 | J48: 19541621.94 | K48: 16886981.43 | L48: 17434896.81 | M48: 18598863.36 | N48: 19715685.37 | O48: 20187074.52 | P48: 12902170.45 | Q48: 13256019.5 | R48: 13594360.09 | S48: 13953996.93 | T48: 14317304.57 | U48: 11727599.87 | V48: 12054045.77 | W48: 12383646.09 | X48: 12716441.27 | Y48: 13052474.27 | Z48: 10574820.41 | AA48: 10875198.66 | AB48: 11178306.92 | AC48: 11484179.41 | AD48: 11792849.66 | AE48: 9422913.838 | AF48: 9697062.789
A49: Asset Terminal Value | C49: =+C35 -> 0 | D49: 0 | E49: 0 | F49: 0 | G49: 0 | H49: 0 | I49: 0 | J49: 0 | K49: 0 | L49: 0 | M49: 0 | N49: 0 | O49: 0 | P49: 0 | Q49: 0 | R49: 0 | S49: 0 | T49: 0 | U49: 0 | V49: 0 | W49: 0 | X49: 0 | Y49: 0 | Z49: 0 | AA49: 0 | AB49: 0 | AC49: 0 | AD49: 0 | AE49: 0 | AF49: 255000000
A50: Levered Free Cash Flow with Terminal Value | C50: =+C48+C49 -> -16276542.81 | D50: =+D48+D49 -> -37993294.23 | E50: -58570222 | F50: -8342926.945 | G50: 19578430.18 | H50: 18730436.01 | I50: 19103094.84 | J50: 19541621.94 | K50: 16886981.43 | L50: 17434896.81 | M50: 18598863.36 | N50: 19715685.37 | O50: 20187074.52 | P50: 12902170.45 | Q50: 13256019.5 | R50: 13594360.09 | S50: 13953996.93 | T50: 14317304.57 | U50: 11727599.87 | V50: 12054045.77 | W50: 12383646.09 | X50: 12716441.27 | Y50: 13052474.27 | Z50: 10574820.41 | AA50: 10875198.66 | AB50: 11178306.92 | AC50: 11484179.41 | AD50: 11792849.66 | AE50: 9422913.838 | AF50: 264697062.8
A52: Net Present Value | C52: =NPV(C$74,C48:AF48) -> 39741710.7
A53: Internal Rate of Return | C53: =IFERROR(IRR($C48:$AF$48,0.1)*(1-'Input Data'!$C$76)+MIRR($C48:$AF$48,$C$74,$C$74)*'Input Data'!$C$76,"N/A") -> 0.1092055401
A55: Net Present Value (with TV) | C55: =NPV(C$74,C50:AF50) -> 72160854.57
A56: Internal Rate of Return (with TV) | C56: =IFERROR(IRR($C50:$AF$50,0.1)*(1-'Input Data'!$C$76)+MIRR($C50:$AF$50,$C$74,$C$74)*'Input Data'!$C$76,"N/A") -> 0.1213627761
D57: =AVERAGE(C59:AF59) -> 10683350.46
A59: Net Income | C59: =+C92 -> -245693.9111 | D59: =+D92 -> 2582101.488 | E59: 5344576.275 | F59: 13437021.56 | G59: 14242572.43 | H59: 13714637.97 | I59: 14315910.89 | J59: 14917211.2 | K59: 12263027.93 | L59: 12824614.05 | M59: 15155106.57 | N59: 17438135.63 | O59: 17909688.34 | P59: 10624952.71 | Q59: 10978975.26 | R59: 11336109.6 | S59: 11696131.83 | T59: 12059836.42 | U59: 9470540.574 | V59: 9797407.589 | W59: 10127441.66 | X59: 10460683.61 | Y59: 10797176.78 | Z59: 8319996.894 | AA59: 8620863.339 | AB59: 8924474.432 | AC59: 9230864.86 | AD59: 9540068.573 | AE59: 7170682.212 | AF59: 7445397.113 | AG59: =AVERAGE(C59:AF59) -> 10683350.46
A60: Net Income (Excluding AFUDC) | C60: =C92+(C84*(1-'Input Data'!$C$51)) -> -477627.2401 | D60: =D92+(D84*(1-'Input Data'!$C$51)) -> -1082084.123 | E60: =E92+(E84*(1-'Input Data'!$C$51)) -> -2638688.009 | F60: =F92+(F84*(1-'Input Data'!$C$51)) -> 10571160.86 | G60: =G92+(G84*(1-'Input Data'!$C$51)) -> 14242572.43 | H60: =H92+(H84*(1-'Input Data'!$C$51)) -> 13714637.97 | I60: =I92+(I84*(1-'Input Data'!$C$51)) -> 14315910.89 | J60: =J92+(J84*(1-'Input Data'!$C$51)) -> 14917211.2 | K60: =K92+(K84*(1-'Input Data'!$C$51)) -> 12263027.93 | L60: =L92+(L84*(1-'Input Data'!$C$51)) -> 12824614.05 | M60: =M92+(M84*(1-'Input Data'!$C$51)) -> 15155106.57 | N60: =N92+(N84*(1-'Input Data'!$C$51)) -> 17438135.63 | O60: =O92+(O84*(1-'Input Data'!$C$51)) -> 17909688.34 | P60: =P92+(P84*(1-'Input Data'!$C$51)) -> 10624952.71 | Q60: =Q92+(Q84*(1-'Input Data'!$C$51)) -> 10978975.26 | R60: =R92+(R84*(1-'Input Data'!$C$51)) -> 11336109.6 | S60: =S92+(S84*(1-'Input Data'!$C$51)) -> 11696131.83 | T60: =T92+(T84*(1-'Input Data'!$C$51)) -> 12059836.42 | U60: =U92+(U84*(1-'Input Data'!$C$51)) -> 9470540.574 | V60: =V92+(V84*(1-'Input Data'!$C$51)) -> 9797407.589 | W60: =W92+(W84*(1-'Input Data'!$C$51)) -> 10127441.66 | X60: =X92+(X84*(1-'Input Data'!$C$51)) -> 10460683.61 | Y60: =Y92+(Y84*(1-'Input Data'!$C$51)) -> 10797176.78 | Z60: =Z92+(Z84*(1-'Input Data'!$C$51)) -> 8319996.894 | AA60: =AA92+(AA84*(1-'Input Data'!$C$51)) -> 8620863.339 | AB60: =AB92+(AB84*(1-'Input Data'!$C$51)) -> 8924474.432 | AC60: =AC92+(AC84*(1-'Input Data'!$C$51)) -> 9230864.86 | AD60: =AD92+(AD84*(1-'Input Data'!$C$51)) -> 9540068.573 | AE60: =AE92+(AE84*(1-'Input Data'!$C$51)) -> 7170682.212 | AF60: =AF92+(AF84*(1-'Input Data'!$C$51)) -> 7445397.113
A62: Average Return on Equity - Market | C62: =IF(C152<=0,"N/A",C92/C152) -> -0.01532631944 | D62: =IF(D152<=0,"N/A",D92/D152) -> 0.07109594688 | E62: 0.06034729414 | F62: 0.1022518649 | G62: 0.102 | H62: 0.102 | I62: 0.1105000091 | J62: 0.1194811186 | K62: 0.102 | L62: 0.1109312711 | M62: 0.1358208077 | N62: 0.1603934839 | O62: 0.168255342 | P62: 0.102 | Q62: 0.1077541982 | R62: 0.1137918836 | S62: 0.1201286704 | T62: 0.1268045598 | U62: 0.102 | V62: 0.108149198 | W62: 0.114647903 | X62: 0.121523962 | Y62: 0.1288082272 | Z62: 0.102 | AA62: 0.1086928081 | AB62: 0.1158121214 | AC62: 0.1233967905 | AD62: 0.131490461 | AE62: 0.102 | AF62: 0.1094125211
A64: Average Return on Equity - Regulated | C64: =IF(C156<=0,"N/A",(C60-'Rev Req'!C43-('Rev Req'!C36*(1-C95)-C165))/C156) -> N/A | D64: =IF(D156<=0,"N/A",(D60-'Rev Req'!D43-('Rev Req'!D36*(1-D95)-D165))/D156) -> 0.03497586571 | E64: =IF(E156<=0,"N/A",(E60-'Rev Req'!E43-('Rev Req'!E36*(1-E95)-E165))/E156) -> -0.02979425737 | F64: =IF(F156<=0,"N/A",(F60-'Rev Req'!F43-('Rev Req'!F36*(1-F95)-F165))/F156) -> 0.102 | G64: =IF(G156<=0,"N/A",(G60-'Rev Req'!G43-('Rev Req'!G36*(1-G95)-G165))/G156) -> 0.102 | H64: =IF(H156<=0,"N/A",(H60-'Rev Req'!H43-('Rev Req'!H36*(1-H95)-H165))/H156) -> 0.102 | I64: =IF(I156<=0,"N/A",(I60-'Rev Req'!I43-('Rev Req'!I36*(1-I95)-I165))/I156) -> 0.1105000091 | J64: =IF(J156<=0,"N/A",(J60-'Rev Req'!J43-('Rev Req'!J36*(1-J95)-J165))/J156) -> 0.1194811186 | K64: =IF(K156<=0,"N/A",(K60-'Rev Req'!K43-('Rev Req'!K36*(1-K95)-K165))/K156) -> 0.102 | L64: =IF(L156<=0,"N/A",(L60-'Rev Req'!L43-('Rev Req'!L36*(1-L95)-L165))/L156) -> 0.1109312711 | M64: =IF(M156<=0,"N/A",(M60-'Rev Req'!M43-('Rev Req'!M36*(1-M95)-M165))/M156) -> 0.1358208077 | N64: =IF(N156<=0,"N/A",(N60-'Rev Req'!N43-('Rev Req'!N36*(1-N95)-N165))/N156) -> 0.1603934839 | O64: =IF(O156<=0,"N/A",(O60-'Rev Req'!O43-('Rev Req'!O36*(1-O95)-O165))/O156) -> 0.168255342 | P64: =IF(P156<=0,"N/A",(P60-'Rev Req'!P43-('Rev Req'!P36*(1-P95)-P165))/P156) -> 0.102 | Q64: =IF(Q156<=0,"N/A",(Q60-'Rev Req'!Q43-('Rev Req'!Q36*(1-Q95)-Q165))/Q156) -> 0.1077541982 | R64: =IF(R156<=0,"N/A",(R60-'Rev Req'!R43-('Rev Req'!R36*(1-R95)-R165))/R156) -> 0.1137918836 | S64: =IF(S156<=0,"N/A",(S60-'Rev Req'!S43-('Rev Req'!S36*(1-S95)-S165))/S156) -> 0.1201286704 | T64: =IF(T156<=0,"N/A",(T60-'Rev Req'!T43-('Rev Req'!T36*(1-T95)-T165))/T156) -> 0.1268045598 | U64: =IF(U156<=0,"N/A",(U60-'Rev Req'!U43-('Rev Req'!U36*(1-U95)-U165))/U156) -> 0.102 | V64: =IF(V156<=0,"N/A",(V60-'Rev Req'!V43-('Rev Req'!V36*(1-V95)-V165))/V156) -> 0.108149198 | W64: =IF(W156<=0,"N/A",(W60-'Rev Req'!W43-('Rev Req'!W36*(1-W95)-W165))/W156) -> 0.114647903 | X64: =IF(X156<=0,"N/A",(X60-'Rev Req'!X43-('Rev Req'!X36*(1-X95)-X165))/X156) -> 0.121523962 | Y64: =IF(Y156<=0,"N/A",(Y60-'Rev Req'!Y43-('Rev Req'!Y36*(1-Y95)-Y165))/Y156) -> 0.1288082272 | Z64: =IF(Z156<=0,"N/A",(Z60-'Rev Req'!Z43-('Rev Req'!Z36*(1-Z95)-Z165))/Z156) -> 0.102 | AA64: =IF(AA156<=0,"N/A",(AA60-'Rev Req'!AA43-('Rev Req'!AA36*(1-AA95)-AA165))/AA156) -> 0.1086928081 | AB64: =IF(AB156<=0,"N/A",(AB60-'Rev Req'!AB43-('Rev Req'!AB36*(1-AB95)-AB165))/AB156) -> 0.1158121214 | AC64: =IF(AC156<=0,"N/A",(AC60-'Rev Req'!AC43-('Rev Req'!AC36*(1-AC95)-AC165))/AC156) -> 0.1233967905 | AD64: =IF(AD156<=0,"N/A",(AD60-'Rev Req'!AD43-('Rev Req'!AD36*(1-AD95)-AD165))/AD156) -> 0.131490461 | AE64: =IF(AE156<=0,"N/A",(AE60-'Rev Req'!AE43-('Rev Req'!AE36*(1-AE95)-AE165))/AE156) -> 0.102 | AF64: =IF(AF156<=0,"N/A",(AF60-'Rev Req'!AF43-('Rev Req'!AF36*(1-AF95)-AF165))/AF156) -> 0.1094125211
A66: Return on Investment (net FA) | C66: =IF(C119=0,"N/A",C92/C119) -> -0.008276212497 | D66: =IF(D119=0,"N/A",D92/D119) -> 0.02463217288 | E66: 0.02385568423 | F66: 0.05057542981 | G66: 0.0553807916 | H66: 0.0551524413 | I66: 0.05960980204 | J66: 0.06439467539 | K66: 0.05495532833 | L66: 0.0597426822 | M66: 0.07266210935 | N66: 0.08512142941 | O66: 0.08903447755 | P66: 0.05381151583 | Q66: 0.05666831312 | R66: 0.05964193302 | S66: 0.06274789636 | T66: 0.06599847246 | U66: 0.05289026418 | V66: 0.05585996241 | W66: 0.05897462553 | X66: 0.06224391974 | Y66: 0.0656783806 | Z66: 0.05176351095 | AA66: 0.05488609176 | AB66: 0.05817523848 | AC66: 0.06164331179 | AD66: 0.06530389409 | AE66: 0.05034551905 | AF66: 0.05365170148
A68: Revenue Requirement | C68: =+'Rev Req'!C15 -> 0 | D68: =+'Rev Req'!D15 -> 0.02513797778 | E68: =+'Rev Req'!E15 -> 6843785.232 | F68: =+'Rev Req'!F15 -> 29676195.57 | G68: =+'Rev Req'!G15 -> 38764581.23 | H68: =+'Rev Req'!H15 -> 37807525.87 | I68: =+'Rev Req'!I15 -> 36899553.37 | J68: =+'Rev Req'!J15 -> 36026788.1 | K68: =+'Rev Req'!K15 -> 35169103.09 | L68: =+'Rev Req'!L15 -> 34313567.96 | M68: =+'Rev Req'!M15 -> 31177128.8 | N68: =+'Rev Req'!N15 -> 28271657.39 | O68: =+'Rev Req'!O15 -> 27880481.44 | P68: =+'Rev Req'!P15 -> 27506390.96 | Q68: =+'Rev Req'!Q15 -> 27133654.41 | R68: =+'Rev Req'!R15 -> 26764234.35 | S68: =+'Rev Req'!S15 -> 26398537.89 | T68: =+'Rev Req'!T15 -> 26034338.34 | U68: =+'Rev Req'!U15 -> 25671667.19 | V68: =+'Rev Req'!V15 -> 25310555.59 | W68: =+'Rev Req'!W15 -> 24951036.33 | X68: =+'Rev Req'!X15 -> 24593142.89 | Y68: =+'Rev Req'!Y15 -> 24236907.32 | Z68: =+'Rev Req'!Z15 -> 23882365.26 | AA68: =+'Rev Req'!AA15 -> 23529551.91 | AB68: =+'Rev Req'!AB15 -> 23178503.28 | AC68: =+'Rev Req'!AC15 -> 22829255.7 | AD68: =+'Rev Req'!AD15 -> 22481847.42 | AE68: =+'Rev Req'!AE15 -> 22136315.95 | AF68: =+'Rev Req'!AF15 -> 21792701.19 | AG68: =SUM(C68:AF68) -> 761261374.1
A69: Net Present Value | C69: =NPV($C$74,$C$68:$AF$68) -> 298651916.2
A71: Non-fuel Revenue Requirement | C71: =+'Rev Req'!C15-'Rev Req'!C6 -> 0 | D71: =+'Rev Req'!D15-'Rev Req'!D6 -> 0.02513797778 | E71: =+'Rev Req'!E15-'Rev Req'!E6 -> 6843785.232 | F71: =+'Rev Req'!F15-'Rev Req'!F6 -> 29676195.57 | G71: =+'Rev Req'!G15-'Rev Req'!G6 -> 38764581.23 | H71: =+'Rev Req'!H15-'Rev Req'!H6 -> 37807525.87 | I71: =+'Rev Req'!I15-'Rev Req'!I6 -> 36899553.37 | J71: =+'Rev Req'!J15-'Rev Req'!J6 -> 36026788.1 | K71: =+'Rev Req'!K15-'Rev Req'!K6 -> 35169103.09 | L71: =+'Rev Req'!L15-'Rev Req'!L6 -> 34313567.96 | M71: =+'Rev Req'!M15-'Rev Req'!M6 -> 31177128.8 | N71: =+'Rev Req'!N15-'Rev Req'!N6 -> 28271657.39 | O71: =+'Rev Req'!O15-'Rev Req'!O6 -> 27880481.44 | P71: =+'Rev Req'!P15-'Rev Req'!P6 -> 27506390.96 | Q71: =+'Rev Req'!Q15-'Rev Req'!Q6 -> 27133654.41 | R71: =+'Rev Req'!R15-'Rev Req'!R6 -> 26764234.35 | S71: =+'Rev Req'!S15-'Rev Req'!S6 -> 26398537.89 | T71: =+'Rev Req'!T15-'Rev Req'!T6 -> 26034338.34 | U71: =+'Rev Req'!U15-'Rev Req'!U6 -> 25671667.19 | V71: =+'Rev Req'!V15-'Rev Req'!V6 -> 25310555.59 | W71: =+'Rev Req'!W15-'Rev Req'!W6 -> 24951036.33 | X71: =+'Rev Req'!X15-'Rev Req'!X6 -> 24593142.89 | Y71: =+'Rev Req'!Y15-'Rev Req'!Y6 -> 24236907.32 | Z71: =+'Rev Req'!Z15-'Rev Req'!Z6 -> 23882365.26 | AA71: =+'Rev Req'!AA15-'Rev Req'!AA6 -> 23529551.91 | AB71: =+'Rev Req'!AB15-'Rev Req'!AB6 -> 23178503.28 | AC71: =+'Rev Req'!AC15-'Rev Req'!AC6 -> 22829255.7 | AD71: =+'Rev Req'!AD15-'Rev Req'!AD6 -> 22481847.42 | AE71: =+'Rev Req'!AE15-'Rev Req'!AE6 -> 22136315.95 | AF71: =+'Rev Req'!AF15-'Rev Req'!AF6 -> 21792701.19 | AG71: =SUM(C71:AF71) -> 761261374.1
A72: Net Present Value | C72: =NPV($C$74,$C$71:$AF$71) -> 298651916.2
A74: Net Present Value Rate (Post-Tax WACC) | C74: =Results!F16 -> 0.07116889905
A77: INCOME STATEMENT
A78: Total Net Revenue | C78: =C12 -> 0 | D78: 0 | E78: 0 | F78: 29676195.57 | G78: 38764581.23 | H78: 37807525.87 | I78: 38374638.76 | J78: 38950258.34 | K78: 35169103.09 | L78: 35696639.64 | M78: 36232089.23 | N78: 36775570.57 | O78: 37327204.13 | P78: 27506390.96 | Q78: 27918986.82 | R78: 28337771.63 | S78: 28762838.2 | T78: 29194280.77 | U78: 25671667.19 | V78: 26056742.2 | W78: 26447593.33 | X78: 26844307.23 | Y78: 27246971.84 | Z78: 23882365.26 | AA78: 24240600.74 | AB78: 24604209.75 | AC78: 24973272.9 | AD78: 25347871.99 | AE78: 22136315.95 | AF78: 22468360.69 | AG78: =SUM(C78:AF78) -> 806414353.9
A79: Expenses:
A80: Fuel | C80: =C15 -> 0 | D80: 0 | E80: 0 | F80: 0 | G80: 0 | H80: 0 | I80: 0 | J80: 0 | K80: 0 | L80: 0 | M80: 0 | N80: 0 | O80: 0 | P80: 0 | Q80: 0 | R80: 0 | S80: 0 | T80: 0 | U80: 0 | V80: 0 | W80: 0 | X80: 0 | Y80: 0 | Z80: 0 | AA80: 0 | AB80: 0 | AC80: 0 | AD80: 0 | AE80: 0 | AF80: 0 | AG80: =SUM(C80:AF80) -> 0
A81: O&M Expense (cost of service) | C81: =C16 -> 0 | D81: 0 | E81: 0 | F81: 3453821 | G81: 2896628 | H81: 2940078 | I81: 2984180 | J81: 3028942 | K81: 3074376 | L81: 3120492 | M81: 3167300 | N81: 3214809 | O81: 3263031 | P81: 3328291 | Q81: 3394856 | R81: 3462753 | S81: 3532008 | T81: 3602648 | U81: 3674701 | V81: 3748195 | W81: 3823159 | X81: 3899623 | Y81: 3977615 | Z81: 4057167 | AA81: 4138310 | AB81: 4221076 | AC81: 4305497 | AD81: 4391607 | AE81: 4479439 | AF81: 4569028 | AG81: 97749630
A82: Depreciation, Book | B82: =SUM(C82:AA82) -> 114897893.4 | C82: =C17 -> 0 | D82: 0 | E82: 0 | F82: 5344643.899 | G82: 8507481.923 | H82: 8507481.923 | I82: 8507481.923 | J82: 8507481.923 | K82: 8507481.923 | L82: 8507702.757 | M82: 6121884.889 | N82: 3736082.561 | O82: 3736562.398 | P82: 3737056.63 | Q82: 3737565.688 | R82: 3738380.989 | S82: 3739511.719 | T82: 3740676.371 | U82: 3741875.963 | V82: 3743111.542 | W82: 3744384.189 | X82: 3745695.015 | Y82: 3747045.166 | Z82: 3748435.822 | AA82: 3749868.197 | AB82: 3751343.543 | AC82: 3752863.15 | AD82: 3754428.345 | AE82: 3756040.496 | AF82: 3757701.011 | AG82: 133670270
A83: Property Taxes | C83: =C18 -> 0 | D83: 0 | E83: 0 | F83: 1473197.107 | G83: 2709964.511 | H83: 2623188.195 | I83: 2536411.879 | J83: 2449635.564 | K83: 2362859.248 | L83: 2276082.932 | M83: 2189574.664 | N83: 2127409.847 | O83: 2089591.125 | P83: 2051776.189 | Q83: 2013965.151 | R83: 1976158.129 | S83: 1938708.423 | T83: 1901267.637 | U83: 1863836.039 | V83: 1826413.904 | W83: 1789001.515 | X83: 1751599.167 | Y83: 1714207.159 | Z83: 1676825.802 | AA83: 1639455.415 | AB83: 1602096.328 | AC83: 1564748.879 | AD83: 1527413.418 | AE83: 1490090.305 | AF83: 1452779.909 | AG83: 52618258.44
A84: AFUDC | C84: =-Capex!G30 -> -252101.4445 | D84: =-Capex!H30 -> -3982810.447 | E84: =-Capex!I30 -> -8677461.178 | F84: =-Capex!J30 -> -3115065.976 | G84: =-Capex!K30 -> 0 | H84: =-Capex!L30 -> 0 | I84: =-Capex!M30 -> 0 | J84: =-Capex!N30 -> 0 | K84: =-Capex!O30 -> 0 | L84: =-Capex!P30 -> 0 | M84: =-Capex!Q30 -> 0 | N84: =-Capex!R30 -> 0 | O84: =-Capex!S30 -> 0 | P84: =-Capex!T30 -> 0 | Q84: =-Capex!U30 -> 0 | R84: =-Capex!V30 -> 0 | S84: =-Capex!W30 -> 0 | T84: =-Capex!X30 -> 0 | U84: =-Capex!Y30 -> 0 | V84: =-Capex!Z30 -> 0 | W84: =-Capex!AA30 -> 0 | X84: =-Capex!AB30 -> 0 | Y84: =-Capex!AC30 -> 0 | Z84: =-Capex!AD30 -> 0 | AA84: =-Capex!AE30 -> 0 | AB84: =-Capex!AF30 -> 0 | AC84: =-Capex!AG30 -> 0 | AD84: =-Capex!AH30 -> 0 | AE84: =-Capex!AI30 -> 0 | AF84: =-Capex!AJ30 -> 0 | AG84: -16027439.05
A85: Interest Expense | B85: =+'Input Data'!C29 -> 0.04685 | C85: =IF(C3<=$B$4+1,C151*$B$85,0) -> 639779.3049 | D85: =IF(D3<=$B$4+1,D151*$B$85,0) -> 1449446.284 | E85: 3534509.422 | F85: 5244516.338 | G85: 5572652.099 | H85: 5366088.621 | I85: 5170473.755 | J85: 4982668.877 | K85: 4798121.199 | L85: 4613855.417 | M85: 4453140.053 | N85: 4338973.49 | O85: 4248081.444 | P85: 4157196.005 | Q85: 4066317.406 | R85: 3975817.261 | S85: 3885699.833 | T85: 3795598.054 | U85: 3705512.344 | V85: 3615443.172 | W85: 3525391.054 | X85: 3435356.551 | Y85: 3345340.085 | Z85: 3255342.313 | AA85: 3165363.702 | AB85: 3075404.909 | AC85: 2985466.448 | AD85: 2895548.977 | AE85: 2805653.103 | AF85: 2715779.483 | AG85: 112818537
A86: Total Expenses | C86: =SUM(C79:C85) -> 387677.8604 | D86: -2533364.164 | E86: -5142951.756 | F86: 12401112.37 | G86: 19686726.53 | H86: 19436836.74 | I86: 19198547.56 | J86: 18968728.36 | K86: 18742838.37 | L86: 18518133.11 | M86: 15931899.61 | N86: 13417274.9 | O86: 13337265.97 | P86: 13274319.82 | Q86: 13212704.25 | R86: 13153109.38 | S86: 13095927.98 | T86: 13040190.06 | U86: 12985925.35 | V86: 12933163.62 | W86: 12881935.76 | X86: 12832273.73 | Y86: 12784207.41 | Z86: 12737770.94 | AA86: 12692997.31 | AB86: =SUM(AB79:AB85) -> 12649920.78 | AC86: 12608575.48 | AD86: 12568997.74 | AE86: 12531222.9 | AF86: 12495288.4 | AG86: 380829256.4
A88: Income before income tax | C88: =C78-C86 -> -387677.8604 | D88: 2533364.164 | E88: 5142951.756 | F88: 17275083.2 | G88: 19077854.7 | H88: 18370689.13 | I88: 19176091.2 | J88: 19981529.97 | K88: 16426264.72 | L88: 17178506.53 | M88: 20300189.63 | N88: 23358295.67 | O88: 23989938.16 | P88: 14232071.14 | Q88: 14706282.58 | R88: 15184662.25 | S88: 15666910.22 | T88: 16154090.71 | U88: 12685741.84 | V88: 13123578.58 | W88: 13565657.57 | X88: 14012033.5 | Y88: 14462764.43 | Z88: 11144594.33 | AA88: 11547603.43 | AB88: =AB78-AB86 -> 11954288.97 | AC88: 12364697.42 | AD88: 12778874.25 | AE88: 9605093.044 | AF88: 9973072.284 | AG88: 425585097.5
A89: Income Tax Current | C89: =((C88+C84)*C$95)-C90-(C84*'Input Data'!$C$51) -> -141983.9493 | D89: =((D88+D84)*D$95)-D90-(D84*'Input Data'!$C$51) -> -48737.32485 | E89: =((E88+E84)*E$95)-E90-(E84*'Input Data'!$C$51) -> -1052360.978 | F89: =((F88+F84)*F$95)-F90-(F84*'Input Data'!$C$51) -> 2526357.402 | G89: =((G88+G84)*G$95)-G90-(G84*'Input Data'!$C$51) -> 3461546.132 | H89: =((H88+H84)*H$95)-H90-(H84*'Input Data'!$C$51) -> 3875018.193 | I89: =((I88+I84)*I$95)-I90-(I84*'Input Data'!$C$51) -> 4502506.758 | J89: =((J88+J84)*J$95)-J90-(J84*'Input Data'!$C$51) -> 5008077.116 | K89: =((K88+K84)*K$95)-K90-(K84*'Input Data'!$C$51) -> 4107841.856 | L89: =((L88+L84)*L$95)-L90-(L84*'Input Data'!$C$51) -> 4297534.579 | M89: =((M88+M84)*M$95)-M90-(M84*'Input Data'!$C$51) -> 4862345.551 | N89: =((N88+N84)*N$95)-N90-(N84*'Input Data'!$C$51) -> 5410193.188 | O89: =((O88+O84)*O$95)-O90-(O84*'Input Data'!$C$51) -> 5570214.727 | P89: =((P88+P84)*P$95)-P90-(P84*'Input Data'!$C$51) -> 3097013.032 | Q89: =((Q88+Q84)*Q$95)-Q90-(Q84*'Input Data'!$C$51) -> 3217129.516 | R89: =((R88+R84)*R$95)-R90-(R84*'Input Data'!$C$51) -> 3338147.099 | S89: =((S88+S84)*S$95)-S90-(S84*'Input Data'!$C$51) -> 3460212.019 | T89: =((T88+T84)*T$95)-T90-(T84*'Input Data'!$C$51) -> 3583522.258 | U89: =((U88+U84)*U$95)-U90-(U84*'Input Data'!$C$51) -> 2704298.614 | V89: =((V88+V84)*V$95)-V90-(V84*'Input Data'!$C$51) -> 2815092.591 | W89: =((W88+W84)*W$95)-W90-(W84*'Input Data'!$C$51) -> 2926956.496 | X89: =((X88+X84)*X$95)-X90-(X84*'Input Data'!$C$51) -> 3039904.029 | Y89: =((Y88+Y84)*Y$95)-Y90-(Y84*'Input Data'!$C$51) -> 3153949.744 | Z89: =((Z88+Z84)*Z$95)-Z90-(Z84*'Input Data'!$C$51) -> 2312761.731 | AA89: =((AA88+AA84)*AA$95)-AA90-(AA84*'Input Data'!$C$51) -> 2414700.653 | AB89: =((AB88+AB84)*AB$95)-AB90-(AB84*'Input Data'!$C$51) -> 2517565.258 | AC89: =((AC88+AC84)*AC$95)-AC90-(AC84*'Input Data'!$C$51) -> 2621367.137 | AD89: =((AD88+AD84)*AD$95)-AD90-(AD84*'Input Data'!$C$51) -> 2726117.628 | AE89: =((AE88+AE84)*AE$95)-AE90-(AE84*'Input Data'!$C$51) -> 1921493.476 | AF89: =((AF88+AF84)*AF$95)-AF90-(AF84*'Input Data'!$C$51) -> 2014521.63 | AG89: =SUM(C89:AF89) -> 90243306.16
A90: Income Tax Deferred | C90: =C23 -> 0 | D90: 0 | E90: 850736.4595 | F90: 1311704.242 | G90: 1373736.142 | H90: 781032.9671 | I90: 357673.5565 | J90: 56241.6561 | K90: 55394.93728 | L90: 56357.90192 | M90: 282737.5098 | N90: 509966.8499 | O90: 510035.0998 | P90: 510105.397 | Q90: 510177.8032 | R90: 510405.5473 | S90: 510566.3773 | T90: 510732.0321 | U90: 510902.6566 | V90: 511078.3999 | W90: 511259.4154 | X90: 511445.8614 | Y90: 511637.9008 | Z90: 511835.7014 | AA90: 512039.4359 | AB90: 512249.2825 | AC90: 512465.4245 | AD90: 512688.0508 | AE90: 512917.3559 | AF90: 513153.5401 | AG90: =SUM(C90:AF90) -> 14841277.5
A91: Income Tax - ITC Amortization | C91: =IF(C$3<=$B$4+1,C138,0) -> 0 | D91: =IF(D$3<=$B$4+1,D138,0) -> 0 | E91: 0 | F91: 0 | G91: 0 | H91: 0 | I91: 0 | J91: 0 | K91: 0 | L91: 0 | M91: 0 | N91: 0 | O91: 0 | P91: 0 | Q91: 0 | R91: 0 | S91: 0 | T91: 0 | U91: 0 | V91: 0 | W91: 0 | X91: 0 | Y91: 0 | Z91: 0 | AA91: 0 | AB91: =IF(AB$3<=$B$4+1,AB138,0) -> 0 | AC91: 0 | AD91: 0 | AE91: 0 | AF91: 0 | AG91: =SUM(C91:AF91) -> 0
A92: Net Income After Tax | C92: =C88-C89-C90-C91 -> -245693.9111 | D92: =D88-D89-D90-D91 -> 2582101.488 | E92: 5344576.275 | F92: 13437021.56 | G92: 14242572.43 | H92: 13714637.97 | I92: 14315910.89 | J92: 14917211.2 | K92: 12263027.93 | L92: 12824614.05 | M92: 15155106.57 | N92: 17438135.63 | O92: 17909688.34 | P92: 10624952.71 | Q92: 10978975.26 | R92: 11336109.6 | S92: 11696131.83 | T92: 12059836.42 | U92: 9470540.574 | V92: 9797407.589 | W92: 10127441.66 | X92: 10460683.61 | Y92: 10797176.78 | Z92: 8319996.894 | AA92: 8620863.339 | AB92: =AB88-AB89-AB90-AB91 -> 8924474.432 | AC92: 9230864.86 | AD92: 9540068.573 | AE92: 7170682.212 | AF92: 7445397.113 | AG92: 320500513.9
A93: EBITDA | C93: =+C88+C85+C84+C82 -> -2.910383046e-11 | D93: =+D88+D85+D84+D82 -> -4.656612873e-10 | E93: 0 | F93: =+F88+F85+F84+F82 -> 24749177.46 | G93: 33157988.72 | H93: 32244259.67 | I93: 32854046.88 | J93: 33471680.78 | K93: 29731867.84 | L93: 30300064.71 | M93: 30875214.57 | N93: 31433351.72 | O93: 31974582 | P93: 22126323.77 | Q93: 22510165.67 | R93: 22898860.5 | S93: 23292121.78 | T93: 23690365.14 | U93: 20133130.15 | V93: 20482133.29 | W93: 20835432.82 | X93: 21193085.06 | Y93: 21555149.68 | Z93: 18148372.46 | AA93: 18462835.33 | AB93: =+AB88+AB85+AB84+AB82 -> 18781037.42 | AC93: 19103027.02 | AD93: 19428851.57 | AE93: 16166786.64 | AF93: 16446552.78 | AG93: 656046465.4
A95: Tax Rate | C95: =IF(SUMIF('Input Data'!$C$40:$O$40,C$4,'Input Data'!$C$50:$O$50)=0,+B$95,SUMIF('Input Data'!$C$40:$O$40,C$4,'Input Data'!$C$50:$O$50)) -> 0.25345 | D95: =IF(SUMIF('Input Data'!$C$40:$O$40,D$4,'Input Data'!$C$50:$O$50)=0,+C$95,SUMIF('Input Data'!$C$40:$O$40,D$4,'Input Data'!$C$50:$O$50)) -> 0.25345 | E95: =IF(SUMIF('Input Data'!$C$40:$O$40,E$4,'Input Data'!$C$50:$O$50)=0,+D$95,SUMIF('Input Data'!$C$40:$O$40,E$4,'Input Data'!$C$50:$O$50)) -> 0.25345 | F95: =IF(SUMIF('Input Data'!$C$40:$O$40,F$4,'Input Data'!$C$50:$O$50)=0,+E$95,SUMIF('Input Data'!$C$40:$O$40,F$4,'Input Data'!$C$50:$O$50)) -> 0.25345 | G95: =IF(SUMIF('Input Data'!$C$40:$O$40,G$4,'Input Data'!$C$50:$O$50)=0,+F$95,SUMIF('Input Data'!$C$40:$O$40,G$4,'Input Data'!$C$50:$O$50)) -> 0.25345 | H95: =IF(SUMIF('Input Data'!$C$40:$O$40,H$4,'Input Data'!$C$50:$O$50)=0,+G$95,SUMIF('Input Data'!$C$40:$O$40,H$4,'Input Data'!$C$50:$O$50)) -> 0.25345 | I95: =IF(SUMIF('Input Data'!$C$40:$O$40,I$4,'Input Data'!$C$50:$O$50)=0,+H$95,SUMIF('Input Data'!$C$40:$O$40,I$4,'Input Data'!$C$50:$O$50)) -> 0.25345 | J95: =IF(SUMIF('Input Data'!$C$40:$O$40,J$4,'Input Data'!$C$50:$O$50)=0,+I$95,SUMIF('Input Data'!$C$40:$O$40,J$4,'Input Data'!$C$50:$O$50)) -> 0.25345 | K95: =IF(SUMIF('Input Data'!$C$40:$O$40,K$4,'Input Data'!$C$50:$O$50)=0,+J$95,SUMIF('Input Data'!$C$40:$O$40,K$4,'Input Data'!$C$50:$O$50)) -> 0.25345 | L95: =IF(SUMIF('Input Data'!$C$40:$O$40,L$4,'Input Data'!$C$50:$O$50)=0,+K$95,SUMIF('Input Data'!$C$40:$O$40,L$4,'Input Data'!$C$50:$O$50)) -> 0.25345 | M95: =IF(SUMIF('Input Data'!$C$40:$O$40,M$4,'Input Data'!$C$50:$O$50)=0,+L$95,SUMIF('Input Data'!$C$40:$O$40,M$4,'Input Data'!$C$50:$O$50)) -> 0.25345 | N95: =IF(SUMIF('Input Data'!$C$40:$O$40,N$4,'Input Data'!$C$50:$O$50)=0,+M$95,SUMIF('Input Data'!$C$40:$O$40,N$4,'Input Data'!$C$50:$O$50)) -> 0.25345 | O95: =IF(SUMIF('Input Data'!$C$40:$O$40,O$4,'Input Data'!$C$50:$O$50)=0,+N$95,SUMIF('Input Data'!$C$40:$O$40,O$4,'Input Data'!$C$50:$O$50)) -> 0.25345 | P95: =IF(SUMIF('Input Data'!$C$40:$O$40,P$4,'Input Data'!$C$50:$O$50)=0,+O$95,SUMIF('Input Data'!$C$40:$O$40,P$4,'Input Data'!$C$50:$O$50)) -> 0.25345 | Q95: =IF(SUMIF('Input Data'!$C$40:$O$40,Q$4,'Input Data'!$C$50:$O$50)=0,+P$95,SUMIF('Input Data'!$C$40:$O$40,Q$4,'Input Data'!$C$50:$O$50)) -> 0.25345 | R95: =IF(SUMIF('Input Data'!$C$40:$O$40,R$4,'Input Data'!$C$50:$O$50)=0,+Q$95,SUMIF('Input Data'!$C$40:$O$40,R$4,'Input Data'!$C$50:$O$50)) -> 0.25345 | S95: =IF(SUMIF('Input Data'!$C$40:$O$40,S$4,'Input Data'!$C$50:$O$50)=0,+R$95,SUMIF('Input Data'!$C$40:$O$40,S$4,'Input Data'!$C$50:$O$50)) -> 0.25345 | T95: =IF(SUMIF('Input Data'!$C$40:$O$40,T$4,'Input Data'!$C$50:$O$50)=0,+S$95,SUMIF('Input Data'!$C$40:$O$40,T$4,'Input Data'!$C$50:$O$50)) -> 0.25345 | U95: =IF(SUMIF('Input Data'!$C$40:$O$40,U$4,'Input Data'!$C$50:$O$50)=0,+T$95,SUMIF('Input Data'!$C$40:$O$40,U$4,'Input Data'!$C$50:$O$50)) -> 0.25345 | V95: =IF(SUMIF('Input Data'!$C$40:$O$40,V$4,'Input Data'!$C$50:$O$50)=0,+U$95,SUMIF('Input Data'!$C$40:$O$40,V$4,'Input Data'!$C$50:$O$50)) -> 0.25345 | W95: =IF(SUMIF('Input Data'!$C$40:$O$40,W$4,'Input Data'!$C$50:$O$50)=0,+V$95,SUMIF('Input Data'!$C$40:$O$40,W$4,'Input Data'!$C$50:$O$50)) -> 0.25345 | X95: =IF(SUMIF('Input Data'!$C$40:$O$40,X$4,'Input Data'!$C$50:$O$50)=0,+W$95,SUMIF('Input Data'!$C$40:$O$40,X$4,'Input Data'!$C$50:$O$50)) -> 0.25345 | Y95: =IF(SUMIF('Input Data'!$C$40:$O$40,Y$4,'Input Data'!$C$50:$O$50)=0,+X$95,SUMIF('Input Data'!$C$40:$O$40,Y$4,'Input Data'!$C$50:$O$50)) -> 0.25345 | Z95: =IF(SUMIF('Input Data'!$C$40:$O$40,Z$4,'Input Data'!$C$50:$O$50)=0,+Y$95,SUMIF('Input Data'!$C$40:$O$40,Z$4,'Input Data'!$C$50:$O$50)) -> 0.25345 | AA95: =IF(SUMIF('Input Data'!$C$40:$O$40,AA$4,'Input Data'!$C$50:$O$50)=0,+Z$95,SUMIF('Input Data'!$C$40:$O$40,AA$4,'Input Data'!$C$50:$O$50)) -> 0.25345 | AB95: =IF(SUMIF('Input Data'!$C$40:$O$40,AB$4,'Input Data'!$C$50:$O$50)=0,+AA$95,SUMIF('Input Data'!$C$40:$O$40,AB$4,'Input Data'!$C$50:$O$50)) -> 0.25345 | AC95: =IF(SUMIF('Input Data'!$C$40:$O$40,AC$4,'Input Data'!$C$50:$O$50)=0,+AB$95,SUMIF('Input Data'!$C$40:$O$40,AC$4,'Input Data'!$C$50:$O$50)) -> 0.25345 | AD95: =IF(SUMIF('Input Data'!$C$40:$O$40,AD$4,'Input Data'!$C$50:$O$50)=0,+AC$95,SUMIF('Input Data'!$C$40:$O$40,AD$4,'Input Data'!$C$50:$O$50)) -> 0.25345 | AE95: =IF(SUMIF('Input Data'!$C$40:$O$40,AE$4,'Input Data'!$C$50:$O$50)=0,+AD$95,SUMIF('Input Data'!$C$40:$O$40,AE$4,'Input Data'!$C$50:$O$50)) -> 0.25345 | AF95: =IF(SUMIF('Input Data'!$C$40:$O$40,AF$4,'Input Data'!$C$50:$O$50)=0,+AE$95,SUMIF('Input Data'!$C$40:$O$40,AF$4,'Input Data'!$C$50:$O$50)) -> 0.25345
A97: Deferred Tax
A98: Book Depreciation | C98: =IF(C4>'Input Data'!$C$15+'Input Data'!$C$19,0,Book!C369) -> 0 | D98: =IF(D4>'Input Data'!$C$15+'Input Data'!$C$19,0,Book!D369) -> 0 | E98: =IF(E4>'Input Data'!$C$15+'Input Data'!$C$19,0,Book!E369) -> 0 | F98: =IF(F4>'Input Data'!$C$15+'Input Data'!$C$19,0,Book!F369) -> 5344643.899 | G98: =IF(G4>'Input Data'!$C$15+'Input Data'!$C$19,0,Book!G369) -> 8507481.923 | H98: =IF(H4>'Input Data'!$C$15+'Input Data'!$C$19,0,Book!H369) -> 8507481.923 | I98: =IF(I4>'Input Data'!$C$15+'Input Data'!$C$19,0,Book!I369) -> 8507481.923 | J98: =IF(J4>'Input Data'!$C$15+'Input Data'!$C$19,0,Book!J369) -> 8507481.923 | K98: =IF(K4>'Input Data'!$C$15+'Input Data'!$C$19,0,Book!K369) -> 8507481.923 | L98: =IF(L4>'Input Data'!$C$15+'Input Data'!$C$19,0,Book!L369) -> 8507702.757 | M98: =IF(M4>'Input Data'!$C$15+'Input Data'!$C$19,0,Book!M369) -> 6121884.889 | N98: =IF(N4>'Input Data'!$C$15+'Input Data'!$C$19,0,Book!N369) -> 3736082.561 | O98: =IF(O4>'Input Data'!$C$15+'Input Data'!$C$19,0,Book!O369) -> 3736562.398 | P98: =IF(P4>'Input Data'!$C$15+'Input Data'!$C$19,0,Book!P369) -> 3737056.63 | Q98: =IF(Q4>'Input Data'!$C$15+'Input Data'!$C$19,0,Book!Q369) -> 3737565.688 | R98: =IF(R4>'Input Data'!$C$15+'Input Data'!$C$19,0,Book!R369) -> 3738380.989 | S98: =IF(S4>'Input Data'!$C$15+'Input Data'!$C$19,0,Book!S369) -> 3739511.719 | T98: =IF(T4>'Input Data'!$C$15+'Input Data'!$C$19,0,Book!T369) -> 3740676.371 | U98: =IF(U4>'Input Data'!$C$15+'Input Data'!$C$19,0,Book!U369) -> 3741875.963 | V98: =IF(V4>'Input Data'!$C$15+'Input Data'!$C$19,0,Book!V369) -> 3743111.542 | W98: =IF(W4>'Input Data'!$C$15+'Input Data'!$C$19,0,Book!W369) -> 3744384.189 | X98: =IF(X4>'Input Data'!$C$15+'Input Data'!$C$19,0,Book!X369) -> 3745695.015 | Y98: =IF(Y4>'Input Data'!$C$15+'Input Data'!$C$19,0,Book!Y369) -> 3747045.166 | Z98: =IF(Z4>'Input Data'!$C$15+'Input Data'!$C$19,0,Book!Z369) -> 3748435.822 | AA98: =IF(AA4>'Input Data'!$C$15+'Input Data'!$C$19,0,Book!AA369) -> 3749868.197 | AB98: =IF(AB4>'Input Data'!$C$15+'Input Data'!$C$19,0,Book!AB369) -> 3751343.543 | AC98: =IF(AC4>'Input Data'!$C$15+'Input Data'!$C$19,0,Book!AC369) -> 3752863.15 | AD98: =IF(AD4>'Input Data'!$C$15+'Input Data'!$C$19,0,Book!AD369) -> 3754428.345 | AE98: =IF(AE4>'Input Data'!$C$15+'Input Data'!$C$19,0,Book!AE369) -> 3756040.496 | AF98: =IF(AF4>'Input Data'!$C$15+'Input Data'!$C$19,0,Book!AF369) -> 3757701.011
A99: Tax Depreciation | C99: =IF(C4>'Input Data'!$C$15+'Input Data'!$C$19,0,Tax!C388) -> 0 | D99: =IF(D4>'Input Data'!$C$15+'Input Data'!$C$19,0,Tax!D388) -> 0 | E99: =IF(E4>'Input Data'!$C$15+'Input Data'!$C$19,0,Tax!E388) -> 3356624.421 | F99: =IF(F4>'Input Data'!$C$15+'Input Data'!$C$19,0,Tax!F388) -> 10520040.39 | G99: =IF(G4>'Input Data'!$C$15+'Input Data'!$C$19,0,Tax!G388) -> 13927628.47 | H99: =IF(H4>'Input Data'!$C$15+'Input Data'!$C$19,0,Tax!H388) -> 11589087.63 | I99: =IF(I4>'Input Data'!$C$15+'Input Data'!$C$19,0,Tax!I388) -> 9918701.321 | J99: =IF(J4>'Input Data'!$C$15+'Input Data'!$C$19,0,Tax!J388) -> 8729386.268 | K99: =IF(K4>'Input Data'!$C$15+'Input Data'!$C$19,0,Tax!K388) -> 8726045.495 | L99: =IF(L4>'Input Data'!$C$15+'Input Data'!$C$19,0,Tax!L388) -> 8730065.755 | M99: =IF(M4>'Input Data'!$C$15+'Input Data'!$C$19,0,Tax!M388) -> 7237440.264 | N99: =IF(N4>'Input Data'!$C$15+'Input Data'!$C$19,0,Tax!N388) -> 5748182.975 | O99: =IF(O4>'Input Data'!$C$15+'Input Data'!$C$19,0,Tax!O388) -> 5748932.095 | P99: =IF(P4>'Input Data'!$C$15+'Input Data'!$C$19,0,Tax!P388) -> 5749703.688 | Q99: =IF(Q4>'Input Data'!$C$15+'Input Data'!$C$19,0,Tax!Q388) -> 5750498.429 | R99: =IF(R4>'Input Data'!$C$15+'Input Data'!$C$19,0,Tax!R388) -> 5752212.306 | S99: =IF(S4>'Input Data'!$C$15+'Input Data'!$C$19,0,Tax!S388) -> 5753977.599 | T99: =IF(T4>'Input Data'!$C$15+'Input Data'!$C$19,0,Tax!T388) -> 5755795.851 | U99: =IF(U4>'Input Data'!$C$15+'Input Data'!$C$19,0,Tax!U388) -> 5757668.65 | V99: =IF(V4>'Input Data'!$C$15+'Input Data'!$C$19,0,Tax!V388) -> 5759597.634 | W99: =IF(W4>'Input Data'!$C$15+'Input Data'!$C$19,0,Tax!W388) -> 5761584.487 | X99: =IF(X4>'Input Data'!$C$15+'Input Data'!$C$19,0,Tax!X388) -> 5763630.945 | Y99: =IF(Y4>'Input Data'!$C$15+'Input Data'!$C$19,0,Tax!Y388) -> 5765738.797 | Z99: =IF(Z4>'Input Data'!$C$15+'Input Data'!$C$19,0,Tax!Z388) -> 5767909.885 | AA99: =IF(AA4>'Input Data'!$C$15+'Input Data'!$C$19,0,Tax!AA388) -> 5770146.105 | AB99: =IF(AB4>'Input Data'!$C$15+'Input Data'!$C$19,0,Tax!AB388) -> 5772449.412 | AC99: =IF(AC4>'Input Data'!$C$15+'Input Data'!$C$19,0,Tax!AC388) -> 5774821.818 | AD99: =IF(AD4>'Input Data'!$C$15+'Input Data'!$C$19,0,Tax!AD388) -> 5777265.397 | AE99: =IF(AE4>'Input Data'!$C$15+'Input Data'!$C$19,0,Tax!AE388) -> 5779782.283 | AF99: =IF(AF4>'Input Data'!$C$15+'Input Data'!$C$19,0,Tax!AF388) -> 5782374.675
A100: Difference | C100: =C99-C98 -> 0 | D100: =D99-D98 -> 0 | E100: 3356624.421 | F100: 5175396.495 | G100: 5420146.545 | H100: 3081605.709 | I100: 1411219.398 | J100: 221904.3444 | K100: 218563.5718 | L100: 222362.9983 | M100: 1115555.375 | N100: 2012100.414 | O100: 2012369.697 | P100: 2012647.059 | Q100: 2012932.741 | R100: 2013831.317 | S100: 2014465.88 | T100: 2015119.48 | U100: 2015792.687 | V100: 2016486.091 | W100: =W99-W98 -> 2017200.297 | X100: =X99-X98 -> 2017935.93 | Y100: =Y99-Y98 -> 2018693.631 | Z100: =Z99-Z98 -> 2019474.063 | AA100: =AA99-AA98 -> 2020277.908 | AB100: =AB99-AB98 -> 2021105.869 | AC100: 2021958.668 | AD100: 2022837.052 | AE100: 2023741.787 | AF100: 2024673.664
A101: Perm Basis Difference | C101: =IF(C4>'Input Data'!$C$15+'Input Data'!$C$19,0,Tax!C444) -> 0 | D101: =IF(D4>'Input Data'!$C$15+'Input Data'!$C$19,0,Tax!D444) -> 0 | E101: =IF(E4>'Input Data'!$C$15+'Input Data'!$C$19,0,Tax!E444) -> 0 | F101: =IF(F4>'Input Data'!$C$15+'Input Data'!$C$19,0,Tax!F444) -> 0 | G101: =IF(G4>'Input Data'!$C$15+'Input Data'!$C$19,0,Tax!G444) -> 0 | H101: =IF(H4>'Input Data'!$C$15+'Input Data'!$C$19,0,Tax!H444) -> 0 | I101: =IF(I4>'Input Data'!$C$15+'Input Data'!$C$19,0,Tax!I444) -> 0 | J101: =IF(J4>'Input Data'!$C$15+'Input Data'!$C$19,0,Tax!J444) -> 0 | K101: =IF(K4>'Input Data'!$C$15+'Input Data'!$C$19,0,Tax!K444) -> 0 | L101: =IF(L4>'Input Data'!$C$15+'Input Data'!$C$19,0,Tax!L444) -> 0 | M101: =IF(M4>'Input Data'!$C$15+'Input Data'!$C$19,0,Tax!M444) -> 0 | N101: =IF(N4>'Input Data'!$C$15+'Input Data'!$C$19,0,Tax!N444) -> 0 | O101: =IF(O4>'Input Data'!$C$15+'Input Data'!$C$19,0,Tax!O444) -> 0 | P101: =IF(P4>'Input Data'!$C$15+'Input Data'!$C$19,0,Tax!P444) -> 0 | Q101: =IF(Q4>'Input Data'!$C$15+'Input Data'!$C$19,0,Tax!Q444) -> 0 | R101: =IF(R4>'Input Data'!$C$15+'Input Data'!$C$19,0,Tax!R444) -> 0 | S101: =IF(S4>'Input Data'!$C$15+'Input Data'!$C$19,0,Tax!S444) -> 0 | T101: =IF(T4>'Input Data'!$C$15+'Input Data'!$C$19,0,Tax!T444) -> 0 | U101: =IF(U4>'Input Data'!$C$15+'Input Data'!$C$19,0,Tax!U444) -> 0 | V101: =IF(V4>'Input Data'!$C$15+'Input Data'!$C$19,0,Tax!V444) -> 0 | W101: =IF(W4>'Input Data'!$C$15+'Input Data'!$C$19,0,Tax!W444) -> 0 | X101: =IF(X4>'Input Data'!$C$15+'Input Data'!$C$19,0,Tax!X444) -> 0 | Y101: =IF(Y4>'Input Data'!$C$15+'Input Data'!$C$19,0,Tax!Y444) -> 0 | Z101: =IF(Z4>'Input Data'!$C$15+'Input Data'!$C$19,0,Tax!Z444) -> 0 | AA101: =IF(AA4>'Input Data'!$C$15+'Input Data'!$C$19,0,Tax!AA444) -> 0 | AB101: =IF(AB4>'Input Data'!$C$15+'Input Data'!$C$19,0,Tax!AB444) -> 0 | AC101: =IF(AC4>'Input Data'!$C$15+'Input Data'!$C$19,0,Tax!AC444) -> 0 | AD101: =IF(AD4>'Input Data'!$C$15+'Input Data'!$C$19,0,Tax!AD444) -> 0 | AE101: =IF(AE4>'Input Data'!$C$15+'Input Data'!$C$19,0,Tax!AE444) -> 0 | AF101: =IF(AF4>'Input Data'!$C$15+'Input Data'!$C$19,0,Tax!AF444) -> 0
A102: Differences - Total | C102: =C100+C101 -> 0 | D102: =D100+D101 -> 0 | E102: 3356624.421 | F102: 5175396.495 | G102: 5420146.545 | H102: 3081605.709 | I102: 1411219.398 | J102: 221904.3444 | K102: 218563.5718 | L102: 222362.9983 | M102: 1115555.375 | N102: 2012100.414 | O102: 2012369.697 | P102: 2012647.059 | Q102: 2012932.741 | R102: 2013831.317 | S102: 2014465.88 | T102: 2015119.48 | U102: 2015792.687 | V102: 2016486.091 | W102: =W100+W101 -> 2017200.297 | X102: =X100+X101 -> 2017935.93 | Y102: =Y100+Y101 -> 2018693.631 | Z102: =Z100+Z101 -> 2019474.063 | AA102: =AA100+AA101 -> 2020277.908 | AB102: =AB100+AB101 -> 2021105.869 | AC102: 2021958.668 | AD102: 2022837.052 | AE102: 2023741.787 | AF102: 2024673.664
A103: Deferred Tax Expense | C103: =C102*C$95 -> 0 | D103: =D102*D$95 -> 0 | E103: 850736.4595 | F103: 1311704.242 | G103: 1373736.142 | H103: 781032.9671 | I103: 357673.5565 | J103: 56241.6561 | K103: 55394.93728 | L103: 56357.90192 | M103: 282737.5098 | N103: 509966.8499 | O103: 510035.0998 | P103: 510105.397 | Q103: 510177.8032 | R103: 510405.5473 | S103: 510566.3773 | T103: 510732.0321 | U103: 510902.6566 | V103: 511078.3999 | W103: 511259.4154 | X103: 511445.8614 | Y103: 511637.9008 | Z103: 511835.7014 | AA103: 512039.4359 | AB103: =AB102*AB$95 -> 512249.2825 | AC103: 512465.4245 | AD103: 512688.0508 | AE103: 512917.3559 | AF103: 513153.5401
A104: Cumulative | C104: =+C103 -> 0 | D104: =+C104+D103+SUM($C$102:C102)*(D95-C95) -> 0 | E104: =+D104+E103+SUM($C$102:D102)*(E95-D95) -> 850736.4595 | F104: =+E104+F103+SUM($C$102:E102)*(F95-E95) -> 2162440.701 | G104: =+F104+G103+SUM($C$102:F102)*(G95-F95) -> 3536176.843 | H104: =+G104+H103+SUM($C$102:G102)*(H95-G95) -> 4317209.81 | I104: =+H104+I103+SUM($C$102:H102)*(I95-H95) -> 4674883.367 | J104: =+I104+J103+SUM($C$102:I102)*(J95-I95) -> 4731125.023 | K104: =+J104+K103+SUM($C$102:J102)*(K95-J95) -> 4786519.96 | L104: =+K104+L103+SUM($C$102:K102)*(L95-K95) -> 4842877.862 | M104: =+L104+M103+SUM($C$102:L102)*(M95-L95) -> 5125615.372 | N104: =+M104+N103+SUM($C$102:M102)*(N95-M95) -> 5635582.222 | O104: =+N104+O103+SUM($C$102:N102)*(O95-N95) -> 6145617.321 | P104: =+O104+P103+SUM($C$102:O102)*(P95-O95) -> 6655722.718 | Q104: =+P104+Q103+SUM($C$102:P102)*(Q95-P95) -> 7165900.522 | R104: =+Q104+R103+SUM($C$102:Q102)*(R95-Q95) -> 7676306.069 | S104: =+R104+S103+SUM($C$102:R102)*(S95-R95) -> 8186872.446 | T104: =+S104+T103+SUM($C$102:S102)*(T95-S95) -> 8697604.478 | U104: =+T104+U103+SUM($C$102:T102)*(U95-T95) -> 9208507.135 | V104: =+U104+V103+SUM($C$102:U102)*(V95-U95) -> 9719585.535 | W104: =+V104+W103+SUM($C$102:V102)*(W95-V95) -> 10230844.95 | X104: =+W104+X103+SUM($C$102:W102)*(X95-W95) -> 10742290.81 | Y104: =+X104+Y103+SUM($C$102:X102)*(Y95-X95) -> 11253928.71 | Z104: =+Y104+Z103+SUM($C$102:Y102)*(Z95-Y95) -> 11765764.41 | AA104: =+Z104+AA103+SUM($C$102:Z102)*(AA95-Z95) -> 12277803.85 | AB104: =+AA104+AB103+SUM($C$102:AA102)*(AB95-AA95) -> 12790053.13 | AC104: =+AB104+AC103+SUM($C$102:AB102)*(AC95-AB95) -> 13302518.56 | AD104: =+AC104+AD103+SUM($C$102:AC102)*(AD95-AC95) -> 13815206.61 | AE104: =+AD104+AE103+SUM($C$102:AD102)*(AE95-AD95) -> 14328123.96 | AF104: =+AE104+AF103+SUM($C$102:AE102)*(AF95-AE95) -> 14841277.5
A107: BALANCE SHEET
A108: ASSETS
A109: Fixed Assets:
A110: Gross Plant
A111: Beginning Balance | D111: =IF(D4>'Input Data'!$C$15+'Input Data'!$C$19,0,C113) -> 0 | E111: =IF(E4>'Input Data'!$C$15+'Input Data'!$C$19,0,D113) -> 0 | F111: =IF(F4>'Input Data'!$C$15+'Input Data'!$C$19,0,E113) -> 144431088.9 | G111: =IF(G4>'Input Data'!$C$15+'Input Data'!$C$19,0,F113) -> 271027439 | H111: =IF(H4>'Input Data'!$C$15+'Input Data'!$C$19,0,G113) -> 271027439 | I111: =IF(I4>'Input Data'!$C$15+'Input Data'!$C$19,0,H113) -> 271027439 | J111: =IF(J4>'Input Data'!$C$15+'Input Data'!$C$19,0,I113) -> 271027439 | K111: =IF(K4>'Input Data'!$C$15+'Input Data'!$C$19,0,J113) -> 271027439 | L111: =IF(L4>'Input Data'!$C$15+'Input Data'!$C$19,0,K113) -> 271027439 | M111: =IF(M4>'Input Data'!$C$15+'Input Data'!$C$19,0,L113) -> 271053939 | N111: =IF(N4>'Input Data'!$C$15+'Input Data'!$C$19,0,M113) -> 271081234 | O111: =IF(O4>'Input Data'!$C$15+'Input Data'!$C$19,0,N113) -> 271109598.8 | P111: =IF(P4>'Input Data'!$C$15+'Input Data'!$C$19,0,O113) -> 271138814.4 | Q111: =IF(Q4>'Input Data'!$C$15+'Input Data'!$C$19,0,P113) -> 271168906.6 | R111: =IF(R4>'Input Data'!$C$15+'Input Data'!$C$19,0,Q113) -> 271199901.5 | S111: =IF(S4>'Input Data'!$C$15+'Input Data'!$C$19,0,R113) -> 271266742.7 | T111: =IF(T4>'Input Data'!$C$15+'Input Data'!$C$19,0,S113) -> 271335589.1 | U111: =IF(U4>'Input Data'!$C$15+'Input Data'!$C$19,0,T113) -> 271406500.9 | V111: =IF(V4>'Input Data'!$C$15+'Input Data'!$C$19,0,U113) -> 271479540.1 | W111: =IF(W4>'Input Data'!$C$15+'Input Data'!$C$19,0,V113) -> 271554770.4 | X111: =IF(X4>'Input Data'!$C$15+'Input Data'!$C$19,0,W113) -> 271632257.7 | Y111: =IF(Y4>'Input Data'!$C$15+'Input Data'!$C$19,0,X113) -> 271712069.6 | Z111: =IF(Z4>'Input Data'!$C$15+'Input Data'!$C$19,0,Y113) -> 271794275.8 | AA111: =IF(AA4>'Input Data'!$C$15+'Input Data'!$C$19,0,Z113) -> 271878948.3 | AB111: =IF(AB4>'Input Data'!$C$15+'Input Data'!$C$19,0,AA113) -> 271966160.8 | AC111: =IF(AC4>'Input Data'!$C$15+'Input Data'!$C$19,0,AB113) -> 272055989.8 | AD111: =IF(AD4>'Input Data'!$C$15+'Input Data'!$C$19,0,AC113) -> 272148513.7 | AE111: =IF(AE4>'Input Data'!$C$15+'Input Data'!$C$19,0,AD113) -> 272243813.2 | AF111: =IF(AF4>'Input Data'!$C$15+'Input Data'!$C$19,0,AE113) -> 272341971.8
A112: Additions | C112: =+Book!C366 -> 0 | D112: =+Book!D366 -> 0 | E112: =+Book!E366 -> 144431088.9 | F112: =+Book!F366 -> 126596350.1 | G112: =+Book!G366 -> 0 | H112: =+Book!H366 -> 0 | I112: =+Book!I366 -> 0 | J112: =+Book!J366 -> 0 | K112: =+Book!K366 -> 0 | L112: =+Book!L366 -> 26500 | M112: =+Book!M366 -> 27295 | N112: =+Book!N366 -> 28364.72309 | O112: =+Book!O366 -> 29215.67182 | P112: =+Book!P366 -> 30092.13764 | Q112: =+Book!Q366 -> 30994.90109 | R112: =+Book!R366 -> 66841.19091 | S112: =+Book!S366 -> 68846.43145 | T112: =+Book!T366 -> 70911.82218 | U112: =+Book!U366 -> 73039.17473 | V112: =+Book!V366 -> 75230.34891 | W112: =+Book!W366 -> 77487.26236 | X112: =+Book!X366 -> 79811.88091 | Y112: =+Book!Y366 -> 82206.23782 | Z112: =+Book!Z366 -> 84672.42418 | AA112: =+Book!AA366 -> 87212.58891 | AB112: =+Book!AB366 -> 89828.96764 | AC112: =+Book!AC366 -> 92523.84418 | AD112: =+Book!AD366 -> 95299.56018 | AE112: =+Book!AE366 -> 98158.544 | AF112: =+Book!AF366 -> 101103.3011
A113: Total Plant | C113: =SUM(C111:C112) -> 0 | D113: 0 | E113: 144431088.9 | F113: 271027439 | G113: 271027439 | H113: 271027439 | I113: 271027439 | J113: 271027439 | K113: 271027439 | L113: 271053939 | M113: 271081234 | N113: 271109598.8 | O113: 271138814.4 | P113: 271168906.6 | Q113: 271199901.5 | R113: 271266742.7 | S113: 271335589.1 | T113: 271406500.9 | U113: 271479540.1 | V113: 271554770.4 | W113: =SUM(W111:W112) -> 271632257.7 | X113: =SUM(X111:X112) -> 271712069.6 | Y113: =SUM(Y111:Y112) -> 271794275.8 | Z113: =SUM(Z111:Z112) -> 271878948.3 | AA113: =SUM(AA111:AA112) -> 271966160.8 | AB113: =SUM(AB111:AB112) -> 272055989.8 | AC113: 272148513.7 | AD113: 272243813.2 | AE113: 272341971.8 | AF113: 272443075.1
A114: Accumulated Depreciation
A115: Beginning Balance | D115: =IF(D4>'Input Data'!$C$15+'Input Data'!$C$19,0,C117) -> 0 | E115: =IF(E4>'Input Data'!$C$15+'Input Data'!$C$19,0,D117) -> 0 | F115: =IF(F4>'Input Data'!$C$15+'Input Data'!$C$19,0,E117) -> 0 | G115: =IF(G4>'Input Data'!$C$15+'Input Data'!$C$19,0,F117) -> 5344643.899 | H115: =IF(H4>'Input Data'!$C$15+'Input Data'!$C$19,0,G117) -> 13852125.82 | I115: =IF(I4>'Input Data'!$C$15+'Input Data'!$C$19,0,H117) -> 22359607.75 | J115: =IF(J4>'Input Data'!$C$15+'Input Data'!$C$19,0,I117) -> 30867089.67 | K115: =IF(K4>'Input Data'!$C$15+'Input Data'!$C$19,0,J117) -> 39374571.59 | L115: =IF(L4>'Input Data'!$C$15+'Input Data'!$C$19,0,K117) -> 47882053.52 | M115: =IF(M4>'Input Data'!$C$15+'Input Data'!$C$19,0,L117) -> 56389756.27 | N115: =IF(N4>'Input Data'!$C$15+'Input Data'!$C$19,0,M117) -> 62511641.16 | O115: =IF(O4>'Input Data'!$C$15+'Input Data'!$C$19,0,N117) -> 66247723.72 | P115: =IF(P4>'Input Data'!$C$15+'Input Data'!$C$19,0,O117) -> 69984286.12 | Q115: =IF(Q4>'Input Data'!$C$15+'Input Data'!$C$19,0,P117) -> 73721342.75 | R115: =IF(R4>'Input Data'!$C$15+'Input Data'!$C$19,0,Q117) -> 77458908.44 | S115: =IF(S4>'Input Data'!$C$15+'Input Data'!$C$19,0,R117) -> 81197289.43 | T115: =IF(T4>'Input Data'!$C$15+'Input Data'!$C$19,0,S117) -> 84936801.15 | U115: =IF(U4>'Input Data'!$C$15+'Input Data'!$C$19,0,T117) -> 88677477.52 | V115: =IF(V4>'Input Data'!$C$15+'Input Data'!$C$19,0,U117) -> 92419353.48 | W115: =IF(W4>'Input Data'!$C$15+'Input Data'!$C$19,0,V117) -> 96162465.02 | X115: =IF(X4>'Input Data'!$C$15+'Input Data'!$C$19,0,W117) -> 99906849.21 | Y115: =IF(Y4>'Input Data'!$C$15+'Input Data'!$C$19,0,X117) -> 103652544.2 | Z115: =IF(Z4>'Input Data'!$C$15+'Input Data'!$C$19,0,Y117) -> 107399589.4 | AA115: =IF(AA4>'Input Data'!$C$15+'Input Data'!$C$19,0,Z117) -> 111148025.2 | AB115: =IF(AB4>'Input Data'!$C$15+'Input Data'!$C$19,0,AA117) -> 114897893.4 | AC115: =IF(AC4>'Input Data'!$C$15+'Input Data'!$C$19,0,AB117) -> 118649237 | AD115: =IF(AD4>'Input Data'!$C$15+'Input Data'!$C$19,0,AC117) -> 122402100.1 | AE115: =IF(AE4>'Input Data'!$C$15+'Input Data'!$C$19,0,AD117) -> 126156528.5 | AF115: =IF(AF4>'Input Data'!$C$15+'Input Data'!$C$19,0,AE117) -> 129912568.9
A116: Depreciation Expense | C116: =IF(C4>'Input Data'!$C$15+'Input Data'!$C$19,0,+Book!C369) -> 0 | D116: =IF(D4>'Input Data'!$C$15+'Input Data'!$C$19,0,+Book!D369) -> 0 | E116: =IF(E4>'Input Data'!$C$15+'Input Data'!$C$19,0,+Book!E369) -> 0 | F116: =IF(F4>'Input Data'!$C$15+'Input Data'!$C$19,0,+Book!F369) -> 5344643.899 | G116: =IF(G4>'Input Data'!$C$15+'Input Data'!$C$19,0,+Book!G369) -> 8507481.923 | H116: =IF(H4>'Input Data'!$C$15+'Input Data'!$C$19,0,+Book!H369) -> 8507481.923 | I116: =IF(I4>'Input Data'!$C$15+'Input Data'!$C$19,0,+Book!I369) -> 8507481.923 | J116: =IF(J4>'Input Data'!$C$15+'Input Data'!$C$19,0,+Book!J369) -> 8507481.923 | K116: =IF(K4>'Input Data'!$C$15+'Input Data'!$C$19,0,+Book!K369) -> 8507481.923 | L116: =IF(L4>'Input Data'!$C$15+'Input Data'!$C$19,0,+Book!L369) -> 8507702.757 | M116: =IF(M4>'Input Data'!$C$15+'Input Data'!$C$19,0,+Book!M369) -> 6121884.889 | N116: =IF(N4>'Input Data'!$C$15+'Input Data'!$C$19,0,+Book!N369) -> 3736082.561 | O116: =IF(O4>'Input Data'!$C$15+'Input Data'!$C$19,0,+Book!O369) -> 3736562.398 | P116: =IF(P4>'Input Data'!$C$15+'Input Data'!$C$19,0,+Book!P369) -> 3737056.63 | Q116: =IF(Q4>'Input Data'!$C$15+'Input Data'!$C$19,0,+Book!Q369) -> 3737565.688 | R116: =IF(R4>'Input Data'!$C$15+'Input Data'!$C$19,0,+Book!R369) -> 3738380.989 | S116: =IF(S4>'Input Data'!$C$15+'Input Data'!$C$19,0,+Book!S369) -> 3739511.719 | T116: =IF(T4>'Input Data'!$C$15+'Input Data'!$C$19,0,+Book!T369) -> 3740676.371 | U116: =IF(U4>'Input Data'!$C$15+'Input Data'!$C$19,0,+Book!U369) -> 3741875.963 | V116: =IF(V4>'Input Data'!$C$15+'Input Data'!$C$19,0,+Book!V369) -> 3743111.542 | W116: =IF(W4>'Input Data'!$C$15+'Input Data'!$C$19,0,+Book!W369) -> 3744384.189 | X116: =IF(X4>'Input Data'!$C$15+'Input Data'!$C$19,0,+Book!X369) -> 3745695.015 | Y116: =IF(Y4>'Input Data'!$C$15+'Input Data'!$C$19,0,+Book!Y369) -> 3747045.166 | Z116: =IF(Z4>'Input Data'!$C$15+'Input Data'!$C$19,0,+Book!Z369) -> 3748435.822 | AA116: =IF(AA4>'Input Data'!$C$15+'Input Data'!$C$19,0,+Book!AA369) -> 3749868.197 | AB116: =IF(AB4>'Input Data'!$C$15+'Input Data'!$C$19,0,+Book!AB369) -> 3751343.543 | AC116: =IF(AC4>'Input Data'!$C$15+'Input Data'!$C$19,0,+Book!AC369) -> 3752863.15 | AD116: =IF(AD4>'Input Data'!$C$15+'Input Data'!$C$19,0,+Book!AD369) -> 3754428.345 | AE116: =IF(AE4>'Input Data'!$C$15+'Input Data'!$C$19,0,+Book!AE369) -> 3756040.496 | AF116: =IF(AF4>'Input Data'!$C$15+'Input Data'!$C$19,0,+Book!AF369) -> 3757701.011
A117: Total Accum. Depreciation | C117: =SUM(C115:C116) -> 0 | D117: 0 | E117: 0 | F117: 5344643.899 | G117: 13852125.82 | H117: 22359607.75 | I117: 30867089.67 | J117: 39374571.59 | K117: 47882053.52 | L117: 56389756.27 | M117: 62511641.16 | N117: 66247723.72 | O117: 69984286.12 | P117: 73721342.75 | Q117: 77458908.44 | R117: 81197289.43 | S117: 84936801.15 | T117: 88677477.52 | U117: 92419353.48 | V117: 96162465.02 | W117: =SUM(W115:W116) -> 99906849.21 | X117: =SUM(X115:X116) -> 103652544.2 | Y117: =SUM(Y115:Y116) -> 107399589.4 | Z117: =SUM(Z115:Z116) -> 111148025.2 | AA117: =SUM(AA115:AA116) -> 114897893.4 | AB117: =SUM(AB115:AB116) -> 118649237 | AC117: 122402100.1 | AD117: 126156528.5 | AE117: 129912568.9 | AF117: 133670270
A118: CWIP | C118: =+Capex!G43 -> 29686757.22 | D118: =+Capex!H43 -> 104826378.9 | E118: =+Capex!I43 -> 79606764.01 | F118: =+Capex!J43 -> 0 | G118: =+Capex!K43 -> 0 | H118: =+Capex!L43 -> 0 | I118: =+Capex!M43 -> 0 | J118: =+Capex!N43 -> 0 | K118: =+Capex!O43 -> 0 | L118: =+Capex!P43 -> 0 | M118: =+Capex!Q43 -> 0 | N118: =+Capex!R43 -> 0 | O118: =+Capex!S43 -> 0 | P118: =+Capex!T43 -> 0 | Q118: =+Capex!U43 -> 0 | R118: =+Capex!V43 -> 0 | S118: =+Capex!W43 -> 0 | T118: =+Capex!X43 -> 0 | U118: =+Capex!Y43 -> 0 | V118: =+Capex!Z43 -> 0 | W118: =+Capex!AA43 -> 0 | X118: =+Capex!AB43 -> 0 | Y118: =+Capex!AC43 -> 0 | Z118: =+Capex!AD43 -> 0 | AA118: =+Capex!AE43 -> 0 | AB118: =+Capex!AF43 -> 0 | AC118: =+Capex!AG43 -> 0 | AD118: =+Capex!AH43 -> 0 | AE118: =+Capex!AI43 -> 0 | AF118: =+Capex!AJ43 -> 0
A119: Fixed Assets Net | C119: =C113-C117+C118 -> 29686757.22 | D119: =D113-D117+D118 -> 104826378.9 | E119: 224037852.9 | F119: 265682795.1 | G119: 257175313.2 | H119: 248667831.3 | I119: 240160349.4 | J119: 231652867.5 | K119: 223145385.5 | L119: 214664182.8 | M119: 208569592.9 | N119: 204861875 | O119: 201154528.3 | P119: 197447563.8 | Q119: 193740993 | R119: 190069453.2 | S119: 186398788 | T119: 182729023.4 | U119: 179060186.6 | V119: 175392305.4 | W119: 171725408.5 | X119: 168059525.4 | Y119: 164394686.4 | Z119: 160730923 | AA119: 157068267.4 | AB119: =AB113-AB117+AB118 -> 153406752.9 | AC119: 149746413.5 | AD119: 146087284.8 | AE119: 142429402.8 | AF119: 138772805.1
A120: Other Assets | C120: 0 | D120: 0 | E120: 0 | F120: 0 | G120: 0 | H120: 0 | I120: 0 | J120: 0 | K120: 0 | L120: 0 | M120: 0 | N120: 0 | O120: 0 | P120: 0 | Q120: 0 | R120: 0 | S120: 0 | T120: 0 | U120: 0 | V120: 0 | W120: 0 | X120: 0 | Y120: 0 | Z120: 0 | AA120: 0 | AB120: 0 | AC120: 0 | AD120: 0 | AE120: 0 | AF120: 0
A121: Total Assets | C121: =SUM(C119:C120) -> 29686757.22 | D121: 104826378.9 | E121: 224037852.9 | F121: 265682795.1 | G121: 257175313.2 | H121: 248667831.3 | I121: 240160349.4 | J121: 231652867.5 | K121: 223145385.5 | L121: 214664182.8 | M121: 208569592.9 | N121: 204861875 | O121: 201154528.3 | P121: 197447563.8 | Q121: 193740993 | R121: 190069453.2 | S121: 186398788 | T121: 182729023.4 | U121: 179060186.6 | V121: 175392305.4 | W121: =SUM(W119:W120) -> 171725408.5 | X121: =SUM(X119:X120) -> 168059525.4 | Y121: =SUM(Y119:Y120) -> 164394686.4 | Z121: =SUM(Z119:Z120) -> 160730923 | AA121: =SUM(AA119:AA120) -> 157068267.4 | AB121: =SUM(AB119:AB120) -> 153406752.9 | AC121: 149746413.5 | AD121: 146087284.8 | AE121: 142429402.8 | AF121: 138772805.1
A122: Average Assets | C122: =IF(D3<=$B$4+1,C121,0) -> 29686757.22 | D122: =IF(D3<=$B$4+1,AVERAGE(C121,D121),0) -> 67256568.08 | E122: 164432115.9 | F122: 244860324 | G122: 261429054.2 | H122: 252921572.3 | I122: 244414090.3 | J122: 235906608.4 | K122: 227399126.5 | L122: 218904784.2 | M122: 211616887.8 | N122: 206715734 | O122: 203008201.7 | P122: 199301046.1 | Q122: 195594278.4 | R122: 191905223.1 | S122: 188234120.6 | T122: 184563905.7 | U122: 180894605 | V122: 177226246 | W122: 173558857 | X122: 169892466.9 | Y122: 166227105.9 | Z122: 162562804.7 | AA122: 158899595.2 | AB122: 155237510.1 | AC122: 151576583.2 | AD122: 147916849.2 | AE122: 144258343.8 | AF122: 140601104
A124: LIABILITIES & SHAREHOLDER EQUITY
A125: Long Term Debt:
A126: Beginning Balance | D126: =IF(D$4>'Input Data'!$C$15+'Input Data'!$C$19,0,+C128) -> 13655908.32 | E126: =IF(E$4>'Input Data'!$C$15+'Input Data'!$C$19,0,+D128) -> 48220134.31 | F126: =IF(F$4>'Input Data'!$C$15+'Input Data'!$C$19,0,+E128) -> 102666073.6 | G126: =IF(G$4>'Input Data'!$C$15+'Input Data'!$C$19,0,+F128) -> 121219363 | H126: =IF(H$4>'Input Data'!$C$15+'Input Data'!$C$19,0,+G128) -> 116674002.7 | I126: =IF(I$4>'Input Data'!$C$15+'Input Data'!$C$19,0,+H128) -> 112401285.9 | J126: =IF(J$4>'Input Data'!$C$15+'Input Data'!$C$19,0,+I128) -> 108323314.4 | K126: =IF(K$4>'Input Data'!$C$15+'Input Data'!$C$19,0,+J128) -> 104384001.5 | L126: =IF(L$4>'Input Data'!$C$15+'Input Data'!$C$19,0,+K128) -> 100445078.2 | M126: =IF(M$4>'Input Data'!$C$15+'Input Data'!$C$19,0,+L128) -> 96517800.26 | N126: =IF(N$4>'Input Data'!$C$15+'Input Data'!$C$19,0,+M128) -> 93584229.66 | O126: =IF(O$4>'Input Data'!$C$15+'Input Data'!$C$19,0,+N128) -> 91644094.7 | P126: =IF(P$4>'Input Data'!$C$15+'Input Data'!$C$19,0,+O128) -> 89704099.06 | Q126: =IF(Q$4>'Input Data'!$C$15+'Input Data'!$C$19,0,+P128) -> 87764246.91 | R126: =IF(R$4>'Input Data'!$C$15+'Input Data'!$C$19,0,+Q128) -> 85824542.56 | S126: =IF(S$4>'Input Data'!$C$15+'Input Data'!$C$19,0,+R128) -> 83900847.7 | T126: =IF(T$4>'Input Data'!$C$15+'Input Data'!$C$19,0,+S128) -> 81977481.13 | U126: =IF(U$4>'Input Data'!$C$15+'Input Data'!$C$19,0,+T128) -> 80054452.71 | V126: =IF(V$4>'Input Data'!$C$15+'Input Data'!$C$19,0,+U128) -> 78131772.56 | W126: =IF(W$4>'Input Data'!$C$15+'Input Data'!$C$19,0,+V128) -> 76209451.15 | X126: =IF(X$4>'Input Data'!$C$15+'Input Data'!$C$19,0,+W128) -> 74287499.23 | Y126: =IF(Y$4>'Input Data'!$C$15+'Input Data'!$C$19,0,+X128) -> 72365927.89 | Z126: =IF(Z$4>'Input Data'!$C$15+'Input Data'!$C$19,0,+Y128) -> 70444748.55 | AA126: =IF(AA$4>'Input Data'!$C$15+'Input Data'!$C$19,0,+Z128) -> 68523972.97 | AB126: =IF(AB$4>'Input Data'!$C$15+'Input Data'!$C$19,0,+AA128) -> 66603613.25 | AC126: =IF(AC$4>'Input Data'!$C$15+'Input Data'!$C$19,0,+AB128) -> 64683681.87 | AD126: =IF(AD$4>'Input Data'!$C$15+'Input Data'!$C$19,0,+AC128) -> 62764191.7 | AE126: =IF(AE$4>'Input Data'!$C$15+'Input Data'!$C$19,0,+AD128) -> 60845155.95 | AF126: =IF(AF$4>'Input Data'!$C$15+'Input Data'!$C$19,0,+AE128) -> 58926588.27
A127: Additional Debt | C127: =(C$121-C$133-C$139)*C160 -> 13655908.32 | D127: =(D$121-D$133-D$139)*D160-D126 -> 34564225.99 | E127: =(E$121-E$133-E$139)*E160-E126 -> 54445939.27 | F127: 18553289.46 | G127: -4545360.31 | H127: -4272716.85 | I127: -4077971.521 | J127: -3939312.847 | K127: -3938923.356 | L127: -3927277.903 | M127: -2933570.604 | N127: -1940134.957 | O127: -1939995.64 | P127: -1939852.149 | Q127: -1939704.352 | R127: -1923694.859 | S127: -1923366.566 | T127: -1923028.427 | U127: -1922680.145 | V127: -1922321.413 | W127: -1921951.917 | X127: -1921571.338 | Y127: -1921179.341 | Z127: -1920775.586 | AA127: -1920359.72 | AB127: =(AB$121-AB$133-AB$139)*AB160-AB126 -> -1919931.375 | AC127: -1919490.176 | AD127: -1919035.744 | AE127: -1918567.682 | AF127: -1918085.575
A128: Total Debt | C128: =SUM(C126:C127) -> 13655908.32 | D128: 48220134.31 | E128: 102666073.6 | F128: 121219363 | G128: 116674002.7 | H128: 112401285.9 | I128: 108323314.4 | J128: 104384001.5 | K128: 100445078.2 | L128: 96517800.26 | M128: 93584229.66 | N128: 91644094.7 | O128: 89704099.06 | P128: 87764246.91 | Q128: 85824542.56 | R128: 83900847.7 | S128: 81977481.13 | T128: 80054452.71 | U128: 78131772.56 | V128: 76209451.15 | W128: =SUM(W126:W127) -> 74287499.23 | X128: =SUM(X126:X127) -> 72365927.89 | Y128: =SUM(Y126:Y127) -> 70444748.55 | Z128: =SUM(Z126:Z127) -> 68523972.97 | AA128: =SUM(AA126:AA127) -> 66603613.25 | AB128: =SUM(AB126:AB127) -> 64683681.87 | AC128: 62764191.7 | AD128: 60845155.95 | AE128: 58926588.27 | AF128: 57008502.7
A130: Accum. Deferred Income Tax:
A131: Beginning Balance | D131: =IF(D4>'Input Data'!$C$15+'Input Data'!$C$19,0,C133)+SUM($C$102:C102)*(D95-C95) -> 0 | E131: =IF(E4>'Input Data'!$C$15+'Input Data'!$C$19,0,D133)+SUM($C$102:D102)*(E95-D95) -> 0 | F131: =IF(F4>'Input Data'!$C$15+'Input Data'!$C$19,0,E133)+SUM($C$102:E102)*(F95-E95) -> 850736.4595 | G131: =IF(G4>'Input Data'!$C$15+'Input Data'!$C$19,0,F133)+SUM($C$102:F102)*(G95-F95) -> 2162440.701 | H131: =IF(H4>'Input Data'!$C$15+'Input Data'!$C$19,0,G133)+SUM($C$102:G102)*(H95-G95) -> 3536176.843 | I131: =IF(I4>'Input Data'!$C$15+'Input Data'!$C$19,0,H133)+SUM($C$102:H102)*(I95-H95) -> 4317209.81 | J131: =IF(J4>'Input Data'!$C$15+'Input Data'!$C$19,0,I133)+SUM($C$102:I102)*(J95-I95) -> 4674883.367 | K131: =IF(K4>'Input Data'!$C$15+'Input Data'!$C$19,0,J133)+SUM($C$102:J102)*(K95-J95) -> 4731125.023 | L131: =IF(L4>'Input Data'!$C$15+'Input Data'!$C$19,0,K133)+SUM($C$102:K102)*(L95-K95) -> 4786519.96 | M131: =IF(M4>'Input Data'!$C$15+'Input Data'!$C$19,0,L133)+SUM($C$102:L102)*(M95-L95) -> 4842877.862 | N131: =IF(N4>'Input Data'!$C$15+'Input Data'!$C$19,0,M133)+SUM($C$102:M102)*(N95-M95) -> 5125615.372 | O131: =IF(O4>'Input Data'!$C$15+'Input Data'!$C$19,0,N133)+SUM($C$102:N102)*(O95-N95) -> 5635582.222 | P131: =IF(P4>'Input Data'!$C$15+'Input Data'!$C$19,0,O133)+SUM($C$102:O102)*(P95-O95) -> 6145617.321 | Q131: =IF(Q4>'Input Data'!$C$15+'Input Data'!$C$19,0,P133)+SUM($C$102:P102)*(Q95-P95) -> 6655722.718 | R131: =IF(R4>'Input Data'!$C$15+'Input Data'!$C$19,0,Q133)+SUM($C$102:Q102)*(R95-Q95) -> 7165900.522 | S131: =IF(S4>'Input Data'!$C$15+'Input Data'!$C$19,0,R133)+SUM($C$102:R102)*(S95-R95) -> 7676306.069 | T131: =IF(T4>'Input Data'!$C$15+'Input Data'!$C$19,0,S133)+SUM($C$102:S102)*(T95-S95) -> 8186872.446 | U131: =IF(U4>'Input Data'!$C$15+'Input Data'!$C$19,0,T133)+SUM($C$102:T102)*(U95-T95) -> 8697604.478 | V131: =IF(V4>'Input Data'!$C$15+'Input Data'!$C$19,0,U133)+SUM($C$102:U102)*(V95-U95) -> 9208507.135 | W131: =IF(W4>'Input Data'!$C$15+'Input Data'!$C$19,0,V133)+SUM($C$102:V102)*(W95-V95) -> 9719585.535 | X131: =IF(X4>'Input Data'!$C$15+'Input Data'!$C$19,0,W133)+SUM($C$102:W102)*(X95-W95) -> 10230844.95 | Y131: =IF(Y4>'Input Data'!$C$15+'Input Data'!$C$19,0,X133)+SUM($C$102:X102)*(Y95-X95) -> 10742290.81 | Z131: =IF(Z4>'Input Data'!$C$15+'Input Data'!$C$19,0,Y133)+SUM($C$102:Y102)*(Z95-Y95) -> 11253928.71 | AA131: =IF(AA4>'Input Data'!$C$15+'Input Data'!$C$19,0,Z133)+SUM($C$102:Z102)*(AA95-Z95) -> 11765764.41 | AB131: =IF(AB4>'Input Data'!$C$15+'Input Data'!$C$19,0,AA133)+SUM($C$102:AA102)*(AB95-AA95) -> 12277803.85 | AC131: =IF(AC4>'Input Data'!$C$15+'Input Data'!$C$19,0,AB133)+SUM($C$102:AB102)*(AC95-AB95) -> 12790053.13 | AD131: =IF(AD4>'Input Data'!$C$15+'Input Data'!$C$19,0,AC133)+SUM($C$102:AC102)*(AD95-AC95) -> 13302518.56 | AE131: =IF(AE4>'Input Data'!$C$15+'Input Data'!$C$19,0,AD133)+SUM($C$102:AD102)*(AE95-AD95) -> 13815206.61 | AF131: =IF(AF4>'Input Data'!$C$15+'Input Data'!$C$19,0,AE133)+SUM($C$102:AE102)*(AF95-AE95) -> 14328123.96
A132: Deferred Income Taxes | C132: =C103 -> 0 | D132: 0 | E132: 850736.4595 | F132: 1311704.242 | G132: 1373736.142 | H132: 781032.9671 | I132: 357673.5565 | J132: 56241.6561 | K132: 55394.93728 | L132: 56357.90192 | M132: 282737.5098 | N132: 509966.8499 | O132: 510035.0998 | P132: 510105.397 | Q132: 510177.8032 | R132: 510405.5473 | S132: 510566.3773 | T132: 510732.0321 | U132: 510902.6566 | V132: 511078.3999 | W132: 511259.4154 | X132: 511445.8614 | Y132: 511637.9008 | Z132: 511835.7014 | AA132: 512039.4359 | AB132: =AB103 -> 512249.2825 | AC132: 512465.4245 | AD132: 512688.0508 | AE132: 512917.3559 | AF132: 513153.5401
A133: Total Accum. Deferred Tax | C133: =SUM(C131:C132) -> 0 | D133: 0 | E133: 850736.4595 | F133: 2162440.701 | G133: 3536176.843 | H133: 4317209.81 | I133: 4674883.367 | J133: 4731125.023 | K133: 4786519.96 | L133: 4842877.862 | M133: 5125615.372 | N133: 5635582.222 | O133: 6145617.321 | P133: 6655722.718 | Q133: 7165900.522 | R133: 7676306.069 | S133: 8186872.446 | T133: 8697604.478 | U133: 9208507.135 | V133: 9719585.535 | W133: =SUM(W131:W132) -> 10230844.95 | X133: =SUM(X131:X132) -> 10742290.81 | Y133: =SUM(Y131:Y132) -> 11253928.71 | Z133: =SUM(Z131:Z132) -> 11765764.41 | AA133: =SUM(AA131:AA132) -> 12277803.85 | AB133: =SUM(AB131:AB132) -> 12790053.13 | AC133: 13302518.56 | AD133: 13815206.61 | AE133: 14328123.96 | AF133: 14841277.5
A135: Investment Tax Credit:
A136: Beginning Balance | C136: =SUMIF(Tax!$C$2:$AF$2,Financials!C4,Tax!$C$440:$AF$440) -> 0 | D136: =IF(D$3<=$B$4+1,+C139,0) -> 0 | E136: =IF(E$3<=$B$4+1,+D139,0) -> 0 | F136: 0 | G136: 0 | H136: 0 | I136: 0 | J136: 0 | K136: 0 | L136: 0 | M136: 0 | N136: 0 | O136: 0 | P136: 0 | Q136: 0 | R136: 0 | S136: 0 | T136: 0 | U136: 0 | V136: 0 | W136: 0 | X136: 0 | Y136: 0 | Z136: 0 | AA136: 0 | AB136: =IF(AB$3<=$B$4+1,+AA139,0) -> 0 | AC136: =IF(AC$3<=$B$4+1,+AB139,0) -> 0 | AD136: =IF(AD$3<=$B$4+1,+AC139,0) -> 0 | AE136: =IF(AE$3<=$B$4+1,+AD139,0) -> 0 | AF136: =IF(AF$3<=$B$4+1,+AE139,0) -> 0
A137: Additional ITC | C137: =SUMIF(Tax!$C$2:$AF$2,Financials!C4,Tax!$C$441:$AF$441) -> 0 | D137: =SUMIF(Tax!$C$2:$AF$2,Financials!D4,Tax!$C$441:$AF$441) -> 0 | E137: =SUMIF(Tax!$C$2:$AF$2,Financials!E4,Tax!$C$441:$AF$441) -> 0 | F137: =SUMIF(Tax!$C$2:$AF$2,Financials!F4,Tax!$C$441:$AF$441) -> 0 | G137: =SUMIF(Tax!$C$2:$AF$2,Financials!G4,Tax!$C$441:$AF$441) -> 0 | H137: =SUMIF(Tax!$C$2:$AF$2,Financials!H4,Tax!$C$441:$AF$441) -> 0 | I137: =SUMIF(Tax!$C$2:$AF$2,Financials!I4,Tax!$C$441:$AF$441) -> 0 | J137: =SUMIF(Tax!$C$2:$AF$2,Financials!J4,Tax!$C$441:$AF$441) -> 0 | K137: =SUMIF(Tax!$C$2:$AF$2,Financials!K4,Tax!$C$441:$AF$441) -> 0 | L137: =SUMIF(Tax!$C$2:$AF$2,Financials!L4,Tax!$C$441:$AF$441) -> 0 | M137: =SUMIF(Tax!$C$2:$AF$2,Financials!M4,Tax!$C$441:$AF$441) -> 0 | N137: =SUMIF(Tax!$C$2:$AF$2,Financials!N4,Tax!$C$441:$AF$441) -> 0 | O137: =SUMIF(Tax!$C$2:$AF$2,Financials!O4,Tax!$C$441:$AF$441) -> 0 | P137: =SUMIF(Tax!$C$2:$AF$2,Financials!P4,Tax!$C$441:$AF$441) -> 0 | Q137: =SUMIF(Tax!$C$2:$AF$2,Financials!Q4,Tax!$C$441:$AF$441) -> 0 | R137: =SUMIF(Tax!$C$2:$AF$2,Financials!R4,Tax!$C$441:$AF$441) -> 0 | S137: =SUMIF(Tax!$C$2:$AF$2,Financials!S4,Tax!$C$441:$AF$441) -> 0 | T137: =SUMIF(Tax!$C$2:$AF$2,Financials!T4,Tax!$C$441:$AF$441) -> 0 | U137: =SUMIF(Tax!$C$2:$AF$2,Financials!U4,Tax!$C$441:$AF$441) -> 0 | V137: =SUMIF(Tax!$C$2:$AF$2,Financials!V4,Tax!$C$441:$AF$441) -> 0 | W137: =SUMIF(Tax!$C$2:$AF$2,Financials!W4,Tax!$C$441:$AF$441) -> 0 | X137: =SUMIF(Tax!$C$2:$AF$2,Financials!X4,Tax!$C$441:$AF$441) -> 0 | Y137: =SUMIF(Tax!$C$2:$AF$2,Financials!Y4,Tax!$C$441:$AF$441) -> 0 | Z137: =SUMIF(Tax!$C$2:$AF$2,Financials!Z4,Tax!$C$441:$AF$441) -> 0 | AA137: =SUMIF(Tax!$C$2:$AF$2,Financials!AA4,Tax!$C$441:$AF$441) -> 0 | AB137: =SUMIF(Tax!$C$2:$AF$2,Financials!AB4,Tax!$C$441:$AF$441) -> 0 | AC137: =SUMIF(Tax!$C$2:$AF$2,Financials!AC4,Tax!$C$441:$AF$441) -> 0 | AD137: =SUMIF(Tax!$C$2:$AF$2,Financials!AD4,Tax!$C$441:$AF$441) -> 0 | AE137: =SUMIF(Tax!$C$2:$AF$2,Financials!AE4,Tax!$C$441:$AF$441) -> 0 | AF137: =SUMIF(Tax!$C$2:$AF$2,Financials!AF4,Tax!$C$441:$AF$441) -> 0
A138: Amortization | C138: =IF(C4>'Input Data'!$C$15+'Input Data'!$C$19,0,SUMIF(Tax!$C$2:$AF$2,C$4,Tax!$C$442:$AF$442)) -> 0 | D138: =IF(D4>'Input Data'!$C$15+'Input Data'!$C$19,0,SUMIF(Tax!$C$2:$AF$2,D$4,Tax!$C$442:$AF$442)) -> 0 | E138: =IF(E4>'Input Data'!$C$15+'Input Data'!$C$19,0,SUMIF(Tax!$C$2:$AF$2,E$4,Tax!$C$442:$AF$442)) -> 0 | F138: =IF(F4>'Input Data'!$C$15+'Input Data'!$C$19,0,SUMIF(Tax!$C$2:$AF$2,F$4,Tax!$C$442:$AF$442)) -> 0 | G138: =IF(G4>'Input Data'!$C$15+'Input Data'!$C$19,0,SUMIF(Tax!$C$2:$AF$2,G$4,Tax!$C$442:$AF$442)) -> 0 | H138: =IF(H4>'Input Data'!$C$15+'Input Data'!$C$19,0,SUMIF(Tax!$C$2:$AF$2,H$4,Tax!$C$442:$AF$442)) -> 0 | I138: =IF(I4>'Input Data'!$C$15+'Input Data'!$C$19,0,SUMIF(Tax!$C$2:$AF$2,I$4,Tax!$C$442:$AF$442)) -> 0 | J138: =IF(J4>'Input Data'!$C$15+'Input Data'!$C$19,0,SUMIF(Tax!$C$2:$AF$2,J$4,Tax!$C$442:$AF$442)) -> 0 | K138: =IF(K4>'Input Data'!$C$15+'Input Data'!$C$19,0,SUMIF(Tax!$C$2:$AF$2,K$4,Tax!$C$442:$AF$442)) -> 0 | L138: =IF(L4>'Input Data'!$C$15+'Input Data'!$C$19,0,SUMIF(Tax!$C$2:$AF$2,L$4,Tax!$C$442:$AF$442)) -> 0 | M138: =IF(M4>'Input Data'!$C$15+'Input Data'!$C$19,0,SUMIF(Tax!$C$2:$AF$2,M$4,Tax!$C$442:$AF$442)) -> 0 | N138: =IF(N4>'Input Data'!$C$15+'Input Data'!$C$19,0,SUMIF(Tax!$C$2:$AF$2,N$4,Tax!$C$442:$AF$442)) -> 0 | O138: =IF(O4>'Input Data'!$C$15+'Input Data'!$C$19,0,SUMIF(Tax!$C$2:$AF$2,O$4,Tax!$C$442:$AF$442)) -> 0 | P138: =IF(P4>'Input Data'!$C$15+'Input Data'!$C$19,0,SUMIF(Tax!$C$2:$AF$2,P$4,Tax!$C$442:$AF$442)) -> 0 | Q138: =IF(Q4>'Input Data'!$C$15+'Input Data'!$C$19,0,SUMIF(Tax!$C$2:$AF$2,Q$4,Tax!$C$442:$AF$442)) -> 0 | R138: =IF(R4>'Input Data'!$C$15+'Input Data'!$C$19,0,SUMIF(Tax!$C$2:$AF$2,R$4,Tax!$C$442:$AF$442)) -> 0 | S138: =IF(S4>'Input Data'!$C$15+'Input Data'!$C$19,0,SUMIF(Tax!$C$2:$AF$2,S$4,Tax!$C$442:$AF$442)) -> 0 | T138: =IF(T4>'Input Data'!$C$15+'Input Data'!$C$19,0,SUMIF(Tax!$C$2:$AF$2,T$4,Tax!$C$442:$AF$442)) -> 0 | U138: =IF(U4>'Input Data'!$C$15+'Input Data'!$C$19,0,SUMIF(Tax!$C$2:$AF$2,U$4,Tax!$C$442:$AF$442)) -> 0 | V138: =IF(V4>'Input Data'!$C$15+'Input Data'!$C$19,0,SUMIF(Tax!$C$2:$AF$2,V$4,Tax!$C$442:$AF$442)) -> 0 | W138: =IF(W4>'Input Data'!$C$15+'Input Data'!$C$19,0,SUMIF(Tax!$C$2:$AF$2,W$4,Tax!$C$442:$AF$442)) -> 0 | X138: =IF(X4>'Input Data'!$C$15+'Input Data'!$C$19,0,SUMIF(Tax!$C$2:$AF$2,X$4,Tax!$C$442:$AF$442)) -> 0 | Y138: =IF(Y4>'Input Data'!$C$15+'Input Data'!$C$19,0,SUMIF(Tax!$C$2:$AF$2,Y$4,Tax!$C$442:$AF$442)) -> 0 | Z138: =IF(Z4>'Input Data'!$C$15+'Input Data'!$C$19,0,SUMIF(Tax!$C$2:$AF$2,Z$4,Tax!$C$442:$AF$442)) -> 0 | AA138: =IF(AA4>'Input Data'!$C$15+'Input Data'!$C$19,0,SUMIF(Tax!$C$2:$AF$2,AA$4,Tax!$C$442:$AF$442)) -> 0 | AB138: =IF(AB4>'Input Data'!$C$15+'Input Data'!$C$19,0,SUMIF(Tax!$C$2:$AF$2,AB$4,Tax!$C$442:$AF$442)) -> 0 | AC138: =IF(AC4>'Input Data'!$C$15+'Input Data'!$C$19,0,SUMIF(Tax!$C$2:$AF$2,AC$4,Tax!$C$442:$AF$442)) -> 0 | AD138: =IF(AD4>'Input Data'!$C$15+'Input Data'!$C$19,0,SUMIF(Tax!$C$2:$AF$2,AD$4,Tax!$C$442:$AF$442)) -> 0 | AE138: =IF(AE4>'Input Data'!$C$15+'Input Data'!$C$19,0,SUMIF(Tax!$C$2:$AF$2,AE$4,Tax!$C$442:$AF$442)) -> 0 | AF138: =IF(AF4>'Input Data'!$C$15+'Input Data'!$C$19,0,SUMIF(Tax!$C$2:$AF$2,AF$4,Tax!$C$442:$AF$442)) -> 0
A139: Net ITC | C139: =+C136+C137+C138 -> 0 | D139: =+D136+D137+D138 -> 0 | E139: 0 | F139: 0 | G139: 0 | H139: 0 | I139: 0 | J139: 0 | K139: 0 | L139: 0 | M139: 0 | N139: 0 | O139: 0 | P139: 0 | Q139: 0 | R139: 0 | S139: 0 | T139: 0 | U139: 0 | V139: 0 | W139: 0 | X139: 0 | Y139: 0 | Z139: 0 | AA139: 0 | AB139: =+AB136+AB137+AB138 -> 0 | AC139: 0 | AD139: 0 | AE139: 0 | AF139: 0
A141: Shareholder Equity:
A142: Beginning Balance | D142: =IF(D$4>'Input Data'!$C$15+'Input Data'!$C$19,0,+C146) -> 16030848.9 | E142: =IF(E$4>'Input Data'!$C$15+'Input Data'!$C$19,0,+D146) -> 56606244.62 | F142: =IF(F$4>'Input Data'!$C$15+'Input Data'!$C$19,0,+E146) -> 120521042.9 | G142: =IF(G$4>'Input Data'!$C$15+'Input Data'!$C$19,0,+F146) -> 142300991.4 | H142: =IF(H$4>'Input Data'!$C$15+'Input Data'!$C$19,0,+G146) -> 136965133.6 | I142: =IF(I$4>'Input Data'!$C$15+'Input Data'!$C$19,0,+H146) -> 131949335.6 | J142: =IF(J$4>'Input Data'!$C$15+'Input Data'!$C$19,0,+I146) -> 127162151.6 | K142: =IF(K$4>'Input Data'!$C$15+'Input Data'!$C$19,0,+J146) -> 122537740.9 | L142: =IF(L$4>'Input Data'!$C$15+'Input Data'!$C$19,0,+K146) -> 117913787.4 | M142: =IF(M$4>'Input Data'!$C$15+'Input Data'!$C$19,0,+L146) -> 113303504.7 | N142: =IF(N$4>'Input Data'!$C$15+'Input Data'!$C$19,0,+M146) -> 109859747.9 | O142: =IF(O$4>'Input Data'!$C$15+'Input Data'!$C$19,0,+N146) -> 107582198.1 | P142: =IF(P$4>'Input Data'!$C$15+'Input Data'!$C$19,0,+O146) -> 105304811.9 | Q142: =IF(Q$4>'Input Data'!$C$15+'Input Data'!$C$19,0,+P146) -> 103027594.2 | R142: =IF(R$4>'Input Data'!$C$15+'Input Data'!$C$19,0,+Q146) -> 100750550 | S142: =IF(S$4>'Input Data'!$C$15+'Input Data'!$C$19,0,+R146) -> 98492299.47 | T142: =IF(T$4>'Input Data'!$C$15+'Input Data'!$C$19,0,+S146) -> 96234434.38 | U142: =IF(U$4>'Input Data'!$C$15+'Input Data'!$C$19,0,+T146) -> 93976966.22 | V142: =IF(V$4>'Input Data'!$C$15+'Input Data'!$C$19,0,+U146) -> 91719906.92 | W142: =IF(W$4>'Input Data'!$C$15+'Input Data'!$C$19,0,+V146) -> 89463268.74 | X142: =IF(X$4>'Input Data'!$C$15+'Input Data'!$C$19,0,+W146) -> 87207064.32 | Y142: =IF(Y$4>'Input Data'!$C$15+'Input Data'!$C$19,0,+X146) -> 84951306.66 | Z142: =IF(Z$4>'Input Data'!$C$15+'Input Data'!$C$19,0,+Y146) -> 82696009.17 | AA142: =IF(AA$4>'Input Data'!$C$15+'Input Data'!$C$19,0,+Z146) -> 80441185.66 | AB142: =IF(AB$4>'Input Data'!$C$15+'Input Data'!$C$19,0,+AA146) -> 78186850.33 | AC142: =IF(AC$4>'Input Data'!$C$15+'Input Data'!$C$19,0,+AB146) -> 75933017.85 | AD142: =IF(AD$4>'Input Data'!$C$15+'Input Data'!$C$19,0,+AC146) -> 73679703.3 | AE142: =IF(AE$4>'Input Data'!$C$15+'Input Data'!$C$19,0,+AD146) -> 71426922.2 | AF142: =IF(AF$4>'Input Data'!$C$15+'Input Data'!$C$19,0,+AE146) -> 69174690.58
A143: Paid in Capital | C143: =(C$121-C$133-C$139)*C159-C142 -> 16030848.9 | D143: =(D$121-D$133-D$139)*D159-D142 -> 40575395.72 | E143: 63914798.28 | F143: 21779948.5 | G143: -5335857.755 | H143: -5015798.041 | I143: -4787183.959 | J143: -4624410.733 | K143: -4623953.505 | L143: -4610282.756 | M143: -3443756.796 | N143: -2277549.732 | O143: -2277386.186 | P143: -2277217.74 | Q143: -2277044.239 | R143: -2258250.487 | S143: -2257865.099 | T143: -2257468.154 | U143: -2257059.3 | V143: -2256638.18 | W143: -2256204.425 | X143: -2255757.658 | Y143: -2255297.488 | Z143: -2254823.513 | AA143: -2254335.324 | AB143: =(AB$121-AB$133-AB$139)*AB159-AB142 -> -2253832.483 | AC143: -2253314.554 | AD143: -2252781.091 | AE143: -2252231.626 | AF143: -2251665.675
A144: Net income after tax | C144: =+C92 -> -245693.9111 | D144: =+D92 -> 2582101.488 | E144: =+E92 -> 5344576.275 | F144: =+F92 -> 13437021.56 | G144: 14242572.43 | H144: 13714637.97 | I144: 14315910.89 | J144: 14917211.2 | K144: 12263027.93 | L144: 12824614.05 | M144: 15155106.57 | N144: 17438135.63 | O144: 17909688.34 | P144: 10624952.71 | Q144: 10978975.26 | R144: 11336109.6 | S144: 11696131.83 | T144: 12059836.42 | U144: 9470540.574 | V144: 9797407.589 | W144: 10127441.66 | X144: 10460683.61 | Y144: 10797176.78 | Z144: 8319996.894 | AA144: 8620863.339 | AB144: =+AB92 -> 8924474.432 | AC144: 9230864.86 | AD144: 9540068.573 | AE144: 7170682.212 | AF144: 7445397.113
A145: Dividend | C145: =-C92 -> 245693.9111 | D145: =-D92 -> -2582101.488 | E145: =-E92 -> -5344576.275 | F145: =-F92 -> -13437021.56 | G145: -14242572.43 | H145: -13714637.97 | I145: -14315910.89 | J145: -14917211.2 | K145: -12263027.93 | L145: -12824614.05 | M145: -15155106.57 | N145: -17438135.63 | O145: -17909688.34 | P145: -10624952.71 | Q145: -10978975.26 | R145: -11336109.6 | S145: -11696131.83 | T145: -12059836.42 | U145: -9470540.574 | V145: -9797407.589 | W145: -10127441.66 | X145: -10460683.61 | Y145: -10797176.78 | Z145: -8319996.894 | AA145: -8620863.339 | AB145: =-AB92 -> -8924474.432 | AC145: -9230864.86 | AD145: -9540068.573 | AE145: -7170682.212 | AF145: -7445397.113
A146: Total Equity (book) | C146: =SUM(C142:C145) -> 16030848.9 | D146: 56606244.62 | E146: 120521042.9 | F146: 142300991.4 | G146: 136965133.6 | H146: 131949335.6 | I146: 127162151.6 | J146: 122537740.9 | K146: 117913787.4 | L146: 113303504.7 | M146: 109859747.9 | N146: 107582198.1 | O146: 105304811.9 | P146: 103027594.2 | Q146: 100750550 | R146: 98492299.47 | S146: 96234434.38 | T146: 93976966.22 | U146: 91719906.92 | V146: 89463268.74 | W146: =SUM(W142:W145) -> 87207064.32 | X146: =SUM(X142:X145) -> 84951306.66 | Y146: =SUM(Y142:Y145) -> 82696009.17 | Z146: =SUM(Z142:Z145) -> 80441185.66 | AA146: =SUM(AA142:AA145) -> 78186850.33 | AB146: =SUM(AB142:AB145) -> 75933017.85 | AC146: 73679703.3 | AD146: 71426922.2 | AE146: 69174690.58 | AF146: 66923024.9
A148: Total Liabilities & Shareholder Equity | C148: =C133+C128+C146+C139 -> 29686757.22 | D148: =D133+D128+D146+D139 -> 104826378.9 | E148: 224037852.9 | F148: 265682795.1 | G148: 257175313.2 | H148: 248667831.3 | I148: 240160349.4 | J148: 231652867.5 | K148: 223145385.5 | L148: 214664182.8 | M148: 208569592.9 | N148: 204861875 | O148: 201154528.3 | P148: 197447563.8 | Q148: 193740993 | R148: 190069453.2 | S148: 186398788 | T148: 182729023.4 | U148: 179060186.6 | V148: 175392305.4 | W148: 171725408.5 | X148: 168059525.4 | Y148: 164394686.4 | Z148: 160730923 | AA148: 157068267.4 | AB148: =AB133+AB128+AB146+AB139 -> 153406752.9 | AC148: 149746413.5 | AD148: 146087284.8 | AE148: 142429402.8 | AF148: 138772805.1
B149: B/S Check | C149: =+C121-C148 -> 0 | D149: 0 | E149: 0 | F149: 0 | G149: 0 | H149: 0 | I149: 0 | J149: 0 | K149: 0 | L149: 0 | M149: 0 | N149: 0 | O149: 0 | P149: 0 | Q149: 0 | R149: 0 | S149: 0 | T149: 0 | U149: 0 | V149: 0 | W149: 0 | X149: 0 | Y149: 0 | Z149: 0 | AA149: 0 | AB149: =+AB121-AB148 -> 0 | AC149: 0 | AD149: 0 | AE149: 0 | AF149: 0
A151: Average Debt | C151: =C170 -> 13655908.32 | D151: =D172 -> 30938021 | E151: 75443104 | F151: 111942718 | G151: 118946683 | H151: 114537644 | I151: 110362300 | J151: 106353658 | K151: 102414540 | L151: 98481439 | M151: 95051015 | N151: 92614162 | O151: 90674097 | P151: 88734173 | Q151: 86794395 | R151: 84862695 | S151: 82939164 | T151: 81015967 | U151: 79093113 | V151: 77170612 | W151: 75248475 | X151: 73326714 | Y151: 71405338 | Z151: 69484361 | AA151: 67563793 | AB151: 65643648 | AC151: 63723937 | AD151: 61804674 | AE151: 59885872 | AF151: 57967545
A152: Average Equity | C152: =C173 -> 16030848.9 | D152: 36318547 | E152: 88563644 | F152: 131411017 | G152: 139633063 | H152: 134457235 | I152: 129555744 | J152: 124849946 | K152: 120225764 | L152: 115608646 | M152: 111581626 | N152: 108720973 | O152: 106443505 | P152: 104166203 | Q152: 101889072 | R152: 99621425 | S152: 97363367 | T152: 95105700 | U152: 92848437 | V152: 90591588 | W152: 88335167 | X152: 86079185 | Y152: 83823658 | Z152: 81568597 | AA152: 79314018 | AB152: 77059934 | AC152: 74806361 | AD152: 72553313 | AE152: 70300806 | AF152: 68048858
A153: Average ITC | C153: =IF('Input Data'!C54=TRUE,ROUND((C139)/2,C139),C139) -> 0 | D153: =IF(D4>'Input Data'!$C$15+'Input Data'!$C$19,0,ROUND((D139+C139)/2,0)) -> 0 | E153: =IF(E4>'Input Data'!$C$15+'Input Data'!$C$19,0,ROUND((E139+D139)/2,0)) -> 0 | F153: =IF(F4>'Input Data'!$C$15+'Input Data'!$C$19,0,ROUND((F139+E139)/2,0)) -> 0 | G153: =IF(G4>'Input Data'!$C$15+'Input Data'!$C$19,0,ROUND((G139+F139)/2,0)) -> 0 | H153: =IF(H4>'Input Data'!$C$15+'Input Data'!$C$19,0,ROUND((H139+G139)/2,0)) -> 0 | I153: =IF(I4>'Input Data'!$C$15+'Input Data'!$C$19,0,ROUND((I139+H139)/2,0)) -> 0 | J153: =IF(J4>'Input Data'!$C$15+'Input Data'!$C$19,0,ROUND((J139+I139)/2,0)) -> 0 | K153: =IF(K4>'Input Data'!$C$15+'Input Data'!$C$19,0,ROUND((K139+J139)/2,0)) -> 0 | L153: =IF(L4>'Input Data'!$C$15+'Input Data'!$C$19,0,ROUND((L139+K139)/2,0)) -> 0 | M153: =IF(M4>'Input Data'!$C$15+'Input Data'!$C$19,0,ROUND((M139+L139)/2,0)) -> 0 | N153: =IF(N4>'Input Data'!$C$15+'Input Data'!$C$19,0,ROUND((N139+M139)/2,0)) -> 0 | O153: =IF(O4>'Input Data'!$C$15+'Input Data'!$C$19,0,ROUND((O139+N139)/2,0)) -> 0 | P153: =IF(P4>'Input Data'!$C$15+'Input Data'!$C$19,0,ROUND((P139+O139)/2,0)) -> 0 | Q153: =IF(Q4>'Input Data'!$C$15+'Input Data'!$C$19,0,ROUND((Q139+P139)/2,0)) -> 0 | R153: =IF(R4>'Input Data'!$C$15+'Input Data'!$C$19,0,ROUND((R139+Q139)/2,0)) -> 0 | S153: =IF(S4>'Input Data'!$C$15+'Input Data'!$C$19,0,ROUND((S139+R139)/2,0)) -> 0 | T153: =IF(T4>'Input Data'!$C$15+'Input Data'!$C$19,0,ROUND((T139+S139)/2,0)) -> 0 | U153: =IF(U4>'Input Data'!$C$15+'Input Data'!$C$19,0,ROUND((U139+T139)/2,0)) -> 0 | V153: =IF(V4>'Input Data'!$C$15+'Input Data'!$C$19,0,ROUND((V139+U139)/2,0)) -> 0 | W153: =IF(W4>'Input Data'!$C$15+'Input Data'!$C$19,0,ROUND((W139+V139)/2,0)) -> 0 | X153: =IF(X4>'Input Data'!$C$15+'Input Data'!$C$19,0,ROUND((X139+W139)/2,0)) -> 0 | Y153: =IF(Y4>'Input Data'!$C$15+'Input Data'!$C$19,0,ROUND((Y139+X139)/2,0)) -> 0 | Z153: =IF(Z4>'Input Data'!$C$15+'Input Data'!$C$19,0,ROUND((Z139+Y139)/2,0)) -> 0 | AA153: =IF(AA4>'Input Data'!$C$15+'Input Data'!$C$19,0,ROUND((AA139+Z139)/2,0)) -> 0 | AB153: =IF(AB4>'Input Data'!$C$15+'Input Data'!$C$19,0,ROUND((AB139+AA139)/2,0)) -> 0 | AC153: =IF(AC4>'Input Data'!$C$15+'Input Data'!$C$19,0,ROUND((AC139+AB139)/2,0)) -> 0 | AD153: =IF(AD4>'Input Data'!$C$15+'Input Data'!$C$19,0,ROUND((AD139+AC139)/2,0)) -> 0 | AE153: =IF(AE4>'Input Data'!$C$15+'Input Data'!$C$19,0,ROUND((AE139+AD139)/2,0)) -> 0 | AF153: =IF(AF4>'Input Data'!$C$15+'Input Data'!$C$19,0,ROUND((AF139+AE139)/2,0)) -> 0
A155: Average Debt (excluding CWIP earning AFUDC) | C155: =+C151+(IF('Input Data'!C54=TRUE,ROUND((Capex!G$57)/2,Capex!G$57),Capex!G$57)*'Input Data'!$C$25) -> 0 | D155: =+D151+(ROUND((Capex!G$57+Capex!H$57)/2,0)*'Input Data'!$C$25) -> -0.2799999975 | E155: =+E151+(ROUND((Capex!H$57+Capex!I$57)/2,0)*'Input Data'!$C$25) -> 33023481.34 | F155: =+F151+(ROUND((Capex!I$57+Capex!J$57)/2,0)*'Input Data'!$C$25) -> 93633162.28 | G155: =+G151+(ROUND((Capex!J$57+Capex!K$57)/2,0)*'Input Data'!$C$25) -> 118946683 | H155: =+H151+(ROUND((Capex!K$57+Capex!L$57)/2,0)*'Input Data'!$C$25) -> 114537644 | I155: =+I151+(ROUND((Capex!L$57+Capex!M$57)/2,0)*'Input Data'!$C$25) -> 110362300 | J155: =+J151+(ROUND((Capex!M$57+Capex!N$57)/2,0)*'Input Data'!$C$25) -> 106353658 | K155: =+K151+(ROUND((Capex!N$57+Capex!O$57)/2,0)*'Input Data'!$C$25) -> 102414540 | L155: =+L151+(ROUND((Capex!O$57+Capex!P$57)/2,0)*'Input Data'!$C$25) -> 98481439 | M155: =+M151+(ROUND((Capex!P$57+Capex!Q$57)/2,0)*'Input Data'!$C$25) -> 95051015 | N155: =+N151+(ROUND((Capex!Q$57+Capex!R$57)/2,0)*'Input Data'!$C$25) -> 92614162 | O155: =+O151+(ROUND((Capex!R$57+Capex!S$57)/2,0)*'Input Data'!$C$25) -> 90674097 | P155: =+P151+(ROUND((Capex!S$57+Capex!T$57)/2,0)*'Input Data'!$C$25) -> 88734173 | Q155: =+Q151+(ROUND((Capex!T$57+Capex!U$57)/2,0)*'Input Data'!$C$25) -> 86794395 | R155: =+R151+(ROUND((Capex!U$57+Capex!V$57)/2,0)*'Input Data'!$C$25) -> 84862695 | S155: =+S151+(ROUND((Capex!V$57+Capex!W$57)/2,0)*'Input Data'!$C$25) -> 82939164 | T155: =+T151+(ROUND((Capex!W$57+Capex!X$57)/2,0)*'Input Data'!$C$25) -> 81015967 | U155: =+U151+(ROUND((Capex!X$57+Capex!Y$57)/2,0)*'Input Data'!$C$25) -> 79093113 | V155: =+V151+(ROUND((Capex!Y$57+Capex!Z$57)/2,0)*'Input Data'!$C$25) -> 77170612 | W155: =+W151+(ROUND((Capex!Z$57+Capex!AA$57)/2,0)*'Input Data'!$C$25) -> 75248475 | X155: =+X151+(ROUND((Capex!AA$57+Capex!AB$57)/2,0)*'Input Data'!$C$25) -> 73326714 | Y155: =+Y151+(ROUND((Capex!AB$57+Capex!AC$57)/2,0)*'Input Data'!$C$25) -> 71405338 | Z155: =+Z151+(ROUND((Capex!AC$57+Capex!AD$57)/2,0)*'Input Data'!$C$25) -> 69484361 | AA155: =+AA151+(ROUND((Capex!AD$57+Capex!AE$57)/2,0)*'Input Data'!$C$25) -> 67563793 | AB155: =+AB151+(ROUND((Capex!AE$57+Capex!AF$57)/2,0)*'Input Data'!$C$25) -> 65643648 | AC155: =+AC151+(ROUND((Capex!AF$57+Capex!AG$57)/2,0)*'Input Data'!$C$25) -> 63723937 | AD155: =+AD151+(ROUND((Capex!AG$57+Capex!AH$57)/2,0)*'Input Data'!$C$25) -> 61804674 | AE155: =+AE151+(ROUND((Capex!AH$57+Capex!AI$57)/2,0)*'Input Data'!$C$25) -> 59885872 | AF155: =+AF151+(ROUND((Capex!AI$57+Capex!AJ$57)/2,0)*'Input Data'!$C$25) -> 57967545
A156: Average Equity (excluding CWIP earning AFUDC) | C156: =+C152+(IF('Input Data'!C54=TRUE,ROUND((Capex!G$57)/2,Capex!G$57),Capex!G$57)*'Input Data'!$C$24) -> 0 | D156: =+D152+(ROUND((Capex!G$57+Capex!H$57)/2,0)*'Input Data'!$C$24) -> 0.2800000012 | E156: =+E152+(ROUND((Capex!H$57+Capex!I$57)/2,0)*'Input Data'!$C$24) -> 38766695.66 | F156: =+F152+(ROUND((Capex!I$57+Capex!J$57)/2,0)*'Input Data'!$C$24) -> 109917190.7 | G156: =+G152+(ROUND((Capex!J$57+Capex!K$57)/2,0)*'Input Data'!$C$24) -> 139633063 | H156: =+H152+(ROUND((Capex!K$57+Capex!L$57)/2,0)*'Input Data'!$C$24) -> 134457235 | I156: =+I152+(ROUND((Capex!L$57+Capex!M$57)/2,0)*'Input Data'!$C$24) -> 129555744 | J156: =+J152+(ROUND((Capex!M$57+Capex!N$57)/2,0)*'Input Data'!$C$24) -> 124849946 | K156: =+K152+(ROUND((Capex!N$57+Capex!O$57)/2,0)*'Input Data'!$C$24) -> 120225764 | L156: =+L152+(ROUND((Capex!O$57+Capex!P$57)/2,0)*'Input Data'!$C$24) -> 115608646 | M156: =+M152+(ROUND((Capex!P$57+Capex!Q$57)/2,0)*'Input Data'!$C$24) -> 111581626 | N156: =+N152+(ROUND((Capex!Q$57+Capex!R$57)/2,0)*'Input Data'!$C$24) -> 108720973 | O156: =+O152+(ROUND((Capex!R$57+Capex!S$57)/2,0)*'Input Data'!$C$24) -> 106443505 | P156: =+P152+(ROUND((Capex!S$57+Capex!T$57)/2,0)*'Input Data'!$C$24) -> 104166203 | Q156: =+Q152+(ROUND((Capex!T$57+Capex!U$57)/2,0)*'Input Data'!$C$24) -> 101889072 | R156: =+R152+(ROUND((Capex!U$57+Capex!V$57)/2,0)*'Input Data'!$C$24) -> 99621425 | S156: =+S152+(ROUND((Capex!V$57+Capex!W$57)/2,0)*'Input Data'!$C$24) -> 97363367 | T156: =+T152+(ROUND((Capex!W$57+Capex!X$57)/2,0)*'Input Data'!$C$24) -> 95105700 | U156: =+U152+(ROUND((Capex!X$57+Capex!Y$57)/2,0)*'Input Data'!$C$24) -> 92848437 | V156: =+V152+(ROUND((Capex!Y$57+Capex!Z$57)/2,0)*'Input Data'!$C$24) -> 90591588 | W156: =+W152+(ROUND((Capex!Z$57+Capex!AA$57)/2,0)*'Input Data'!$C$24) -> 88335167 | X156: =+X152+(ROUND((Capex!AA$57+Capex!AB$57)/2,0)*'Input Data'!$C$24) -> 86079185 | Y156: =+Y152+(ROUND((Capex!AB$57+Capex!AC$57)/2,0)*'Input Data'!$C$24) -> 83823658 | Z156: =+Z152+(ROUND((Capex!AC$57+Capex!AD$57)/2,0)*'Input Data'!$C$24) -> 81568597 | AA156: =+AA152+(ROUND((Capex!AD$57+Capex!AE$57)/2,0)*'Input Data'!$C$24) -> 79314018 | AB156: =+AB152+(ROUND((Capex!AE$57+Capex!AF$57)/2,0)*'Input Data'!$C$24) -> 77059934 | AC156: =+AC152+(ROUND((Capex!AF$57+Capex!AG$57)/2,0)*'Input Data'!$C$24) -> 74806361 | AD156: =+AD152+(ROUND((Capex!AG$57+Capex!AH$57)/2,0)*'Input Data'!$C$24) -> 72553313 | AE156: =+AE152+(ROUND((Capex!AH$57+Capex!AI$57)/2,0)*'Input Data'!$C$24) -> 70300806 | AF156: =+AF152+(ROUND((Capex!AI$57+Capex!AJ$57)/2,0)*'Input Data'!$C$24) -> 68048858
A158: Investment funding:
A159: Equity funding | C159: =+'Input Data'!C24 -> 0.54 | D159: =IF(D4>'Input Data'!$C$15+'Input Data'!$C$19,0,C159) -> 0.54 | E159: =IF(E4>'Input Data'!$C$15+'Input Data'!$C$19,0,D159) -> 0.54 | F159: =IF(F4>'Input Data'!$C$15+'Input Data'!$C$19,0,E159) -> 0.54 | G159: =IF(G4>'Input Data'!$C$15+'Input Data'!$C$19,0,F159) -> 0.54 | H159: =IF(H4>'Input Data'!$C$15+'Input Data'!$C$19,0,G159) -> 0.54 | I159: =IF(I4>'Input Data'!$C$15+'Input Data'!$C$19,0,H159) -> 0.54 | J159: =IF(J4>'Input Data'!$C$15+'Input Data'!$C$19,0,I159) -> 0.54 | K159: =IF(K4>'Input Data'!$C$15+'Input Data'!$C$19,0,J159) -> 0.54 | L159: =IF(L4>'Input Data'!$C$15+'Input Data'!$C$19,0,K159) -> 0.54 | M159: =IF(M4>'Input Data'!$C$15+'Input Data'!$C$19,0,L159) -> 0.54 | N159: =IF(N4>'Input Data'!$C$15+'Input Data'!$C$19,0,M159) -> 0.54 | O159: =IF(O4>'Input Data'!$C$15+'Input Data'!$C$19,0,N159) -> 0.54 | P159: =IF(P4>'Input Data'!$C$15+'Input Data'!$C$19,0,O159) -> 0.54 | Q159: =IF(Q4>'Input Data'!$C$15+'Input Data'!$C$19,0,P159) -> 0.54 | R159: =IF(R4>'Input Data'!$C$15+'Input Data'!$C$19,0,Q159) -> 0.54 | S159: =IF(S4>'Input Data'!$C$15+'Input Data'!$C$19,0,R159) -> 0.54 | T159: =IF(T4>'Input Data'!$C$15+'Input Data'!$C$19,0,S159) -> 0.54 | U159: =IF(U4>'Input Data'!$C$15+'Input Data'!$C$19,0,T159) -> 0.54 | V159: =IF(V4>'Input Data'!$C$15+'Input Data'!$C$19,0,U159) -> 0.54 | W159: =IF(W4>'Input Data'!$C$15+'Input Data'!$C$19,0,V159) -> 0.54 | X159: =IF(X4>'Input Data'!$C$15+'Input Data'!$C$19,0,W159) -> 0.54 | Y159: =IF(Y4>'Input Data'!$C$15+'Input Data'!$C$19,0,X159) -> 0.54 | Z159: =IF(Z4>'Input Data'!$C$15+'Input Data'!$C$19,0,Y159) -> 0.54 | AA159: =IF(AA4>'Input Data'!$C$15+'Input Data'!$C$19,0,Z159) -> 0.54 | AB159: =IF(AB4>'Input Data'!$C$15+'Input Data'!$C$19,0,AA159) -> 0.54 | AC159: =IF(AC4>'Input Data'!$C$15+'Input Data'!$C$19,0,AB159) -> 0.54 | AD159: =IF(AD4>'Input Data'!$C$15+'Input Data'!$C$19,0,AC159) -> 0.54 | AE159: =IF(AE4>'Input Data'!$C$15+'Input Data'!$C$19,0,AD159) -> 0.54 | AF159: =IF(AF4>'Input Data'!$C$15+'Input Data'!$C$19,0,AE159) -> 0.54
A160: Debt funding | C160: =1-C159 -> 0.46 | D160: =IF(D4>'Input Data'!$C$15+'Input Data'!$C$19,0,1-D159) -> 0.46 | E160: =IF(E4>'Input Data'!$C$15+'Input Data'!$C$19,0,1-E159) -> 0.46 | F160: =IF(F4>'Input Data'!$C$15+'Input Data'!$C$19,0,1-F159) -> 0.46 | G160: =IF(G4>'Input Data'!$C$15+'Input Data'!$C$19,0,1-G159) -> 0.46 | H160: =IF(H4>'Input Data'!$C$15+'Input Data'!$C$19,0,1-H159) -> 0.46 | I160: =IF(I4>'Input Data'!$C$15+'Input Data'!$C$19,0,1-I159) -> 0.46 | J160: =IF(J4>'Input Data'!$C$15+'Input Data'!$C$19,0,1-J159) -> 0.46 | K160: =IF(K4>'Input Data'!$C$15+'Input Data'!$C$19,0,1-K159) -> 0.46 | L160: =IF(L4>'Input Data'!$C$15+'Input Data'!$C$19,0,1-L159) -> 0.46 | M160: =IF(M4>'Input Data'!$C$15+'Input Data'!$C$19,0,1-M159) -> 0.46 | N160: =IF(N4>'Input Data'!$C$15+'Input Data'!$C$19,0,1-N159) -> 0.46 | O160: =IF(O4>'Input Data'!$C$15+'Input Data'!$C$19,0,1-O159) -> 0.46 | P160: =IF(P4>'Input Data'!$C$15+'Input Data'!$C$19,0,1-P159) -> 0.46 | Q160: =IF(Q4>'Input Data'!$C$15+'Input Data'!$C$19,0,1-Q159) -> 0.46 | R160: =IF(R4>'Input Data'!$C$15+'Input Data'!$C$19,0,1-R159) -> 0.46 | S160: =IF(S4>'Input Data'!$C$15+'Input Data'!$C$19,0,1-S159) -> 0.46 | T160: =IF(T4>'Input Data'!$C$15+'Input Data'!$C$19,0,1-T159) -> 0.46 | U160: =IF(U4>'Input Data'!$C$15+'Input Data'!$C$19,0,1-U159) -> 0.46 | V160: =IF(V4>'Input Data'!$C$15+'Input Data'!$C$19,0,1-V159) -> 0.46 | W160: =IF(W4>'Input Data'!$C$15+'Input Data'!$C$19,0,1-W159) -> 0.46 | X160: =IF(X4>'Input Data'!$C$15+'Input Data'!$C$19,0,1-X159) -> 0.46 | Y160: =IF(Y4>'Input Data'!$C$15+'Input Data'!$C$19,0,1-Y159) -> 0.46 | Z160: =IF(Z4>'Input Data'!$C$15+'Input Data'!$C$19,0,1-Z159) -> 0.46 | AA160: =IF(AA4>'Input Data'!$C$15+'Input Data'!$C$19,0,1-AA159) -> 0.46 | AB160: =IF(AB4>'Input Data'!$C$15+'Input Data'!$C$19,0,1-AB159) -> 0.46 | AC160: =IF(AC4>'Input Data'!$C$15+'Input Data'!$C$19,0,1-AC159) -> 0.46 | AD160: =IF(AD4>'Input Data'!$C$15+'Input Data'!$C$19,0,1-AD159) -> 0.46 | AE160: =IF(AE4>'Input Data'!$C$15+'Input Data'!$C$19,0,1-AE159) -> 0.46 | AF160: =IF(AF4>'Input Data'!$C$15+'Input Data'!$C$19,0,1-AF159) -> 0.46
A163: Delta between total debt and debt on CWIP earning AFUDC | C163: =+C151-C155 -> 13655908.32 | D163: =+D151-D155 -> 30938021.28 | E163: 42419622.66 | F163: 18309555.72 | G163: 0 | H163: 0 | I163: 0 | J163: 0 | K163: 0 | L163: 0 | M163: 0 | N163: 0 | O163: 0 | P163: 0 | Q163: 0 | R163: 0 | S163: 0 | T163: 0 | U163: 0 | V163: 0 | W163: 0 | X163: 0 | Y163: 0 | Z163: 0 | AA163: 0 | AB163: 0 | AC163: 0 | AD163: 0 | AE163: 0 | AF163: 0
A164: Interest on Delta | C164: =+C163*$B$85 -> 639779.3049 | D164: =+D163*$B$85 -> 1449446.297 | E164: 1987359.322 | F164: 857802.6855 | G164: 0 | H164: 0 | I164: 0 | J164: 0 | K164: 0 | L164: 0 | M164: 0 | N164: 0 | O164: 0 | P164: 0 | Q164: 0 | R164: 0 | S164: 0 | T164: 0 | U164: 0 | V164: 0 | W164: 0 | X164: 0 | Y164: 0 | Z164: 0 | AA164: 0 | AB164: 0 | AC164: 0 | AD164: 0 | AE164: 0 | AF164: 0
A165: After Tax Interest Expense on Delta | C165: =+C164*(1-C95) -> 477627.2401 | D165: =+D164*(1-D95) -> 1082084.133 | E165: 1483663.102 | F165: 640392.5948 | G165: 0 | H165: 0 | I165: 0 | J165: 0 | K165: 0 | L165: 0 | M165: 0 | N165: 0 | O165: 0 | P165: 0 | Q165: 0 | R165: 0 | S165: 0 | T165: 0 | U165: 0 | V165: 0 | W165: 0 | X165: 0 | Y165: 0 | Z165: 0 | AA165: 0 | AB165: 0 | AC165: 0 | AD165: 0 | AE165: 0 | AF165: 0
A170: Average Debt | C170: =IF('Input Data'!C54=TRUE,ROUND((C128)/2,C128),C128) -> 13655908.32 | D170: =IF(D4>'Input Data'!$C$15+'Input Data'!$C$19,0,ROUND((D128+C128)/2,0)) -> 30938021 | E170: =IF(E4>'Input Data'!$C$15+'Input Data'!$C$19,0,ROUND((E128+D128)/2,0)) -> 75443104 | F170: =IF(F4>'Input Data'!$C$15+'Input Data'!$C$19,0,ROUND((F128+E128)/2,0)) -> 111942718 | G170: =IF(G4>'Input Data'!$C$15+'Input Data'!$C$19,0,ROUND((G128+F128)/2,0)) -> 118946683 | H170: =IF(H4>'Input Data'!$C$15+'Input Data'!$C$19,0,ROUND((H128+G128)/2,0)) -> 114537644 | I170: =IF(I4>'Input Data'!$C$15+'Input Data'!$C$19,0,ROUND((I128+H128)/2,0)) -> 110362300 | J170: =IF(J4>'Input Data'!$C$15+'Input Data'!$C$19,0,ROUND((J128+I128)/2,0)) -> 106353658 | K170: =IF(K4>'Input Data'!$C$15+'Input Data'!$C$19,0,ROUND((K128+J128)/2,0)) -> 102414540 | L170: =IF(L4>'Input Data'!$C$15+'Input Data'!$C$19,0,ROUND((L128+K128)/2,0)) -> 98481439 | M170: =IF(M4>'Input Data'!$C$15+'Input Data'!$C$19,0,ROUND((M128+L128)/2,0)) -> 95051015 | N170: =IF(N4>'Input Data'!$C$15+'Input Data'!$C$19,0,ROUND((N128+M128)/2,0)) -> 92614162 | O170: =IF(O4>'Input Data'!$C$15+'Input Data'!$C$19,0,ROUND((O128+N128)/2,0)) -> 90674097 | P170: =IF(P4>'Input Data'!$C$15+'Input Data'!$C$19,0,ROUND((P128+O128)/2,0)) -> 88734173 | Q170: =IF(Q4>'Input Data'!$C$15+'Input Data'!$C$19,0,ROUND((Q128+P128)/2,0)) -> 86794395 | R170: =IF(R4>'Input Data'!$C$15+'Input Data'!$C$19,0,ROUND((R128+Q128)/2,0)) -> 84862695 | S170: =IF(S4>'Input Data'!$C$15+'Input Data'!$C$19,0,ROUND((S128+R128)/2,0)) -> 82939164 | T170: =IF(T4>'Input Data'!$C$15+'Input Data'!$C$19,0,ROUND((T128+S128)/2,0)) -> 81015967 | U170: =IF(U4>'Input Data'!$C$15+'Input Data'!$C$19,0,ROUND((U128+T128)/2,0)) -> 79093113 | V170: =IF(V4>'Input Data'!$C$15+'Input Data'!$C$19,0,ROUND((V128+U128)/2,0)) -> 77170612 | W170: =IF(W4>'Input Data'!$C$15+'Input Data'!$C$19,0,ROUND((W128+V128)/2,0)) -> 75248475 | X170: =IF(X4>'Input Data'!$C$15+'Input Data'!$C$19,0,ROUND((X128+W128)/2,0)) -> 73326714 | Y170: =IF(Y4>'Input Data'!$C$15+'Input Data'!$C$19,0,ROUND((Y128+X128)/2,0)) -> 71405338 | Z170: =IF(Z4>'Input Data'!$C$15+'Input Data'!$C$19,0,ROUND((Z128+Y128)/2,0)) -> 69484361 | AA170: =IF(AA4>'Input Data'!$C$15+'Input Data'!$C$19,0,ROUND((AA128+Z128)/2,0)) -> 67563793 | AB170: =IF(AB4>'Input Data'!$C$15+'Input Data'!$C$19,0,ROUND((AB128+AA128)/2,0)) -> 65643648 | AC170: =IF(AC4>'Input Data'!$C$15+'Input Data'!$C$19,0,ROUND((AC128+AB128)/2,0)) -> 63723937 | AD170: =IF(AD4>'Input Data'!$C$15+'Input Data'!$C$19,0,ROUND((AD128+AC128)/2,0)) -> 61804674 | AE170: =IF(AE4>'Input Data'!$C$15+'Input Data'!$C$19,0,ROUND((AE128+AD128)/2,0)) -> 59885872 | AF170: =IF(AF4>'Input Data'!$C$15+'Input Data'!$C$19,0,ROUND((AF128+AE128)/2,0)) -> 57967545
A171: Average Equity | C171: =IF('Input Data'!C54=TRUE,ROUND((C146)/2,C146),C146) -> 16030848.9 | D171: =IF(D4>'Input Data'!$C$15+'Input Data'!$C$19,0,ROUND((D146+C146)/2,0)) -> 36318547 | E171: =IF(E4>'Input Data'!$C$15+'Input Data'!$C$19,0,ROUND((E146+D146)/2,0)) -> 88563644 | F171: =IF(F4>'Input Data'!$C$15+'Input Data'!$C$19,0,ROUND((F146+E146)/2,0)) -> 131411017 | G171: =IF(G4>'Input Data'!$C$15+'Input Data'!$C$19,0,ROUND((G146+F146)/2,0)) -> 139633063 | H171: =IF(H4>'Input Data'!$C$15+'Input Data'!$C$19,0,ROUND((H146+G146)/2,0)) -> 134457235 | I171: =IF(I4>'Input Data'!$C$15+'Input Data'!$C$19,0,ROUND((I146+H146)/2,0)) -> 129555744 | J171: =IF(J4>'Input Data'!$C$15+'Input Data'!$C$19,0,ROUND((J146+I146)/2,0)) -> 124849946 | K171: =IF(K4>'Input Data'!$C$15+'Input Data'!$C$19,0,ROUND((K146+J146)/2,0)) -> 120225764 | L171: =IF(L4>'Input Data'!$C$15+'Input Data'!$C$19,0,ROUND((L146+K146)/2,0)) -> 115608646 | M171: =IF(M4>'Input Data'!$C$15+'Input Data'!$C$19,0,ROUND((M146+L146)/2,0)) -> 111581626 | N171: =IF(N4>'Input Data'!$C$15+'Input Data'!$C$19,0,ROUND((N146+M146)/2,0)) -> 108720973 | O171: =IF(O4>'Input Data'!$C$15+'Input Data'!$C$19,0,ROUND((O146+N146)/2,0)) -> 106443505 | P171: =IF(P4>'Input Data'!$C$15+'Input Data'!$C$19,0,ROUND((P146+O146)/2,0)) -> 104166203 | Q171: =IF(Q4>'Input Data'!$C$15+'Input Data'!$C$19,0,ROUND((Q146+P146)/2,0)) -> 101889072 | R171: =IF(R4>'Input Data'!$C$15+'Input Data'!$C$19,0,ROUND((R146+Q146)/2,0)) -> 99621425 | S171: =IF(S4>'Input Data'!$C$15+'Input Data'!$C$19,0,ROUND((S146+R146)/2,0)) -> 97363367 | T171: =IF(T4>'Input Data'!$C$15+'Input Data'!$C$19,0,ROUND((T146+S146)/2,0)) -> 95105700 | U171: =IF(U4>'Input Data'!$C$15+'Input Data'!$C$19,0,ROUND((U146+T146)/2,0)) -> 92848437 | V171: =IF(V4>'Input Data'!$C$15+'Input Data'!$C$19,0,ROUND((V146+U146)/2,0)) -> 90591588 | W171: =IF(W4>'Input Data'!$C$15+'Input Data'!$C$19,0,ROUND((W146+V146)/2,0)) -> 88335167 | X171: =IF(X4>'Input Data'!$C$15+'Input Data'!$C$19,0,ROUND((X146+W146)/2,0)) -> 86079185 | Y171: =IF(Y4>'Input Data'!$C$15+'Input Data'!$C$19,0,ROUND((Y146+X146)/2,0)) -> 83823658 | Z171: =IF(Z4>'Input Data'!$C$15+'Input Data'!$C$19,0,ROUND((Z146+Y146)/2,0)) -> 81568597 | AA171: =IF(AA4>'Input Data'!$C$15+'Input Data'!$C$19,0,ROUND((AA146+Z146)/2,0)) -> 79314018 | AB171: =IF(AB4>'Input Data'!$C$15+'Input Data'!$C$19,0,ROUND((AB146+AA146)/2,0)) -> 77059934 | AC171: =IF(AC4>'Input Data'!$C$15+'Input Data'!$C$19,0,ROUND((AC146+AB146)/2,0)) -> 74806361 | AD171: =IF(AD4>'Input Data'!$C$15+'Input Data'!$C$19,0,ROUND((AD146+AC146)/2,0)) -> 72553313 | AE171: =IF(AE4>'Input Data'!$C$15+'Input Data'!$C$19,0,ROUND((AE146+AD146)/2,0)) -> 70300806 | AF171: =IF(AF4>'Input Data'!$C$15+'Input Data'!$C$19,0,ROUND((AF146+AE146)/2,0)) -> 68048858
A172: Average Debt - PASTE | C172: 13655908.32 | D172: 30938021 | E172: 75443104 | F172: 111942718 | G172: 118946683 | H172: 114537644 | I172: 110362300 | J172: 106353658 | K172: 102414540 | L172: 98481439 | M172: 95051015 | N172: 92614162 | O172: 90674097 | P172: 88734173 | Q172: 86794395 | R172: 84862695 | S172: 82939164 | T172: 81015967 | U172: 79093113 | V172: 77170612 | W172: 75248475 | X172: 73326714 | Y172: 71405338 | Z172: 69484361 | AA172: 67563793 | AB172: 65643648 | AC172: 63723937 | AD172: 61804674 | AE172: 59885872 | AF172: 57967545
A173: Average Equity - PASTE | C173: 16030848.9 | D173: 36318547 | E173: 88563644 | F173: 131411017 | G173: 139633063 | H173: 134457235 | I173: 129555744 | J173: 124849946 | K173: 120225764 | L173: 115608646 | M173: 111581626 | N173: 108720973 | O173: 106443505 | P173: 104166203 | Q173: 101889072 | R173: 99621425 | S173: 97363367 | T173: 95105700 | U173: 92848437 | V173: 90591588 | W173: 88335167 | X173: 86079185 | Y173: 83823658 | Z173: 81568597 | AA173: 79314018 | AB173: 77059934 | AC173: 74806361 | AD173: 72553313 | AE173: 70300806 | AF173: 68048858
B175: Check | C175: =D175 -> 0 | D175: =SUM(C170:AF171)-SUM(C172:AF173) -> 0
A177: Check | B177: =IF(ABS(C175:C176)>0.0001,1,0) -> 0
B178: 0

Sheet Assumptions --->

Sheet Assumption Support
A27: Exhibit C: includes property tax in Rate/SF
A67: Exhibit D: Maintenance Capital
I75: =+'O&M'!B29 -> 265000 | J75: RSF
J76: Reserve per RSF | K76: Annual Reserve | M76: Per Reeves Schedule on 275k RSF
I77: 2026 | J77: 0 | K77: =+$I$75*J77 -> 0 | M77: 0
I78: =+I77+1 -> 2027 | J78: 0 | K78: 0 | M78: 0
I79: =+I78+1 -> 2028 | J79: 0 | K79: 0 | M79: 0
I80: 2029 | J80: 0 | K80: 0 | M80: 0
I81: 2030 | J81: 0 | K81: 0 | M81: 0
I82: 2031 | J82: 0.1 | K82: 26500 | M82: 0.1
I83: 2032 | J83: 0.103 | K83: 27295 | M83: =28325/$I$75 -> 0.1068867925 | N83: =+M83/M82-1 -> 0.06886792453
I84: 2033 | J84: 0.1070366909 | K84: 28364.72309 | M84: =29435.09/$I$75 -> 0.1110758113 | N84: =+M84/M83-1 -> 0.03919117387
I85: 2034 | J85: 0.1102478182 | K85: 29215.67182 | M85: =30318.15/$I$75 -> 0.1144081132 | N85: 0.030000248
I86: 2035 | J86: 0.1135552364 | K86: 30092.13764 | M86: =31227.69/$I$75 -> 0.1178403396 | N86: 0.02999985157
I87: 2036 | J87: 0.1169618909 | K87: 30994.90109 | M87: =32164.52/$I$75 -> 0.1213755472 | N87: 0.02999997758
I88: 2037 | J88: 0.2522309091 | K88: 66841.19091 | M88: =69363.5/$I$75 -> 0.2617490566 | N88: 1.156522155
I89: 2038 | J89: 0.2597978545 | K89: 68846.43145 | M89: =71444.41/$I$75 -> 0.2696015472 | N89: 0.03000007208
I90: 2039 | J90: 0.2675917818 | K90: 70911.82218 | M90: =73587.74/$I$75 -> 0.2776895849 | N90: 0.02999996781
I91: 2040 | J91: 0.2756195273 | K91: 73039.17473 | M91: =75795.37/$I$75 -> 0.2860202642 | N91: 0.0299999701
I92: 2041 | J92: 0.2838881091 | K92: 75230.34891 | M92: =78069.23/$I$75 -> 0.2946008679 | N92: 0.02999998549
I93: 2042 | J93: 0.2924047636 | K93: 77487.26236 | M93: =80411.31/$I$75 -> 0.3034389057 | N93: 0.03000003971
I94: 2043 | J94: 0.3011769091 | K94: 79811.88091 | M94: =82823.65/$I$75 -> 0.3125420755 | N94: 0.03000000871
I95: 2044 | J95: 0.3102122182 | K95: 82206.23782 | M95: =85308.36/$I$75 -> 0.3219183396 | N95: 0.03000000604
I96: 2045 | J96: 0.3195185818 | K96: 84672.42418 | M96: =87867.61/$I$75 -> 0.3315758868 | N96: 0.02999999062
I97: 2046 | J97: 0.3291041091 | K97: 87212.58891 | M97: =90503.63/$I$75 -> 0.3415231321 | N97: 0.02999990554
I98: 2047 | J98: 0.3389772364 | K98: 89828.96764 | M98: =93218.74/$I$75 -> 0.3517688302 | N98: 0.03000001215
I99: 2048 | J99: 0.3491465818 | K99: 92523.84418 | M99: =96015.31/$I$75 -> 0.3623219245 | N99: 0.03000008367
I100: 2049 | J100: 0.3596209818 | K100: 95299.56018 | M100: =98895.77/$I$75 -> 0.3731915849 | N100: 0.03000000729
I101: 2050 | J101: 0.3704096 | K101: 98158.544 | M101: =101862.64/$I$75 -> 0.3843873208 | N101: 0.02999996865
I102: 2051 | J102: 0.3815218909 | K102: 101103.3011 | M102: =104918.52/$I$75 -> 0.3959189434 | N102: 0.03000000785
A105: Book / Tax Lives

Sheet Capital Costs
A1: Summary of Capex Spend
D3: 2022 | E3: =+D3+1 -> 2023 | F3: =+E3+1 -> 2024 | G3: 2025 | H3: Total
A4: Gensler Costs
A5: Interior Construction | D5: 0 | E5: 0 | F5: 49649141.74 | G5: 23899228 | H5: =SUM(D5:G5) -> 73548369.74
A6: Interior Soft Costs | D6: 2037334.25 | E6: 2812572 | F6: 2781684 | G6: 1171708 | H6: =SUM(D6:G6) -> 8803298.25
A7: FF&E | D7: 0 | E7: 0 | F7: 15007796.25 | G7: 17416151.75 | H7: 32423948
A8: LEED Design Costs | D8: 0 | E8: 0 | F8: 960000 | G8: 524388 | H8: 1484388
A9: Total | D9: =SUM(D5:D8) -> 2037334.25 | E9: =SUM(E5:E8) -> 2812572 | F9: 68398621.99 | G9: 43011475.75 | H9: 116260004
G10: Cost without LEED Design | H10: =+H9-H8-1200000*0 -> 114775616 | I10: Escalation &
A11: Midtown Building Estimated Capex | I11: Contingency
A12: Land | D12: 11956243 | E12: 0 | F12: 0 | G12: 0 | H12: =SUM(D12:G12) -> 11956243 | I12: 0
A13: Core & Shell | J13: %
A14: Hard Cost | D14: 7711310 | E14: 44284380.71 | F14: 27469116 | G14: 0 | H14: =SUM(D14:G14) -> 79464806.71 | I14: 7983728.713 | J14: =+I14/(H14+H16) -> 0.08512941787
A15: Soft Costs | D15: 4073040 | E15: 437028 | F15: 2477820.75 | G15: 0 | H15: =SUM(D15:G15) -> 6987888.75 | I15: 1369887.75 | J15: =+I15/H15 -> 0.1960374298
A16: Profit, Fees and Commissions | D16: 3052327 | E16: 7525919.583 | F16: 3740375.667 | G16: 0 | H16: =SUM(D16:G16) -> 14318622.25 | I16: 1438098.35 | J16: =+I16/H16 -> 0.1004355255
A17: Total Building Cost | D17: =SUM(D14:D16) -> 14836677 | E17: 52247328.3 | F17: 33687312.42 | G17: 0 | H17: 100771317.7 | I17: 10791714.81 | J17: =+I17/H17 -> 0.1070911352
A18: Interior
A19: Furniture, Fixtures & Equipment | D19: =D7 -> 0 | E19: =E7 -> 0 | F19: 15007796.25 | G19: 17416151.75 | H19: =SUM(D19:G19) -> 32423948 | I19: 3062541.14 | J19: =+I19/H19 -> 0.09445306105
A20: Interior Costs - Construction | D20: =+D5 -> 0 | E20: =+E5 -> 0 | F20: 49649141.74 | G20: 23899228 | H20: =SUM(D20:G20) -> 73548369.74 | I20: 16543188.94 | J20: =+I20/H20 -> 0.2249293763 | K20: =+I28+I14 -> 7984124.713
A21: Interior Costs - Soft Costs | D21: =+D6 -> 2037334.25 | E21: =+E6 -> 2812572 | F21: 2781684 | G21: 1171708 | H21: 8803298.25 | I21: 0 | J21: =+I21/H21 -> 0 | K21: 102591525
A22: LEED Design | D22: =+D8 -> 0 | E22: =+E8 -> 0 | F22: =+F8 -> 960000 | G22: =+G8 -> 524388 | H22: 1484388 | I22: 0 | J22: =+I22/H22 -> 0 | K22: =+K20/K21 -> 0.07782440814
A23: Total Interior Costs | D23: =SUM(D19:D22) -> 2037334.25 | E23: =SUM(E19:E22) -> 2812572 | F23: 68398621.99 | G23: 43011475.75 | H23: 116260004 | I23: 19605730.08 | J23: =+I23/H23 -> 0.1686369293
A25: Total Midtown Building | D25: =+D12+D17+D23 -> 28830254.25 | E25: =+E12+E17+E23 -> 55059900.3 | F25: 102085934.4 | G25: 43011475.75 | H25: 228987564.7 | I25: 30397444.89
A27: Capital Plug | D27: =(255000000-$H$25-$H$28)*(D25+D28)/($H$25+$H$28) -> 579001.5294 | E27: =(255000000-$H$25-$H$28)*(E25+E28)/($H$25+$H$28) -> 1399707.299 | F27: =(255000000-$H$25-$H$28)*(F25+F28)/($H$25+$H$28) -> 2174286.085 | G27: =(255000000-$H$25-$H$28)*(G25+G28)/($H$25+$H$28) -> 863044.3803 | H27: =SUM(D27:G27) -> 5016039.294
A28: Parking Garage | D28: 25400 | E28: 14697203.67 | F28: 6273792.333 | G28: 0 | H28: =SUM(D28:G28) -> 20996396 | I28: 396 | J28: =+I28/H28 -> 1.886037966e-05
A30: Total Midtown Capex | D30: =+D25+D27+D28 -> 29434655.78 | E30: =+E25+E27+E28 -> 71156811.26 | F30: 110534012.8 | G30: 43874520.13 | H30: 255000000 | I30: 30397840.89 | J30: =+I30/H30 -> 0.1192072192
D31: 0
A32: Midtown Cost - provided by JLL on 9/12/2022
D78: Total Costs | R78: =+H30 -> 255000000
D79: Less: Parking Garage | R79: =-H28 -> -20996396
D80: Less: TI Allowance
D81: Less: Debt/Equity Fees
D82: Less: Interest Carry
D83: Building Capex Total | R83: =SUM(R78:R82) -> 234003604
D84: Parking Garage | R84: =-R79 -> 20996396
D85: Total for Building/Parking | R85: =SUM(R83:R84) -> 255000000
D86: TECO Contingency on Hard Costs | G86: =(G46-G45)*$F$86 -> 0 | H86: =(H46-H45)*$F$86 -> 0 | I86: 0 | J86: 0 | K86: 0 | L86: 0 | M86: 0 | N86: 0 | O86: 0 | P86: =(P46-P45)*$F$86 -> 0 | Q86: 0 | R86: =SUM(G86:Q86) -> 0
D87: Collier Commission | F87: 0.03 | Q87: =$T$87*$F$87 -> 0 | R87: =SUM(G87:Q87) -> 0 | S87: Collier Commission Basis | T87: =+R36+R46+R66-R63-R64 -> 0
D88: Façade | R88: =SUM(G88:Q88) -> 0 | S88: Note: need to add $7M to costs for façade update
D89: Interior Costs | R89: =+H9 -> 116260004
D90: Fit-Out Manager (3% of interior construction) | R90: =+H20-H5 -> 0
D91: Consultant ($250k/year) and FTEs ($300k/year) | R91: =+H21-H6 -> 0
D92: Moving Costs | R92: =+H27 -> 5016039.294
D93: Total Project | R93: =SUM(R85:R92) -> 376276043.3

Sheet Monthly Capex AFUDC Calcs
F3: Description | G3: In-Service Year Leave Blank for Annual | H3: Year 1 Months in service
F4: CAPEX SPEND BY YEAR
F5: Land Assumption | G5: 2022
F6: Hard Costs | G6: 2024
F7: Soft Costs (excluding Int. Carry & Debt/Equity Fees) | G7: 2024
F8: FFE (pruely building & Interior design) | G8: 2025
F9: LEED Design Costs | G9: 2025
F10: Capital Plug | G10: 2025
F11: Parking Garage (1,000 Spaces) | G11: 2024
F12: Developer Profit | G12: 2024
F13: Interior Construction Costs (less TI Allow) | G13: 2025
F14: Interior Soft Costs | G14: 2025
F17: Description | G17: 2022 | H17: =+G17+1 -> 2023 | I17: =+H17+1 -> 2024 | J17: =+I17+1 -> 2025 | K17: Total | L17: AFUDC | M17: Total Rate Base
F18: CAPEX SPEND BY YEAR
F19: =+F5 -> Land Assumption | G19: =+'Capital Costs'!D12 -> 11956243 | H19: =+'Capital Costs'!E12 -> 0 | I19: =+'Capital Costs'!F12 -> 0 | J19: =+'Capital Costs'!G12 -> 0 | K19: =SUM(G19:J19) -> 11956243 | L19: =+L79 -> 1566493.508 | M19: =+K19+L19 -> 13522736.51
F20: =+F6 -> Hard Costs | G20: =+'Capital Costs'!D14 -> 7711310 | H20: =+'Capital Costs'!E14 -> 44284380.71 | I20: =+'Capital Costs'!F14 -> 27469116 | J20: =+'Capital Costs'!G14 -> 0 | K20: 79464806.71 | L20: 5760757.354 | M20: 85225564.07
F21: Soft Costs (excluding Int. Carry & Debt/Equity Fees) | G21: =+'Capital Costs'!D15 -> 4073040 | H21: =+'Capital Costs'!E15 -> 437028 | I21: =+'Capital Costs'!F15 -> 2477820.75 | J21: =+'Capital Costs'!G15 -> 0 | K21: 6987888.75 | L21: 664941.377 | M21: 7652830.127
F22: FFE (pruely building & Interior design) | G22: =+'Capital Costs'!D19 -> 0 | H22: =+'Capital Costs'!E19 -> 0 | I22: =+'Capital Costs'!F19 -> 15007796.25 | J22: =+'Capital Costs'!G19 -> 17416151.75 | K22: 32423948 | L22: 983778.2267 | M22: 33407726.23
F23: LEED Design Costs | G23: =+'Capital Costs'!D22 -> 0 | H23: =+'Capital Costs'!E22 -> 0 | I23: =+'Capital Costs'!F22 -> 960000 | J23: =+'Capital Costs'!G22 -> 524388 | K23: 1484388 | L23: 65707.51244 | M23: 1550095.512
F24: Capital Plug | G24: =+'Capital Costs'!D27 -> 579001.5294 | H24: =+'Capital Costs'!E27 -> 1399707.299 | I24: =+'Capital Costs'!F27 -> 2174286.085 | J24: =+'Capital Costs'!G27 -> 863044.3803 | K24: 5016039.294 | L24: 419950.9422 | M24: 5435990.236
F25: Parking Garage (1,000 Spaces) | G25: =+'Capital Costs'!D28 -> 25400 | H25: =+'Capital Costs'!E28 -> 14697203.67 | I25: =+'Capital Costs'!F28 -> 6273792.333 | J25: =+'Capital Costs'!G28 -> 0 | K25: 20996396 | L25: 1501528.584 | M25: 22497924.58
F26: Developer Profit | G26: =+'Capital Costs'!D16 -> 3052327 | H26: =+'Capital Costs'!E16 -> 7525919.583 | I26: =+'Capital Costs'!F16 -> 3740375.667 | J26: =+'Capital Costs'!G16 -> 0 | K26: 14318622.25 | L26: 1213411.395 | M26: 15532033.64
F27: Interior Construction Costs (less TI Allow) | G27: =+'Capital Costs'!D20 -> 0 | H27: =+'Capital Costs'!E20 -> 0 | I27: =+'Capital Costs'!F20 -> 49649141.74 | J27: =+'Capital Costs'!G20 -> 23899228 | K27: 73548369.74 | L27: 2952589.516 | M27: 76500959.26
F28: Interior Soft Costs | G28: =+'Capital Costs'!D21 -> 2037334.25 | H28: =+'Capital Costs'!E21 -> 2812572 | I28: =+'Capital Costs'!F21 -> 2781684 | J28: =+'Capital Costs'!G21 -> 1171708 | K28: 8803298.25 | L28: 898280.6321 | M28: 9701578.882
G29: =SUM(G19:G28) -> 29434655.78 | H29: 71156811.26 | I29: 110534012.8 | J29: 43874520.13 | K29: 255000000 | L29: 16027439.05 | M29: 271027439
F30: Check to Row 32 (Annual Capex Spend) | G30: =+G29-S45 -> 0 | H30: =+H29-AE45 -> 0 | I30: =+I29-AQ45 -> 0 | J30: =+J29-BC45 -> 0 | K30: =+K29-BD45 -> 0
F33: MONTHLY TIMING OF SPEND (plot accordingly) | G33: 2021-12-01 | H33: 2022-01-01 | I33: 2022-02-01 | J33: 2022-03-01 | K33: 2022-04-01 | L33: 2022-05-01 | M33: 2022-06-01 | N33: 2022-07-01 | O33: 2022-08-01 | P33: 2022-09-01 | Q33: 2022-10-01 | R33: 2022-11-01 | S33: 2022-12-01 | T33: 2023-01-01 | U33: 2023-02-01 | V33: 2023-03-01 | W33: 2023-04-01 | X33: 2023-05-01 | Y33: 2023-06-01 | Z33: 2023-07-01 | AA33: 2023-08-01 | AB33: 2023-09-01 | AC33: 2023-10-01 | AD33: 2023-11-01 | AE33: 2023-12-01 | AF33: 2024-01-01 | AG33: 2024-02-01 | AH33: 2024-03-01 | AI33: 2024-04-01 | AJ33: 2024-05-01 | AK33: 2024-06-01 | AL33: 2024-07-01 | AM33: 2024-08-01 | AN33: 2024-09-01 | AO33: 2024-10-01 | AP33: 2024-11-01 | AQ33: 2024-12-01 | AR33: 2025-01-01 | AS33: 2025-02-01 | AT33: 2025-03-01 | AU33: 2025-04-01 | AV33: 2025-05-01 | AW33: 2025-06-01 | AX33: 2025-07-01 | AY33: 2025-08-01 | AZ33: 2025-09-01 | BA33: 2025-10-01 | BB33: 2025-11-01 | BC33: 2025-12-01 | BD33: Total
F34: =+F5 -> Land Assumption | G34: 0 | P34: 100000 | Q34: 0 | R34: 11856243 | S34: 0 | T34: 0 | U34: 0 | V34: 0 | W34: 0 | X34: 0 | Y34: 0 | Z34: 0 | AA34: 0 | AB34: 0 | AC34: 0 | AD34: 0 | AE34: 0 | AF34: 0 | AG34: 0 | AH34: 0 | AI34: 0 | AJ34: 0 | AK34: 0 | AL34: 0 | AM34: 0 | AN34: 0 | AO34: 0 | AP34: 0 | AQ34: 0 | AR34: 0 | AS34: 0 | AT34: 0 | AU34: 0 | AV34: 0 | AW34: 0 | AX34: 0 | AY34: 0 | AZ34: 0 | BA34: 0 | BB34: 0 | BC34: 0 | BD34: =SUM(H34:BC34) -> 11956243 | BE34: =BD34-K19 -> 0
F35: =+F6 -> Hard Costs | G35: 0 | P35: 625 | Q35: 625 | R35: 7710060 | S35: 0 | T35: 3690365.713 | U35: 3690365 | V35: 3690365 | W35: 3690365 | X35: 3690365 | Y35: 3690365 | Z35: 3690365 | AA35: 3690365 | AB35: 3690365 | AC35: 3690365 | AD35: 3690365 | AE35: 3690365 | AF35: 2290100 | AG35: 2290100 | AH35: 2290100 | AI35: 2290100 | AJ35: 2290100 | AK35: 2290100 | AL35: 2290100 | AM35: 2290100 | AN35: 2290100 | AO35: 2290100 | AP35: 2290100 | AQ35: 2278016 | AR35: 0 | AS35: 0 | AT35: 0 | AU35: 0 | AV35: 0 | AW35: 0 | AX35: 0 | AY35: 0 | AZ35: 0 | BA35: 0 | BB35: 0 | BC35: 0 | BD35: 79464806.71 | BE35: 0
F36: Soft Costs (excluding Int. Carry & Debt/Equity Fees) | G36: 0 | P36: 2396421 | Q36: 532311 | R36: 46580 | S36: 1097728 | T36: 36419 | U36: 36419 | V36: 36419 | W36: 36419 | X36: 36419 | Y36: 36419 | Z36: 36419 | AA36: 36419 | AB36: 36419 | AC36: 36419 | AD36: 36419 | AE36: 36419 | AF36: 206485.75 | AG36: 206485 | AH36: 206485 | AI36: 206485 | AJ36: 206485 | AK36: 206485 | AL36: 206485 | AM36: 206485 | AN36: 206485 | AO36: 206485 | AP36: 206485 | AQ36: 206485 | AR36: 0 | AS36: 0 | AT36: 0 | AU36: 0 | AV36: 0 | AW36: 0 | AX36: 0 | AY36: 0 | AZ36: 0 | BA36: 0 | BB36: 0 | BC36: 0 | BD36: 6987888.75 | BE36: 0
F37: FFE (pruely building & Interior design) | G37: 0 | P37: 0 | Q37: 0 | R37: 0 | S37: 0 | T37: 0 | U37: 0 | V37: 0 | W37: 0 | X37: 0 | Y37: 0 | Z37: 0 | AA37: 0 | AB37: 0 | AC37: 0 | AD37: 0 | AE37: 0 | AF37: 0 | AG37: 0 | AH37: 220000 | AI37: 220000 | AJ37: 600581 | AK37: 2559200 | AL37: 4559200 | AM37: 559200 | AN37: 559200 | AO37: 1559200 | AP37: 2264382 | AQ37: 1906833.25 | AR37: 1656833.25 | AS37: 1556833.25 | AT37: 2756833.25 | AU37: 3636966 | AV37: 3691869 | AW37: 4116817 | AX37: 0 | AY37: 0 | AZ37: 0 | BA37: 0 | BB37: 0 | BC37: 0 | BD37: 32423948 | BE37: 0
F38: LEED Design Costs | G38: 0 | P38: 0 | Q38: 0 | R38: 0 | S38: 0 | T38: 0 | U38: 0 | V38: 0 | W38: 0 | X38: 0 | Y38: 0 | Z38: 0 | AA38: 0 | AB38: 0 | AC38: 0 | AD38: 0 | AE38: 0 | AF38: 80000 | AG38: 80000 | AH38: 80000 | AI38: 80000 | AJ38: 80000 | AK38: 80000 | AL38: 80000 | AM38: 80000 | AN38: 80000 | AO38: 80000 | AP38: 80000 | AQ38: 80000 | AR38: 80000 | AS38: 80000 | AT38: 80000 | AU38: 80000 | AV38: 80000 | AW38: 80000 | AX38: 44388 | AY38: 0 | AZ38: 0 | BA38: 0 | BB38: 0 | BC38: 0 | BD38: 1484388 | BE38: 0
F39: Capital Plug | G39: 0 | P39: =+G24/4 -> 144750.3823 | Q39: =+P39 -> 144750.3823 | R39: =+Q39 -> 144750.3823 | S39: 144750.3823 | T39: =+H24/12 -> 116642.2749 | U39: =+T39 -> 116642.2749 | V39: =+U39 -> 116642.2749 | W39: 116642.2749 | X39: 116642.2749 | Y39: 116642.2749 | Z39: 116642.2749 | AA39: 116642.2749 | AB39: 116642.2749 | AC39: 116642.2749 | AD39: 116642.2749 | AE39: 116642.2749 | AF39: =+I24/12 -> 181190.5071 | AG39: =+AF39 -> 181190.5071 | AH39: =+AG39 -> 181190.5071 | AI39: 181190.5071 | AJ39: 181190.5071 | AK39: 181190.5071 | AL39: 181190.5071 | AM39: 181190.5071 | AN39: 181190.5071 | AO39: 181190.5071 | AP39: 181190.5071 | AQ39: 181190.5071 | AR39: =+J24/6 -> 143840.73 | AS39: =+AR39 -> 143840.73 | AT39: =+AS39 -> 143840.73 | AU39: 143840.73 | AV39: 143840.73 | AW39: 143840.73 | BD39: 5016039.294 | BE39: 0
F40: Parking Garage (1,000 Spaces) | G40: 0 | P40: 12700 | Q40: 12700 | R40: 0 | S40: 0 | T40: 1224766.667 | U40: 1224767 | V40: 1224767 | W40: 1224767 | X40: 1224767 | Y40: 1224767 | Z40: 1224767 | AA40: 1224767 | AB40: 1224767 | AC40: 1224767 | AD40: 1224767 | AE40: 1224767 | AF40: 522816.3333 | AG40: 522816 | AH40: 522816 | AI40: 522816 | AJ40: 522816 | AK40: 522816 | AL40: 522816 | AM40: 522816 | AN40: 522816 | AO40: 522816 | AP40: 522816 | AQ40: 522816 | AR40: 0 | AS40: 0 | AT40: 0 | AU40: 0 | AV40: 0 | AW40: 0 | AX40: 0 | AY40: 0 | AZ40: 0 | BA40: 0 | BB40: 0 | BC40: 0 | BD40: 20996396 | BE40: 0
F41: Developer Profit | G41: 0 | P41: 0 | Q41: 0 | R41: 2517988 | S41: 534339 | T41: 1168359.583 | U41: 1168360 | V41: 518920 | W41: 518920 | X41: 518920 | Y41: 518920 | Z41: 518920 | AA41: 518920 | AB41: 518920 | AC41: 518920 | AD41: 518920 | AE41: 518920 | AF41: 311697.6667 | AG41: 311698 | AH41: 311698 | AI41: 311698 | AJ41: 311698 | AK41: 311698 | AL41: 311698 | AM41: 311698 | AN41: 311698 | AO41: 311698 | AP41: 311698 | AQ41: 311698 | AR41: 0 | AS41: 0 | AT41: 0 | AU41: 0 | AV41: 0 | AW41: 0 | AX41: 0 | AY41: 0 | AZ41: 0 | BA41: 0 | BB41: 0 | BC41: 0 | BD41: 14318622.25 | BE41: 0
F42: Interior Construction Costs (less TI Allow) | G42: 0 | P42: 0 | Q42: 0 | R42: 0 | S42: 0 | T42: 0 | U42: 0 | V42: 0 | W42: 0 | X42: 0 | Y42: 0 | Z42: 0 | AA42: 0 | AB42: 0 | AC42: 0 | AD42: 0 | AE42: 0 | AF42: 0 | AG42: 0 | AH42: 0 | AI42: 4378885.743 | AJ42: 3490032 | AK42: 4640032 | AL42: 4190032 | AM42: 5190032 | AN42: 6190032 | AO42: 6190032 | AP42: 7190032 | AQ42: 8190032 | AR42: 7190032 | AS42: 6190032 | AT42: 5190032 | AU42: 4189132 | AV42: 0 | AW42: 0 | AX42: 1140000 | AY42: 0 | AZ42: 0 | BA42: 0 | BB42: 0 | BC42: 0 | BD42: 73548369.74 | BE42: 0
F43: Interior Soft Costs | G43: 0 | P43: 1247576.25 | Q43: 316324 | R43: 236717 | S43: 236717 | T43: 240381 | U43: 240381 | V43: 240381 | W43: 232381 | X43: 232381 | Y43: 232381 | Z43: 232381 | AA43: 232381 | AB43: 232381 | AC43: 232381 | AD43: 232381 | AE43: 232381 | AF43: 232807 | AG43: 218807 | AH43: 202807 | AI43: 202807 | AJ43: 202807 | AK43: 252807 | AL43: 252807 | AM43: 252807 | AN43: 252807 | AO43: 236807 | AP43: 236807 | AQ43: 236807 | AR43: 236807 | AS43: 261807 | AT43: 261807 | AU43: 241613 | AV43: 94674 | AW43: 25000 | AX43: 25000 | AY43: 25000 | AZ43: 0 | BA43: 0 | BB43: 0 | BC43: 0 | BD43: 8803298.25 | BE43: 0
G44: =SUM(G34:G43) -> 0 | H44: 0 | I44: 0 | J44: 0 | K44: 0 | L44: 0 | M44: 0 | N44: 0 | O44: 0 | P44: 3902072.632 | Q44: 1006710.382 | R44: 22512338.38 | S44: 2013534.382 | T44: 6476934.238 | U44: 6476934.275 | V44: 5827494.275 | W44: 5819494.275 | X44: 5819494.275 | Y44: 5819494.275 | Z44: 5819494.275 | AA44: 5819494.275 | AB44: 5819494.275 | AC44: 5819494.275 | AD44: 5819494.275 | AE44: 5819494.275 | AF44: 3825097.257 | AG44: 3811096.507 | AH44: 4015096.507 | AI44: 8393982.25 | AJ44: 7885709.507 | AK44: 11044328.51 | AL44: 12594328.51 | AM44: =SUM(AM34:AM43) -> 9594328.507 | AN44: 10594328.51 | AO44: 11578328.51 | AP44: 13283510.51 | AQ44: 13913877.76 | AR44: 9307512.98 | AS44: 8232512.98 | AT44: 8432512.98 | AU44: 8291551.73 | AV44: 4010383.73 | AW44: 4365657.73 | AX44: 1209388 | AY44: 25000 | AZ44: 0 | BA44: 0 | BB44: 0 | BC44: 0 | BD44: 255000000 | BE44: 0
R45: Annual | S45: =SUM(H44:S44) -> 29434655.78 | AD45: Annual | AE45: =SUM(T44:AE44) -> 71156811.26 | AP45: Annual | AQ45: =SUM(AF44:AQ44) -> 110534012.8 | BB45: Annual | BC45: =SUM(AR44:BC44) -> 43874520.13 | BD45: =+S45+AE45+AQ45+BC45 -> 255000000
F48: AFUDC BASIS ACCUMULATION (unique formula logic) | G48: 2021-12-01 | H48: 2022-01-01 | I48: 2022-02-01 | J48: 2022-03-01 | K48: 2022-04-01 | L48: 2022-05-01 | M48: 2022-06-01 | N48: 2022-07-01 | O48: 2022-08-01 | P48: 2022-09-01 | Q48: 2022-10-01 | R48: 2022-11-01 | S48: 2022-12-01 | T48: 2023-01-01 | U48: 2023-02-01 | V48: 2023-03-01 | W48: 2023-04-01 | X48: 2023-05-01 | Y48: 2023-06-01 | Z48: 2023-07-01 | AA48: 2023-08-01 | AB48: 2023-09-01 | AC48: 2023-10-01 | AD48: 2023-11-01 | AE48: 2023-12-01 | AF48: 2024-01-01 | AG48: 2024-02-01 | AH48: 2024-03-01 | AI48: 2024-04-01 | AJ48: 2024-05-01 | AK48: 2024-06-01 | AL48: 2024-07-01 | AM48: 2024-08-01 | AN48: 2024-09-01 | AO48: 2024-10-01 | AP48: 2024-11-01 | AQ48: 2024-12-01 | AR48: 2025-01-01 | AS48: 2025-02-01 | AT48: 2025-03-01 | AU48: 2025-04-01 | AV48: 2025-05-01 | AW48: 2025-06-01 | AX48: 2025-07-01 | AY48: 2025-08-01 | AZ48: 2025-09-01 | BA48: 2025-10-01 | BB48: 2025-11-01 | BC48: 2025-12-01
F49: =+F5 -> Land Assumption | H49: =SUM($G34:G34)+H34/2+SUM($G64:G64) -> 0 | I49: =SUM($G34:H34)+I34/2+SUM($G64:H64) -> 0 | J49: =SUM($G34:I34)+J34/2+SUM($G64:I64) -> 0 | K49: =SUM($G34:J34)+K34/2+SUM($G64:J64) -> 0 | L49: =SUM($G34:K34)+L34/2+SUM($G64:K64) -> 0 | M49: =SUM($G34:L34)+M34/2+SUM($G64:L64) -> 0 | N49: =SUM($G34:M34)+N34/2+SUM($G64:M64) -> 0 | O49: =SUM($G34:N34)+O34/2+SUM($G64:N64) -> 0 | P49: =SUM($G34:O34)+P34/2+SUM($G64:O64) -> 50000 | Q49: =SUM($G34:P34)+Q34/2+SUM($G64:P64) -> 100246.6667 | R49: =SUM($G34:Q34)+R34/2+SUM($G64:Q64) -> 6028862.717 | S49: =SUM($G34:R34)+S34/2+SUM($G64:R64) -> 11986726.61 | T49: =SUM($G34:S34)+T34/2+SUM($G64:S64) -> 12045861.12 | U49: =SUM($G34:T34)+U34/2+SUM($G64:T64) -> 12105287.37 | V49: =SUM($G34:U34)+V34/2+SUM($G64:U64) -> 12165006.79 | W49: =SUM($G34:V34)+W34/2+SUM($G64:V64) -> 12225020.82 | X49: =SUM($G34:W34)+X34/2+SUM($G64:W64) -> 12285330.93 | Y49: =SUM($G34:X34)+Y34/2+SUM($G64:X64) -> 12345938.56 | Z49: =SUM($G34:Y34)+Z34/2+SUM($G64:Y64) -> 12406845.19 | AA49: =SUM($G34:Z34)+AA34/2+SUM($G64:Z64) -> 12468052.29 | AB49: =SUM($G34:AA34)+AB34/2+SUM($G64:AA64) -> 12529561.35 | AC49: =SUM($G34:AB34)+AC34/2+SUM($G64:AB64) -> 12591373.85 | AD49: =SUM($G34:AC34)+AD34/2+SUM($G64:AC64) -> 12653491.3 | AE49: =SUM($G34:AD34)+AE34/2+SUM($G64:AD64) -> 12715915.19 | AF49: =SUM($G34:AE34)+AF34/2+SUM($G64:AE64) -> 12778647.04 | AG49: =SUM($G34:AF34)+AG34/2+SUM($G64:AF64) -> 12841688.36 | AH49: =SUM($G34:AG34)+AH34/2+SUM($G64:AG64) -> 12905040.69 | AI49: =SUM($G34:AH34)+AI34/2+SUM($G64:AH64) -> 12968705.56 | AJ49: =SUM($G34:AI34)+AJ34/2+SUM($G64:AI64) -> 13032684.51 | AK49: =SUM($G34:AJ34)+AK34/2+SUM($G64:AJ64) -> 13096979.08 | AL49: =SUM($G34:AK34)+AL34/2+SUM($G64:AK64) -> 13161590.85 | AM49: =SUM($G34:AL34)+AM34/2+SUM($G64:AL64) -> 13226521.36 | AN49: =SUM($G34:AM34)+AN34/2+SUM($G64:AM64) -> 13291772.2 | AO49: =SUM($G34:AN34)+AO34/2+SUM($G64:AN64) -> 13357344.94 | AP49: =SUM($G34:AO34)+AP34/2+SUM($G64:AO64) -> 13423241.18 | AQ49: =SUM($G34:AP34)+AQ34/2+SUM($G64:AP64) -> 13489462.5 | AR49: =SUM($G34:AQ34)+AR34/2+SUM($G64:AQ64) -> 13522736.51 | AS49: =SUM($G34:AR34)+AS34/2+SUM($G64:AR64) -> 13522736.51 | AT49: =SUM($G34:AS34)+AT34/2+SUM($G64:AS64) -> 13522736.51 | AU49: =SUM($G34:AT34)+AU34/2+SUM($G64:AT64) -> 13522736.51 | AV49: =SUM($G34:AU34)+AV34/2+SUM($G64:AU64) -> 13522736.51 | AW49: =SUM($G34:AV34)+AW34/2+SUM($G64:AV64) -> 13522736.51 | AX49: =SUM($G34:AW34)+AX34/2+SUM($G64:AW64) -> 13522736.51 | AY49: =SUM($G34:AX34)+AY34/2+SUM($G64:AX64) -> 13522736.51 | AZ49: =SUM($G34:AY34)+AZ34/2+SUM($G64:AY64) -> 13522736.51 | BA49: =SUM($G34:AZ34)+BA34/2+SUM($G64:AZ64) -> 13522736.51 | BB49: =SUM($G34:BA34)+BB34/2+SUM($G64:BA64) -> 13522736.51 | BC49: =SUM($G34:BB34)+BC34/2+SUM($G64:BB64) -> 13522736.51
F50: =+F6 -> Hard Costs | H50: =SUM($G35:G35)+H35/2+SUM($G65:G65) -> 0 | I50: =SUM($G35:H35)+I35/2+SUM($G65:H65) -> 0 | J50: =SUM($G35:I35)+J35/2+SUM($G65:I65) -> 0 | K50: =SUM($G35:J35)+K35/2+SUM($G65:J65) -> 0 | L50: =SUM($G35:K35)+L35/2+SUM($G65:K65) -> 0 | M50: =SUM($G35:L35)+M35/2+SUM($G65:L65) -> 0 | N50: =SUM($G35:M35)+N35/2+SUM($G65:M65) -> 0 | O50: =SUM($G35:N35)+O35/2+SUM($G65:N65) -> 0 | P50: =SUM($G35:O35)+P35/2+SUM($G65:O65) -> 312.5 | Q50: =SUM($G35:P35)+Q35/2+SUM($G65:P65) -> 939.0416667 | R50: =SUM($G35:Q35)+R35/2+SUM($G65:Q65) -> 3856286.174 | S50: =SUM($G35:R35)+S35/2+SUM($G65:R65) -> 7730340.519 | T50: =SUM($G35:S35)+T35/2+SUM($G65:S65) -> 9613659.723 | U50: =SUM($G35:T35)+U35/2+SUM($G65:T65) -> 13351452.47 | V50: =SUM($G35:U35)+V35/2+SUM($G65:U65) -> 17107684.63 | W50: =SUM($G35:V35)+W35/2+SUM($G65:V65) -> 20882447.54 | X50: =SUM($G35:W35)+X35/2+SUM($G65:W65) -> 24675832.62 | Y50: =SUM($G35:X35)+Y35/2+SUM($G65:X65) -> 28487931.73 | Z50: =SUM($G35:Y35)+Z35/2+SUM($G65:Y65) -> 32318837.19 | AA50: =SUM($G35:Z35)+AA35/2+SUM($G65:Z65) -> 36168641.79 | AB50: =SUM($G35:AA35)+AB35/2+SUM($G65:AA65) -> 40037438.75 | AC50: =SUM($G35:AB35)+AC35/2+SUM($G65:AB65) -> 43925321.78 | AD50: =SUM($G35:AC35)+AD35/2+SUM($G65:AC65) -> 47832385.04 | AE50: =SUM($G35:AD35)+AE35/2+SUM($G65:AD65) -> 51758723.14 | AF50: =SUM($G35:AE35)+AF35/2+SUM($G65:AE65) -> 55004298.67 | AG50: =SUM($G35:AF35)+AG35/2+SUM($G65:AF65) -> 57565753.21 | AH50: =SUM($G35:AG35)+AH35/2+SUM($G65:AG65) -> 60139844.26 | AI50: =SUM($G35:AH35)+AI35/2+SUM($G65:AH65) -> 62726634.16 | AJ50: =SUM($G35:AI35)+AJ35/2+SUM($G65:AI65) -> 65326185.55 | AK50: =SUM($G35:AJ35)+AK35/2+SUM($G65:AJ65) -> 67938561.4 | AL50: =SUM($G35:AK35)+AL35/2+SUM($G65:AK65) -> 70563824.97 | AM50: =SUM($G35:AL35)+AM35/2+SUM($G65:AL65) -> 73202039.84 | AN50: =SUM($G35:AM35)+AN35/2+SUM($G65:AM65) -> 75853269.91 | AO50: =SUM($G35:AN35)+AO35/2+SUM($G65:AN65) -> 78517579.37 | AP50: =SUM($G35:AO35)+AP35/2+SUM($G65:AO65) -> 81195032.76 | AQ50: =SUM($G35:AP35)+AQ35/2+SUM($G65:AP65) -> 83879652.92 | AR50: =SUM($G35:AQ35)+AR35/2+SUM($G65:AQ65) -> 85225564.07 | AS50: =SUM($G35:AR35)+AS35/2+SUM($G65:AR65) -> 85225564.07 | AT50: =SUM($G35:AS35)+AT35/2+SUM($G65:AS65) -> 85225564.07 | AU50: =SUM($G35:AT35)+AU35/2+SUM($G65:AT65) -> 85225564.07 | AV50: =SUM($G35:AU35)+AV35/2+SUM($G65:AU65) -> 85225564.07 | AW50: =SUM($G35:AV35)+AW35/2+SUM($G65:AV65) -> 85225564.07 | AX50: =SUM($G35:AW35)+AX35/2+SUM($G65:AW65) -> 85225564.07 | AY50: =SUM($G35:AX35)+AY35/2+SUM($G65:AX65) -> 85225564.07 | AZ50: =SUM($G35:AY35)+AZ35/2+SUM($G65:AY65) -> 85225564.07 | BA50: =SUM($G35:AZ35)+BA35/2+SUM($G65:AZ65) -> 85225564.07 | BB50: =SUM($G35:BA35)+BB35/2+SUM($G65:BA65) -> 85225564.07 | BC50: =SUM($G35:BB35)+BC35/2+SUM($G65:BB65) -> 85225564.07
F51: Soft Costs (excluding Int. Carry & Debt/Equity Fees) | H51: =SUM($G36:G36)+H36/2+SUM($G66:G66) -> 0 | I51: =SUM($G36:H36)+I36/2+SUM($G66:H66) -> 0 | J51: =SUM($G36:I36)+J36/2+SUM($G66:I66) -> 0 | K51: =SUM($G36:J36)+K36/2+SUM($G66:J66) -> 0 | L51: =SUM($G36:K36)+L36/2+SUM($G66:K66) -> 0 | M51: =SUM($G36:L36)+M36/2+SUM($G66:L66) -> 0 | N51: =SUM($G36:M36)+N36/2+SUM($G66:M66) -> 0 | O51: =SUM($G36:N36)+O36/2+SUM($G66:N66) -> 0 | P51: =SUM($G36:O36)+P36/2+SUM($G66:O66) -> 1198210.5 | Q51: =SUM($G36:P36)+Q36/2+SUM($G66:P66) -> 2668487.672 | R51: =SUM($G36:Q36)+R36/2+SUM($G66:Q66) -> 2971097.711 | S51: =SUM($G36:R36)+S36/2+SUM($G66:R66) -> 3557909.126 | T51: =SUM($G36:S36)+T36/2+SUM($G66:S66) -> 4142534.978 | U51: =SUM($G36:T36)+U36/2+SUM($G66:T66) -> 4199390.484 | V51: =SUM($G36:U36)+V36/2+SUM($G66:U66) -> 4256526.477 | W51: =SUM($G36:V36)+W36/2+SUM($G66:V66) -> 4313944.341 | X51: =SUM($G36:W36)+X36/2+SUM($G66:W66) -> 4371645.466 | Y51: =SUM($G36:X36)+Y36/2+SUM($G66:X66) -> 4429631.251 | Z51: =SUM($G36:Y36)+Z36/2+SUM($G66:Y66) -> 4487903.098 | AA51: =SUM($G36:Z36)+AA36/2+SUM($G66:Z66) -> 4546462.42 | AB51: =SUM($G36:AA36)+AB36/2+SUM($G66:AA66) -> 4605310.635 | AC51: =SUM($G36:AB36)+AC36/2+SUM($G66:AB66) -> 4664449.167 | AD51: =SUM($G36:AC36)+AD36/2+SUM($G66:AC66) -> 4723879.45 | AE51: =SUM($G36:AD36)+AE36/2+SUM($G66:AD66) -> 4783602.922 | AF51: =SUM($G36:AE36)+AF36/2+SUM($G66:AE66) -> 4928654.404 | AG51: =SUM($G36:AF36)+AG36/2+SUM($G66:AF66) -> 5159454.475 | AH51: =SUM($G36:AG36)+AH36/2+SUM($G66:AG66) -> 5391392.783 | AI51: =SUM($G36:AH36)+AI36/2+SUM($G66:AH66) -> 5624475.321 | AJ51: =SUM($G36:AI36)+AJ36/2+SUM($G66:AI66) -> 5858707.733 | AK51: =SUM($G36:AJ36)+AK36/2+SUM($G66:AJ66) -> 6094095.691 | AL51: =SUM($G36:AK36)+AL36/2+SUM($G66:AK66) -> 6330644.896 | AM51: =SUM($G36:AL36)+AM36/2+SUM($G66:AL66) -> 6568361.078 | AN51: =SUM($G36:AM36)+AN36/2+SUM($G66:AM66) -> 6807249.992 | AO51: =SUM($G36:AN36)+AO36/2+SUM($G66:AN66) -> 7047317.426 | AP51: =SUM($G36:AO36)+AP36/2+SUM($G66:AO66) -> 7288569.192 | AQ51: =SUM($G36:AP36)+AQ36/2+SUM($G66:AP66) -> 7531011.133 | AR51: =SUM($G36:AQ36)+AR36/2+SUM($G66:AQ66) -> 7652830.127 | AS51: =SUM($G36:AR36)+AS36/2+SUM($G66:AR66) -> 7652830.127 | AT51: =SUM($G36:AS36)+AT36/2+SUM($G66:AS66) -> 7652830.127 | AU51: =SUM($G36:AT36)+AU36/2+SUM($G66:AT66) -> 7652830.127 | AV51: =SUM($G36:AU36)+AV36/2+SUM($G66:AU66) -> 7652830.127 | AW51: =SUM($G36:AV36)+AW36/2+SUM($G66:AV66) -> 7652830.127 | AX51: =SUM($G36:AW36)+AX36/2+SUM($G66:AW66) -> 7652830.127 | AY51: =SUM($G36:AX36)+AY36/2+SUM($G66:AX66) -> 7652830.127 | AZ51: =SUM($G36:AY36)+AZ36/2+SUM($G66:AY66) -> 7652830.127 | BA51: =SUM($G36:AZ36)+BA36/2+SUM($G66:AZ66) -> 7652830.127 | BB51: =SUM($G36:BA36)+BB36/2+SUM($G66:BA66) -> 7652830.127 | BC51: =SUM($G36:BB36)+BC36/2+SUM($G66:BB66) -> 7652830.127
F52: FFE (pruely building & Interior design) | H52: =SUM($G37:G37)+H37/2+SUM($G67:G67) -> 0 | I52: =SUM($G37:H37)+I37/2+SUM($G67:H67) -> 0 | J52: =SUM($G37:I37)+J37/2+SUM($G67:I67) -> 0 | K52: =SUM($G37:J37)+K37/2+SUM($G67:J67) -> 0 | L52: =SUM($G37:K37)+L37/2+SUM($G67:K67) -> 0 | M52: =SUM($G37:L37)+M37/2+SUM($G67:L67) -> 0 | N52: =SUM($G37:M37)+N37/2+SUM($G67:M67) -> 0 | O52: =SUM($G37:N37)+O37/2+SUM($G67:N67) -> 0 | P52: =SUM($G37:O37)+P37/2+SUM($G67:O67) -> 0 | Q52: =SUM($G37:P37)+Q37/2+SUM($G67:P67) -> 0 | R52: =SUM($G37:Q37)+R37/2+SUM($G67:Q67) -> 0 | S52: =SUM($G37:R37)+S37/2+SUM($G67:R67) -> 0 | T52: =SUM($G37:S37)+T37/2+SUM($G67:S67) -> 0 | U52: =SUM($G37:T37)+U37/2+SUM($G67:T67) -> 0 | V52: =SUM($G37:U37)+V37/2+SUM($G67:U67) -> 0 | W52: =SUM($G37:V37)+W37/2+SUM($G67:V67) -> 0 | X52: =SUM($G37:W37)+X37/2+SUM($G67:W67) -> 0 | Y52: =SUM($G37:X37)+Y37/2+SUM($G67:X67) -> 0 | Z52: =SUM($G37:Y37)+Z37/2+SUM($G67:Y67) -> 0 | AA52: =SUM($G37:Z37)+AA37/2+SUM($G67:Z67) -> 0 | AB52: =SUM($G37:AA37)+AB37/2+SUM($G67:AA67) -> 0 | AC52: =SUM($G37:AB37)+AC37/2+SUM($G67:AB67) -> 0 | AD52: =SUM($G37:AC37)+AD37/2+SUM($G67:AC67) -> 0 | AE52: =SUM($G37:AD37)+AE37/2+SUM($G67:AD67) -> 0 | AF52: =SUM($G37:AE37)+AF37/2+SUM($G67:AE67) -> 0 | AG52: =SUM($G37:AF37)+AG37/2+SUM($G67:AF67) -> 0 | AH52: =SUM($G37:AG37)+AH37/2+SUM($G67:AG67) -> 110000 | AI52: =SUM($G37:AH37)+AI37/2+SUM($G67:AH67) -> 330542.6667 | AJ52: =SUM($G37:AI37)+AJ37/2+SUM($G67:AI67) -> 742463.8438 | AK52: =SUM($G37:AJ37)+AK37/2+SUM($G67:AJ67) -> 2326017.165 | AL52: =SUM($G37:AK37)+AL37/2+SUM($G67:AK67) -> 5896692.183 | AM52: =SUM($G37:AL37)+AM37/2+SUM($G67:AL67) -> 8484982.532 | AN52: =SUM($G37:AM37)+AN37/2+SUM($G67:AM67) -> 9086041.779 | AO52: =SUM($G37:AN37)+AO37/2+SUM($G67:AN67) -> 10190066.25 | AP52: =SUM($G37:AO37)+AP37/2+SUM($G67:AO67) -> 12152128.25 | AQ52: =SUM($G37:AP37)+AQ37/2+SUM($G67:AP67) -> 14297686.37 | AR52: =SUM($G37:AQ37)+AR37/2+SUM($G67:AQ67) -> 16150054.87 | AS52: =SUM($G37:AR37)+AS37/2+SUM($G67:AR67) -> 17836561.73 | AT52: =SUM($G37:AS37)+AT37/2+SUM($G67:AS67) -> 20081388.68 | AU52: =SUM($G37:AT37)+AU37/2+SUM($G67:AT67) -> 23377356.49 | AV52: =SUM($G37:AU37)+AV37/2+SUM($G67:AU67) -> 27157102.28 | AW52: =SUM($G37:AV37)+AW37/2+SUM($G67:AV67) -> 31195420.32 | AX52: =SUM($G37:AW37)+AX37/2+SUM($G67:AW67) -> 33407726.23 | AY52: =SUM($G37:AX37)+AY37/2+SUM($G67:AX67) -> 33407726.23 | AZ52: =SUM($G37:AY37)+AZ37/2+SUM($G67:AY67) -> 33407726.23 | BA52: =SUM($G37:AZ37)+BA37/2+SUM($G67:AZ67) -> 33407726.23 | BB52: =SUM($G37:BA37)+BB37/2+SUM($G67:BA67) -> 33407726.23 | BC52: =SUM($G37:BB37)+BC37/2+SUM($G67:BB67) -> 33407726.23
F53: LEED Design Costs | H53: =SUM($G38:G38)+H38/2+SUM($G68:G68) -> 0 | I53: =SUM($G38:H38)+I38/2+SUM($G68:H68) -> 0 | J53: =SUM($G38:I38)+J38/2+SUM($G68:I68) -> 0 | K53: =SUM($G38:J38)+K38/2+SUM($G68:J68) -> 0 | L53: =SUM($G38:K38)+L38/2+SUM($G68:K68) -> 0 | M53: =SUM($G38:L38)+M38/2+SUM($G68:L68) -> 0 | N53: =SUM($G38:M38)+N38/2+SUM($G68:M68) -> 0 | O53: =SUM($G38:N38)+O38/2+SUM($G68:N68) -> 0 | P53: =SUM($G38:O38)+P38/2+SUM($G68:O68) -> 0 | Q53: =SUM($G38:P38)+Q38/2+SUM($G68:P68) -> 0 | R53: =SUM($G38:Q38)+R38/2+SUM($G68:Q68) -> 0 | S53: =SUM($G38:R38)+S38/2+SUM($G68:R68) -> 0 | T53: =SUM($G38:S38)+T38/2+SUM($G68:S68) -> 0 | U53: =SUM($G38:T38)+U38/2+SUM($G68:T68) -> 0 | V53: =SUM($G38:U38)+V38/2+SUM($G68:U68) -> 0 | W53: =SUM($G38:V38)+W38/2+SUM($G68:V68) -> 0 | X53: =SUM($G38:W38)+X38/2+SUM($G68:W68) -> 0 | Y53: =SUM($G38:X38)+Y38/2+SUM($G68:X68) -> 0 | Z53: =SUM($G38:Y38)+Z38/2+SUM($G68:Y68) -> 0 | AA53: =SUM($G38:Z38)+AA38/2+SUM($G68:Z68) -> 0 | AB53: =SUM($G38:AA38)+AB38/2+SUM($G68:AA68) -> 0 | AC53: =SUM($G38:AB38)+AC38/2+SUM($G68:AB68) -> 0 | AD53: =SUM($G38:AC38)+AD38/2+SUM($G68:AC68) -> 0 | AE53: =SUM($G38:AD38)+AE38/2+SUM($G68:AD68) -> 0 | AF53: =SUM($G38:AE38)+AF38/2+SUM($G68:AE68) -> 40000 | AG53: =SUM($G38:AF38)+AG38/2+SUM($G68:AF68) -> 120197.3333 | AH53: =SUM($G38:AG38)+AH38/2+SUM($G68:AG68) -> 200790.3068 | AI53: =SUM($G38:AH38)+AI38/2+SUM($G68:AH68) -> 281780.8724 | AJ53: =SUM($G38:AI38)+AJ38/2+SUM($G68:AI68) -> 363170.9913 | AK53: =SUM($G38:AJ38)+AK38/2+SUM($G68:AJ68) -> 444962.6349 | AL53: =SUM($G38:AK38)+AL38/2+SUM($G68:AK68) -> 527157.7839 | AM53: =SUM($G38:AL38)+AM38/2+SUM($G68:AL68) -> 609758.429 | AN53: =SUM($G38:AM38)+AN38/2+SUM($G68:AM68) -> 692766.5705 | AO53: =SUM($G38:AN38)+AO38/2+SUM($G68:AN68) -> 776184.2189 | AP53: =SUM($G38:AO38)+AP38/2+SUM($G68:AO68) -> 860013.3944 | AQ53: =SUM($G38:AP38)+AQ38/2+SUM($G68:AP68) -> 944256.1272 | AR53: =SUM($G38:AQ38)+AR38/2+SUM($G68:AQ68) -> 1028914.457 | AS53: =SUM($G38:AR38)+AS38/2+SUM($G68:AR68) -> 1113990.435 | AT53: =SUM($G38:AS38)+AT38/2+SUM($G68:AS68) -> 1199486.122 | AU53: =SUM($G38:AT38)+AU38/2+SUM($G68:AT68) -> 1285403.586 | AV53: =SUM($G38:AU38)+AV38/2+SUM($G68:AU68) -> 1371744.911 | AW53: =SUM($G38:AV38)+AW38/2+SUM($G68:AV68) -> 1458512.186 | AX53: =SUM($G38:AW38)+AX38/2+SUM($G68:AW68) -> 1527901.512 | AY53: =SUM($G38:AX38)+AY38/2+SUM($G68:AX68) -> 1550095.512 | AZ53: =SUM($G38:AY38)+AZ38/2+SUM($G68:AY68) -> 1550095.512 | BA53: =SUM($G38:AZ38)+BA38/2+SUM($G68:AZ68) -> 1550095.512 | BB53: =SUM($G38:BA38)+BB38/2+SUM($G68:BA68) -> 1550095.512 | BC53: =SUM($G38:BB38)+BC38/2+SUM($G68:BB68) -> 1550095.512
F54: Capital Plug | H54: =SUM($G39:G39)+H39/2+SUM($G69:G69) -> 0 | I54: =SUM($G39:H39)+I39/2+SUM($G69:H69) -> 0 | J54: =SUM($G39:I39)+J39/2+SUM($G69:I69) -> 0 | K54: =SUM($G39:J39)+K39/2+SUM($G69:J69) -> 0 | L54: =SUM($G39:K39)+L39/2+SUM($G69:K69) -> 0 | M54: =SUM($G39:L39)+M39/2+SUM($G69:L69) -> 0 | N54: =SUM($G39:M39)+N39/2+SUM($G69:M69) -> 0 | O54: =SUM($G39:N39)+O39/2+SUM($G69:N69) -> 0 | P54: =SUM($G39:O39)+P39/2+SUM($G69:O69) -> 72375.19117 | Q54: =SUM($G39:P39)+Q39/2+SUM($G69:P69) -> 217482.6245 | R54: =SUM($G39:Q39)+R39/2+SUM($G69:Q69) -> 363305.9211 | S54: =SUM($G39:R39)+S39/2+SUM($G69:R69) -> 509848.6126 | T54: =SUM($G39:S39)+T39/2+SUM($G69:S69) -> 643060.1944 | U54: =SUM($G39:T39)+U39/2+SUM($G69:T69) -> 762874.8997 | V54: =SUM($G39:U39)+V39/2+SUM($G69:U69) -> 883280.6908 | W54: =SUM($G39:V39)+W39/2+SUM($G69:V69) -> 1004280.484 | X54: =SUM($G39:W39)+X39/2+SUM($G69:W69) -> 1125877.209 | Y54: =SUM($G39:X39)+Y39/2+SUM($G69:X69) -> 1248073.812 | Z54: =SUM($G39:Y39)+Z39/2+SUM($G69:Y69) -> 1370873.251 | AA54: =SUM($G39:Z39)+AA39/2+SUM($G69:Z69) -> 1494278.5 | AB54: =SUM($G39:AA39)+AB39/2+SUM($G69:AA69) -> 1618292.549 | AC54: =SUM($G39:AB39)+AC39/2+SUM($G69:AB69) -> 1742918.401 | AD54: =SUM($G39:AC39)+AD39/2+SUM($G69:AC69) -> 1868159.073 | AE54: =SUM($G39:AD39)+AE39/2+SUM($G69:AD69) -> 1994017.6 | AF54: =SUM($G39:AE39)+AF39/2+SUM($G69:AE69) -> 2152771.144 | AG54: =SUM($G39:AF39)+AG39/2+SUM($G69:AF69) -> 2344581.989 | AH54: =SUM($G39:AG39)+AH39/2+SUM($G69:AG69) -> 2537339.1 | AI54: =SUM($G39:AH39)+AI39/2+SUM($G69:AH69) -> 2731047.147 | AJ54: =SUM($G39:AI39)+AJ39/2+SUM($G69:AI69) -> 2925710.82 | AK54: =SUM($G39:AJ39)+AK39/2+SUM($G69:AJ69) -> 3121334.834 | AL54: =SUM($G39:AK39)+AL39/2+SUM($G69:AK69) -> 3317923.926 | AM54: =SUM($G39:AL39)+AM39/2+SUM($G69:AL69) -> 3515482.858 | AN54: =SUM($G39:AM39)+AN39/2+SUM($G69:AM69) -> 3714016.414 | AO54: =SUM($G39:AN39)+AO39/2+SUM($G69:AN69) -> 3913529.402 | AP54: =SUM($G39:AO39)+AP39/2+SUM($G69:AO69) -> 4114026.654 | AQ54: =SUM($G39:AP39)+AQ39/2+SUM($G69:AP69) -> 4315513.026 | AR54: =SUM($G39:AQ39)+AR39/2+SUM($G69:AQ69) -> 4499318.508 | AS54: =SUM($G39:AR39)+AS39/2+SUM($G69:AR69) -> 4665355.876 | AT54: =SUM($G39:AS39)+AT39/2+SUM($G69:AS69) -> 4832212.362 | AU54: =SUM($G39:AT39)+AU39/2+SUM($G69:AT69) -> 4999892.007 | AV54: =SUM($G39:AU39)+AV39/2+SUM($G69:AU69) -> 5168398.871 | AW54: =SUM($G39:AV39)+AW39/2+SUM($G69:AV69) -> 5337737.035 | AX54: =SUM($G39:AW39)+AX39/2+SUM($G69:AW69) -> 5435990.236 | AY54: =SUM($G39:AX39)+AY39/2+SUM($G69:AX69) -> 5435990.236 | AZ54: =SUM($G39:AY39)+AZ39/2+SUM($G69:AY69) -> 5435990.236 | BA54: =SUM($G39:AZ39)+BA39/2+SUM($G69:AZ69) -> 5435990.236 | BB54: =SUM($G39:BA39)+BB39/2+SUM($G69:BA69) -> 5435990.236 | BC54: =SUM($G39:BB39)+BC39/2+SUM($G69:BB69) -> 5435990.236
F55: Parking Garage (1,000 Spaces) | H55: =SUM($G40:G40)+H40/2+SUM($G70:G70) -> 0 | I55: =SUM($G40:H40)+I40/2+SUM($G70:H70) -> 0 | J55: =SUM($G40:I40)+J40/2+SUM($G70:I70) -> 0 | K55: =SUM($G40:J40)+K40/2+SUM($G70:J70) -> 0 | L55: =SUM($G40:K40)+L40/2+SUM($G70:K70) -> 0 | M55: =SUM($G40:L40)+M40/2+SUM($G70:L70) -> 0 | N55: =SUM($G40:M40)+N40/2+SUM($G70:M70) -> 0 | O55: =SUM($G40:N40)+O40/2+SUM($G70:N70) -> 0 | P55: =SUM($G40:O40)+P40/2+SUM($G70:O70) -> 6350 | Q55: =SUM($G40:P40)+Q40/2+SUM($G70:P70) -> 19081.32667 | R55: =SUM($G40:Q40)+R40/2+SUM($G70:Q70) -> 25525.46121 | S55: =SUM($G40:R40)+S40/2+SUM($G70:R70) -> 25651.38682 | T55: =SUM($G40:S40)+T40/2+SUM($G70:S70) -> 638161.267 | U55: =SUM($G40:T40)+U40/2+SUM($G70:T70) -> 1866076.363 | V55: =SUM($G40:U40)+V40/2+SUM($G70:U70) -> 3100049.339 | W55: =SUM($G40:V40)+W40/2+SUM($G70:V70) -> 4340109.916 | X55: =SUM($G40:W40)+X40/2+SUM($G70:W70) -> 5586288.125 | Y55: =SUM($G40:X40)+Y40/2+SUM($G70:X70) -> 6838614.146 | Z55: =SUM($G40:Y40)+Z40/2+SUM($G70:Y70) -> 8097118.309 | AA55: =SUM($G40:Z40)+AA40/2+SUM($G70:Z70) -> 9361831.093 | AB55: =SUM($G40:AA40)+AB40/2+SUM($G70:AA70) -> 10632783.13 | AC55: =SUM($G40:AB40)+AC40/2+SUM($G70:AB70) -> 11910005.19 | AD55: =SUM($G40:AC40)+AD40/2+SUM($G70:AC70) -> 13193528.22 | AE55: =SUM($G40:AD40)+AE40/2+SUM($G70:AD70) -> 14483383.29 | AF55: =SUM($G40:AE40)+AF40/2+SUM($G70:AE70) -> 15428626.31 | AG55: =SUM($G40:AF40)+AG40/2+SUM($G70:AF70) -> 16027557.04 | AH55: =SUM($G40:AG40)+AH40/2+SUM($G70:AG70) -> 16629442.32 | AI55: =SUM($G40:AH40)+AI40/2+SUM($G70:AH70) -> 17234296.9 | AJ55: =SUM($G40:AI40)+AJ40/2+SUM($G70:AI70) -> 17842135.43 | AK55: =SUM($G40:AJ40)+AK40/2+SUM($G70:AJ70) -> 18452972.63 | AL55: =SUM($G40:AK40)+AL40/2+SUM($G70:AK70) -> 19066823.3 | AM55: =SUM($G40:AL40)+AM40/2+SUM($G70:AL70) -> 19683702.29 | AN55: =SUM($G40:AM40)+AN40/2+SUM($G70:AM70) -> 20303624.56 | AO55: =SUM($G40:AN40)+AO40/2+SUM($G70:AN70) -> 20926605.1 | AP55: =SUM($G40:AO40)+AP40/2+SUM($G70:AO70) -> 21552659.02 | AQ55: =SUM($G40:AP40)+AQ40/2+SUM($G70:AP70) -> 22181801.47 | AR55: =SUM($G40:AQ40)+AR40/2+SUM($G70:AQ70) -> 22497924.58 | AS55: =SUM($G40:AR40)+AS40/2+SUM($G70:AR70) -> 22497924.58 | AT55: =SUM($G40:AS40)+AT40/2+SUM($G70:AS70) -> 22497924.58 | AU55: =SUM($G40:AT40)+AU40/2+SUM($G70:AT70) -> 22497924.58 | AV55: =SUM($G40:AU40)+AV40/2+SUM($G70:AU70) -> 22497924.58 | AW55: =SUM($G40:AV40)+AW40/2+SUM($G70:AV70) -> 22497924.58 | AX55: =SUM($G40:AW40)+AX40/2+SUM($G70:AW70) -> 22497924.58 | AY55: =SUM($G40:AX40)+AY40/2+SUM($G70:AX70) -> 22497924.58 | AZ55: =SUM($G40:AY40)+AZ40/2+SUM($G70:AY70) -> 22497924.58 | BA55: =SUM($G40:AZ40)+BA40/2+SUM($G70:AZ70) -> 22497924.58 | BB55: =SUM($G40:BA40)+BB40/2+SUM($G70:BA70) -> 22497924.58 | BC55: =SUM($G40:BB40)+BC40/2+SUM($G70:BB70) -> 22497924.58
F56: Developer Profit | H56: =SUM($G41:G41)+H41/2+SUM($G71:G71) -> 0 | I56: =SUM($G41:H41)+I41/2+SUM($G71:H71) -> 0 | J56: =SUM($G41:I41)+J41/2+SUM($G71:I71) -> 0 | K56: =SUM($G41:J41)+K41/2+SUM($G71:J71) -> 0 | L56: =SUM($G41:K41)+L41/2+SUM($G71:K71) -> 0 | M56: =SUM($G41:L41)+M41/2+SUM($G71:L71) -> 0 | N56: =SUM($G41:M41)+N41/2+SUM($G71:M71) -> 0 | O56: =SUM($G41:N41)+O41/2+SUM($G71:N71) -> 0 | P56: =SUM($G41:O41)+P41/2+SUM($G71:O71) -> 0 | Q56: =SUM($G41:P41)+Q41/2+SUM($G71:P71) -> 0 | R56: =SUM($G41:Q41)+R41/2+SUM($G71:Q71) -> 1258994 | S56: =SUM($G41:R41)+S41/2+SUM($G71:R71) -> 2791368.537 | T56: =SUM($G41:S41)+T41/2+SUM($G71:S71) -> 3656488.58 | U56: =SUM($G41:T41)+U41/2+SUM($G71:T71) -> 4842887.049 | V56: =SUM($G41:U41)+V41/2+SUM($G71:U71) -> 5710418.625 | W56: =SUM($G41:V41)+W41/2+SUM($G71:V71) -> 6257510.024 | X56: =SUM($G41:W41)+X41/2+SUM($G71:W71) -> 6807300.406 | Y56: =SUM($G41:X41)+Y41/2+SUM($G71:X71) -> 7359803.088 | Z56: =SUM($G41:Y41)+Z41/2+SUM($G71:Y71) -> 7915031.45 | AA56: =SUM($G41:Z41)+AA41/2+SUM($G71:Z71) -> 8472998.939 | AB56: =SUM($G41:AA41)+AB41/2+SUM($G71:AA71) -> 9033719.067 | AC56: =SUM($G41:AB41)+AC41/2+SUM($G71:AB71) -> 9597205.414 | AD56: =SUM($G41:AC41)+AD41/2+SUM($G71:AC71) -> 10163471.63 | AE56: =SUM($G41:AD41)+AE41/2+SUM($G71:AD71) -> 10732531.42 | AF56: =SUM($G41:AE41)+AF41/2+SUM($G71:AE71) -> 11200787.41 | AG56: =SUM($G41:AF41)+AG41/2+SUM($G71:AF71) -> 11567742.46 | AH56: =SUM($G41:AG41)+AH41/2+SUM($G71:AG71) -> 11936507.99 | AI56: =SUM($G41:AH41)+AI41/2+SUM($G71:AH71) -> 12307092.76 | AJ56: =SUM($G41:AI41)+AJ41/2+SUM($G71:AI71) -> 12679505.75 | AK56: =SUM($G41:AJ41)+AK41/2+SUM($G71:AJ71) -> 13053755.98 | AL56: =SUM($G41:AK41)+AL41/2+SUM($G71:AK71) -> 13429852.51 | AM56: =SUM($G41:AL41)+AM41/2+SUM($G71:AL71) -> 13807804.45 | AN56: =SUM($G41:AM41)+AN41/2+SUM($G71:AM71) -> 14187620.95 | AO56: =SUM($G41:AN41)+AO41/2+SUM($G71:AN71) -> 14569311.22 | AP56: =SUM($G41:AO41)+AP41/2+SUM($G71:AO71) -> 14952884.48 | AQ56: =SUM($G41:AP41)+AQ41/2+SUM($G71:AP71) -> 15338350.05 | AR56: =SUM($G41:AQ41)+AR41/2+SUM($G71:AQ71) -> 15532033.64 | AS56: =SUM($G41:AR41)+AS41/2+SUM($G71:AR71) -> 15532033.64 | AT56: =SUM($G41:AS41)+AT41/2+SUM($G71:AS71) -> 15532033.64 | AU56: =SUM($G41:AT41)+AU41/2+SUM($G71:AT71) -> 15532033.64 | AV56: =SUM($G41:AU41)+AV41/2+SUM($G71:AU71) -> 15532033.64 | AW56: =SUM($G41:AV41)+AW41/2+SUM($G71:AV71) -> 15532033.64 | AX56: =SUM($G41:AW41)+AX41/2+SUM($G71:AW71) -> 15532033.64 | AY56: =SUM($G41:AX41)+AY41/2+SUM($G71:AX71) -> 15532033.64 | AZ56: =SUM($G41:AY41)+AZ41/2+SUM($G71:AY71) -> 15532033.64 | BA56: =SUM($G41:AZ41)+BA41/2+SUM($G71:AZ71) -> 15532033.64 | BB56: =SUM($G41:BA41)+BB41/2+SUM($G71:BA71) -> 15532033.64 | BC56: =SUM($G41:BB41)+BC41/2+SUM($G71:BB71) -> 15532033.64
F57: Interior Construction Costs (less TI Allow) | H57: =SUM($G42:G42)+H42/2+SUM($G72:G72) -> 0 | I57: =SUM($G42:H42)+I42/2+SUM($G72:H72) -> 0 | J57: =SUM($G42:I42)+J42/2+SUM($G72:I72) -> 0 | K57: =SUM($G42:J42)+K42/2+SUM($G72:J72) -> 0 | L57: =SUM($G42:K42)+L42/2+SUM($G72:K72) -> 0 | M57: =SUM($G42:L42)+M42/2+SUM($G72:L72) -> 0 | N57: =SUM($G42:M42)+N42/2+SUM($G72:M72) -> 0 | O57: =SUM($G42:N42)+O42/2+SUM($G72:N72) -> 0 | P57: =SUM($G42:O42)+P42/2+SUM($G72:O72) -> 0 | Q57: =SUM($G42:P42)+Q42/2+SUM($G72:P72) -> 0 | R57: =SUM($G42:Q42)+R42/2+SUM($G72:Q72) -> 0 | S57: =SUM($G42:R42)+S42/2+SUM($G72:R72) -> 0 | T57: =SUM($G42:S42)+T42/2+SUM($G72:S72) -> 0 | U57: =SUM($G42:T42)+U42/2+SUM($G72:T72) -> 0 | V57: =SUM($G42:U42)+V42/2+SUM($G72:U72) -> 0 | W57: =SUM($G42:V42)+W42/2+SUM($G72:V72) -> 0 | X57: =SUM($G42:W42)+X42/2+SUM($G72:W72) -> 0 | Y57: =SUM($G42:X42)+Y42/2+SUM($G72:X72) -> 0 | Z57: =SUM($G42:Y42)+Z42/2+SUM($G72:Y72) -> 0 | AA57: =SUM($G42:Z42)+AA42/2+SUM($G72:Z72) -> 0 | AB57: =SUM($G42:AA42)+AB42/2+SUM($G72:AA72) -> 0 | AC57: =SUM($G42:AB42)+AC42/2+SUM($G72:AB72) -> 0 | AD57: =SUM($G42:AC42)+AD42/2+SUM($G72:AC72) -> 0 | AE57: =SUM($G42:AD42)+AE42/2+SUM($G72:AD72) -> 0 | AF57: =SUM($G42:AE42)+AF42/2+SUM($G72:AE72) -> 0 | AG57: =SUM($G42:AF42)+AG42/2+SUM($G72:AF72) -> 0 | AH57: =SUM($G42:AG42)+AH42/2+SUM($G72:AG72) -> 0 | AI57: =SUM($G42:AH42)+AI42/2+SUM($G72:AH72) -> 2189442.871 | AJ57: =SUM($G42:AI42)+AJ42/2+SUM($G72:AI72) -> 6134702.994 | AK57: =SUM($G42:AJ42)+AK42/2+SUM($G72:AJ72) -> 10229999.53 | AL57: =SUM($G42:AK42)+AL42/2+SUM($G72:AK72) -> 14695499.53 | AM57: =SUM($G42:AL42)+AM42/2+SUM($G72:AL72) -> 19458029.32 | AN57: =SUM($G42:AM42)+AN42/2+SUM($G72:AM72) -> 25244054.27 | AO57: =SUM($G42:AN42)+AO42/2+SUM($G72:AN72) -> 31558623.6 | AP57: =SUM($G42:AO42)+AP42/2+SUM($G72:AO72) -> 38404344.81 | AQ57: =SUM($G42:AP42)+AQ42/2+SUM($G72:AP72) -> 46283838.25 | AR57: =SUM($G42:AQ42)+AR42/2+SUM($G72:AQ72) -> 54202203.85 | AS57: =SUM($G42:AR42)+AS42/2+SUM($G72:AR72) -> 61159633.39 | AT57: =SUM($G42:AS42)+AT42/2+SUM($G72:AS72) -> 67151386.25 | AU57: =SUM($G42:AT42)+AU42/2+SUM($G72:AT72) -> 72172248.42 | AV57: =SUM($G42:AU42)+AV42/2+SUM($G72:AU72) -> 74622864.18 | AW57: =SUM($G42:AV42)+AW42/2+SUM($G72:AV72) -> 74991003.64 | AX57: =SUM($G42:AW42)+AX42/2+SUM($G72:AW72) -> 75930959.26 | AY57: =SUM($G42:AX42)+AY42/2+SUM($G72:AX72) -> 76500959.26 | AZ57: =SUM($G42:AY42)+AZ42/2+SUM($G72:AY72) -> 76500959.26 | BA57: =SUM($G42:AZ42)+BA42/2+SUM($G72:AZ72) -> 76500959.26 | BB57: =SUM($G42:BA42)+BB42/2+SUM($G72:BA72) -> 76500959.26 | BC57: =SUM($G42:BB42)+BC42/2+SUM($G72:BB72) -> 76500959.26
F58: Interior Soft Costs | H58: =SUM($G43:G43)+H43/2+SUM($G73:G73) -> 0 | I58: =SUM($G43:H43)+I43/2+SUM($G73:H73) -> 0 | J58: =SUM($G43:I43)+J43/2+SUM($G73:I73) -> 0 | K58: =SUM($G43:J43)+K43/2+SUM($G73:J73) -> 0 | L58: =SUM($G43:K43)+L43/2+SUM($G73:K73) -> 0 | M58: =SUM($G43:L43)+M43/2+SUM($G73:L73) -> 0 | N58: =SUM($G43:M43)+N43/2+SUM($G73:M73) -> 0 | O58: =SUM($G43:N43)+O43/2+SUM($G73:N73) -> 0 | P58: =SUM($G43:O43)+P43/2+SUM($G73:O73) -> 623788.125 | Q58: =SUM($G43:P43)+Q43/2+SUM($G73:P73) -> 1408815.605 | R58: =SUM($G43:Q43)+R43/2+SUM($G73:Q73) -> 1692286.262 | S58: =SUM($G43:R43)+S43/2+SUM($G73:R73) -> 1937351.874 | T58: =SUM($G43:S43)+T43/2+SUM($G73:S73) -> 2185458.477 | U58: =SUM($G43:T43)+U43/2+SUM($G73:T73) -> 2436621.072 | V58: =SUM($G43:U43)+V43/2+SUM($G73:U73) -> 2689022.736 | W58: =SUM($G43:V43)+W43/2+SUM($G73:V73) -> 2938669.581 | X58: =SUM($G43:W43)+X43/2+SUM($G73:W73) -> 3185548.018 | Y58: =SUM($G43:X43)+Y43/2+SUM($G73:X73) -> 3433644.388 | Z58: =SUM($G43:Y43)+Z43/2+SUM($G73:Y73) -> 3682964.7 | AA58: =SUM($G43:Z43)+AA43/2+SUM($G73:Z73) -> 3933514.993 | AB58: =SUM($G43:AA43)+AB43/2+SUM($G73:AA73) -> 4185301.333 | AC58: =SUM($G43:AB43)+AC43/2+SUM($G73:AB73) -> 4438329.82 | AD58: =SUM($G43:AC43)+AD43/2+SUM($G73:AC73) -> 4692606.58 | AE58: =SUM($G43:AD43)+AE43/2+SUM($G73:AD73) -> 4948137.773 | AF58: =SUM($G43:AE43)+AF43/2+SUM($G73:AE73) -> 5205142.586 | AG58: =SUM($G43:AF43)+AG43/2+SUM($G73:AF73) -> 5456628.289 | AH58: =SUM($G43:AG43)+AH43/2+SUM($G73:AG73) -> 5694354.656 | AI58: =SUM($G43:AH43)+AI43/2+SUM($G73:AH73) -> 5925253.805 | AJ58: =SUM($G43:AI43)+AJ43/2+SUM($G73:AI73) -> 6157292.057 | AK58: =SUM($G43:AJ43)+AK43/2+SUM($G73:AJ73) -> 6415475.031 | AL58: =SUM($G43:AK43)+AL43/2+SUM($G73:AK73) -> 6699931.708 | AM58: =SUM($G43:AL43)+AM43/2+SUM($G73:AL73) -> 6985791.705 | AN58: =SUM($G43:AM43)+AN43/2+SUM($G73:AM73) -> 7273061.944 | AO58: =SUM($G43:AN43)+AO43/2+SUM($G73:AN73) -> 7553749.383 | AP58: =SUM($G43:AO43)+AP43/2+SUM($G73:AO73) -> 7827821.546 | AQ58: =SUM($G43:AP43)+AQ43/2+SUM($G73:AP73) -> 8103245.799 | AR58: =SUM($G43:AQ43)+AR43/2+SUM($G73:AQ73) -> 8380028.812 | AS58: =SUM($G43:AR43)+AS43/2+SUM($G73:AR73) -> 8670677.287 | AT58: =SUM($G43:AS43)+AT43/2+SUM($G73:AS73) -> 8975259.629 | AU58: =SUM($G43:AT43)+AU43/2+SUM($G73:AT73) -> 9271247.576 | AV58: =SUM($G43:AU43)+AV43/2+SUM($G73:AU73) -> 9485129.231 | AW58: =SUM($G43:AV43)+AW43/2+SUM($G73:AV73) -> 9591759.535 | AX58: =SUM($G43:AW43)+AX43/2+SUM($G73:AW73) -> 9664078.882 | AY58: =SUM($G43:AX43)+AY43/2+SUM($G73:AX73) -> 9689078.882 | AZ58: =SUM($G43:AY43)+AZ43/2+SUM($G73:AY73) -> 9701578.882 | BA58: =SUM($G43:AZ43)+BA43/2+SUM($G73:AZ73) -> 9701578.882 | BB58: =SUM($G43:BA43)+BB43/2+SUM($G73:BA73) -> 9701578.882 | BC58: =SUM($G43:BB43)+BC43/2+SUM($G73:BB73) -> 9701578.882
G59: =SUM(G49:G58) -> 0 | H59: 0 | I59: 0 | J59: 0 | K59: 0 | L59: 0 | M59: 0 | N59: 0 | O59: 0 | P59: 1951036.316 | Q59: 4415052.936 | R59: 16196358.25 | S59: 28539196.66 | T59: 32925224.34 | U59: 39564589.71 | V59: 45911989.29 | W59: 51961982.71 | X59: 58037822.77 | Y59: 64143636.97 | Z59: 70279573.19 | AA59: 76445780.02 | AB59: 82642406.81 | AC59: 88869603.63 | AD59: 95127521.28 | AE59: 101416311.3 | AF59: 106738927.6 | AG59: 111083603.2 | AH59: 115544712.1 | AI59: 122319272.1 | AJ59: 131062559.7 | AK59: 141174154 | AL59: 153689941.7 | AM59: =SUM(AM49:AM58) -> 165542473.9 | AN59: 176453478.6 | AO59: 188410310.9 | AP59: 201770721.3 | AQ59: 216364817.6 | AR59: 228691609.4 | AS59: 237877307.6 | AT59: 246670822 | AU59: 255537237 | AV59: 262236328.4 | AW59: 267005521.6 | AX59: 270397745 | AY59: 271014939 | AZ59: 271027439 | BA59: 271027439 | BB59: 271027439 | BC59: 271027439
G62: 0.0592 | H62: current 6.46% … projecting 5.92% due to rate case filing
B63: Certificate of Occupancy | E63: In-service date | F63: AFUDC CALCULATION (assumes no accrual/reversal timing) | G63: 2021-12-01 | H63: 2022-01-01 | I63: 2022-02-01 | J63: 2022-03-01 | K63: 2022-04-01 | L63: 2022-05-01 | M63: 2022-06-01 | N63: 2022-07-01 | O63: 2022-08-01 | P63: 2022-09-01 | Q63: 2022-10-01 | R63: 2022-11-01 | S63: 2022-12-01 | T63: 2023-01-01 | U63: 2023-02-01 | V63: 2023-03-01 | W63: 2023-04-01 | X63: 2023-05-01 | Y63: 2023-06-01 | Z63: 2023-07-01 | AA63: 2023-08-01 | AB63: 2023-09-01 | AC63: 2023-10-01 | AD63: 2023-11-01 | AE63: 2023-12-01 | AF63: 2024-01-01 | AG63: 2024-02-01 | AH63: 2024-03-01 | AI63: 2024-04-01 | AJ63: 2024-05-01 | AK63: 2024-06-01 | AL63: 2024-07-01 | AM63: 2024-08-01 | AN63: 2024-09-01 | AO63: 2024-10-01 | AP63: 2024-11-01 | AQ63: 2024-12-01 | AR63: 2025-01-01 | AS63: 2025-02-01 | AT63: 2025-03-01 | AU63: 2025-04-01 | AV63: 2025-05-01 | AW63: 2025-06-01 | AX63: 2025-07-01 | AY63: 2025-08-01 | AZ63: 2025-09-01 | BA63: 2025-10-01 | BB63: 2025-11-01 | BC63: 2025-12-01 | BD63: Total
B64: Is my definition of in-service | E64: 2024-12-01 | F64: =+F5 -> Land Assumption | G64: =G49*$G$62/12 -> 0 | H64: =IF(H$63<$E64,H49*$G$62/12,IF(H$63=$E64,H49*$G$62/12*50%,IF(H$63>$E64,0))) -> 0 | I64: 0 | J64: 0 | K64: 0 | L64: 0 | M64: 0 | N64: 0 | O64: 0 | P64: 246.6666667 | Q64: 494.5502222 | R64: 29742.3894 | S64: 59134.51792 | T64: 59426.24821 | U64: 59719.4177 | V64: 60014.0335 | W64: 60310.10273 | X64: 60607.63257 | Y64: 60906.63022 | Z64: 61207.10293 | AA64: 61509.05797 | AB64: 61812.50266 | AC64: 62117.44434 | AD64: 62423.8904 | AE64: 62731.84826 | AF64: 63041.32538 | AG64: 63352.32925 | AH64: 63664.86741 | AI64: 63978.94742 | AJ64: 64294.57689 | AK64: 64611.76347 | AL64: 64930.51484 | AM64: 65250.83871 | AN64: 65572.74285 | AO64: 65896.23505 | AP64: 66221.32314 | AQ64: 33274.0075 | AR64: 0 | AS64: 0 | AT64: 0 | AU64: 0 | AV64: 0 | AW64: 0 | AX64: 0 | AY64: 0 | AZ64: 0 | BA64: 0 | BB64: 0 | BC64: 0 | BD64: =SUM(H64:BC64) -> 1566493.508
B65: Then moving will commence | E65: 2024-12-01 | F65: =+F6 -> Hard Costs | G65: 0 | H65: =IF(H$63<$E65,H50*$G$62/12,IF(H$63=$E65,H50*$G$62/12*50%,IF(H$63>$E65,0))) -> 0 | I65: 0 | J65: 0 | K65: 0 | L65: 0 | M65: 0 | N65: 0 | O65: 0 | P65: 1.541666667 | Q65: 4.632605556 | R65: 19024.34513 | S65: 38136.34656 | T65: 47427.38796 | U65: 65867.16551 | V65: 84397.91085 | W65: 103020.0745 | X65: 121734.1076 | Y65: 140540.4632 | Z65: 159439.5968 | AA65: 178431.9661 | AB65: 197518.0312 | AC65: 216698.2541 | AD65: 235973.0995 | AE65: 255343.0341 | AF65: 271354.5401 | AG65: 283991.0492 | AH65: 296689.8983 | AI65: 309451.3952 | AJ65: 322275.8487 | AK65: 335163.5696 | AL65: 348114.8699 | AM65: 361130.0632 | AN65: 374209.4649 | AO65: 387353.3916 | AP65: 400562.1616 | AQ65: 206903.1439 | AR65: 0 | AS65: 0 | AT65: 0 | AU65: 0 | AV65: 0 | AW65: 0 | AX65: 0 | AY65: 0 | AZ65: 0 | BA65: 0 | BB65: 0 | BC65: 0 | BD65: 5760757.354
B66: And any punch list spending afterwards does not earn any AFUDC | E66: 2024-12-01 | F66: Soft Costs (excluding Int. Carry & Debt/Equity Fees) | G66: 0 | H66: =IF(H$63<$E66,H51*$G$62/12,IF(H$63=$E66,H51*$G$62/12*50%,IF(H$63>$E66,0))) -> 0 | I66: 0 | J66: 0 | K66: 0 | L66: 0 | M66: 0 | N66: 0 | O66: 0 | P66: 5911.1718 | Q66: 13164.53918 | R66: 14657.41537 | S66: 17552.35169 | T66: 20436.50589 | U66: 20716.99305 | V66: 20998.86395 | W66: 21282.12542 | X66: 21566.7843 | Y66: 21852.8475 | Z66: 22140.32195 | AA66: 22429.21461 | AB66: 22719.53246 | AC66: 23011.28256 | AD66: 23304.47195 | AE66: 23599.10775 | AF66: 24314.69506 | AG66: 25453.30874 | AH66: 26597.53773 | AI66: 27747.41158 | AJ66: 28902.95815 | AK66: 30064.20541 | AL66: 31231.18149 | AM66: 32403.91465 | AN66: 33582.4333 | AO66: 34766.76597 | AP66: 35956.94134 | AQ66: 18576.49413 | AR66: 0 | AS66: 0 | AT66: 0 | AU66: 0 | AV66: 0 | AW66: 0 | AX66: 0 | AY66: 0 | AZ66: 0 | BA66: 0 | BB66: 0 | BC66: 0 | BD66: 664941.377
B67: (this includes the year 2025 spend for "interior construction") | E67: 2025-06-30 | F67: FFE (pruely building & Interior design) | G67: 0 | H67: =IF(H$63<$E67,H52*$G$62/12,IF(H$63=$E67,H52*$G$62/12*50%,IF(H$63>$E67,0))) -> 0 | I67: 0 | J67: 0 | K67: 0 | L67: 0 | M67: 0 | N67: 0 | O67: 0 | P67: 0 | Q67: 0 | R67: 0 | S67: 0 | T67: 0 | U67: 0 | V67: 0 | W67: 0 | X67: 0 | Y67: 0 | Z67: 0 | AA67: 0 | AB67: 0 | AC67: 0 | AD67: 0 | AE67: 0 | AF67: 0 | AG67: 0 | AH67: 542.6666667 | AI67: 1630.677156 | AJ67: 3662.82163 | AK67: 11475.01802 | AL67: 29090.34811 | AM67: 41859.24716 | AN67: 44824.47278 | AO67: 50270.99351 | AP67: 59950.49934 | AQ67: 70535.25276 | AR67: 79673.60404 | AS67: 87993.70452 | AT67: 99068.18416 | AU67: 115328.292 | AV67: 133975.0379 | AW67: 153897.4069 | AX67: 0 | AY67: 0 | AZ67: 0 | BA67: 0 | BB67: 0 | BC67: 0 | BD67: 983778.2267
E68: 2025-06-30 | F68: LEED Design Costs | G68: 0 | H68: =IF(H$63<$E68,H53*$G$62/12,IF(H$63=$E68,H53*$G$62/12*50%,IF(H$63>$E68,0))) -> 0 | I68: 0 | J68: 0 | K68: 0 | L68: 0 | M68: 0 | N68: 0 | O68: 0 | P68: 0 | Q68: 0 | R68: 0 | S68: 0 | T68: 0 | U68: 0 | V68: 0 | W68: 0 | X68: 0 | Y68: 0 | Z68: 0 | AA68: 0 | AB68: 0 | AC68: 0 | AD68: 0 | AE68: 0 | AF68: 197.3333333 | AG68: 592.9735111 | AH68: 990.5655138 | AI68: 1390.11897 | AJ68: 1791.643557 | AK68: 2195.148999 | AL68: 2600.645067 | AM68: 3008.141583 | AN68: 3417.648415 | AO68: 3829.17548 | AP68: 4242.732746 | AQ68: 4658.330227 | AR68: 5075.97799 | AS68: 5495.686148 | AT68: 5917.464866 | AU68: 6341.32436 | AV68: 6767.274893 | AW68: 7195.326783 | AX68: 0 | AY68: 0 | AZ68: 0 | BA68: 0 | BB68: 0 | BC68: 0 | BD68: 65707.51244
E69: 2025-06-30 | F69: Capital Plug | G69: 0 | H69: =IF(H$63<$E69,H54*$G$62/12,IF(H$63=$E69,H54*$G$62/12*50%,IF(H$63>$E69,0))) -> 0 | I69: 0 | J69: 0 | K69: 0 | L69: 0 | M69: 0 | N69: 0 | O69: 0 | P69: 357.0509431 | Q69: 1072.914281 | R69: 1792.309211 | S69: 2515.253156 | T69: 3172.430293 | U69: 3763.516172 | V69: 4357.518075 | W69: 4954.450387 | X69: 5554.327565 | Y69: 6157.164137 | Z69: 6762.974704 | AA69: 7371.773935 | AB69: 7983.576576 | AC69: 8598.397444 | AD69: 9216.251427 | AE69: 9837.153491 | AF69: 10620.33764 | AG69: 11566.60448 | AH69: 12517.53956 | AI69: 13473.16592 | AJ69: 14433.50671 | AK69: 15398.58518 | AL69: 16368.4247 | AM69: 17343.04876 | AN69: 18322.48097 | AO69: 19306.74505 | AP69: 20295.86483 | AQ69: 21289.86426 | AR69: 22196.63798 | AS69: 23015.75566 | AT69: 23838.91432 | AU69: 24666.1339 | AV69: 25497.43443 | AW69: 26332.83604 | AX69: 0 | AY69: 0 | AZ69: 0 | BA69: 0 | BB69: 0 | BC69: 0 | BD69: 419950.9422
E70: 2024-12-01 | F70: Parking Garage (1,000 Spaces) | G70: 0 | H70: =IF(H$63<$E70,H55*$G$62/12,IF(H$63=$E70,H55*$G$62/12*50%,IF(H$63>$E70,0))) -> 0 | I70: 0 | J70: 0 | K70: 0 | L70: 0 | M70: 0 | N70: 0 | O70: 0 | P70: 31.32666667 | Q70: 94.13454489 | R70: 125.9256086 | S70: 126.5468416 | T70: 3148.262251 | U70: 9205.976722 | V70: 15293.57674 | W70: 21411.20892 | X70: 27559.02142 | Y70: 33737.16312 | Z70: 39945.78366 | AA70: 46185.03339 | AB70: 52455.06342 | AC70: 58756.0256 | AD70: 65088.07253 | AE70: 71451.35755 | AF70: 76114.55647 | AG70: 79069.28138 | AH70: 82038.5821 | AI70: 85022.53137 | AJ70: 88021.20146 | AK70: 91034.66498 | AL70: 94062.99493 | AM70: 97106.26464 | AN70: 100164.5478 | AO70: 103237.9185 | AP70: 106326.4512 | AQ70: 54715.1103 | AR70: 0 | AS70: 0 | AT70: 0 | AU70: 0 | AV70: 0 | AW70: 0 | AX70: 0 | AY70: 0 | AZ70: 0 | BA70: 0 | BB70: 0 | BC70: 0 | BD70: 1501528.584
E71: 2024-12-01 | F71: Developer Profit | G71: 0 | H71: =IF(H$63<$E71,H56*$G$62/12,IF(H$63=$E71,H56*$G$62/12*50%,IF(H$63>$E71,0))) -> 0 | I71: 0 | J71: 0 | K71: 0 | L71: 0 | M71: 0 | N71: 0 | O71: 0 | P71: 0 | Q71: 0 | R71: 6211.037067 | S71: 13770.75145 | T71: 18038.677 | U71: 23891.57611 | V71: 28171.39855 | W71: 30870.38278 | X71: 33582.682 | Y71: 36308.3619 | Z71: 39047.48849 | AA71: 41800.1281 | AB71: 44566.3474 | AC71: 47346.21338 | AD71: 50139.79336 | AE71: 52947.15501 | AF71: 55257.21789 | AG71: 57067.52947 | AH71: 58886.77275 | AI71: 60714.99096 | AJ71: 62552.22838 | AK71: 64398.52951 | AL71: 66253.93906 | AM71: 68118.50196 | AN71: 69992.26337 | AO71: 71875.26867 | AP71: 73767.56346 | AQ71: 37834.59679 | AR71: 0 | AS71: 0 | AT71: 0 | AU71: 0 | AV71: 0 | AW71: 0 | AX71: 0 | AY71: 0 | AZ71: 0 | BA71: 0 | BB71: 0 | BC71: 0 | BD71: 1213411.395
E72: 2025-06-30 | F72: Interior Construction Costs (less TI Allow) | G72: 0 | H72: =IF(H$63<$E72,H57*$G$62/12,IF(H$63=$E72,H57*$G$62/12*50%,IF(H$63>$E72,0))) -> 0 | I72: 0 | J72: 0 | K72: 0 | L72: 0 | M72: 0 | N72: 0 | O72: 0 | P72: 0 | Q72: 0 | R72: 0 | S72: 0 | T72: 0 | U72: 0 | V72: 0 | W72: 0 | X72: 0 | Y72: 0 | Z72: 0 | AA72: 0 | AB72: 0 | AC72: 0 | AD72: 0 | AE72: 0 | AF72: 0 | AG72: 0 | AH72: 0 | AI72: 10801.2515 | AJ72: 30264.53477 | AK72: 50467.99768 | AL72: 72497.79767 | AM72: 95992.94467 | AN72: 124537.3344 | AO72: 155689.2098 | AP72: 189461.4344 | AQ72: 228333.602 | AR72: 267397.539 | AS72: 301720.8581 | AT72: 331280.1722 | AU72: 356049.7589 | AV72: 368139.4633 | AW72: 369955.618 | AX72: 0 | AY72: 0 | AZ72: 0 | BA72: 0 | BB72: 0 | BC72: 0 | BD72: 2952589.516
E73: 2025-06-30 | F73: Interior Soft Costs | G73: 0 | H73: =IF(H$63<$E73,H58*$G$62/12,IF(H$63=$E73,H58*$G$62/12*50%,IF(H$63>$E73,0))) -> 0 | I73: 0 | J73: 0 | K73: 0 | L73: 0 | M73: 0 | N73: 0 | O73: 0 | P73: 3077.35475 | Q73: 6950.156983 | R73: 8348.612225 | S73: 9557.602578 | T73: 10781.59515 | U73: 12020.66395 | V73: 13265.8455 | W73: 14497.4366 | X73: 15715.37022 | Y73: 16939.31231 | Z73: 18169.29252 | AA73: 19405.34063 | AB73: 20647.48658 | AC73: 21895.76045 | AD73: 23150.19246 | AE73: 24410.81301 | AF73: 25678.70342 | AG73: 26919.36623 | AH73: 28092.14963 | AI73: 29231.25211 | AJ73: 30375.97415 | AK73: 31649.67682 | AL73: 33052.99643 | AM73: 34463.23908 | AN73: 35880.43892 | AO73: 37265.16362 | AP73: 38617.25296 | AQ73: 39976.01261 | AR73: 41341.47547 | AS73: 42775.34128 | AT73: 44277.9475 | AU73: 45738.15471 | AV73: 46793.30421 | AW73: 47319.34704 | AX73: 0 | AY73: 0 | AZ73: 0 | BA73: 0 | BB73: 0 | BC73: 0 | BD73: 898280.6321
G74: =SUM(G64:G73) -> 0 | H74: 0 | I74: 0 | J74: 0 | K74: 0 | L74: 0 | M74: 0 | N74: 0 | O74: 0 | P74: 9625.112493 | Q74: 21780.92782 | R74: 79902.03401 | S74: 140793.3702 | T74: 162431.1068 | U74: 195185.3092 | V74: 226499.1472 | W74: 256345.7814 | X74: 286319.9257 | Y74: 316441.9424 | Z74: 346712.5611 | AA74: 377132.5148 | AB74: 407702.5403 | AC74: 438423.3779 | AD74: 469295.7717 | AE74: 500320.4692 | AF74: 526578.7093 | AG74: 548012.4422 | AH74: 570020.5797 | AI74: 603441.7422 | AJ74: 646575.2944 | AK74: 696459.1597 | AL74: 758203.7121 | AM74: =SUM(AM64:AM73) -> 816676.2044 | AN74: 870503.8277 | AO74: 929490.8672 | AP74: 995402.225 | AQ74: 716096.4145 | AR74: 415685.2345 | AS74: 461001.3457 | AT74: 504382.683 | AU74: 548123.6639 | AV74: 581172.5147 | AW74: 604700.5347 | AX74: 0 | AY74: 0 | AZ74: 0 | BA74: 0 | BB74: 0 | BC74: 0 | BD74: 16027439.05
F78: AFUDC by Year | G78: 2021 | H78: 2022 | I78: 2023 | J78: 2024 | K78: 2025 | L78: Total
F79: =+F5 -> Land Assumption | H79: =SUM(H64:S64) -> 89618.12422 | I79: =SUM(T64:AE64) -> 732785.9115 | J79: =SUM(AF64:AQ64) -> 744089.4719 | K79: =SUM(AR64:BC64) -> 0 | L79: =SUM(G79:K79) -> 1566493.508
F80: =+F6 -> Hard Costs | H80: 57166.86596 | I80: 1806391.092 | J80: 3897199.396 | K80: 0 | L80: 5760757.354
F81: Soft Costs (excluding Int. Carry & Debt/Equity Fees) | H81: 51285.47805 | I81: 264058.0514 | J81: 349597.8475 | K81: 0 | L81: 664941.377
F82: FFE (pruely building & Interior design) | H82: 0 | I82: 0 | J82: 313841.9971 | K82: 669936.2296 | L82: 983778.2267
F83: LEED Design Costs | H83: 0 | I83: 0 | J83: 28914.4574 | K83: 36793.05504 | L83: 65707.51244
F84: Capital Plug | H84: 5737.52759 | I84: 77729.5342 | J84: 190936.1681 | K84: 145547.7123 | L84: 419950.9422
F85: Parking Garage (1,000 Spaces) | H85: 377.9336618 | I85: 444236.5453 | J85: 1056914.105 | K85: 0 | L85: 1501528.584
F86: Developer Profit | H86: 19981.78852 | I86: 446710.2041 | J86: 746719.4023 | K86: 0 | L86: 1213411.395
F87: Interior Construction Costs (less TI Allow) | H87: 0 | I87: 0 | J87: 958046.1069 | K87: 1994543.409 | L87: 2952589.516
F88: Interior Soft Costs | H88: 27933.72654 | I88: 210899.1094 | J88: 391202.226 | K88: 268245.5702 | L88: 898280.6321
G89: =SUM(G79:G88) -> 0 | H89: 252101.4445 | I89: 3982810.447 | J89: 8677461.178 | K89: 3115065.976 | L89: 16027439.05

Sheet CAPEX --->

Sheet Capex
A1: =+'Input Data'!C9 -> Project Tampa - Midtown (Updated Costs Sept 2022) | B1: =IF(Financials!D175=0,"All checks OK","Press D&E Macro") -> All checks OK | G1: Maintenance Capital Multiplier | I1: 1 | J1: <--- used to increase Maintenance Capex over provided figures (use whole numbers)
A2: Capex Spend | H2: Cost Escalator | I2: 0 | J2: <--- used to increase capex over provided figures (use %)
G3: 1 | H3: =+G3+1 -> 2 | I3: =+H3+1 -> 3 | J3: 4 | K3: 5 | L3: 6 | M3: 7 | N3: 8 | O3: 9 | P3: 10 | Q3: 11 | R3: 12 | S3: 13 | T3: 14 | U3: 15 | V3: 16 | W3: 17 | X3: 18 | Y3: 19 | Z3: 20 | AA3: =+Z3+1 -> 21 | AB3: 22 | AC3: 23 | AD3: 24 | AE3: 25 | AF3: 26 | AG3: 27 | AH3: 28 | AI3: 29 | AJ3: 30
A4: Description | B4: In-Service Year Leave Blank for Annual | C4: Year 1 Months in service | D4: Book Life | E4: Tax Life | F4: ITC | G4: =+'Input Data'!C15 -> 2022 | H4: =+G4+1 -> 2023 | I4: =+H4+1 -> 2024 | J4: 2025 | K4: 2026 | L4: 2027 | M4: 2028 | N4: 2029 | O4: 2030 | P4: 2031 | Q4: 2032 | R4: 2033 | S4: 2034 | T4: 2035 | U4: 2036 | V4: 2037 | W4: 2038 | X4: 2039 | Y4: 2040 | Z4: 2041 | AA4: =+Z4+1 -> 2042 | AB4: 2043 | AC4: 2044 | AD4: 2045 | AE4: 2046 | AF4: 2047 | AG4: 2048 | AH4: 2049 | AI4: 2050 | AJ4: 2051 | AK4: Total
A5: CAPEX SPEND BY YEAR
A6: Land Assumption | B6: 2024 | G6: =+'Capital Costs'!D12*(1+$I$2) -> 11956243 | H6: =+'Capital Costs'!E12*(1+$I$2) -> 0 | I6: =+'Capital Costs'!F12*(1+$I$2) -> 0 | J6: =+'Capital Costs'!G12*(1+$I$2) -> 0 | AK6: =SUM(G6:AJ6) -> 11956243
A7: Midtown Building | B7: 2024 | D7: =43*0+60 -> 60 | E7: 39 | G7: =+'Capital Costs'!D17*(1+$I$2) -> 14836677 | H7: =+'Capital Costs'!E17*(1+$I$2) -> 52247328.3 | I7: =+'Capital Costs'!F17*(1+$I$2) -> 33687312.42 | J7: =+'Capital Costs'!G17*(1+$I$2) -> 0 | AK7: =SUM(G7:AJ7) -> 100771317.7
A8: Furniture, Fixtures & Equipment - Building | B8: 2025 | C8: 6 | D8: 7 | E8: 7 | G8: =+'Capital Costs'!D19*(1+$I$2) -> 0 | H8: =+'Capital Costs'!E19*(1+$I$2) -> 0 | I8: =+'Capital Costs'!F19*(1+$I$2) -> 15007796.25 | J8: =+'Capital Costs'!G19*(1+$I$2) -> 17416151.75 | AK8: 32423948
A9: LEED Design Costs | B9: 2025 | C9: 6 | D9: =43*0+60 -> 60 | E9: 39 | G9: =+'Capital Costs'!D22*(1+$I$2) -> 0 | H9: =+'Capital Costs'!E22*(1+$I$2) -> 0 | I9: =+'Capital Costs'!F22*(1+$I$2) -> 960000 | J9: =+'Capital Costs'!G22*(1+$I$2) -> 524388 | AK9: 1484388
A10: Capital Plug | B10: 2025 | C10: 6 | D10: 60 | E10: 39 | G10: =+'Capital Costs'!D27*(1+$I$2) -> 579001.5294 | H10: =+'Capital Costs'!E27*(1+$I$2) -> 1399707.299 | I10: =+'Capital Costs'!F27*(1+$I$2) -> 2174286.085 | J10: =+'Capital Costs'!G27*(1+$I$2) -> 863044.3803 | AK10: 5016039.294
A11: Parking Garage (1,000 Spaces) | B11: 2024 | D11: 60 | E11: 39 | G11: =+'Capital Costs'!D28*(1+$I$2) -> 25400 | H11: =+'Capital Costs'!E28*(1+$I$2) -> 14697203.67 | I11: =+'Capital Costs'!F28*(1+$I$2) -> 6273792.333 | J11: =+'Capital Costs'!G28*(1+$I$2) -> 0 | AK11: 20996396
A12: Interior Costs - Soft Costs | B12: 2025 | C12: 6 | D12: 60 | E12: 39 | G12: =+'Capital Costs'!D21*(1+$I$2) -> 2037334.25 | H12: =+'Capital Costs'!E21*(1+$I$2) -> 2812572 | I12: =+'Capital Costs'!F21*(1+$I$2) -> 2781684 | J12: =+'Capital Costs'!G21*(1+$I$2) -> 1171708 | AK12: 8803298.25
A13: Interior Costs - Construction | B13: 2025 | C13: 6 | D13: 60 | E13: 39 | G13: =+'Capital Costs'!D20*(1+$I$2) -> 0 | H13: =+'Capital Costs'!E20*(1+$I$2) -> 0 | I13: =+'Capital Costs'!F20*(1+$I$2) -> 49649141.74 | J13: =+'Capital Costs'!G20*(1+$I$2) -> 23899228 | AK13: 73548369.74
A14: Maintenance Capital | C14: 6 | D14: 60 | E14: 39 | G14: =SUMIF('Assumption Support'!$I$77:$I$102,G4,'Assumption Support'!$K$77:$K$102)*$I$1 -> 0 | H14: =SUMIF('Assumption Support'!$I$77:$I$102,H4,'Assumption Support'!$K$77:$K$102)*$I$1 -> 0 | I14: =SUMIF('Assumption Support'!$I$77:$I$102,I4,'Assumption Support'!$K$77:$K$102)*$I$1 -> 0 | J14: =SUMIF('Assumption Support'!$I$77:$I$102,J4,'Assumption Support'!$K$77:$K$102)*$I$1 -> 0 | K14: =SUMIF('Assumption Support'!$I$77:$I$102,K4,'Assumption Support'!$K$77:$K$102)*$I$1 -> 0 | L14: =SUMIF('Assumption Support'!$I$77:$I$102,L4,'Assumption Support'!$K$77:$K$102)*$I$1 -> 0 | M14: =SUMIF('Assumption Support'!$I$77:$I$102,M4,'Assumption Support'!$K$77:$K$102)*$I$1 -> 0 | N14: =SUMIF('Assumption Support'!$I$77:$I$102,N4,'Assumption Support'!$K$77:$K$102)*$I$1 -> 0 | O14: =SUMIF('Assumption Support'!$I$77:$I$102,O4,'Assumption Support'!$K$77:$K$102)*$I$1 -> 0 | P14: =SUMIF('Assumption Support'!$I$77:$I$102,P4,'Assumption Support'!$K$77:$K$102)*$I$1 -> 26500 | Q14: =SUMIF('Assumption Support'!$I$77:$I$102,Q4,'Assumption Support'!$K$77:$K$102)*$I$1 -> 27295 | R14: =SUMIF('Assumption Support'!$I$77:$I$102,R4,'Assumption Support'!$K$77:$K$102)*$I$1 -> 28364.72309 | S14: =SUMIF('Assumption Support'!$I$77:$I$102,S4,'Assumption Support'!$K$77:$K$102)*$I$1 -> 29215.67182 | T14: =SUMIF('Assumption Support'!$I$77:$I$102,T4,'Assumption Support'!$K$77:$K$102)*$I$1 -> 30092.13764 | U14: =SUMIF('Assumption Support'!$I$77:$I$102,U4,'Assumption Support'!$K$77:$K$102)*$I$1 -> 30994.90109 | V14: =SUMIF('Assumption Support'!$I$77:$I$102,V4,'Assumption Support'!$K$77:$K$102)*$I$1 -> 66841.19091 | W14: =SUMIF('Assumption Support'!$I$77:$I$102,W4,'Assumption Support'!$K$77:$K$102)*$I$1 -> 68846.43145 | X14: =SUMIF('Assumption Support'!$I$77:$I$102,X4,'Assumption Support'!$K$77:$K$102)*$I$1 -> 70911.82218 | Y14: =SUMIF('Assumption Support'!$I$77:$I$102,Y4,'Assumption Support'!$K$77:$K$102)*$I$1 -> 73039.17473 | Z14: =SUMIF('Assumption Support'!$I$77:$I$102,Z4,'Assumption Support'!$K$77:$K$102)*$I$1 -> 75230.34891 | AA14: =SUMIF('Assumption Support'!$I$77:$I$102,AA4,'Assumption Support'!$K$77:$K$102)*$I$1 -> 77487.26236 | AB14: =SUMIF('Assumption Support'!$I$77:$I$102,AB4,'Assumption Support'!$K$77:$K$102)*$I$1 -> 79811.88091 | AC14: =SUMIF('Assumption Support'!$I$77:$I$102,AC4,'Assumption Support'!$K$77:$K$102)*$I$1 -> 82206.23782 | AD14: =SUMIF('Assumption Support'!$I$77:$I$102,AD4,'Assumption Support'!$K$77:$K$102)*$I$1 -> 84672.42418 | AE14: =SUMIF('Assumption Support'!$I$77:$I$102,AE4,'Assumption Support'!$K$77:$K$102)*$I$1 -> 87212.58891 | AF14: =SUMIF('Assumption Support'!$I$77:$I$102,AF4,'Assumption Support'!$K$77:$K$102)*$I$1 -> 89828.96764 | AG14: =SUMIF('Assumption Support'!$I$77:$I$102,AG4,'Assumption Support'!$K$77:$K$102)*$I$1 -> 92523.84418 | AH14: =SUMIF('Assumption Support'!$I$77:$I$102,AH4,'Assumption Support'!$K$77:$K$102)*$I$1 -> 95299.56018 | AI14: =SUMIF('Assumption Support'!$I$77:$I$102,AI4,'Assumption Support'!$K$77:$K$102)*$I$1 -> 98158.544 | AJ14: =SUMIF('Assumption Support'!$I$77:$I$102,AJ4,'Assumption Support'!$K$77:$K$102)*$I$1 -> 101103.3011 | AK14: 1415636.013
AK15: 0
A16: Total | D16: =IFERROR(IF(D$6=0,0,$AK$6/SUMIF($D$6:$D$15,">0",$AK$6:$AK$15)*D$6)+IF(D$7=0,0,$AK$7/SUMIF($D$6:$D$15,">0",$AK$6:$AK$15)*D$7)+IF(D$8=0,0,$AK$8/SUMIF($D$6:$D$15,">0",$AK$6:$AK$15)*D$8)+IF(D$9=0,0,$AK$9/SUMIF($D$6:$D$15,">0",$AK$6:$AK$15)*D$9)+IF(D$10=0,0,$AK$10/SUMIF($D$6:$D$15,">0",$AK$6:$AK$15)*D$10)+IF(D$11=0,0,$AK$11/SUMIF($D$6:$D$15,">0",$AK$6:$AK$15)*D$11)+IF(D$12=0,0,$AK$12/SUMIF($D$6:$D$15,">0",$AK$6:$AK$15)*D$12)+IF(D$13=0,0,$AK$13/SUMIF($D$6:$D$15,">0",$AK$6:$AK$15)*D$13)+IF(D14=0,0,$AK$14/SUMIF($D$6:$D$15,">0",$AK$6:$AK$15)*D$14)+IF(D$15=0,0,$AK$15/SUMIF($D$6:$D$15,">0",$AK$6:$AK$15)*D$15),0) -> 52.97032843 | E16: =IFERROR(IF(E$6=0,0,$AK$6/SUMIF($D$6:$D$15,">0",$AK$6:$AK$15)*E$6)+IF(E$7=0,0,$AK$7/SUMIF($D$6:$D$15,">0",$AK$6:$AK$15)*E$7)+IF(E$8=0,0,$AK$8/SUMIF($D$6:$D$15,">0",$AK$6:$AK$15)*E$8)+IF(E$9=0,0,$AK$9/SUMIF($D$6:$D$15,">0",$AK$6:$AK$15)*E$9)+IF(E$10=0,0,$AK$10/SUMIF($D$6:$D$15,">0",$AK$6:$AK$15)*E$10)+IF(E$11=0,0,$AK$11/SUMIF($D$6:$D$15,">0",$AK$6:$AK$15)*E$11)+IF(E$12=0,0,$AK$12/SUMIF($D$6:$D$15,">0",$AK$6:$AK$15)*E$12)+IF(E$13=0,0,$AK$13/SUMIF($D$6:$D$15,">0",$AK$6:$AK$15)*E$13)+IF(E14=0,0,$AK$14/SUMIF($D$6:$D$15,">0",$AK$6:$AK$15)*E$14)+IF(E$15=0,0,$AK$15/SUMIF($D$6:$D$15,">0",$AK$6:$AK$15)*E$15),0) -> 34.75567 | G16: =SUM(G6:G15) -> 29434655.78 | H16: =SUM(H6:H15) -> 71156811.26 | I16: =SUM(I6:I15) -> 110534012.8 | J16: 43874520.13 | K16: 0 | L16: 0 | M16: 0 | N16: 0 | O16: 0 | P16: 26500 | Q16: 27295 | R16: 28364.72309 | S16: 29215.67182 | T16: 30092.13764 | U16: 30994.90109 | V16: 66841.19091 | W16: 68846.43145 | X16: 70911.82218 | Y16: 73039.17473 | Z16: 75230.34891 | AA16: 77487.26236 | AB16: 79811.88091 | AC16: 82206.23782 | AD16: 84672.42418 | AE16: 87212.58891 | AF16: =SUM(AF6:AF15) -> 89828.96764 | AG16: 92523.84418 | AH16: 95299.56018 | AI16: 98158.544 | AJ16: 101103.3011 | AK16: 256415636
G17: =+G16-'Monthly Capex AFUDC Calcs'!G29 -> 0 | H17: =+H16-'Monthly Capex AFUDC Calcs'!H29 -> 0 | I17: =+I16-'Monthly Capex AFUDC Calcs'!I29 -> 0 | J17: =+J16-'Monthly Capex AFUDC Calcs'!J29 -> 0
A18: David's AFUDC Calculation Toggle | B18: 1
A19: AFUDC BY YEAR
A20: =+A6 -> Land Assumption | B20: 2024 | C20: =+C6 -> 0 | D20: 0 | E20: 0 | F20: 0 | G20: =G60*$B$18*(1+$I$2)+G73*(1-$B$18) -> 89618.12422 | H20: 732785.9115 | I20: 744089.4719 | J20: 0 | K20: 0 | L20: 0 | M20: 0 | N20: 0 | O20: 0 | P20: 0 | Q20: 0 | R20: 0 | S20: 0 | T20: 0 | U20: 0 | V20: 0 | W20: 0 | X20: 0 | Y20: 0 | Z20: 0 | AA20: 0 | AB20: 0 | AC20: 0 | AD20: 0 | AE20: 0 | AF20: 0 | AG20: 0 | AH20: 0 | AI20: 0 | AJ20: =AJ60+AJ73 -> 0 | AK20: =SUM(G20:AJ20) -> 1566493.508
A21: Midtown Building | B21: 2024 | C21: =+C7 -> 0 | D21: 60 | E21: 39 | F21: 0 | G21: =G61*$B$18*(1+$I$2)+G74*(1-$B$18) -> 128434.1325 | H21: 2517159.347 | I21: 4993516.646 | J21: 0 | K21: 0 | L21: 0 | M21: 0 | N21: 0 | O21: 0 | P21: 0 | Q21: 0 | R21: 0 | S21: 0 | T21: 0 | U21: 0 | V21: 0 | W21: 0 | X21: 0 | Y21: 0 | Z21: 0 | AA21: 0 | AB21: 0 | AC21: 0 | AD21: 0 | AE21: 0 | AF21: 0 | AG21: 0 | AH21: 0 | AI21: 0 | AJ21: 0 | AK21: =SUM(G21:AJ21) -> 7639110.125
A22: Furniture, Fixtures & Equipment - Building | B22: 2025 | C22: =+C8 -> 6 | D22: 7 | E22: 7 | F22: 0 | G22: =G62*$B$18*(1+$I$2)+G75*(1-$B$18) -> 0 | H22: 0 | I22: 313841.9971 | J22: 669936.2296 | K22: 0 | L22: 0 | M22: 0 | N22: 0 | O22: 0 | P22: 0 | Q22: 0 | R22: 0 | S22: 0 | T22: 0 | U22: 0 | V22: 0 | W22: 0 | X22: 0 | Y22: 0 | Z22: 0 | AA22: 0 | AB22: 0 | AC22: 0 | AD22: 0 | AE22: 0 | AF22: 0 | AG22: 0 | AH22: 0 | AI22: 0 | AJ22: 0 | AK22: 983778.2267
A23: LEED Design Costs | B23: 2025 | C23: =+C9 -> 6 | D23: 60 | E23: 39 | F23: 0 | G23: =G63*$B$18*(1+$I$2)+G76*(1-$B$18) -> 0 | H23: 0 | I23: 28914.4574 | J23: 36793.05504 | K23: 0 | L23: 0 | M23: 0 | N23: 0 | O23: 0 | P23: 0 | Q23: 0 | R23: 0 | S23: 0 | T23: 0 | U23: 0 | V23: 0 | W23: 0 | X23: 0 | Y23: 0 | Z23: 0 | AA23: 0 | AB23: 0 | AC23: 0 | AD23: 0 | AE23: 0 | AF23: 0 | AG23: 0 | AH23: 0 | AI23: 0 | AJ23: 0 | AK23: 65707.51244
A24: Capital Plug | B24: 2025 | C24: =+C10 -> 6 | D24: 60 | E24: 39 | F24: 0 | G24: =G64*$B$18*(1+$I$2)+G77*(1-$B$18) -> 5737.52759 | H24: 77729.5342 | I24: 190936.1681 | J24: 145547.7123 | K24: 0 | L24: 0 | M24: 0 | N24: 0 | O24: 0 | P24: 0 | Q24: 0 | R24: 0 | S24: 0 | T24: 0 | U24: 0 | V24: 0 | W24: 0 | X24: 0 | Y24: 0 | Z24: 0 | AA24: 0 | AB24: 0 | AC24: 0 | AD24: 0 | AE24: 0 | AF24: 0 | AG24: 0 | AH24: 0 | AI24: 0 | AJ24: 0 | AK24: 419950.9422
A25: =+A11 -> Parking Garage (1,000 Spaces) | B25: 2024 | C25: =+C11 -> 0 | D25: 60 | E25: 39 | F25: 0 | G25: =G65*$B$18*(1+$I$2)+G78*(1-$B$18) -> 377.9336618 | H25: 444236.5453 | I25: 1056914.105 | J25: 0 | K25: 0 | L25: 0 | M25: 0 | N25: 0 | O25: 0 | P25: 0 | Q25: 0 | R25: 0 | S25: 0 | T25: 0 | U25: 0 | V25: 0 | W25: 0 | X25: 0 | Y25: 0 | Z25: 0 | AA25: 0 | AB25: 0 | AC25: 0 | AD25: 0 | AE25: 0 | AF25: 0 | AG25: 0 | AH25: 0 | AI25: 0 | AJ25: 0 | AK25: 1501528.584
A26: Interior Costs - Soft Costs | B26: 2025 | C26: =+C12 -> 6 | D26: 60 | E26: 39 | F26: 0 | G26: =G66*$B$18*(1+$I$2)+G79*(1-$B$18) -> 27933.72654 | H26: 210899.1094 | I26: 391202.226 | J26: 268245.5702 | K26: 0 | L26: 0 | M26: 0 | N26: 0 | O26: 0 | P26: 0 | Q26: 0 | R26: 0 | S26: 0 | T26: 0 | U26: 0 | V26: 0 | W26: 0 | X26: 0 | Y26: 0 | Z26: 0 | AA26: 0 | AB26: 0 | AC26: 0 | AD26: 0 | AE26: 0 | AF26: 0 | AG26: 0 | AH26: 0 | AI26: 0 | AJ26: 0 | AK26: 898280.6321
A27: Interior Costs - Construction | B27: 2025 | C27: =+C13 -> 6 | D27: 60 | E27: 39 | F27: 0 | G27: =G67*$B$18*(1+$I$2)+G80*(1-$B$18) -> 0 | H27: 0 | I27: 958046.1069 | J27: 1994543.409 | K27: 0 | L27: 0 | M27: 0 | N27: 0 | O27: 0 | P27: 0 | Q27: 0 | R27: 0 | S27: 0 | T27: 0 | U27: 0 | V27: 0 | W27: 0 | X27: 0 | Y27: 0 | Z27: 0 | AA27: 0 | AB27: 0 | AC27: 0 | AD27: 0 | AE27: 0 | AF27: 0 | AG27: 0 | AH27: 0 | AI27: 0 | AJ27: 0 | AK27: 2952589.516
A28: =+A14 -> Maintenance Capital | B28: =+B14 -> 0 | C28: 6 | D28: 60 | E28: 39 | F28: 0 | G28: =G68*$B$18*(1+$I$2)+G81*(1-$B$18) -> 0 | H28: 0 | I28: 0 | J28: 0 | K28: 0 | L28: 0 | M28: 0 | N28: 0 | O28: 0 | P28: 0 | Q28: 0 | R28: 0 | S28: 0 | T28: 0 | U28: 0 | V28: 0 | W28: 0 | X28: 0 | Y28: 0 | Z28: 0 | AA28: 0 | AB28: 0 | AC28: 0 | AD28: 0 | AE28: 0 | AF28: 0 | AG28: 0 | AH28: 0 | AI28: 0 | AJ28: 0 | AK28: 0
A29: =+A15 -> 0 | B29: =+B15 -> 0 | C29: 0 | D29: 0 | E29: 0 | F29: 0 | G29: =G69*$B$18*(1+$I$2)+G82*(1-$B$18) -> 0 | H29: 0 | I29: 0 | J29: 0 | K29: 0 | L29: 0 | M29: 0 | N29: 0 | O29: 0 | P29: 0 | Q29: 0 | R29: 0 | S29: 0 | T29: 0 | U29: 0 | V29: 0 | W29: 0 | X29: 0 | Y29: 0 | Z29: 0 | AA29: 0 | AB29: 0 | AC29: 0 | AD29: 0 | AE29: 0 | AF29: 0 | AG29: 0 | AH29: 0 | AI29: 0 | AJ29: =AJ69+AJ82 -> 0 | AK29: 0
A30: Total | G30: =SUM(G20:G29) -> 252101.4445 | H30: 3982810.447 | I30: 8677461.178 | J30: 3115065.976 | K30: 0 | L30: 0 | M30: 0 | N30: 0 | O30: 0 | P30: 0 | Q30: 0 | R30: 0 | S30: 0 | T30: 0 | U30: 0 | V30: 0 | W30: 0 | X30: 0 | Y30: 0 | Z30: 0 | AA30: 0 | AB30: 0 | AC30: 0 | AD30: 0 | AE30: 0 | AF30: 0 | AG30: 0 | AH30: 0 | AI30: 0 | AJ30: 0 | AK30: =SUM(AK20:AK29) -> 16027439.05
A32: CWIP BY YEAR
A33: =+A6 -> Land Assumption | B33: =+B6 -> 2024 | G33: =(G6+G20)*IF($B33<=G$4,0,1) -> 12045861.12 | H33: =(G33+H6+H20)*IF($B33<=H$4,0,1) -> 12778647.04 | I33: =(H33+I6+I20)*IF($B33<=I$4,0,1) -> 0 | J33: 0 | K33: 0 | L33: 0 | M33: 0 | N33: 0 | O33: 0 | P33: 0 | Q33: 0 | R33: 0 | S33: 0 | T33: 0 | U33: 0 | V33: 0 | W33: 0 | X33: 0 | Y33: 0 | Z33: 0 | AA33: 0 | AB33: 0 | AC33: 0 | AD33: 0 | AE33: 0 | AF33: 0 | AG33: 0 | AH33: 0 | AI33: 0 | AJ33: 0
A34: =+A7 -> Midtown Building | B34: 2024 | G34: =(G7+G21)*IF($B34<=G$4,0,1) -> 14965111.13 | H34: =(G34+H7+H21)*IF($B34<=H$4,0,1) -> 69729598.78 | I34: 0 | J34: 0 | K34: 0 | L34: 0 | M34: 0 | N34: 0 | O34: 0 | P34: 0 | Q34: 0 | R34: 0 | S34: 0 | T34: 0 | U34: 0 | V34: 0 | W34: 0 | X34: 0 | Y34: 0 | Z34: 0 | AA34: 0 | AB34: 0 | AC34: 0 | AD34: 0 | AE34: 0 | AF34: 0 | AG34: 0 | AH34: 0 | AI34: 0 | AJ34: 0
A35: Furniture, Fixtures & Equipment - Building | B35: 2025 | G35: 0 | H35: 0 | I35: 15321638.25 | J35: 0 | K35: 0 | L35: 0 | M35: 0 | N35: 0 | O35: 0 | P35: 0 | Q35: 0 | R35: 0 | S35: 0 | T35: 0 | U35: 0 | V35: 0 | W35: 0 | X35: 0 | Y35: 0 | Z35: 0 | AA35: 0 | AB35: 0 | AC35: 0 | AD35: 0 | AE35: 0 | AF35: 0 | AG35: 0 | AH35: 0 | AI35: 0 | AJ35: 0
A36: LEED Design Costs | B36: 2025 | G36: 0 | H36: 0 | I36: 988914.4574 | J36: 0 | K36: 0 | L36: 0 | M36: 0 | N36: 0 | O36: 0 | P36: 0 | Q36: 0 | R36: 0 | S36: 0 | T36: 0 | U36: 0 | V36: 0 | W36: 0 | X36: 0 | Y36: 0 | Z36: 0 | AA36: 0 | AB36: 0 | AC36: 0 | AD36: 0 | AE36: 0 | AF36: 0 | AG36: 0 | AH36: 0 | AI36: 0 | AJ36: 0
A37: Capital Plug | B37: 2025 | G37: 584739.057 | H37: 2062175.89 | I37: 4427398.143 | J37: 0 | K37: 0 | L37: 0 | M37: 0 | N37: 0 | O37: 0 | P37: 0 | Q37: 0 | R37: 0 | S37: 0 | T37: 0 | U37: 0 | V37: 0 | W37: 0 | X37: 0 | Y37: 0 | Z37: 0 | AA37: 0 | AB37: 0 | AC37: 0 | AD37: 0 | AE37: 0 | AF37: 0 | AG37: 0 | AH37: 0 | AI37: 0 | AJ37: 0
A38: Parking Garage (1,000 Spaces) | B38: 2024 | G38: 25777.93366 | H38: 15167218.15 | I38: 0 | J38: 0 | K38: 0 | L38: 0 | M38: 0 | N38: 0 | O38: 0 | P38: 0 | Q38: 0 | R38: 0 | S38: 0 | T38: 0 | U38: 0 | V38: 0 | W38: 0 | X38: 0 | Y38: 0 | Z38: 0 | AA38: 0 | AB38: 0 | AC38: 0 | AD38: 0 | AE38: 0 | AF38: 0 | AG38: 0 | AH38: 0 | AI38: 0 | AJ38: 0
A39: Interior Costs - Soft Costs | B39: 2025 | G39: 2065267.977 | H39: 5088739.086 | I39: 8261625.312 | J39: 0 | K39: 0 | L39: 0 | M39: 0 | N39: 0 | O39: 0 | P39: 0 | Q39: 0 | R39: 0 | S39: 0 | T39: 0 | U39: 0 | V39: 0 | W39: 0 | X39: 0 | Y39: 0 | Z39: 0 | AA39: 0 | AB39: 0 | AC39: 0 | AD39: 0 | AE39: 0 | AF39: 0 | AG39: 0 | AH39: 0 | AI39: 0 | AJ39: 0
A40: Interior Costs - Construction | B40: 2025 | G40: 0 | H40: 0 | I40: 50607187.85 | J40: 0 | K40: 0 | L40: 0 | M40: 0 | N40: 0 | O40: 0 | P40: 0 | Q40: 0 | R40: 0 | S40: 0 | T40: 0 | U40: 0 | V40: 0 | W40: 0 | X40: 0 | Y40: 0 | Z40: 0 | AA40: 0 | AB40: 0 | AC40: 0 | AD40: 0 | AE40: 0 | AF40: 0 | AG40: 0 | AH40: 0 | AI40: 0 | AJ40: 0
A41: Maintenance Capital | B41: 0 | G41: 0 | H41: 0 | I41: 0 | J41: 0 | K41: 0 | L41: 0 | M41: 0 | N41: 0 | O41: 0 | P41: 0 | Q41: 0 | R41: 0 | S41: 0 | T41: 0 | U41: 0 | V41: 0 | W41: 0 | X41: 0 | Y41: 0 | Z41: 0 | AA41: 0 | AB41: 0 | AC41: 0 | AD41: 0 | AE41: 0 | AF41: 0 | AG41: 0 | AH41: 0 | AI41: 0 | AJ41: 0
A42: 0 | B42: 0 | G42: 0 | H42: 0 | I42: 0 | J42: 0 | K42: 0 | L42: 0 | M42: 0 | N42: 0 | O42: 0 | P42: 0 | Q42: 0 | R42: 0 | S42: 0 | T42: 0 | U42: 0 | V42: 0 | W42: 0 | X42: 0 | Y42: 0 | Z42: 0 | AA42: =(Z42+AA15+AA29)*IF($B42<=AA$4,0,1) -> 0 | AB42: 0 | AC42: 0 | AD42: 0 | AE42: 0 | AF42: 0 | AG42: 0 | AH42: 0 | AI42: 0 | AJ42: 0
A43: Total | G43: =SUM(G33:G42) -> 29686757.22 | H43: =SUM(H33:H42) -> 104826378.9 | I43: =SUM(I33:I42) -> 79606764.01 | J43: 0 | K43: 0 | L43: 0 | M43: 0 | N43: 0 | O43: 0 | P43: 0 | Q43: 0 | R43: 0 | S43: 0 | T43: 0 | U43: 0 | V43: 0 | W43: 0 | X43: 0 | Y43: 0 | Z43: 0 | AA43: 0 | AB43: 0 | AC43: 0 | AD43: 0 | AE43: 0 | AF43: 0 | AG43: 0 | AH43: 0 | AI43: 0 | AJ43: 0 | AK43: 0
A45: CWIP (excluding capex earning AFUDC)
A46: =+A33 -> Land Assumption | G46: =G33*IF(G20>0,0,1) -> 0 | H46: =H33*IF(H20>0,0,1) -> 0 | I46: 0 | J46: 0 | K46: 0 | L46: 0 | M46: 0 | N46: 0 | O46: 0 | P46: 0 | Q46: 0 | R46: 0 | S46: 0 | T46: 0 | U46: 0 | V46: 0 | W46: 0 | X46: 0 | Y46: 0 | Z46: 0 | AA46: 0 | AB46: 0 | AC46: 0 | AD46: 0 | AE46: 0 | AF46: 0 | AG46: 0 | AH46: 0 | AI46: 0 | AJ46: 0
A47: =+A34 -> Midtown Building | G47: =G34*IF(G21>0,0,1) -> 0 | H47: 0 | I47: 0 | J47: 0 | K47: 0 | L47: 0 | M47: 0 | N47: 0 | O47: 0 | P47: 0 | Q47: 0 | R47: 0 | S47: 0 | T47: 0 | U47: 0 | V47: 0 | W47: 0 | X47: 0 | Y47: 0 | Z47: 0 | AA47: 0 | AB47: 0 | AC47: 0 | AD47: 0 | AE47: 0 | AF47: 0 | AG47: 0 | AH47: 0 | AI47: 0 | AJ47: 0
A48: Furniture, Fixtures & Equipment - Building | G48: 0 | H48: 0 | I48: 0 | J48: 0 | K48: 0 | L48: 0 | M48: 0 | N48: 0 | O48: 0 | P48: 0 | Q48: 0 | R48: 0 | S48: 0 | T48: 0 | U48: 0 | V48: 0 | W48: 0 | X48: 0 | Y48: 0 | Z48: 0 | AA48: 0 | AB48: 0 | AC48: 0 | AD48: 0 | AE48: 0 | AF48: 0 | AG48: 0 | AH48: 0 | AI48: 0 | AJ48: 0
A49: LEED Design Costs | G49: 0 | H49: 0 | I49: 0 | J49: 0 | K49: 0 | L49: 0 | M49: 0 | N49: 0 | O49: 0 | P49: 0 | Q49: 0 | R49: 0 | S49: 0 | T49: 0 | U49: 0 | V49: 0 | W49: 0 | X49: 0 | Y49: 0 | Z49: 0 | AA49: 0 | AB49: 0 | AC49: 0 | AD49: 0 | AE49: 0 | AF49: 0 | AG49: 0 | AH49: 0 | AI49: 0 | AJ49: 0
A50: Capital Plug | G50: 0 | H50: 0 | I50: 0 | J50: 0 | K50: 0 | L50: 0 | M50: 0 | N50: 0 | O50: 0 | P50: 0 | Q50: 0 | R50: 0 | S50: 0 | T50: 0 | U50: 0 | V50: 0 | W50: 0 | X50: 0 | Y50: 0 | Z50: 0 | AA50: 0 | AB50: 0 | AC50: 0 | AD50: 0 | AE50: 0 | AF50: 0 | AG50: 0 | AH50: 0 | AI50: 0 | AJ50: 0
A51: Parking Garage (1,000 Spaces) | G51: 0 | H51: 0 | I51: 0 | J51: 0 | K51: 0 | L51: 0 | M51: 0 | N51: 0 | O51: 0 | P51: 0 | Q51: 0 | R51: 0 | S51: 0 | T51: 0 | U51: 0 | V51: 0 | W51: 0 | X51: 0 | Y51: 0 | Z51: 0 | AA51: 0 | AB51: 0 | AC51: 0 | AD51: 0 | AE51: 0 | AF51: 0 | AG51: 0 | AH51: 0 | AI51: 0 | AJ51: 0
A52: Interior Costs - Soft Costs | G52: 0 | H52: 0 | I52: 0 | J52: 0 | K52: 0 | L52: 0 | M52: 0 | N52: 0 | O52: 0 | P52: 0 | Q52: 0 | R52: 0 | S52: 0 | T52: 0 | U52: 0 | V52: 0 | W52: 0 | X52: 0 | Y52: 0 | Z52: 0 | AA52: 0 | AB52: 0 | AC52: 0 | AD52: 0 | AE52: 0 | AF52: 0 | AG52: 0 | AH52: 0 | AI52: 0 | AJ52: 0
A53: Interior Costs - Construction | G53: 0 | H53: 0 | I53: 0 | J53: 0 | K53: 0 | L53: 0 | M53: 0 | N53: 0 | O53: 0 | P53: 0 | Q53: 0 | R53: 0 | S53: 0 | T53: 0 | U53: 0 | V53: 0 | W53: 0 | X53: 0 | Y53: 0 | Z53: 0 | AA53: 0 | AB53: 0 | AC53: 0 | AD53: 0 | AE53: 0 | AF53: 0 | AG53: 0 | AH53: 0 | AI53: 0 | AJ53: 0
A54: Maintenance Capital | G54: 0 | H54: 0 | I54: 0 | J54: 0 | K54: 0 | L54: 0 | M54: 0 | N54: 0 | O54: 0 | P54: 0 | Q54: 0 | R54: 0 | S54: 0 | T54: 0 | U54: 0 | V54: 0 | W54: 0 | X54: 0 | Y54: 0 | Z54: 0 | AA54: 0 | AB54: 0 | AC54: 0 | AD54: 0 | AE54: 0 | AF54: 0 | AG54: 0 | AH54: 0 | AI54: 0 | AJ54: 0
A55: 0 | G55: 0 | H55: 0 | I55: 0 | J55: 0 | K55: 0 | L55: 0 | M55: 0 | N55: 0 | O55: 0 | P55: 0 | Q55: =Q42*IF(Q29>0,0,1) -> 0 | R55: 0 | S55: 0 | T55: 0 | U55: 0 | V55: 0 | W55: 0 | X55: 0 | Y55: 0 | Z55: 0 | AA55: 0 | AB55: 0 | AC55: 0 | AD55: 0 | AE55: 0 | AF55: 0 | AG55: 0 | AH55: 0 | AI55: 0 | AJ55: 0
A56: Total | G56: =SUM(G46:G55) -> 0 | H56: =SUM(H46:H55) -> 0 | I56: =SUM(I46:I55) -> 0 | J56: 0 | K56: 0 | L56: 0 | M56: 0 | N56: 0 | O56: 0 | P56: 0 | Q56: 0 | R56: 0 | S56: 0 | T56: 0 | U56: 0 | V56: 0 | W56: 0 | X56: 0 | Y56: 0 | Z56: 0 | AA56: 0 | AB56: 0 | AC56: 0 | AD56: 0 | AE56: 0 | AF56: 0 | AG56: 0 | AH56: 0 | AI56: 0 | AJ56: 0 | AK56: 0
A57: Variance | G57: =+G56-G43 -> -29686757.22 | H57: =+H56-H43 -> -104826378.9 | I57: -79606764.01 | J57: 0 | K57: 0 | L57: 0 | M57: 0 | N57: 0 | O57: 0 | P57: 0 | Q57: 0 | R57: 0 | S57: 0 | T57: 0 | U57: 0 | V57: 0 | W57: 0 | X57: 0 | Y57: 0 | Z57: 0 | AA57: 0 | AB57: 0 | AC57: 0 | AD57: 0 | AE57: 0 | AF57: 0 | AG57: 0 | AH57: 0 | AI57: 0 | AJ57: 0
A59: AFUDC Inputs
A60: =A6 -> Land Assumption | B60: =B6 -> 2024 | C60: 0 | D60: 0 | E60: 0 | F60: 0 | G60: =+'Monthly Capex AFUDC Calcs'!H$79 -> 89618.12422 | H60: =+'Monthly Capex AFUDC Calcs'!I$79 -> 732785.9115 | I60: =+'Monthly Capex AFUDC Calcs'!J$79 -> 744089.4719 | J60: =+'Monthly Capex AFUDC Calcs'!K$79 -> 0 | AK60: =SUM(G60:AJ60) -> 1566493.508
A61: =A7 -> Midtown Building | B61: 2024 | C61: 0 | D61: 60 | E61: 39 | F61: 0 | G61: =+'Monthly Capex AFUDC Calcs'!H$80+'Monthly Capex AFUDC Calcs'!H$81+'Monthly Capex AFUDC Calcs'!H$86 -> 128434.1325 | H61: =+'Monthly Capex AFUDC Calcs'!I$80+'Monthly Capex AFUDC Calcs'!I$81+'Monthly Capex AFUDC Calcs'!I$86 -> 2517159.347 | I61: =+'Monthly Capex AFUDC Calcs'!J$80+'Monthly Capex AFUDC Calcs'!J$81+'Monthly Capex AFUDC Calcs'!J$86 -> 4993516.646 | J61: =+'Monthly Capex AFUDC Calcs'!K$80+'Monthly Capex AFUDC Calcs'!K$81+'Monthly Capex AFUDC Calcs'!K$86 -> 0 | AK61: =SUM(G61:AJ61) -> 7639110.125
A62: Furniture, Fixtures & Equipment - Building | B62: 2025 | C62: 6 | D62: 7 | E62: 7 | F62: 0 | G62: =+'Monthly Capex AFUDC Calcs'!H$82 -> 0 | H62: =+'Monthly Capex AFUDC Calcs'!I$82 -> 0 | I62: =+'Monthly Capex AFUDC Calcs'!J$82 -> 313841.9971 | J62: =+'Monthly Capex AFUDC Calcs'!K$82 -> 669936.2296 | AK62: 983778.2267
A63: LEED Design Costs | B63: 2025 | C63: 6 | D63: 60 | E63: 39 | F63: 0 | G63: =+'Monthly Capex AFUDC Calcs'!H$83 -> 0 | H63: =+'Monthly Capex AFUDC Calcs'!I$83 -> 0 | I63: =+'Monthly Capex AFUDC Calcs'!J$83 -> 28914.4574 | J63: =+'Monthly Capex AFUDC Calcs'!K$83 -> 36793.05504 | AK63: 65707.51244
A64: Capital Plug | B64: 2025 | C64: 6 | D64: 60 | E64: 39 | F64: 0 | G64: =+'Monthly Capex AFUDC Calcs'!H$84 -> 5737.52759 | H64: =+'Monthly Capex AFUDC Calcs'!I$84 -> 77729.5342 | I64: =+'Monthly Capex AFUDC Calcs'!J$84 -> 190936.1681 | J64: =+'Monthly Capex AFUDC Calcs'!K$84 -> 145547.7123 | AK64: 419950.9422
A65: Parking Garage (1,000 Spaces) | B65: 2024 | C65: 0 | D65: 60 | E65: 39 | F65: 0 | G65: =+'Monthly Capex AFUDC Calcs'!H$85 -> 377.9336618 | H65: =+'Monthly Capex AFUDC Calcs'!I$85 -> 444236.5453 | I65: =+'Monthly Capex AFUDC Calcs'!J$85 -> 1056914.105 | J65: =+'Monthly Capex AFUDC Calcs'!K$85 -> 0 | AK65: 1501528.584
A66: Interior Costs - Soft Costs | B66: 2025 | C66: 6 | D66: 60 | E66: 39 | F66: 0 | G66: =+'Monthly Capex AFUDC Calcs'!H$88 -> 27933.72654 | H66: =+'Monthly Capex AFUDC Calcs'!I$88 -> 210899.1094 | I66: =+'Monthly Capex AFUDC Calcs'!J$88 -> 391202.226 | J66: =+'Monthly Capex AFUDC Calcs'!K$88 -> 268245.5702 | AK66: 898280.6321
A67: Interior Costs - Construction | B67: 2025 | C67: 6 | D67: 60 | E67: 39 | F67: 0 | G67: =+'Monthly Capex AFUDC Calcs'!H$87 -> 0 | H67: =+'Monthly Capex AFUDC Calcs'!I$87 -> 0 | I67: =+'Monthly Capex AFUDC Calcs'!J$87 -> 958046.1069 | J67: =+'Monthly Capex AFUDC Calcs'!K$87 -> 1994543.409 | AK67: 2952589.516
A68: Maintenance Capital | B68: 0 | C68: 6 | D68: 60 | E68: 39 | F68: 0 | AK68: 0
A69: 0 | B69: 0 | C69: 0 | D69: 0 | E69: 0 | F69: 0 | AK69: 0
A70: Total | G70: =SUM(G60:G69) -> 252101.4445 | H70: 3982810.447 | I70: 8677461.178 | J70: 3115065.976 | K70: 0 | L70: 0 | M70: 0 | N70: 0 | O70: 0 | P70: 0 | Q70: 0 | R70: 0 | S70: 0 | T70: 0 | U70: 0 | V70: 0 | W70: 0 | X70: 0 | Y70: 0 | Z70: 0 | AA70: 0 | AB70: 0 | AC70: 0 | AD70: 0 | AE70: 0 | AF70: 0 | AG70: 0 | AH70: 0 | AI70: 0 | AJ70: 0 | AK70: 16027439.05
A72: AFUDC Calculation
A73: =A6 -> Land Assumption | B73: =B6 -> 2024 | C73: 0 | D73: 0 | E73: 0 | F73: 0 | G73: =(IF(G$4<=$B73,((SUM($G6:G6))*(1-'Input Data'!$C$48))*(1-($C73/12)),0)*Financials!$C$74)*'Input Data'!$C$47 -> 799092.0706 | H73: =(IF(H$4<=$B73,((SUM($G6:H6))*(1-'Input Data'!$C$48)),0)*Financials!$C$74)*'Input Data'!$C$47 -> 799092.0706 | I73: =(IF(I$4<=$B73,((SUM($G6:I6))*(1-'Input Data'!$C$48)),0)*Financials!$C$74)*'Input Data'!$C$47 -> 799092.0706 | J73: =(IF(J$4<=$B73,((SUM($G6:J6))*(1-'Input Data'!$C$48)),0)*Financials!$C$74)*'Input Data'!$C$47 -> 0 | K73: =(IF(K$4<=$B73,((SUM($G6:K6))*(1-'Input Data'!$C$48)),0)*Financials!$C$74)*'Input Data'!$C$47 -> 0 | L73: =(IF(L$4<=$B73,((SUM($G6:L6))*(1-'Input Data'!$C$48)),0)*Financials!$C$74)*'Input Data'!$C$47 -> 0 | M73: =(IF(M$4<=$B73,((SUM($G6:M6))*(1-'Input Data'!$C$48)),0)*Financials!$C$74)*'Input Data'!$C$47 -> 0 | N73: =(IF(N$4<=$B73,((SUM($G6:N6))*(1-'Input Data'!$C$48)),0)*Financials!$C$74)*'Input Data'!$C$47 -> 0 | O73: =(IF(O$4<=$B73,((SUM($G6:O6))*(1-'Input Data'!$C$48)),0)*Financials!$C$74)*'Input Data'!$C$47 -> 0 | P73: =(IF(P$4<=$B73,((SUM($G6:P6))*(1-'Input Data'!$C$48)),0)*Financials!$C$74)*'Input Data'!$C$47 -> 0 | Q73: =(IF(Q$4<=$B73,((SUM($G6:Q6))*(1-'Input Data'!$C$48)),0)*Financials!$C$74)*'Input Data'!$C$47 -> 0 | R73: =(IF(R$4<=$B73,((SUM($G6:R6))*(1-'Input Data'!$C$48)),0)*Financials!$C$74)*'Input Data'!$C$47 -> 0 | S73: =(IF(S$4<=$B73,((SUM($G6:S6))*(1-'Input Data'!$C$48)),0)*Financials!$C$74)*'Input Data'!$C$47 -> 0 | T73: =(IF(T$4<=$B73,((SUM($G6:T6))*(1-'Input Data'!$C$48)),0)*Financials!$C$74)*'Input Data'!$C$47 -> 0 | U73: =(IF(U$4<=$B73,((SUM($G6:U6))*(1-'Input Data'!$C$48)),0)*Financials!$C$74)*'Input Data'!$C$47 -> 0 | V73: =(IF(V$4<=$B73,((SUM($G6:V6))*(1-'Input Data'!$C$48)),0)*Financials!$C$74)*'Input Data'!$C$47 -> 0 | W73: =(IF(W$4<=$B73,((SUM($G6:W6))*(1-'Input Data'!$C$48)),0)*Financials!$C$74)*'Input Data'!$C$47 -> 0 | X73: =(IF(X$4<=$B73,((SUM($G6:X6))*(1-'Input Data'!$C$48)),0)*Financials!$C$74)*'Input Data'!$C$47 -> 0 | Y73: =(IF(Y$4<=$B73,((SUM($G6:Y6))*(1-'Input Data'!$C$48)),0)*Financials!$C$74)*'Input Data'!$C$47 -> 0 | Z73: =(IF(Z$4<=$B73,((SUM($G6:Z6))*(1-'Input Data'!$C$48)),0)*Financials!$C$74)*'Input Data'!$C$47 -> 0 | AA73: =(IF(AA$4<=$B73,((SUM($G6:AA6))*(1-'Input Data'!$C$48)),0)*Financials!$C$74)*'Input Data'!$C$47 -> 0 | AB73: =(IF(AB$4<=$B73,((SUM($G6:AB6))*(1-'Input Data'!$C$48)),0)*Financials!$C$74)*'Input Data'!$C$47 -> 0 | AC73: =(IF(AC$4<=$B73,((SUM($G6:AC6))*(1-'Input Data'!$C$48)),0)*Financials!$C$74)*'Input Data'!$C$47 -> 0 | AD73: =(IF(AD$4<=$B73,((SUM($G6:AD6))*(1-'Input Data'!$C$48)),0)*Financials!$C$74)*'Input Data'!$C$47 -> 0 | AE73: =(IF(AE$4<=$B73,((SUM($G6:AE6))*(1-'Input Data'!$C$48)),0)*Financials!$C$74)*'Input Data'!$C$47 -> 0 | AF73: =(IF(AF$4<=$B73,((SUM($G6:AF6))*(1-'Input Data'!$C$48)),0)*Financials!$C$74)*'Input Data'!$C$47 -> 0 | AG73: =(IF(AG$4<=$B73,((SUM($G6:AG6))*(1-'Input Data'!$C$48)),0)*Financials!$C$74)*'Input Data'!$C$47 -> 0 | AH73: =(IF(AH$4<=$B73,((SUM($G6:AH6))*(1-'Input Data'!$C$48)),0)*Financials!$C$74)*'Input Data'!$C$47 -> 0 | AI73: =(IF(AI$4<=$B73,((SUM($G6:AI6))*(1-'Input Data'!$C$48)),0)*Financials!$C$74)*'Input Data'!$C$47 -> 0 | AJ73: =(IF(AJ$4<=$B73,((SUM($G6:AJ6))*(1-'Input Data'!$C$48)),0)*Financials!$C$74)*'Input Data'!$C$47 -> 0 | AK73: =SUM(G73:AJ73) -> 2397276.212
A74: Midtown Building | B74: 2024 | C74: 0 | D74: 60 | E74: 39 | F74: 0 | G74: =(IF(G$4<=$B74,((SUM($G7:G7))*(1-'Input Data'!$C$48))*(1-($C74/12)),0)*Financials!$C$74)*'Input Data'!$C$47 -> 991605.0506 | H74: =(IF(H$4<=$B74,((SUM($G7:H7))*(1-'Input Data'!$C$48)),0)*Financials!$C$74)*'Input Data'!$C$47 -> 4483540.247 | I74: =(IF(I$4<=$B74,((SUM($G7:I7))*(1-'Input Data'!$C$48)),0)*Financials!$C$74)*'Input Data'!$C$47 -> 6735022.108 | J74: =(IF(J$4<=$B74,((SUM($G7:J7))*(1-'Input Data'!$C$48)),0)*Financials!$C$74)*'Input Data'!$C$47 -> 0 | K74: =(IF(K$4<=$B74,((SUM($G7:K7))*(1-'Input Data'!$C$48)),0)*Financials!$C$74)*'Input Data'!$C$47 -> 0 | L74: =(IF(L$4<=$B74,((SUM($G7:L7))*(1-'Input Data'!$C$48)),0)*Financials!$C$74)*'Input Data'!$C$47 -> 0 | M74: =(IF(M$4<=$B74,((SUM($G7:M7))*(1-'Input Data'!$C$48)),0)*Financials!$C$74)*'Input Data'!$C$47 -> 0 | N74: =(IF(N$4<=$B74,((SUM($G7:N7))*(1-'Input Data'!$C$48)),0)*Financials!$C$74)*'Input Data'!$C$47 -> 0 | O74: =(IF(O$4<=$B74,((SUM($G7:O7))*(1-'Input Data'!$C$48)),0)*Financials!$C$74)*'Input Data'!$C$47 -> 0 | P74: =(IF(P$4<=$B74,((SUM($G7:P7))*(1-'Input Data'!$C$48)),0)*Financials!$C$74)*'Input Data'!$C$47 -> 0 | Q74: =(IF(Q$4<=$B74,((SUM($G7:Q7))*(1-'Input Data'!$C$48)),0)*Financials!$C$74)*'Input Data'!$C$47 -> 0 | R74: =(IF(R$4<=$B74,((SUM($G7:R7))*(1-'Input Data'!$C$48)),0)*Financials!$C$74)*'Input Data'!$C$47 -> 0 | S74: =(IF(S$4<=$B74,((SUM($G7:S7))*(1-'Input Data'!$C$48)),0)*Financials!$C$74)*'Input Data'!$C$47 -> 0 | T74: =(IF(T$4<=$B74,((SUM($G7:T7))*(1-'Input Data'!$C$48)),0)*Financials!$C$74)*'Input Data'!$C$47 -> 0 | U74: =(IF(U$4<=$B74,((SUM($G7:U7))*(1-'Input Data'!$C$48)),0)*Financials!$C$74)*'Input Data'!$C$47 -> 0 | V74: =(IF(V$4<=$B74,((SUM($G7:V7))*(1-'Input Data'!$C$48)),0)*Financials!$C$74)*'Input Data'!$C$47 -> 0 | W74: =(IF(W$4<=$B74,((SUM($G7:W7))*(1-'Input Data'!$C$48)),0)*Financials!$C$74)*'Input Data'!$C$47 -> 0 | X74: =(IF(X$4<=$B74,((SUM($G7:X7))*(1-'Input Data'!$C$48)),0)*Financials!$C$74)*'Input Data'!$C$47 -> 0 | Y74: =(IF(Y$4<=$B74,((SUM($G7:Y7))*(1-'Input Data'!$C$48)),0)*Financials!$C$74)*'Input Data'!$C$47 -> 0 | Z74: =(IF(Z$4<=$B74,((SUM($G7:Z7))*(1-'Input Data'!$C$48)),0)*Financials!$C$74)*'Input Data'!$C$47 -> 0 | AA74: =(IF(AA$4<=$B74,((SUM($G7:AA7))*(1-'Input Data'!$C$48)),0)*Financials!$C$74)*'Input Data'!$C$47 -> 0 | AB74: =(IF(AB$4<=$B74,((SUM($G7:AB7))*(1-'Input Data'!$C$48)),0)*Financials!$C$74)*'Input Data'!$C$47 -> 0 | AC74: =(IF(AC$4<=$B74,((SUM($G7:AC7))*(1-'Input Data'!$C$48)),0)*Financials!$C$74)*'Input Data'!$C$47 -> 0 | AD74: =(IF(AD$4<=$B74,((SUM($G7:AD7))*(1-'Input Data'!$C$48)),0)*Financials!$C$74)*'Input Data'!$C$47 -> 0 | AE74: =(IF(AE$4<=$B74,((SUM($G7:AE7))*(1-'Input Data'!$C$48)),0)*Financials!$C$74)*'Input Data'!$C$47 -> 0 | AF74: =(IF(AF$4<=$B74,((SUM($G7:AF7))*(1-'Input Data'!$C$48)),0)*Financials!$C$74)*'Input Data'!$C$47 -> 0 | AG74: =(IF(AG$4<=$B74,((SUM($G7:AG7))*(1-'Input Data'!$C$48)),0)*Financials!$C$74)*'Input Data'!$C$47 -> 0 | AH74: =(IF(AH$4<=$B74,((SUM($G7:AH7))*(1-'Input Data'!$C$48)),0)*Financials!$C$74)*'Input Data'!$C$47 -> 0 | AI74: =(IF(AI$4<=$B74,((SUM($G7:AI7))*(1-'Input Data'!$C$48)),0)*Financials!$C$74)*'Input Data'!$C$47 -> 0 | AJ74: =(IF(AJ$4<=$B74,((SUM($G7:AJ7))*(1-'Input Data'!$C$48)),0)*Financials!$C$74)*'Input Data'!$C$47 -> 0 | AK74: =SUM(G74:AJ74) -> 12210167.41
A75: Furniture, Fixtures & Equipment - Building | B75: 2025 | C75: 6 | D75: 7 | E75: 7 | F75: 0 | G75: =(IF(G$4<=$B75,((SUM($G8:G8))*(1-'Input Data'!$C$48))*(1-($C75/12)),0)*Financials!$C$74)*'Input Data'!$C$47 -> 0 | H75: =(IF(H$4<=$B75,((SUM($G8:H8))*(1-'Input Data'!$C$48)),0)*Financials!$C$74)*'Input Data'!$C$47 -> 0 | I75: =(IF(I$4<=$B75,((SUM($G8:I8))*(1-'Input Data'!$C$48)),0)*Financials!$C$74)*'Input Data'!$C$47 -> 1003041.757 | J75: =(IF(J$4<=$B75,((SUM($G8:J8))*(1-'Input Data'!$C$48)),0)*Financials!$C$74)*'Input Data'!$C$47 -> 2167045.262 | K75: =(IF(K$4<=$B75,((SUM($G8:K8))*(1-'Input Data'!$C$48)),0)*Financials!$C$74)*'Input Data'!$C$47 -> 0 | L75: =(IF(L$4<=$B75,((SUM($G8:L8))*(1-'Input Data'!$C$48)),0)*Financials!$C$74)*'Input Data'!$C$47 -> 0 | M75: =(IF(M$4<=$B75,((SUM($G8:M8))*(1-'Input Data'!$C$48)),0)*Financials!$C$74)*'Input Data'!$C$47 -> 0 | N75: =(IF(N$4<=$B75,((SUM($G8:N8))*(1-'Input Data'!$C$48)),0)*Financials!$C$74)*'Input Data'!$C$47 -> 0 | O75: =(IF(O$4<=$B75,((SUM($G8:O8))*(1-'Input Data'!$C$48)),0)*Financials!$C$74)*'Input Data'!$C$47 -> 0 | P75: =(IF(P$4<=$B75,((SUM($G8:P8))*(1-'Input Data'!$C$48)),0)*Financials!$C$74)*'Input Data'!$C$47 -> 0 | Q75: =(IF(Q$4<=$B75,((SUM($G8:Q8))*(1-'Input Data'!$C$48)),0)*Financials!$C$74)*'Input Data'!$C$47 -> 0 | R75: =(IF(R$4<=$B75,((SUM($G8:R8))*(1-'Input Data'!$C$48)),0)*Financials!$C$74)*'Input Data'!$C$47 -> 0 | S75: =(IF(S$4<=$B75,((SUM($G8:S8))*(1-'Input Data'!$C$48)),0)*Financials!$C$74)*'Input Data'!$C$47 -> 0 | T75: =(IF(T$4<=$B75,((SUM($G8:T8))*(1-'Input Data'!$C$48)),0)*Financials!$C$74)*'Input Data'!$C$47 -> 0 | U75: =(IF(U$4<=$B75,((SUM($G8:U8))*(1-'Input Data'!$C$48)),0)*Financials!$C$74)*'Input Data'!$C$47 -> 0 | V75: =(IF(V$4<=$B75,((SUM($G8:V8))*(1-'Input Data'!$C$48)),0)*Financials!$C$74)*'Input Data'!$C$47 -> 0 | W75: =(IF(W$4<=$B75,((SUM($G8:W8))*(1-'Input Data'!$C$48)),0)*Financials!$C$74)*'Input Data'!$C$47 -> 0 | X75: =(IF(X$4<=$B75,((SUM($G8:X8))*(1-'Input Data'!$C$48)),0)*Financials!$C$74)*'Input Data'!$C$47 -> 0 | Y75: =(IF(Y$4<=$B75,((SUM($G8:Y8))*(1-'Input Data'!$C$48)),0)*Financials!$C$74)*'Input Data'!$C$47 -> 0 | Z75: =(IF(Z$4<=$B75,((SUM($G8:Z8))*(1-'Input Data'!$C$48)),0)*Financials!$C$74)*'Input Data'!$C$47 -> 0 | AA75: =(IF(AA$4<=$B75,((SUM($G8:AA8))*(1-'Input Data'!$C$48)),0)*Financials!$C$74)*'Input Data'!$C$47 -> 0 | AB75: =(IF(AB$4<=$B75,((SUM($G8:AB8))*(1-'Input Data'!$C$48)),0)*Financials!$C$74)*'Input Data'!$C$47 -> 0 | AC75: =(IF(AC$4<=$B75,((SUM($G8:AC8))*(1-'Input Data'!$C$48)),0)*Financials!$C$74)*'Input Data'!$C$47 -> 0 | AD75: =(IF(AD$4<=$B75,((SUM($G8:AD8))*(1-'Input Data'!$C$48)),0)*Financials!$C$74)*'Input Data'!$C$47 -> 0 | AE75: =(IF(AE$4<=$B75,((SUM($G8:AE8))*(1-'Input Data'!$C$48)),0)*Financials!$C$74)*'Input Data'!$C$47 -> 0 | AF75: =(IF(AF$4<=$B75,((SUM($G8:AF8))*(1-'Input Data'!$C$48)),0)*Financials!$C$74)*'Input Data'!$C$47 -> 0 | AG75: =(IF(AG$4<=$B75,((SUM($G8:AG8))*(1-'Input Data'!$C$48)),0)*Financials!$C$74)*'Input Data'!$C$47 -> 0 | AH75: =(IF(AH$4<=$B75,((SUM($G8:AH8))*(1-'Input Data'!$C$48)),0)*Financials!$C$74)*'Input Data'!$C$47 -> 0 | AI75: =(IF(AI$4<=$B75,((SUM($G8:AI8))*(1-'Input Data'!$C$48)),0)*Financials!$C$74)*'Input Data'!$C$47 -> 0 | AJ75: =(IF(AJ$4<=$B75,((SUM($G8:AJ8))*(1-'Input Data'!$C$48)),0)*Financials!$C$74)*'Input Data'!$C$47 -> 0 | AK75: 3170087.019
A76: LEED Design Costs | B76: 2025 | C76: 6 | D76: 60 | E76: 39 | F76: 0 | G76: =(IF(G$4<=$B76,((SUM($G9:G9))*(1-'Input Data'!$C$48))*(1-($C76/12)),0)*Financials!$C$74)*'Input Data'!$C$47 -> 0 | H76: =(IF(H$4<=$B76,((SUM($G9:H9))*(1-'Input Data'!$C$48)),0)*Financials!$C$74)*'Input Data'!$C$47 -> 0 | I76: =(IF(I$4<=$B76,((SUM($G9:I9))*(1-'Input Data'!$C$48)),0)*Financials!$C$74)*'Input Data'!$C$47 -> 64161.32457 | J76: =(IF(J$4<=$B76,((SUM($G9:J9))*(1-'Input Data'!$C$48)),0)*Financials!$C$74)*'Input Data'!$C$47 -> 99208.64611 | K76: =(IF(K$4<=$B76,((SUM($G9:K9))*(1-'Input Data'!$C$48)),0)*Financials!$C$74)*'Input Data'!$C$47 -> 0 | L76: =(IF(L$4<=$B76,((SUM($G9:L9))*(1-'Input Data'!$C$48)),0)*Financials!$C$74)*'Input Data'!$C$47 -> 0 | M76: =(IF(M$4<=$B76,((SUM($G9:M9))*(1-'Input Data'!$C$48)),0)*Financials!$C$74)*'Input Data'!$C$47 -> 0 | N76: =(IF(N$4<=$B76,((SUM($G9:N9))*(1-'Input Data'!$C$48)),0)*Financials!$C$74)*'Input Data'!$C$47 -> 0 | O76: =(IF(O$4<=$B76,((SUM($G9:O9))*(1-'Input Data'!$C$48)),0)*Financials!$C$74)*'Input Data'!$C$47 -> 0 | P76: =(IF(P$4<=$B76,((SUM($G9:P9))*(1-'Input Data'!$C$48)),0)*Financials!$C$74)*'Input Data'!$C$47 -> 0 | Q76: =(IF(Q$4<=$B76,((SUM($G9:Q9))*(1-'Input Data'!$C$48)),0)*Financials!$C$74)*'Input Data'!$C$47 -> 0 | R76: =(IF(R$4<=$B76,((SUM($G9:R9))*(1-'Input Data'!$C$48)),0)*Financials!$C$74)*'Input Data'!$C$47 -> 0 | S76: =(IF(S$4<=$B76,((SUM($G9:S9))*(1-'Input Data'!$C$48)),0)*Financials!$C$74)*'Input Data'!$C$47 -> 0 | T76: =(IF(T$4<=$B76,((SUM($G9:T9))*(1-'Input Data'!$C$48)),0)*Financials!$C$74)*'Input Data'!$C$47 -> 0 | U76: =(IF(U$4<=$B76,((SUM($G9:U9))*(1-'Input Data'!$C$48)),0)*Financials!$C$74)*'Input Data'!$C$47 -> 0 | V76: =(IF(V$4<=$B76,((SUM($G9:V9))*(1-'Input Data'!$C$48)),0)*Financials!$C$74)*'Input Data'!$C$47 -> 0 | W76: =(IF(W$4<=$B76,((SUM($G9:W9))*(1-'Input Data'!$C$48)),0)*Financials!$C$74)*'Input Data'!$C$47 -> 0 | X76: =(IF(X$4<=$B76,((SUM($G9:X9))*(1-'Input Data'!$C$48)),0)*Financials!$C$74)*'Input Data'!$C$47 -> 0 | Y76: =(IF(Y$4<=$B76,((SUM($G9:Y9))*(1-'Input Data'!$C$48)),0)*Financials!$C$74)*'Input Data'!$C$47 -> 0 | Z76: =(IF(Z$4<=$B76,((SUM($G9:Z9))*(1-'Input Data'!$C$48)),0)*Financials!$C$74)*'Input Data'!$C$47 -> 0 | AA76: =(IF(AA$4<=$B76,((SUM($G9:AA9))*(1-'Input Data'!$C$48)),0)*Financials!$C$74)*'Input Data'!$C$47 -> 0 | AB76: =(IF(AB$4<=$B76,((SUM($G9:AB9))*(1-'Input Data'!$C$48)),0)*Financials!$C$74)*'Input Data'!$C$47 -> 0 | AC76: =(IF(AC$4<=$B76,((SUM($G9:AC9))*(1-'Input Data'!$C$48)),0)*Financials!$C$74)*'Input Data'!$C$47 -> 0 | AD76: =(IF(AD$4<=$B76,((SUM($G9:AD9))*(1-'Input Data'!$C$48)),0)*Financials!$C$74)*'Input Data'!$C$47 -> 0 | AE76: =(IF(AE$4<=$B76,((SUM($G9:AE9))*(1-'Input Data'!$C$48)),0)*Financials!$C$74)*'Input Data'!$C$47 -> 0 | AF76: =(IF(AF$4<=$B76,((SUM($G9:AF9))*(1-'Input Data'!$C$48)),0)*Financials!$C$74)*'Input Data'!$C$47 -> 0 | AG76: =(IF(AG$4<=$B76,((SUM($G9:AG9))*(1-'Input Data'!$C$48)),0)*Financials!$C$74)*'Input Data'!$C$47 -> 0 | AH76: =(IF(AH$4<=$B76,((SUM($G9:AH9))*(1-'Input Data'!$C$48)),0)*Financials!$C$74)*'Input Data'!$C$47 -> 0 | AI76: =(IF(AI$4<=$B76,((SUM($G9:AI9))*(1-'Input Data'!$C$48)),0)*Financials!$C$74)*'Input Data'!$C$47 -> 0 | AJ76: =(IF(AJ$4<=$B76,((SUM($G9:AJ9))*(1-'Input Data'!$C$48)),0)*Financials!$C$74)*'Input Data'!$C$47 -> 0 | AK76: 163369.9707
A77: Capital Plug | B77: 2025 | C77: 6 | D77: 60 | E77: 39 | F77: 0 | G77: =(IF(G$4<=$B77,((SUM($G10:G10))*(1-'Input Data'!$C$48))*(1-($C77/12)),0)*Financials!$C$74)*'Input Data'!$C$47 -> 19348.70055 | H77: =(IF(H$4<=$B77,((SUM($G10:H10))*(1-'Input Data'!$C$48)),0)*Financials!$C$74)*'Input Data'!$C$47 -> 132246.4369 | I77: =(IF(I$4<=$B77,((SUM($G10:I10))*(1-'Input Data'!$C$48)),0)*Financials!$C$74)*'Input Data'!$C$47 -> 277564.2235 | J77: =(IF(J$4<=$B77,((SUM($G10:J10))*(1-'Input Data'!$C$48)),0)*Financials!$C$74)*'Input Data'!$C$47 -> 335245.5471 | K77: =(IF(K$4<=$B77,((SUM($G10:K10))*(1-'Input Data'!$C$48)),0)*Financials!$C$74)*'Input Data'!$C$47 -> 0 | L77: =(IF(L$4<=$B77,((SUM($G10:L10))*(1-'Input Data'!$C$48)),0)*Financials!$C$74)*'Input Data'!$C$47 -> 0 | M77: =(IF(M$4<=$B77,((SUM($G10:M10))*(1-'Input Data'!$C$48)),0)*Financials!$C$74)*'Input Data'!$C$47 -> 0 | N77: =(IF(N$4<=$B77,((SUM($G10:N10))*(1-'Input Data'!$C$48)),0)*Financials!$C$74)*'Input Data'!$C$47 -> 0 | O77: =(IF(O$4<=$B77,((SUM($G10:O10))*(1-'Input Data'!$C$48)),0)*Financials!$C$74)*'Input Data'!$C$47 -> 0 | P77: =(IF(P$4<=$B77,((SUM($G10:P10))*(1-'Input Data'!$C$48)),0)*Financials!$C$74)*'Input Data'!$C$47 -> 0 | Q77: =(IF(Q$4<=$B77,((SUM($G10:Q10))*(1-'Input Data'!$C$48)),0)*Financials!$C$74)*'Input Data'!$C$47 -> 0 | R77: =(IF(R$4<=$B77,((SUM($G10:R10))*(1-'Input Data'!$C$48)),0)*Financials!$C$74)*'Input Data'!$C$47 -> 0 | S77: =(IF(S$4<=$B77,((SUM($G10:S10))*(1-'Input Data'!$C$48)),0)*Financials!$C$74)*'Input Data'!$C$47 -> 0 | T77: =(IF(T$4<=$B77,((SUM($G10:T10))*(1-'Input Data'!$C$48)),0)*Financials!$C$74)*'Input Data'!$C$47 -> 0 | U77: =(IF(U$4<=$B77,((SUM($G10:U10))*(1-'Input Data'!$C$48)),0)*Financials!$C$74)*'Input Data'!$C$47 -> 0 | V77: =(IF(V$4<=$B77,((SUM($G10:V10))*(1-'Input Data'!$C$48)),0)*Financials!$C$74)*'Input Data'!$C$47 -> 0 | W77: =(IF(W$4<=$B77,((SUM($G10:W10))*(1-'Input Data'!$C$48)),0)*Financials!$C$74)*'Input Data'!$C$47 -> 0 | X77: =(IF(X$4<=$B77,((SUM($G10:X10))*(1-'Input Data'!$C$48)),0)*Financials!$C$74)*'Input Data'!$C$47 -> 0 | Y77: =(IF(Y$4<=$B77,((SUM($G10:Y10))*(1-'Input Data'!$C$48)),0)*Financials!$C$74)*'Input Data'!$C$47 -> 0 | Z77: =(IF(Z$4<=$B77,((SUM($G10:Z10))*(1-'Input Data'!$C$48)),0)*Financials!$C$74)*'Input Data'!$C$47 -> 0 | AA77: =(IF(AA$4<=$B77,((SUM($G10:AA10))*(1-'Input Data'!$C$48)),0)*Financials!$C$74)*'Input Data'!$C$47 -> 0 | AB77: =(IF(AB$4<=$B77,((SUM($G10:AB10))*(1-'Input Data'!$C$48)),0)*Financials!$C$74)*'Input Data'!$C$47 -> 0 | AC77: =(IF(AC$4<=$B77,((SUM($G10:AC10))*(1-'Input Data'!$C$48)),0)*Financials!$C$74)*'Input Data'!$C$47 -> 0 | AD77: =(IF(AD$4<=$B77,((SUM($G10:AD10))*(1-'Input Data'!$C$48)),0)*Financials!$C$74)*'Input Data'!$C$47 -> 0 | AE77: =(IF(AE$4<=$B77,((SUM($G10:AE10))*(1-'Input Data'!$C$48)),0)*Financials!$C$74)*'Input Data'!$C$47 -> 0 | AF77: =(IF(AF$4<=$B77,((SUM($G10:AF10))*(1-'Input Data'!$C$48)),0)*Financials!$C$74)*'Input Data'!$C$47 -> 0 | AG77: =(IF(AG$4<=$B77,((SUM($G10:AG10))*(1-'Input Data'!$C$48)),0)*Financials!$C$74)*'Input Data'!$C$47 -> 0 | AH77: =(IF(AH$4<=$B77,((SUM($G10:AH10))*(1-'Input Data'!$C$48)),0)*Financials!$C$74)*'Input Data'!$C$47 -> 0 | AI77: =(IF(AI$4<=$B77,((SUM($G10:AI10))*(1-'Input Data'!$C$48)),0)*Financials!$C$74)*'Input Data'!$C$47 -> 0 | AJ77: =(IF(AJ$4<=$B77,((SUM($G10:AJ10))*(1-'Input Data'!$C$48)),0)*Financials!$C$74)*'Input Data'!$C$47 -> 0 | AK77: 764404.9081
A78: Parking Garage (1,000 Spaces) | B78: 2024 | C78: 0 | D78: 60 | E78: 39 | F78: 0 | G78: =(IF(G$4<=$B78,((SUM($G11:G11))*(1-'Input Data'!$C$48))*(1-($C78/12)),0)*Financials!$C$74)*'Input Data'!$C$47 -> 1697.601713 | H78: =(IF(H$4<=$B78,((SUM($G11:H11))*(1-'Input Data'!$C$48)),0)*Financials!$C$74)*'Input Data'!$C$47 -> 983980.9921 | I78: =(IF(I$4<=$B78,((SUM($G11:I11))*(1-'Input Data'!$C$48)),0)*Financials!$C$74)*'Input Data'!$C$47 -> 1403288.103 | J78: =(IF(J$4<=$B78,((SUM($G11:J11))*(1-'Input Data'!$C$48)),0)*Financials!$C$74)*'Input Data'!$C$47 -> 0 | K78: =(IF(K$4<=$B78,((SUM($G11:K11))*(1-'Input Data'!$C$48)),0)*Financials!$C$74)*'Input Data'!$C$47 -> 0 | L78: =(IF(L$4<=$B78,((SUM($G11:L11))*(1-'Input Data'!$C$48)),0)*Financials!$C$74)*'Input Data'!$C$47 -> 0 | M78: =(IF(M$4<=$B78,((SUM($G11:M11))*(1-'Input Data'!$C$48)),0)*Financials!$C$74)*'Input Data'!$C$47 -> 0 | N78: =(IF(N$4<=$B78,((SUM($G11:N11))*(1-'Input Data'!$C$48)),0)*Financials!$C$74)*'Input Data'!$C$47 -> 0 | O78: =(IF(O$4<=$B78,((SUM($G11:O11))*(1-'Input Data'!$C$48)),0)*Financials!$C$74)*'Input Data'!$C$47 -> 0 | P78: =(IF(P$4<=$B78,((SUM($G11:P11))*(1-'Input Data'!$C$48)),0)*Financials!$C$74)*'Input Data'!$C$47 -> 0 | Q78: =(IF(Q$4<=$B78,((SUM($G11:Q11))*(1-'Input Data'!$C$48)),0)*Financials!$C$74)*'Input Data'!$C$47 -> 0 | R78: =(IF(R$4<=$B78,((SUM($G11:R11))*(1-'Input Data'!$C$48)),0)*Financials!$C$74)*'Input Data'!$C$47 -> 0 | S78: =(IF(S$4<=$B78,((SUM($G11:S11))*(1-'Input Data'!$C$48)),0)*Financials!$C$74)*'Input Data'!$C$47 -> 0 | T78: =(IF(T$4<=$B78,((SUM($G11:T11))*(1-'Input Data'!$C$48)),0)*Financials!$C$74)*'Input Data'!$C$47 -> 0 | U78: =(IF(U$4<=$B78,((SUM($G11:U11))*(1-'Input Data'!$C$48)),0)*Financials!$C$74)*'Input Data'!$C$47 -> 0 | V78: =(IF(V$4<=$B78,((SUM($G11:V11))*(1-'Input Data'!$C$48)),0)*Financials!$C$74)*'Input Data'!$C$47 -> 0 | W78: =(IF(W$4<=$B78,((SUM($G11:W11))*(1-'Input Data'!$C$48)),0)*Financials!$C$74)*'Input Data'!$C$47 -> 0 | X78: =(IF(X$4<=$B78,((SUM($G11:X11))*(1-'Input Data'!$C$48)),0)*Financials!$C$74)*'Input Data'!$C$47 -> 0 | Y78: =(IF(Y$4<=$B78,((SUM($G11:Y11))*(1-'Input Data'!$C$48)),0)*Financials!$C$74)*'Input Data'!$C$47 -> 0 | Z78: =(IF(Z$4<=$B78,((SUM($G11:Z11))*(1-'Input Data'!$C$48)),0)*Financials!$C$74)*'Input Data'!$C$47 -> 0 | AA78: =(IF(AA$4<=$B78,((SUM($G11:AA11))*(1-'Input Data'!$C$48)),0)*Financials!$C$74)*'Input Data'!$C$47 -> 0 | AB78: =(IF(AB$4<=$B78,((SUM($G11:AB11))*(1-'Input Data'!$C$48)),0)*Financials!$C$74)*'Input Data'!$C$47 -> 0 | AC78: =(IF(AC$4<=$B78,((SUM($G11:AC11))*(1-'Input Data'!$C$48)),0)*Financials!$C$74)*'Input Data'!$C$47 -> 0 | AD78: =(IF(AD$4<=$B78,((SUM($G11:AD11))*(1-'Input Data'!$C$48)),0)*Financials!$C$74)*'Input Data'!$C$47 -> 0 | AE78: =(IF(AE$4<=$B78,((SUM($G11:AE11))*(1-'Input Data'!$C$48)),0)*Financials!$C$74)*'Input Data'!$C$47 -> 0 | AF78: =(IF(AF$4<=$B78,((SUM($G11:AF11))*(1-'Input Data'!$C$48)),0)*Financials!$C$74)*'Input Data'!$C$47 -> 0 | AG78: =(IF(AG$4<=$B78,((SUM($G11:AG11))*(1-'Input Data'!$C$48)),0)*Financials!$C$74)*'Input Data'!$C$47 -> 0 | AH78: =(IF(AH$4<=$B78,((SUM($G11:AH11))*(1-'Input Data'!$C$48)),0)*Financials!$C$74)*'Input Data'!$C$47 -> 0 | AI78: =(IF(AI$4<=$B78,((SUM($G11:AI11))*(1-'Input Data'!$C$48)),0)*Financials!$C$74)*'Input Data'!$C$47 -> 0 | AJ78: =(IF(AJ$4<=$B78,((SUM($G11:AJ11))*(1-'Input Data'!$C$48)),0)*Financials!$C$74)*'Input Data'!$C$47 -> 0 | AK78: 2388966.697
A79: Interior Costs - Soft Costs | B79: 2025 | C79: 6 | D79: 60 | E79: 39 | F79: 0 | G79: =(IF(G$4<=$B79,((SUM($G12:G12))*(1-'Input Data'!$C$48))*(1-($C79/12)),0)*Financials!$C$74)*'Input Data'!$C$47 -> 68082.32504 | H79: =(IF(H$4<=$B79,((SUM($G12:H12))*(1-'Input Data'!$C$48)),0)*Financials!$C$74)*'Input Data'!$C$47 -> 324142.0928 | I79: =(IF(I$4<=$B79,((SUM($G12:I12))*(1-'Input Data'!$C$48)),0)*Financials!$C$74)*'Input Data'!$C$47 -> 510055.1448 | J79: =(IF(J$4<=$B79,((SUM($G12:J12))*(1-'Input Data'!$C$48)),0)*Financials!$C$74)*'Input Data'!$C$47 -> 588365.9129 | K79: =(IF(K$4<=$B79,((SUM($G12:K12))*(1-'Input Data'!$C$48)),0)*Financials!$C$74)*'Input Data'!$C$47 -> 0 | L79: =(IF(L$4<=$B79,((SUM($G12:L12))*(1-'Input Data'!$C$48)),0)*Financials!$C$74)*'Input Data'!$C$47 -> 0 | M79: =(IF(M$4<=$B79,((SUM($G12:M12))*(1-'Input Data'!$C$48)),0)*Financials!$C$74)*'Input Data'!$C$47 -> 0 | N79: =(IF(N$4<=$B79,((SUM($G12:N12))*(1-'Input Data'!$C$48)),0)*Financials!$C$74)*'Input Data'!$C$47 -> 0 | O79: =(IF(O$4<=$B79,((SUM($G12:O12))*(1-'Input Data'!$C$48)),0)*Financials!$C$74)*'Input Data'!$C$47 -> 0 | P79: =(IF(P$4<=$B79,((SUM($G12:P12))*(1-'Input Data'!$C$48)),0)*Financials!$C$74)*'Input Data'!$C$47 -> 0 | Q79: =(IF(Q$4<=$B79,((SUM($G12:Q12))*(1-'Input Data'!$C$48)),0)*Financials!$C$74)*'Input Data'!$C$47 -> 0 | R79: =(IF(R$4<=$B79,((SUM($G12:R12))*(1-'Input Data'!$C$48)),0)*Financials!$C$74)*'Input Data'!$C$47 -> 0 | S79: =(IF(S$4<=$B79,((SUM($G12:S12))*(1-'Input Data'!$C$48)),0)*Financials!$C$74)*'Input Data'!$C$47 -> 0 | T79: =(IF(T$4<=$B79,((SUM($G12:T12))*(1-'Input Data'!$C$48)),0)*Financials!$C$74)*'Input Data'!$C$47 -> 0 | U79: =(IF(U$4<=$B79,((SUM($G12:U12))*(1-'Input Data'!$C$48)),0)*Financials!$C$74)*'Input Data'!$C$47 -> 0 | V79: =(IF(V$4<=$B79,((SUM($G12:V12))*(1-'Input Data'!$C$48)),0)*Financials!$C$74)*'Input Data'!$C$47 -> 0 | W79: =(IF(W$4<=$B79,((SUM($G12:W12))*(1-'Input Data'!$C$48)),0)*Financials!$C$74)*'Input Data'!$C$47 -> 0 | X79: =(IF(X$4<=$B79,((SUM($G12:X12))*(1-'Input Data'!$C$48)),0)*Financials!$C$74)*'Input Data'!$C$47 -> 0 | Y79: =(IF(Y$4<=$B79,((SUM($G12:Y12))*(1-'Input Data'!$C$48)),0)*Financials!$C$74)*'Input Data'!$C$47 -> 0 | Z79: =(IF(Z$4<=$B79,((SUM($G12:Z12))*(1-'Input Data'!$C$48)),0)*Financials!$C$74)*'Input Data'!$C$47 -> 0 | AA79: =(IF(AA$4<=$B79,((SUM($G12:AA12))*(1-'Input Data'!$C$48)),0)*Financials!$C$74)*'Input Data'!$C$47 -> 0 | AB79: =(IF(AB$4<=$B79,((SUM($G12:AB12))*(1-'Input Data'!$C$48)),0)*Financials!$C$74)*'Input Data'!$C$47 -> 0 | AC79: =(IF(AC$4<=$B79,((SUM($G12:AC12))*(1-'Input Data'!$C$48)),0)*Financials!$C$74)*'Input Data'!$C$47 -> 0 | AD79: =(IF(AD$4<=$B79,((SUM($G12:AD12))*(1-'Input Data'!$C$48)),0)*Financials!$C$74)*'Input Data'!$C$47 -> 0 | AE79: =(IF(AE$4<=$B79,((SUM($G12:AE12))*(1-'Input Data'!$C$48)),0)*Financials!$C$74)*'Input Data'!$C$47 -> 0 | AF79: =(IF(AF$4<=$B79,((SUM($G12:AF12))*(1-'Input Data'!$C$48)),0)*Financials!$C$74)*'Input Data'!$C$47 -> 0 | AG79: =(IF(AG$4<=$B79,((SUM($G12:AG12))*(1-'Input Data'!$C$48)),0)*Financials!$C$74)*'Input Data'!$C$47 -> 0 | AH79: =(IF(AH$4<=$B79,((SUM($G12:AH12))*(1-'Input Data'!$C$48)),0)*Financials!$C$74)*'Input Data'!$C$47 -> 0 | AI79: =(IF(AI$4<=$B79,((SUM($G12:AI12))*(1-'Input Data'!$C$48)),0)*Financials!$C$74)*'Input Data'!$C$47 -> 0 | AJ79: =(IF(AJ$4<=$B79,((SUM($G12:AJ12))*(1-'Input Data'!$C$48)),0)*Financials!$C$74)*'Input Data'!$C$47 -> 0 | AK79: 1490645.476
A80: Interior Costs - Construction | B80: 2025 | C80: 6 | D80: 60 | E80: 39 | F80: 0 | G80: =(IF(G$4<=$B80,((SUM($G13:G13))*(1-'Input Data'!$C$48))*(1-($C80/12)),0)*Financials!$C$74)*'Input Data'!$C$47 -> 0 | H80: =(IF(H$4<=$B80,((SUM($G13:H13))*(1-'Input Data'!$C$48)),0)*Financials!$C$74)*'Input Data'!$C$47 -> 0 | I80: =(IF(I$4<=$B80,((SUM($G13:I13))*(1-'Input Data'!$C$48)),0)*Financials!$C$74)*'Input Data'!$C$47 -> 3318286.144 | J80: =(IF(J$4<=$B80,((SUM($G13:J13))*(1-'Input Data'!$C$48)),0)*Financials!$C$74)*'Input Data'!$C$47 -> 4915584.191 | K80: =(IF(K$4<=$B80,((SUM($G13:K13))*(1-'Input Data'!$C$48)),0)*Financials!$C$74)*'Input Data'!$C$47 -> 0 | L80: =(IF(L$4<=$B80,((SUM($G13:L13))*(1-'Input Data'!$C$48)),0)*Financials!$C$74)*'Input Data'!$C$47 -> 0 | M80: =(IF(M$4<=$B80,((SUM($G13:M13))*(1-'Input Data'!$C$48)),0)*Financials!$C$74)*'Input Data'!$C$47 -> 0 | N80: =(IF(N$4<=$B80,((SUM($G13:N13))*(1-'Input Data'!$C$48)),0)*Financials!$C$74)*'Input Data'!$C$47 -> 0 | O80: =(IF(O$4<=$B80,((SUM($G13:O13))*(1-'Input Data'!$C$48)),0)*Financials!$C$74)*'Input Data'!$C$47 -> 0 | P80: =(IF(P$4<=$B80,((SUM($G13:P13))*(1-'Input Data'!$C$48)),0)*Financials!$C$74)*'Input Data'!$C$47 -> 0 | Q80: =(IF(Q$4<=$B80,((SUM($G13:Q13))*(1-'Input Data'!$C$48)),0)*Financials!$C$74)*'Input Data'!$C$47 -> 0 | R80: =(IF(R$4<=$B80,((SUM($G13:R13))*(1-'Input Data'!$C$48)),0)*Financials!$C$74)*'Input Data'!$C$47 -> 0 | S80: =(IF(S$4<=$B80,((SUM($G13:S13))*(1-'Input Data'!$C$48)),0)*Financials!$C$74)*'Input Data'!$C$47 -> 0 | T80: =(IF(T$4<=$B80,((SUM($G13:T13))*(1-'Input Data'!$C$48)),0)*Financials!$C$74)*'Input Data'!$C$47 -> 0 | U80: =(IF(U$4<=$B80,((SUM($G13:U13))*(1-'Input Data'!$C$48)),0)*Financials!$C$74)*'Input Data'!$C$47 -> 0 | V80: =(IF(V$4<=$B80,((SUM($G13:V13))*(1-'Input Data'!$C$48)),0)*Financials!$C$74)*'Input Data'!$C$47 -> 0 | W80: =(IF(W$4<=$B80,((SUM($G13:W13))*(1-'Input Data'!$C$48)),0)*Financials!$C$74)*'Input Data'!$C$47 -> 0 | X80: =(IF(X$4<=$B80,((SUM($G13:X13))*(1-'Input Data'!$C$48)),0)*Financials!$C$74)*'Input Data'!$C$47 -> 0 | Y80: =(IF(Y$4<=$B80,((SUM($G13:Y13))*(1-'Input Data'!$C$48)),0)*Financials!$C$74)*'Input Data'!$C$47 -> 0 | Z80: =(IF(Z$4<=$B80,((SUM($G13:Z13))*(1-'Input Data'!$C$48)),0)*Financials!$C$74)*'Input Data'!$C$47 -> 0 | AA80: =(IF(AA$4<=$B80,((SUM($G13:AA13))*(1-'Input Data'!$C$48)),0)*Financials!$C$74)*'Input Data'!$C$47 -> 0 | AB80: =(IF(AB$4<=$B80,((SUM($G13:AB13))*(1-'Input Data'!$C$48)),0)*Financials!$C$74)*'Input Data'!$C$47 -> 0 | AC80: =(IF(AC$4<=$B80,((SUM($G13:AC13))*(1-'Input Data'!$C$48)),0)*Financials!$C$74)*'Input Data'!$C$47 -> 0 | AD80: =(IF(AD$4<=$B80,((SUM($G13:AD13))*(1-'Input Data'!$C$48)),0)*Financials!$C$74)*'Input Data'!$C$47 -> 0 | AE80: =(IF(AE$4<=$B80,((SUM($G13:AE13))*(1-'Input Data'!$C$48)),0)*Financials!$C$74)*'Input Data'!$C$47 -> 0 | AF80: =(IF(AF$4<=$B80,((SUM($G13:AF13))*(1-'Input Data'!$C$48)),0)*Financials!$C$74)*'Input Data'!$C$47 -> 0 | AG80: =(IF(AG$4<=$B80,((SUM($G13:AG13))*(1-'Input Data'!$C$48)),0)*Financials!$C$74)*'Input Data'!$C$47 -> 0 | AH80: =(IF(AH$4<=$B80,((SUM($G13:AH13))*(1-'Input Data'!$C$48)),0)*Financials!$C$74)*'Input Data'!$C$47 -> 0 | AI80: =(IF(AI$4<=$B80,((SUM($G13:AI13))*(1-'Input Data'!$C$48)),0)*Financials!$C$74)*'Input Data'!$C$47 -> 0 | AJ80: =(IF(AJ$4<=$B80,((SUM($G13:AJ13))*(1-'Input Data'!$C$48)),0)*Financials!$C$74)*'Input Data'!$C$47 -> 0 | AK80: 8233870.335
A81: Maintenance Capital | B81: 0 | C81: 6 | D81: 60 | E81: 39 | F81: 0 | G81: =(IF(G$4<=$B81,((SUM($G14:G14))*(1-'Input Data'!$C$48))*(1-($C81/12)),0)*Financials!$C$74)*'Input Data'!$C$47 -> 0 | H81: =(IF(H$4<=$B81,((SUM($G14:H14))*(1-'Input Data'!$C$48)),0)*Financials!$C$74)*'Input Data'!$C$47 -> 0 | I81: =(IF(I$4<=$B81,((SUM($G14:I14))*(1-'Input Data'!$C$48)),0)*Financials!$C$74)*'Input Data'!$C$47 -> 0 | J81: =(IF(J$4<=$B81,((SUM($G14:J14))*(1-'Input Data'!$C$48)),0)*Financials!$C$74)*'Input Data'!$C$47 -> 0 | K81: =(IF(K$4<=$B81,((SUM($G14:K14))*(1-'Input Data'!$C$48)),0)*Financials!$C$74)*'Input Data'!$C$47 -> 0 | L81: =(IF(L$4<=$B81,((SUM($G14:L14))*(1-'Input Data'!$C$48)),0)*Financials!$C$74)*'Input Data'!$C$47 -> 0 | M81: =(IF(M$4<=$B81,((SUM($G14:M14))*(1-'Input Data'!$C$48)),0)*Financials!$C$74)*'Input Data'!$C$47 -> 0 | N81: =(IF(N$4<=$B81,((SUM($G14:N14))*(1-'Input Data'!$C$48)),0)*Financials!$C$74)*'Input Data'!$C$47 -> 0 | O81: =(IF(O$4<=$B81,((SUM($G14:O14))*(1-'Input Data'!$C$48)),0)*Financials!$C$74)*'Input Data'!$C$47 -> 0 | P81: =(IF(P$4<=$B81,((SUM($G14:P14))*(1-'Input Data'!$C$48)),0)*Financials!$C$74)*'Input Data'!$C$47 -> 0 | Q81: =(IF(Q$4<=$B81,((SUM($G14:Q14))*(1-'Input Data'!$C$48)),0)*Financials!$C$74)*'Input Data'!$C$47 -> 0 | R81: =(IF(R$4<=$B81,((SUM($G14:R14))*(1-'Input Data'!$C$48)),0)*Financials!$C$74)*'Input Data'!$C$47 -> 0 | S81: =(IF(S$4<=$B81,((SUM($G14:S14))*(1-'Input Data'!$C$48)),0)*Financials!$C$74)*'Input Data'!$C$47 -> 0 | T81: =(IF(T$4<=$B81,((SUM($G14:T14))*(1-'Input Data'!$C$48)),0)*Financials!$C$74)*'Input Data'!$C$47 -> 0 | U81: =(IF(U$4<=$B81,((SUM($G14:U14))*(1-'Input Data'!$C$48)),0)*Financials!$C$74)*'Input Data'!$C$47 -> 0 | V81: =(IF(V$4<=$B81,((SUM($G14:V14))*(1-'Input Data'!$C$48)),0)*Financials!$C$74)*'Input Data'!$C$47 -> 0 | W81: =(IF(W$4<=$B81,((SUM($G14:W14))*(1-'Input Data'!$C$48)),0)*Financials!$C$74)*'Input Data'!$C$47 -> 0 | X81: =(IF(X$4<=$B81,((SUM($G14:X14))*(1-'Input Data'!$C$48)),0)*Financials!$C$74)*'Input Data'!$C$47 -> 0 | Y81: =(IF(Y$4<=$B81,((SUM($G14:Y14))*(1-'Input Data'!$C$48)),0)*Financials!$C$74)*'Input Data'!$C$47 -> 0 | Z81: =(IF(Z$4<=$B81,((SUM($G14:Z14))*(1-'Input Data'!$C$48)),0)*Financials!$C$74)*'Input Data'!$C$47 -> 0 | AA81: =(IF(AA$4<=$B81,((SUM($G14:AA14))*(1-'Input Data'!$C$48)),0)*Financials!$C$74)*'Input Data'!$C$47 -> 0 | AB81: =(IF(AB$4<=$B81,((SUM($G14:AB14))*(1-'Input Data'!$C$48)),0)*Financials!$C$74)*'Input Data'!$C$47 -> 0 | AC81: =(IF(AC$4<=$B81,((SUM($G14:AC14))*(1-'Input Data'!$C$48)),0)*Financials!$C$74)*'Input Data'!$C$47 -> 0 | AD81: =(IF(AD$4<=$B81,((SUM($G14:AD14))*(1-'Input Data'!$C$48)),0)*Financials!$C$74)*'Input Data'!$C$47 -> 0 | AE81: =(IF(AE$4<=$B81,((SUM($G14:AE14))*(1-'Input Data'!$C$48)),0)*Financials!$C$74)*'Input Data'!$C$47 -> 0 | AF81: =(IF(AF$4<=$B81,((SUM($G14:AF14))*(1-'Input Data'!$C$48)),0)*Financials!$C$74)*'Input Data'!$C$47 -> 0 | AG81: =(IF(AG$4<=$B81,((SUM($G14:AG14))*(1-'Input Data'!$C$48)),0)*Financials!$C$74)*'Input Data'!$C$47 -> 0 | AH81: =(IF(AH$4<=$B81,((SUM($G14:AH14))*(1-'Input Data'!$C$48)),0)*Financials!$C$74)*'Input Data'!$C$47 -> 0 | AI81: =(IF(AI$4<=$B81,((SUM($G14:AI14))*(1-'Input Data'!$C$48)),0)*Financials!$C$74)*'Input Data'!$C$47 -> 0 | AJ81: =(IF(AJ$4<=$B81,((SUM($G14:AJ14))*(1-'Input Data'!$C$48)),0)*Financials!$C$74)*'Input Data'!$C$47 -> 0 | AK81: 0
A82: 0 | B82: 0 | C82: 0 | D82: 0 | E82: 0 | F82: 0 | G82: =(IF(G$4<=$B82,((SUM($G15:G15))*(1-'Input Data'!$C$48))*(1-($C82/12)),0)*Financials!$C$74)*'Input Data'!$C$47 -> 0 | H82: =(IF(H$4<=$B82,((SUM($G15:H15))*(1-'Input Data'!$C$48)),0)*Financials!$C$74)*'Input Data'!$C$47 -> 0 | I82: =(IF(I$4<=$B82,((SUM($G15:I15))*(1-'Input Data'!$C$48)),0)*Financials!$C$74)*'Input Data'!$C$47 -> 0 | J82: =(IF(J$4<=$B82,((SUM($G15:J15))*(1-'Input Data'!$C$48)),0)*Financials!$C$74)*'Input Data'!$C$47 -> 0 | K82: =(IF(K$4<=$B82,((SUM($G15:K15))*(1-'Input Data'!$C$48)),0)*Financials!$C$74)*'Input Data'!$C$47 -> 0 | L82: =(IF(L$4<=$B82,((SUM($G15:L15))*(1-'Input Data'!$C$48)),0)*Financials!$C$74)*'Input Data'!$C$47 -> 0 | M82: =(IF(M$4<=$B82,((SUM($G15:M15))*(1-'Input Data'!$C$48)),0)*Financials!$C$74)*'Input Data'!$C$47 -> 0 | N82: =(IF(N$4<=$B82,((SUM($G15:N15))*(1-'Input Data'!$C$48)),0)*Financials!$C$74)*'Input Data'!$C$47 -> 0 | O82: =(IF(O$4<=$B82,((SUM($G15:O15))*(1-'Input Data'!$C$48)),0)*Financials!$C$74)*'Input Data'!$C$47 -> 0 | P82: =(IF(P$4<=$B82,((SUM($G15:P15))*(1-'Input Data'!$C$48)),0)*Financials!$C$74)*'Input Data'!$C$47 -> 0 | Q82: =(IF(Q$4<=$B82,((SUM($G15:Q15))*(1-'Input Data'!$C$48)),0)*Financials!$C$74)*'Input Data'!$C$47 -> 0 | R82: =(IF(R$4<=$B82,((SUM($G15:R15))*(1-'Input Data'!$C$48)),0)*Financials!$C$74)*'Input Data'!$C$47 -> 0 | S82: =(IF(S$4<=$B82,((SUM($G15:S15))*(1-'Input Data'!$C$48)),0)*Financials!$C$74)*'Input Data'!$C$47 -> 0 | T82: =(IF(T$4<=$B82,((SUM($G15:T15))*(1-'Input Data'!$C$48)),0)*Financials!$C$74)*'Input Data'!$C$47 -> 0 | U82: =(IF(U$4<=$B82,((SUM($G15:U15))*(1-'Input Data'!$C$48)),0)*Financials!$C$74)*'Input Data'!$C$47 -> 0 | V82: =(IF(V$4<=$B82,((SUM($G15:V15))*(1-'Input Data'!$C$48)),0)*Financials!$C$74)*'Input Data'!$C$47 -> 0 | W82: =(IF(W$4<=$B82,((SUM($G15:W15))*(1-'Input Data'!$C$48)),0)*Financials!$C$74)*'Input Data'!$C$47 -> 0 | X82: =(IF(X$4<=$B82,((SUM($G15:X15))*(1-'Input Data'!$C$48)),0)*Financials!$C$74)*'Input Data'!$C$47 -> 0 | Y82: =(IF(Y$4<=$B82,((SUM($G15:Y15))*(1-'Input Data'!$C$48)),0)*Financials!$C$74)*'Input Data'!$C$47 -> 0 | Z82: =(IF(Z$4<=$B82,((SUM($G15:Z15))*(1-'Input Data'!$C$48)),0)*Financials!$C$74)*'Input Data'!$C$47 -> 0 | AA82: =(IF(AA$4<=$B82,((SUM($G15:AA15))*(1-'Input Data'!$C$48)),0)*Financials!$C$74)*'Input Data'!$C$47 -> 0 | AB82: =(IF(AB$4<=$B82,((SUM($G15:AB15))*(1-'Input Data'!$C$48)),0)*Financials!$C$74)*'Input Data'!$C$47 -> 0 | AC82: =(IF(AC$4<=$B82,((SUM($G15:AC15))*(1-'Input Data'!$C$48)),0)*Financials!$C$74)*'Input Data'!$C$47 -> 0 | AD82: =(IF(AD$4<=$B82,((SUM($G15:AD15))*(1-'Input Data'!$C$48)),0)*Financials!$C$74)*'Input Data'!$C$47 -> 0 | AE82: =(IF(AE$4<=$B82,((SUM($G15:AE15))*(1-'Input Data'!$C$48)),0)*Financials!$C$74)*'Input Data'!$C$47 -> 0 | AF82: =(IF(AF$4<=$B82,((SUM($G15:AF15))*(1-'Input Data'!$C$48)),0)*Financials!$C$74)*'Input Data'!$C$47 -> 0 | AG82: =(IF(AG$4<=$B82,((SUM($G15:AG15))*(1-'Input Data'!$C$48)),0)*Financials!$C$74)*'Input Data'!$C$47 -> 0 | AH82: =(IF(AH$4<=$B82,((SUM($G15:AH15))*(1-'Input Data'!$C$48)),0)*Financials!$C$74)*'Input Data'!$C$47 -> 0 | AI82: =(IF(AI$4<=$B82,((SUM($G15:AI15))*(1-'Input Data'!$C$48)),0)*Financials!$C$74)*'Input Data'!$C$47 -> 0 | AJ82: =(IF(AJ$4<=$B82,((SUM($G15:AJ15))*(1-'Input Data'!$C$48)),0)*Financials!$C$74)*'Input Data'!$C$47 -> 0 | AK82: 0
A83: Total | G83: =SUM(G73:G82) -> 1879825.749 | H83: =SUM(H73:H82) -> 6723001.84 | I83: =SUM(I73:I82) -> 14110510.87 | J83: 8105449.559 | K83: 0 | L83: 0 | M83: 0 | N83: 0 | O83: 0 | P83: 0 | Q83: 0 | R83: 0 | S83: 0 | T83: 0 | U83: 0 | V83: 0 | W83: 0 | X83: 0 | Y83: 0 | Z83: 0 | AA83: 0 | AB83: 0 | AC83: 0 | AD83: 0 | AE83: 0 | AF83: 0 | AG83: 0 | AH83: 0 | AI83: 0 | AJ83: 0 | AK83: 30818788.02

Sheet DEPRECIATION --->

Sheet Book
A1: Depreciation / Depletion | C1: 1 | D1: =+C1+1 -> 2 | E1: =+D1+1 -> 3 | F1: 4 | G1: 5 | H1: 6 | I1: 7 | J1: 8 | K1: 9 | L1: 10 | M1: 11 | N1: 12 | O1: 13 | P1: 14 | Q1: 15 | R1: 16 | S1: 17 | T1: 18 | U1: 19 | V1: 20 | W1: 21 | X1: 22 | Y1: 23 | Z1: 24 | AA1: 25 | AB1: =+AA1+1 -> 26 | AC1: =+AB1+1 -> 27 | AD1: =+AC1+1 -> 28 | AE1: =+AD1+1 -> 29 | AF1: =+AE1+1 -> 30
